Workbook

Sheet Notes
A1: VolumeWeightedMovingAverageBreakouts.xlsm; Traders Tip spreadsheet created for the April 2017 Issue
A2: Coded beginning 2017-February-08 by Ronald McAllister (rpmac_xltt@sprynet.com)
A4: This Workbook demonstrates an EXCEL version of the ideas presented
A5: by Ken Calhoun in an article titled "Volume Weighted Moving Average Breakouts"
A6: which originally appeared in the April 2017 issue of
A7: "Technical Analysis of Stocks and Commodities" magazine.
A9: CalculationsAndCharts construction Notes:
B10: A note about trailing stops and bar chart simulations:
B11: For this spreadsheet and chart, the calculation of the stop we use for the current bar uses the close of the preceding bars.
B12: But nothing from the current bar. Thus the term "Trailing".
B14: The Buy simulation used here executes using the Open of the bar immediately following the Buy crossover or re-entry signal.
B15: Similarly the Stop sell executes using the Open of the bar immediately following the sell cross under bar or bar which intercepts the stop or aggregate support level;
B16: This intercept bar is any bar where we have a Long position in flight and the Low of the bar is less than the current stop or aggregate support level.
B18: Since the moving averages and the Stop computations all use the Close to generate the signals,
B19: we cannot logically act any earlier than the open of the bar following the signal.
B21: Scaling up from 15 minute interval to EndOfDay data:
B22: There are 26 15-minute periods in US trading day. The example chart in Mr. Calhoun's article uses 70 and 50 periods for the lengths of the averages.
B23: So 50 15-minute periods translates to (50/26 ==>) 1.923 trading days. Round up to 2 days.
B24: And 70 periods translates to (70/26 ==>) 2.692. round up to 3.
B25: Ratio of 50 to 70 suggests a conversion factor of 1.4 when estimating a starting value of MA for any selected period of VWMA.
B26: 1.4 * VWMA period ==> MA period. I will use ceiling function to round up to next integer value for fractional results.
B28: 1-Bar Trailing High: used to establish re-entry breakout threshold.
B29: Set initial value when VWMA crosses over MA (a natural entry for this system)
B30: While VWMA above MA, Move trailing value up any time cur high exceeds trailing High.
B31: Nullify when VWMA below MA
B33: Long Re-Entry:
B34: VWMA above MA, so trend is still up.
B35: No active long position,
B36: Price Break above trailing High
B38: Color arrows according to type of entry or exit.
B39: Hollow for MA X-over / X=Under
B40: Solid green for Long Re-entry
B41: Solid Red for trail stop exit
B42: Red outline with Blue center for aggregate support exit.
B44: Set check boxes to control application of the stop type exits and the use of re-entry opportunities.
B46: For any entry that is taken, initiate stop loss value computations even if not using to exit and not charting.
A49: Development Notes:
C50: This workbook contains and uses VBA macros and may use VBA Class structures.
C51: Input Data
C52: The data in this workbook is sorted date descending (most recent date at the top). All formulas and
C53: VBA routines are built accordingly.
A55: Calculation and Chart Worksheet Usage Comments:
C56: In General, Items in Bolded BLUE are items you may freely change to play what-if games.
C57: Be sure to have a backup copy of the spreadsheet before you alter anything else.
A59: Features carried forward from the June 2016 version of my T-Tips Template
A60: Added a pair of buttons near cell F12 that will allow the user to step the charting window forward or backward one bar for each click.
A61: I find this to be a good way to test my understanding of the author's ideas as I step through the evolution of the price behavior and the indicators.
B63: First: In the "Help! I would like to plot data" area.
B64: Added button to resolve #NA problems by locating the bar in the input data with a slightly more recent date than what the user actually requested.
B65: I find this particularly useful when I have a general idea of where I want to be date wise. Now I can pick a set of dates "out of the air".
B66: If either (or both) of my date specifications fall between dates that are available in the price history,
B67: this button will resolve them to the dates of the nearest, slightly more recent input bars.
B68: I can then refine my data interval search as necessary from there.
B69: Really great when working with Weekly or Monthly studies!
C70: 2016Jun11 - added logic to the "I would like to chart.." button to detect #N/A values and terminate
C71: gracefully with a message instead of blowing up in the charting logic.
B73: Second: In the "Price Chart Windowing Controls" area. (A11 and A12)
B74: When retrieving data for a new symbol or when changing from daily to weekly or monthly data, there was the possibility that the
B75: residual settings in A11 and A12 would fall outside of the number bars available on the input data tab after the new data retrieval.
B76: In certain combinations, this could create a serious error in the chart sizing logic and crash the spreadsheet.
B77: I have taken this opportunity to update the validity checking logic used in the chart sizing macros
B78: to adjust these values as necessary so that they fall within the boundaries of the newly retrieved input data.
A79: Features carried forward from the October 2015 Traders Tips Template
B80: Improved automation: changes to any of the following will automatically initiate calculations appropriate to reflect a change.
C81: Changing either of cells A11 (pan) or A12 (zoom) will automatically initiate the same chart sizing macros that the manual
C82: "Set Chart" button uses.
B84: Added fail-over capability to attempt to retrieve company name and basic last trade info via screen scraper logic
C85: using the Yahoo stock Summary page. Until now, the way I have been doing this reports that ^DJI is Not Found!
C86: when there is history available. Will still report correctly for a truly Not Found Symbol
C87: Minor drawbacks to the screen scrape of the stock summary page include:
C88: Only date on the page is the date we request the page. I will use this date for now as the last trade date…
C89: But the user should be aware that this is not necessarily the correct date if you are making the inquiry on
C90: a weekend or market holiday.
C91: This is not a big issue as the last real trade will already be accounted for in the history download by about 6 pm on the real date of the trade.
C92: Note: This failover mechanism is only used if what I have been doing all along reports a "not found" for the requested symbol.

Sheet InputPriceData
A1: Direxion Financial Bull 3X Shar (FAS) -PCX (Daily)
A2: Last Trade: | B2: 2017-02-10 | C2: 43.95 | D2: 44.26 | E2: 43.55 | F2: 44 | G2: 3352880 | H2: 8:00pm | I2: 0.44 | J2: =IFERROR(OFFSET(J2,0,-1,1,1)/(OFFSET(J2,0,-4,1,1)-OFFSET(J2,0,-1,1,1)),"") -> 0.0101010101 | L2: Notes: | M2: Online Yahoo Finance Query Interfaces used in the VBA code to obtain this data: | IJ2: 241.79
A3: Request Online Yahoo History for: | M3: A.) Price History Only: "http://ichart.finance.yahoo.com/table.csv"
A4: Symbol | B4: FAS | D4: Valid | I4: =OFFSET(I4,-2,0,1,1) -> 0.44 | M4: B.) Price History w/ imbedded divs n splits: "http://ichart.finance.yahoo.com/x"
A5: From | B5: 1950-01-01 | D5: Data | AF5: Trailing 12 Div return (Cur Close)
A6: To | B6: =NOW() -> 2017-02-13T17:04:34.850 | D6: Types | E6: =VLOOKUP(B7,D7:E10,2,FALSE) -> d | M6: C.) Fundamentals (in this case name and exchange):
A7: Data Type | B7: Daily | D7: Daily | E7: d | M7: "http://download.finance.yahoo.com/d/quotes.csv?"
D8: Weekly | E8: w | M8: For some how-to doc regarding this particular interface, including a list of the
A9: Available Data | D9: Monthly | E9: m | M9: specific fields you can include in a request to this interface see:
A10: Bar Count: | B10: =COUNTA(B15:B70000)-1 -> 2071 | M10: http://www.gummy-stuff.org/Yahoo-data.htm | AF10: =OFFSET(AC15,1,0,1,1)/OFFSET(N15,1,0,1,1) -> 0.001619545455
A11: From: | B11: =IF(B10<=0,"",OFFSET(B15,B10,IF(HistReqDataType="v",1,0),1,1)) -> 2008-11-19 | M11: This web site includes a downloadable working EXCEL/VBA example | W11: Trailing 12 Month Dividend Returns
A12: To: | B12: =IF(B10<=0,"",IF(HistReqDataType="v",OFFSET(B15,2,1,1,1),OFFSET(B15,1,0,1,1))) -> 2017-02-10 | M12: of the capabilities of this interface. | W12: Raw Close price on Dividend date | X12: Div Year and Month | Y12: Looking for year ago Div Year and Month | Z12: Year ago Div Date we found | AA12: row offset to year ago div Date | AB12: Same month flag | AC12: Trailing 12 Div Total | AD12: Trailing 12 Div return
Q13: Split History | S13: =COUNT(Q16:Q3919) -> 5 | T13: Running | U13: Dividend History
B14: Raw Data Values | H14: Adjusted | I14: Price Adjust | J14: Vol Adjust | K14: Adjusted Values | P14: Last | Q14: Effective | R14: Shares | T14: Vol Adjust | V14: =COUNT(U16:U3919) -> 5
A15: RelRow | B15: Date | C15: Open | D15: High | E15: Low | F15: Close | G15: Volume | H15: Close | I15: Factor | J15: Factor | K15: Open | L15: High | M15: Low | N15: Close | O15: Volume | P15: Trade | Q15: 42779 | R15: New | S15: Old | T15: 1 | U15: Date | V15: $ / Share
A16: 1 | B16: 2017-02-10 | C16: 43.950001 | D16: 44.259998 | E16: 43.549999 | F16: 44 | G16: 3352600 | H16: 44 | I16: =H16/F16 -> 1 | J16: =INDEX(OFFSET($T$15,0,0,$S$13+1,1),MATCH(B16,OFFSET($Q$15,0,0,$S$13+1,1),-1)) -> 1 | K16: =ROUND($I16*C16,2) -> 43.95 | L16: =ROUND($I16*D16,2) -> 44.26 | M16: 43.55 | N16: 44 | O16: =G16*J16 -> 3352600 | Q16: 2015-05-20 | R16: 4 | S16: 1 | T16: 4 | U16: 2010-03-23 | V16: 0.04056 | W16: =(INDEX(OFFSET($F$15,1,0,$B$10,1),MATCH(U16,OFFSET($B$15,1,0,$B$10,1),-1))) -> 95.579995 | X16: =YEAR(U16)&RIGHT("0"&MONTH(U16),2) -> 201003 | Y16: =YEAR(U16)-1&RIGHT("0"&MONTH(U16),2) -> 200903 | Z16: =OFFSET(U15,AA16,0,1,1) -> 2009-03-24 | AA16: =MATCH(Y16,OFFSET($X$15,A16,0,$V$14+1-A16,1),-1) -> 4 | AB16: =IF(OR(AND(YEAR(U16)=YEAR(Z16),MONTH(U16)=MONTH(Z16)),MONTH(U16)=MONTH(Z16)),1,0) -> 1 | AC16: =(V16+IF(AA16-AB16=0,0,IFERROR(SUM(OFFSET(V16,1,0,AA16-AB16-1,1)),0))) -> 0.07126 | AD16: =AC16/(INDEX(OFFSET($F$15,1,0,$B$10,1),MATCH(U16,OFFSET($B$15,1,0,$B$10,1),-1))) -> 0.0007455535021
A17: 2 | B17: 2017-02-09 | C17: 42.619999 | D17: 43.689999 | E17: 42.48 | F17: 43.560001 | G17: 3600800 | H17: 43.560001 | I17: =H17/F17 -> 1 | J17: =INDEX(OFFSET($T$15,0,0,$S$13+1,1),MATCH(B17,OFFSET($Q$15,0,0,$S$13+1,1),-1)) -> 1 | K17: =ROUND($I17*C17,2) -> 42.62 | L17: =ROUND($I17*D17,2) -> 43.69 | M17: =ROUND($I17*E17,2) -> 42.48 | N17: =ROUND($I17*F17,2) -> 43.56 | O17: =G17*J17 -> 3600800 | Q17: 2013-04-02 | R17: 3 | S17: 1 | T17: 12 | U17: 2009-09-22 | V17: 0.02306 | W17: =(INDEX(OFFSET($F$15,1,0,$B$10,1),MATCH(U17,OFFSET($B$15,1,0,$B$10,1),-1))) -> 89.650008 | X17: =YEAR(U17)&RIGHT("0"&MONTH(U17),2) -> 200909 | Y17: =YEAR(U17)-1&RIGHT("0"&MONTH(U17),2) -> 200809 | Z17: =OFFSET(U16,AA17,0,1,1) -> 2008-12-17 | AA17: =MATCH(Y17,OFFSET($X$15,A17,0,$V$14+1-A17,1),-1) -> 4 | AB17: =IF(OR(AND(YEAR(U17)=YEAR(Z17),MONTH(U17)=MONTH(Z17)),MONTH(U17)=MONTH(Z17)),1,0) -> 0 | AC17: =(V17+IF(AA17-AB17=0,0,IFERROR(SUM(OFFSET(V17,1,0,AA17-AB17-1,1)),0))) -> 0.07445 | AD17: =AC17/(INDEX(OFFSET($F$15,1,0,$B$10,1),MATCH(U17,OFFSET($B$15,1,0,$B$10,1),-1))) -> 0.0008304516827
A18: 3 | B18: 2017-02-08 | C18: 42.32 | D18: 42.41 | E18: 41.740002 | F18: 42.25 | G18: 2574800 | H18: 42.25 | I18: 1 | J18: 1 | K18: 42.32 | L18: 42.41 | M18: 41.74 | N18: 42.25 | O18: 2574800 | Q18: 2011-11-10 | R18: 1 | S18: 5 | T18: 2.4 | U18: 2009-06-23 | V18: 0.00764 | W18: 8.300002 | X18: 200906 | Y18: 200806 | Z18: 2008-12-17 | AA18: 3 | AB18: 0 | AC18: 0.05139 | AD18: 0.006191564773
A19: 4 | B19: 2017-02-07 | C19: 43.290001 | D19: 43.43 | E19: 42.52 | F19: 42.669998 | G19: 2838500 | H19: 42.669998 | I19: 1 | J19: 1 | K19: 43.29 | L19: 43.43 | M19: 42.52 | N19: 42.67 | O19: 2838500 | Q19: 2010-05-05 | R19: 3 | S19: 1 | T19: 7.2 | U19: 2009-03-24 | V19: 0.01111 | W19: 6.12 | X19: 200903 | Y19: 200803 | Z19: 2008-12-17 | AA19: 2 | AB19: 0 | AC19: 0.04375 | AD19: 0.00714869281
A20: 5 | B20: 2017-02-06 | C20: 42.700001 | D20: 43.560001 | E20: 42.689999 | F20: 42.880001 | G20: 2814400 | H20: 42.880001 | I20: 1 | J20: 1 | K20: 42.7 | L20: 43.56 | M20: 42.69 | N20: 42.88 | O20: 2814400 | Q20: 2009-07-09 | R20: 1 | S20: 5 | T20: 1.44 | U20: 2008-12-17 | V20: 0.03264 | W20: 25.699997 | X20: 200812 | Y20: 200712 | Z20: 2008-12-17 | AA20: 1 | AB20: 1 | AC20: 0.03264 | AD20: 0.001270039059
A21: 6 | B21: 2017-02-03 | C21: 42.68 | D21: 43.439999 | E21: 42.380001 | F21: 43.279999 | G21: 5761000 | H21: 43.279999 | I21: 1 | J21: 1 | K21: 42.68 | L21: 43.44 | M21: 42.38 | N21: 43.28 | O21: 5761000
A22: 7 | B22: 2017-02-02 | C22: 40.900002 | D22: 41.630001 | E22: 40.450001 | F22: 41.25 | G22: 2152000 | H22: 41.25 | I22: 1 | J22: 1 | K22: 40.9 | L22: 41.63 | M22: 40.45 | N22: 41.25 | O22: 2152000
A23: 8 | B23: 2017-02-01 | C23: 42.18 | D23: 42.619999 | E23: 41.02 | F23: 41.240002 | G23: 3536300 | H23: 41.240002 | I23: 1 | J23: 1 | K23: 42.18 | L23: 42.62 | M23: 41.02 | N23: 41.24 | O23: 3536300
A24: 9 | B24: 2017-01-31 | C24: 41.52 | D24: 42.189999 | E24: 41.049999 | F24: 41.5 | G24: 3042400 | H24: 41.5 | I24: 1 | J24: 1 | K24: 41.52 | L24: 42.19 | M24: 41.05 | N24: 41.5 | O24: 3042400
A25: 10 | B25: 2017-01-30 | C25: 42.049999 | D25: 42.110001 | E25: 41.080002 | F25: 42.009998 | G25: 3557200 | H25: 42.009998 | I25: 1 | J25: 1 | K25: 42.05 | L25: 42.11 | M25: 41.08 | N25: 42.01 | O25: 3557200
A26: 11 | B26: 2017-01-27 | C26: 43.380001 | D26: 43.41 | E26: 42.59 | F26: 42.75 | G26: 2247500 | H26: 42.75 | I26: 1 | J26: 1 | K26: 43.38 | L26: 43.41 | M26: 42.59 | N26: 42.75 | O26: 2247500
A27: 12 | B27: 2017-01-26 | C27: 43.419998 | D27: 43.720001 | E27: 43.080002 | F27: 43.43 | G27: 3375000 | H27: 43.43 | I27: 1 | J27: 1 | K27: 43.42 | L27: 43.72 | M27: 43.08 | N27: 43.43 | O27: 3375000
A28: 13 | B28: 2017-01-25 | C28: 42.98 | D28: 43.380001 | E28: 42.549999 | F28: 43.299999 | G28: 3706900 | H28: 43.299999 | I28: 1 | J28: 1 | K28: 42.98 | L28: 43.38 | M28: 42.55 | N28: 43.3 | O28: 3706900
A29: 14 | B29: 2017-01-24 | C29: 41.18 | D29: 42.279999 | E29: 40.880001 | F29: 41.950001 | G29: 3670000 | H29: 41.950001 | I29: 1 | J29: 1 | K29: 41.18 | L29: 42.28 | M29: 40.88 | N29: 41.95 | O29: 3670000
A30: 15 | B30: 2017-01-23 | C30: 40.939999 | D30: 41.360001 | E30: 40.369999 | F30: 40.900002 | G30: 2461200 | H30: 40.900002 | I30: 1 | J30: 1 | K30: 40.94 | L30: 41.36 | M30: 40.37 | N30: 40.9 | O30: 2461200
A31: 16 | B31: 2017-01-20 | C31: 41 | D31: 41.369999 | E31: 40.709999 | F31: 41.099998 | G31: 3387200 | H31: 41.099998 | I31: 1 | J31: 1 | K31: 41 | L31: 41.37 | M31: 40.71 | N31: 41.1 | O31: 3387200
A32: 17 | B32: 2017-01-19 | C32: 41.450001 | D32: 41.549999 | E32: 40.23 | F32: 40.59 | G32: 3627600 | H32: 40.59 | I32: 1 | J32: 1 | K32: 41.45 | L32: 41.55 | M32: 40.23 | N32: 40.59 | O32: 3627600
A33: 18 | B33: 2017-01-18 | C33: 41.060001 | D33: 41.360001 | E33: 40.080002 | F33: 41.349998 | G33: 3287700 | H33: 41.349998 | I33: 1 | J33: 1 | K33: 41.06 | L33: 41.36 | M33: 40.08 | N33: 41.35 | O33: 3287700
A34: 19 | B34: 2017-01-17 | C34: 41.849998 | D34: 41.900002 | E34: 40.380001 | F34: 40.650002 | G34: 4870800 | H34: 40.650002 | I34: 1 | J34: 1 | K34: 41.85 | L34: 41.9 | M34: 40.38 | N34: 40.65 | O34: 4870800
A35: 20 | B35: 2017-01-13 | C35: 42.5 | D35: 43.48 | E35: 42.049999 | F35: 42.439999 | G35: 4956600 | H35: 42.439999 | I35: 1 | J35: 1 | K35: 42.5 | L35: 43.48 | M35: 42.05 | N35: 42.44 | O35: 4956600
A36: 21 | B36: 2017-01-12 | C36: 42.040001 | D36: 42.220001 | E36: 40.93 | F36: 42.049999 | G36: 4428300 | H36: 42.049999 | I36: 1 | J36: 1 | K36: 42.04 | L36: 42.22 | M36: 40.93 | N36: 42.05 | O36: 4428300
A37: 22 | B37: 2017-01-11 | C37: 42.25 | D37: 42.59 | E37: 41.610001 | F37: 42.59 | G37: 4662300 | H37: 42.59 | I37: 1 | J37: 1 | K37: 42.25 | L37: 42.59 | M37: 41.61 | N37: 42.59 | O37: 4662300
A38: 23 | B38: 2017-01-10 | C38: 42.25 | D38: 42.970001 | E38: 41.810001 | F38: 42.240002 | G38: 3103900 | H38: 42.240002 | I38: 1 | J38: 1 | K38: 42.25 | L38: 42.97 | M38: 41.81 | N38: 42.24 | O38: 3103900
A39: 24 | B39: 2017-01-09 | C39: 42.549999 | D39: 42.830002 | E39: 42.049999 | F39: 42.200001 | G39: 3345000 | H39: 42.200001 | I39: 1 | J39: 1 | K39: 42.55 | L39: 42.83 | M39: 42.05 | N39: 42.2 | O39: 3345000
A40: 25 | B40: 2017-01-06 | C40: 42.959999 | D40: 43.48 | E40: 42.490002 | F40: 43.02 | G40: 3211900 | H40: 43.02 | I40: 1 | J40: 1 | K40: 42.96 | L40: 43.48 | M40: 42.49 | N40: 43.02 | O40: 3211900
A41: 26 | B41: 2017-01-05 | C41: 43.009998 | D41: 43.16 | E41: 41.66 | F41: 42.639999 | G41: 3979000 | H41: 42.639999 | I41: 1 | J41: 1 | K41: 43.01 | L41: 43.16 | M41: 41.66 | N41: 42.64 | O41: 3979000
A42: 27 | B42: 2017-01-04 | C42: 42.119999 | D42: 43.419998 | E42: 42.119999 | F42: 43.27 | G42: 4443300 | H42: 43.27 | I42: 1 | J42: 1 | K42: 42.12 | L42: 43.42 | M42: 42.12 | N42: 43.27 | O42: 4443300
A43: 28 | B43: 2017-01-03 | C43: 42 | D43: 42.619999 | E43: 41.09 | F43: 41.959999 | G43: 3795800 | H43: 41.959999 | I43: 1 | J43: 1 | K43: 42 | L43: 42.62 | M43: 41.09 | N43: 41.96 | O43: 3795800
A44: 29 | B44: 2016-12-30 | C44: 40.709999 | D44: 41.18 | E44: 40.439999 | F44: 40.900002 | G44: 2402000 | H44: 40.900002 | I44: 1 | J44: 1 | K44: 40.71 | L44: 41.18 | M44: 40.44 | N44: 40.9 | O44: 2402000
A45: 30 | B45: 2016-12-29 | C45: 40.830002 | D45: 41.299999 | E45: 40.200001 | F45: 40.549999 | G45: 1839500 | H45: 40.549999 | I45: 1 | J45: 1 | K45: 40.83 | L45: 41.3 | M45: 40.2 | N45: 40.55 | O45: 1839500
A46: 31 | B46: 2016-12-28 | C46: 42.349998 | D46: 42.349998 | E46: 40.82 | F46: 40.950001 | G46: 2481200 | H46: 40.950001 | I46: 1 | J46: 1 | K46: 42.35 | L46: 42.35 | M46: 40.82 | N46: 40.95 | O46: 2481200
A47: 32 | B47: 2016-12-27 | C47: 42.099998 | D47: 42.25 | E47: 41.950001 | F47: 42.060001 | G47: 1359100 | H47: 42.060001 | I47: 1 | J47: 1 | K47: 42.1 | L47: 42.25 | M47: 41.95 | N47: 42.06 | O47: 1359100
A48: 33 | B48: 2016-12-23 | C48: 41.59 | D48: 41.889999 | E48: 41.43 | F48: 41.830002 | G48: 1257500 | H48: 41.830002 | I48: 1 | J48: 1 | K48: 41.59 | L48: 41.89 | M48: 41.43 | N48: 41.83 | O48: 1257500
A49: 34 | B49: 2016-12-22 | C49: 42 | D49: 42.060001 | E49: 41.18 | F49: 41.630001 | G49: 2290600 | H49: 41.630001 | I49: 1 | J49: 1 | K49: 42 | L49: 42.06 | M49: 41.18 | N49: 41.63 | O49: 2290600
A50: 35 | B50: 2016-12-21 | C50: 42.349998 | D50: 42.400002 | E50: 42 | F50: 42 | G50: 2406600 | H50: 42 | I50: 1 | J50: 1 | K50: 42.35 | L50: 42.4 | M50: 42 | N50: 42 | O50: 2406600
A51: 36 | B51: 2016-12-20 | C51: 42 | D51: 42.470001 | E51: 41.84 | F51: 42.439999 | G51: 2927300 | H51: 42.439999 | I51: 1 | J51: 1 | K51: 42 | L51: 42.47 | M51: 41.84 | N51: 42.44 | O51: 2927300
A52: 37 | B52: 2016-12-19 | C52: 41.34 | D52: 41.48 | E52: 40.639999 | F52: 41.439999 | G52: 2960900 | H52: 41.439999 | I52: 1 | J52: 1 | K52: 41.34 | L52: 41.48 | M52: 40.64 | N52: 41.44 | O52: 2960900
A53: 38 | B53: 2016-12-16 | C53: 41.959999 | D53: 42.040001 | E53: 40.889999 | F53: 41.09 | G53: 4380700 | H53: 41.09 | I53: 1 | J53: 1 | K53: 41.96 | L53: 42.04 | M53: 40.89 | N53: 41.09 | O53: 4380700
A54: 39 | B54: 2016-12-15 | C54: 41.720001 | D54: 42.549999 | E54: 41.029999 | F54: 41.630001 | G54: 6071200 | H54: 41.630001 | I54: 1 | J54: 1 | K54: 41.72 | L54: 42.55 | M54: 41.03 | N54: 41.63 | O54: 6071200
A55: 40 | B55: 2016-12-14 | C55: 41.139999 | D55: 42.560001 | E55: 40.48 | F55: 40.889999 | G55: 9002000 | H55: 40.889999 | I55: 1 | J55: 1 | K55: 41.14 | L55: 42.56 | M55: 40.48 | N55: 40.89 | O55: 9002000
A56: 41 | B56: 2016-12-13 | C56: 41.889999 | D56: 42.41 | E56: 41.07 | F56: 41.790001 | G56: 5244100 | H56: 41.790001 | I56: 1 | J56: 1 | K56: 41.89 | L56: 42.41 | M56: 41.07 | N56: 41.79 | O56: 5244100
A57: 42 | B57: 2016-12-12 | C57: 42.16 | D57: 42.540001 | E57: 41.18 | F57: 41.619999 | G57: 4176400 | H57: 41.619999 | I57: 1 | J57: 1 | K57: 42.16 | L57: 42.54 | M57: 41.18 | N57: 41.62 | O57: 4176400
A58: 43 | B58: 2016-12-09 | C58: 42.279999 | D58: 42.419998 | E58: 41.68 | F58: 42.419998 | G58: 4516900 | H58: 42.419998 | I58: 1 | J58: 1 | K58: 42.28 | L58: 42.42 | M58: 41.68 | N58: 42.42 | O58: 4516900
A59: 44 | B59: 2016-12-08 | C59: 41.57 | D59: 42.830002 | E59: 41.169998 | F59: 42.25 | G59: 7865000 | H59: 42.25 | I59: 1 | J59: 1 | K59: 41.57 | L59: 42.83 | M59: 41.17 | N59: 42.25 | O59: 7865000
A60: 45 | B60: 2016-12-07 | C60: 39.380001 | D60: 41.32 | E60: 39.220001 | F60: 41.23 | G60: 5696500 | H60: 41.23 | I60: 1 | J60: 1 | K60: 39.38 | L60: 41.32 | M60: 39.22 | N60: 41.23 | O60: 5696500
A61: 46 | B61: 2016-12-06 | C61: 38.75 | D61: 39.299999 | E61: 38.310001 | F61: 39.299999 | G61: 3395200 | H61: 39.299999 | I61: 1 | J61: 1 | K61: 38.75 | L61: 39.3 | M61: 38.31 | N61: 39.3 | O61: 3395200
A62: 47 | B62: 2016-12-05 | C62: 37.849998 | D62: 38.57 | E62: 37.810001 | F62: 38.439999 | G62: 3817800 | H62: 38.439999 | I62: 1 | J62: 1 | K62: 37.85 | L62: 38.57 | M62: 37.81 | N62: 38.44 | O62: 3817800
A63: 48 | B63: 2016-12-02 | C63: 37.310001 | D63: 37.59 | E63: 36.889999 | F63: 37.169998 | G63: 2906600 | H63: 37.169998 | I63: 1 | J63: 1 | K63: 37.31 | L63: 37.59 | M63: 36.89 | N63: 37.17 | O63: 2906600
A64: 49 | B64: 2016-12-01 | C64: 37.41 | D64: 38.040001 | E64: 37.080002 | F64: 37.66 | G64: 3879800 | H64: 37.66 | I64: 1 | J64: 1 | K64: 37.41 | L64: 38.04 | M64: 37.08 | N64: 37.66 | O64: 3879800
A65: 50 | B65: 2016-11-30 | C65: 37.5 | D65: 37.560001 | E65: 36.75 | F65: 37.009998 | G65: 3591300 | H65: 37.009998 | I65: 1 | J65: 1 | K65: 37.5 | L65: 37.56 | M65: 36.75 | N65: 37.01 | O65: 3591300
A66: 51 | B66: 2016-11-29 | C66: 36.209999 | D66: 36.810001 | E66: 36.18 | F66: 36.48 | G66: 2521000 | H66: 36.48 | I66: 1 | J66: 1 | K66: 36.21 | L66: 36.81 | M66: 36.18 | N66: 36.48 | O66: 2521000
A67: 52 | B67: 2016-11-28 | C67: 36.669998 | D67: 37.07 | E67: 35.990002 | F67: 36.200001 | G67: 3049800 | H67: 36.200001 | I67: 1 | J67: 1 | K67: 36.67 | L67: 37.07 | M67: 35.99 | N67: 36.2 | O67: 3049800
A68: 53 | B68: 2016-11-25 | C68: 37.040001 | D68: 37.18 | E68: 36.880001 | F68: 37.18 | G68: 1122600 | H68: 37.18 | I68: 1 | J68: 1 | K68: 37.04 | L68: 37.18 | M68: 36.88 | N68: 37.18 | O68: 1122600
A69: 54 | B69: 2016-11-23 | C69: 36.610001 | D69: 36.950001 | E69: 36.07 | F69: 36.93 | G69: 3522800 | H69: 36.93 | I69: 1 | J69: 1 | K69: 36.61 | L69: 36.95 | M69: 36.07 | N69: 36.93 | O69: 3522800
A70: 55 | B70: 2016-11-22 | C70: 36.790001 | D70: 36.790001 | E70: 36 | F70: 36.610001 | G70: 2887200 | H70: 36.610001 | I70: 1 | J70: 1 | K70: 36.79 | L70: 36.79 | M70: 36 | N70: 36.61 | O70: 2887200
A71: 56 | B71: 2016-11-21 | C71: 36.360001 | D71: 36.490002 | E71: 35.799999 | F71: 36.279999 | G71: 3630600 | H71: 36.279999 | I71: 1 | J71: 1 | K71: 36.36 | L71: 36.49 | M71: 35.8 | N71: 36.28 | O71: 3630600
A72: 57 | B72: 2016-11-18 | C72: 35.950001 | D72: 36.119999 | E72: 35.610001 | F72: 35.990002 | G72: 2956500 | H72: 35.990002 | I72: 1 | J72: 1 | K72: 35.95 | L72: 36.12 | M72: 35.61 | N72: 35.99 | O72: 2956500
A73: 58 | B73: 2016-11-17 | C73: 34.970001 | D73: 36 | E73: 34.790001 | F73: 35.75 | G73: 3716700 | H73: 35.75 | I73: 1 | J73: 1 | K73: 34.97 | L73: 36 | M73: 34.79 | N73: 35.75 | O73: 3716700
A74: 59 | B74: 2016-11-16 | C74: 34.84 | D74: 35.16 | E74: 34.529999 | F74: 34.860001 | G74: 3672800 | H74: 34.860001 | I74: 1 | J74: 1 | K74: 34.84 | L74: 35.16 | M74: 34.53 | N74: 34.86 | O74: 3672800
A75: 60 | B75: 2016-11-15 | C75: 35.220001 | D75: 35.740002 | E75: 34.630001 | F75: 35.66 | G75: 5111400 | H75: 35.66 | I75: 1 | J75: 1 | K75: 35.22 | L75: 35.74 | M75: 34.63 | N75: 35.66 | O75: 5111400
A76: 61 | B76: 2016-11-14 | C76: 34.57 | D76: 35.939999 | E76: 34.48 | F76: 35.75 | G76: 8059200 | H76: 35.75 | I76: 1 | J76: 1 | K76: 34.57 | L76: 35.94 | M76: 34.48 | N76: 35.75 | O76: 8059200
A77: 62 | B77: 2016-11-11 | C77: 33.240002 | D77: 34.119999 | E77: 33.119999 | F77: 34.049999 | G77: 5835800 | H77: 34.049999 | I77: 1 | J77: 1 | K77: 33.24 | L77: 34.12 | M77: 33.12 | N77: 34.05 | O77: 5835800
A78: 63 | B78: 2016-11-10 | C78: 32.779999 | D78: 34.130001 | E78: 32.32 | F78: 33.720001 | G78: 11223000 | H78: 33.720001 | I78: 1 | J78: 1 | K78: 32.78 | L78: 34.13 | M78: 32.32 | N78: 33.72 | O78: 11223000
A79: 64 | B79: 2016-11-09 | C79: 30.51 | D79: 32.220001 | E79: 29.700001 | F79: 31.83 | G79: 11110000 | H79: 31.83 | I79: 1 | J79: 1 | K79: 30.51 | L79: 32.22 | M79: 29.7 | N79: 31.83 | O79: 11110000
A80: 65 | B80: 2016-11-08 | C80: 29.290001 | D80: 30.049999 | E80: 28.98 | F80: 29.77 | G80: 3553600 | H80: 29.77 | I80: 1 | J80: 1 | K80: 29.29 | L80: 30.05 | M80: 28.98 | N80: 29.77 | O80: 3553600
A81: 66 | B81: 2016-11-07 | C81: 28.969999 | D81: 29.58 | E81: 28.83 | F81: 29.5 | G81: 3954700 | H81: 29.5 | I81: =H81/F81 -> 1 | J81: =INDEX(OFFSET($T$15,0,0,$S$13+1,1),MATCH(B81,OFFSET($Q$15,0,0,$S$13+1,1),-1)) -> 1 | K81: =ROUND($I81*C81,2) -> 28.97 | L81: =ROUND($I81*D81,2) -> 29.58 | M81: =ROUND($I81*E81,2) -> 28.83 | N81: =ROUND($I81*F81,2) -> 29.5 | O81: =G81*J81 -> 3954700
A82: 67 | B82: 2016-11-04 | C82: 27.84 | D82: 28.27 | E82: 27.42 | F82: 27.66 | G82: 2550600 | H82: 27.66 | I82: 1 | J82: 1 | K82: 27.84 | L82: 28.27 | M82: 27.42 | N82: 27.66 | O82: 2550600
A83: 68 | B83: 2016-11-03 | C83: 28.01 | D83: 28.42 | E83: 27.68 | F83: 27.82 | G83: 2262200 | H83: 27.82 | I83: 1 | J83: 1 | K83: 28.01 | L83: 28.42 | M83: 27.68 | N83: 27.82 | O83: 2262200
A84: 69 | B84: 2016-11-02 | C84: 28.33 | D84: 28.49 | E84: 27.65 | F84: 27.860001 | G84: 3183900 | H84: 27.860001 | I84: 1 | J84: 1 | K84: 28.33 | L84: 28.49 | M84: 27.65 | N84: 27.86 | O84: 3183900
A85: 70 | B85: 2016-11-01 | C85: 29.540001 | D85: 29.59 | E85: 28.110001 | F85: 28.629999 | G85: 3410400 | H85: 28.629999 | I85: 1 | J85: 1 | K85: 29.54 | L85: 29.59 | M85: 28.11 | N85: 28.63 | O85: 3410400
A86: 71 | B86: 2016-10-31 | C86: 29.35 | D86: 29.549999 | E86: 29.219999 | F86: 29.360001 | G86: 1871200 | H86: 29.360001 | I86: 1 | J86: 1 | K86: 29.35 | L86: 29.55 | M86: 29.22 | N86: 29.36 | O86: 1871200
A87: 72 | B87: 2016-10-28 | C87: 29.43 | D87: 29.68 | E87: 28.629999 | F87: 29.08 | G87: 3489400 | H87: 29.08 | I87: 1 | J87: 1 | K87: 29.43 | L87: 29.68 | M87: 28.63 | N87: 29.08 | O87: 3489400
A88: 73 | B88: 2016-10-27 | C88: 29.809999 | D88: 29.82 | E88: 29.1 | F88: 29.190001 | G88: 2246300 | H88: 29.190001 | I88: 1 | J88: 1 | K88: 29.81 | L88: 29.82 | M88: 29.1 | N88: 29.19 | O88: 2246300
A89: 74 | B89: 2016-10-26 | C89: 29.17 | D89: 29.700001 | E89: 29.07 | F89: 29.540001 | G89: 1670000 | H89: 29.540001 | I89: 1 | J89: 1 | K89: 29.17 | L89: 29.7 | M89: 29.07 | N89: 29.54 | O89: 1670000
A90: 75 | B90: 2016-10-25 | C90: 29.65 | D90: 29.76 | E90: 29.290001 | F90: 29.48 | G90: 1886800 | H90: 29.48 | I90: 1 | J90: 1 | K90: 29.65 | L90: 29.76 | M90: 29.29 | N90: 29.48 | O90: 1886800
A91: 76 | B91: 2016-10-24 | C91: 29.85 | D91: 30.15 | E91: 29.65 | F91: 29.68 | G91: 1888100 | H91: 29.68 | I91: 1 | J91: 1 | K91: 29.85 | L91: 30.15 | M91: 29.65 | N91: 29.68 | O91: 1888100
A92: 77 | B92: 2016-10-21 | C92: 28.93 | D92: 29.469999 | E92: 28.76 | F92: 29.43 | G92: 1882600 | H92: 29.43 | I92: 1 | J92: 1 | K92: 28.93 | L92: 29.47 | M92: 28.76 | N92: 29.43 | O92: 1882600
A93: 78 | B93: 2016-10-20 | C93: 29.389999 | D93: 29.9 | E93: 29.08 | F93: 29.309999 | G93: 2389100 | H93: 29.309999 | I93: 1 | J93: 1 | K93: 29.39 | L93: 29.9 | M93: 29.08 | N93: 29.31 | O93: 2389100
A94: 79 | B94: 2016-10-19 | C94: 29.129999 | D94: 29.639999 | E94: 28.99 | F94: 29.459999 | G94: 2690100 | H94: 29.459999 | I94: 1 | J94: 1 | K94: 29.13 | L94: 29.64 | M94: 28.99 | N94: 29.46 | O94: 2690100
A95: 80 | B95: 2016-10-18 | C95: 29.049999 | D95: 29.1 | E95: 28.66 | F95: 28.860001 | G95: 2289700 | H95: 28.860001 | I95: 1 | J95: 1 | K95: 29.05 | L95: 29.1 | M95: 28.66 | N95: 28.86 | O95: 2289700
A96: 81 | B96: 2016-10-17 | C96: 28.65 | D96: 28.84 | E96: 28.209999 | F96: 28.32 | G96: 1868100 | H96: 28.32 | I96: 1 | J96: 1 | K96: 28.65 | L96: 28.84 | M96: 28.21 | N96: 28.32 | O96: 1868100
A97: 82 | B97: 2016-10-14 | C97: 29.18 | D97: 29.309999 | E97: 28.43 | F97: 28.57 | G97: 3729700 | H97: 28.57 | I97: 1 | J97: 1 | K97: 29.18 | L97: 29.31 | M97: 28.43 | N97: 28.57 | O97: 3729700
A98: 83 | B98: 2016-10-13 | C98: 28.25 | D98: 28.440001 | E98: 27.58 | F98: 28.33 | G98: 3821600 | H98: 28.33 | I98: 1 | J98: 1 | K98: 28.25 | L98: 28.44 | M98: 27.58 | N98: 28.33 | O98: 3821600
A99: 84 | B99: 2016-10-12 | C99: 28.73 | D99: 29.120001 | E99: 28.530001 | F99: 28.9 | G99: 1841700 | H99: 28.9 | I99: 1 | J99: 1 | K99: 28.73 | L99: 29.12 | M99: 28.53 | N99: 28.9 | O99: 1841700
A100: 85 | B100: 2016-10-11 | C100: 29.290001 | D100: 29.360001 | E100: 28.18 | F100: 28.540001 | G100: 3413600 | H100: 28.540001 | I100: 1 | J100: 1 | K100: 29.29 | L100: 29.36 | M100: 28.18 | N100: 28.54 | O100: 3413600
A101: 86 | B101: 2016-10-10 | C101: 29.52 | D101: 29.719999 | E101: 29.4 | F101: 29.440001 | G101: 1760000 | H101: 29.440001 | I101: 1 | J101: 1 | K101: 29.52 | L101: 29.72 | M101: 29.4 | N101: 29.44 | O101: 1760000
A102: 87 | B102: 2016-10-07 | C102: 29.200001 | D102: 29.440001 | E102: 28.59 | F102: 29.040001 | G102: 2886100 | H102: 29.040001 | I102: 1 | J102: 1 | K102: 29.2 | L102: 29.44 | M102: 28.59 | N102: 29.04 | O102: 2886100
A103: 88 | B103: 2016-10-06 | C103: 29.110001 | D103: 29.209999 | E103: 28.620001 | F103: 29.129999 | G103: 1791100 | H103: 29.129999 | I103: 1 | J103: 1 | K103: 29.11 | L103: 29.21 | M103: 28.62 | N103: 29.13 | O103: 1791100
A104: 89 | B104: 2016-10-05 | C104: 28.83 | D104: 29.27 | E104: 28.83 | F104: 29.07 | G104: 2761000 | H104: 29.07 | I104: 1 | J104: 1 | K104: 28.83 | L104: 29.27 | M104: 28.83 | N104: 29.07 | O104: 2761000
A105: 90 | B105: 2016-10-04 | C105: 28.77 | D105: 29.01 | E105: 28.309999 | F105: 28.57 | G105: 4058900 | H105: 28.57 | I105: 1 | J105: 1 | K105: 28.77 | L105: 29.01 | M105: 28.31 | N105: 28.57 | O105: 4058900
A106: 91 | B106: 2016-10-03 | C106: 28.940001 | D106: 29.049999 | E106: 28.4 | F106: 28.559999 | G106: 2344700 | H106: 28.559999 | I106: 1 | J106: 1 | K106: 28.94 | L106: 29.05 | M106: 28.4 | N106: 28.56 | O106: 2344700
A107: 92 | B107: 2016-09-30 | C107: 28.92 | D107: 29.530001 | E107: 28.610001 | F107: 29.15 | G107: 3627200 | H107: 29.15 | I107: 1 | J107: 1 | K107: 28.92 | L107: 29.53 | M107: 28.61 | N107: 29.15 | O107: 3627200
A108: 93 | B108: 2016-09-29 | C108: 29.540001 | D108: 29.77 | E108: 28.120001 | F108: 28.42 | G108: 4834800 | H108: 28.42 | I108: 1 | J108: 1 | K108: 29.54 | L108: 29.77 | M108: 28.12 | N108: 28.42 | O108: 4834800
A109: 94 | B109: 2016-09-28 | C109: 29.41 | D109: 29.67 | E109: 28.780001 | F109: 29.629999 | G109: 2655200 | H109: 29.629999 | I109: 1 | J109: 1 | K109: 29.41 | L109: 29.67 | M109: 28.78 | N109: 29.63 | O109: 2655200
A110: 95 | B110: 2016-09-27 | C110: 28.620001 | D110: 29.27 | E110: 28.389999 | F110: 29.110001 | G110: 2568900 | H110: 29.110001 | I110: 1 | J110: 1 | K110: 28.62 | L110: 29.27 | M110: 28.39 | N110: 29.11 | O110: 2568900
A111: 96 | B111: 2016-09-26 | C111: 29.209999 | D111: 29.360001 | E111: 28.65 | F111: 28.790001 | G111: 2614300 | H111: 28.790001 | I111: 1 | J111: 1 | K111: 29.21 | L111: 29.36 | M111: 28.65 | N111: 28.79 | O111: 2614300
A112: 97 | B112: 2016-09-23 | C112: 29.860001 | D112: 30.08 | E112: 29.67 | F112: 29.700001 | G112: 2014300 | H112: 29.700001 | I112: 1 | J112: 1 | K112: 29.86 | L112: 30.08 | M112: 29.67 | N112: 29.7 | O112: 2014300
A113: 98 | B113: 2016-09-22 | C113: 30 | D113: 30.309999 | E113: 29.889999 | F113: 30.110001 | G113: 3535200 | H113: 30.110001 | I113: 1 | J113: 1 | K113: 30 | L113: 30.31 | M113: 29.89 | N113: 30.11 | O113: 3535200
A114: 99 | B114: 2016-09-21 | C114: 29.209999 | D114: 29.65 | E114: 28.690001 | F114: 29.57 | G114: 5460200 | H114: 29.57 | I114: 1 | J114: 1 | K114: 29.21 | L114: 29.65 | M114: 28.69 | N114: 29.57 | O114: 5460200
A115: 100 | B115: 2016-09-20 | C115: 29.18 | D115: 29.459999 | E115: 28.76 | F115: 28.809999 | G115: 1799100 | H115: 28.809999 | I115: 1 | J115: 1 | K115: 29.18 | L115: 29.46 | M115: 28.76 | N115: 28.81 | O115: 1799100
A116: 101 | B116: 2016-09-19 | C116: 28.860001 | D116: 29.219999 | E116: 28.49 | F116: 28.790001 | G116: 2463000 | H116: 28.790001 | I116: 1 | J116: 1 | K116: 28.86 | L116: 29.22 | M116: 28.49 | N116: 28.79 | O116: 2463000
A117: 102 | B117: 2016-09-16 | C117: 28.66 | D117: 28.77 | E117: 28.040001 | F117: 28.299999 | G117: 2488700 | H117: 28.299999 | I117: 1 | J117: 1 | K117: 28.66 | L117: 28.77 | M117: 28.04 | N117: 28.3 | O117: 2488700
A118: 103 | B118: 2016-09-15 | C118: 28.48 | D118: 29.200001 | E118: 28.15 | F118: 29.01 | G118: 3452600 | H118: 29.01 | I118: 1 | J118: 1 | K118: 28.48 | L118: 29.2 | M118: 28.15 | N118: 29.01 | O118: 3452600
A119: 104 | B119: 2016-09-14 | C119: 28.76 | D119: 29.17 | E119: 28.23 | F119: 28.43 | G119: 3521700 | H119: 28.43 | I119: 1 | J119: 1 | K119: 28.76 | L119: 29.17 | M119: 28.23 | N119: 28.43 | O119: 3521700
A120: 105 | B120: 2016-09-13 | C120: 29.360001 | D120: 29.440001 | E120: 28.360001 | F120: 28.700001 | G120: 5175200 | H120: 28.700001 | I120: 1 | J120: 1 | K120: 29.36 | L120: 29.44 | M120: 28.36 | N120: 28.7 | O120: 5175200
A121: 106 | B121: 2016-09-12 | C121: 28.639999 | D121: 30.450001 | E121: 28.459999 | F121: 30.18 | G121: 4478800 | H121: 30.18 | I121: 1 | J121: 1 | K121: 28.64 | L121: 30.45 | M121: 28.46 | N121: 30.18 | O121: 4478800
A122: 107 | B122: 2016-09-09 | C122: 30.83 | D122: 30.83 | E122: 29.200001 | F122: 29.209999 | G122: 5492300 | H122: 29.209999 | I122: 1 | J122: 1 | K122: 30.83 | L122: 30.83 | M122: 29.2 | N122: 29.21 | O122: 5492300
A123: 108 | B123: 2016-09-08 | C123: 31.15 | D123: 31.35 | E123: 30.959999 | F123: 31.1 | G123: 2376200 | H123: 31.1 | I123: 1 | J123: 1 | K123: 31.15 | L123: 31.35 | M123: 30.96 | N123: 31.1 | O123: 2376200
A124: 109 | B124: 2016-09-07 | C124: 30.860001 | D124: 31.309999 | E124: 30.67 | F124: 31.26 | G124: 2033400 | H124: 31.26 | I124: 1 | J124: 1 | K124: 30.86 | L124: 31.31 | M124: 30.67 | N124: 31.26 | O124: 2033400
A125: 110 | B125: 2016-09-06 | C125: 31.26 | D125: 31.299999 | E125: 30.459999 | F125: 31.059999 | G125: 2888400 | H125: 31.059999 | I125: 1 | J125: 1 | K125: 31.26 | L125: 31.3 | M125: 30.46 | N125: 31.06 | O125: 2888400
A126: 111 | B126: 2016-09-02 | C126: 30.85 | D126: 31.4 | E126: 30.77 | F126: 31.18 | G126: 3016500 | H126: 31.18 | I126: 1 | J126: 1 | K126: 30.85 | L126: 31.4 | M126: 30.77 | N126: 31.18 | O126: 3016500
A127: 112 | B127: 2016-09-01 | C127: 31.02 | D127: 31.200001 | E127: 30.030001 | F127: 30.639999 | G127: 3510300 | H127: 30.639999 | I127: 1 | J127: 1 | K127: 31.02 | L127: 31.2 | M127: 30.03 | N127: 30.64 | O127: 3510300
A128: 113 | B128: 2016-08-31 | C128: 30.83 | D128: 30.99 | E128: 30.27 | F128: 30.92 | G128: 2920900 | H128: 30.92 | I128: 1 | J128: 1 | K128: 30.83 | L128: 30.99 | M128: 30.27 | N128: 30.92 | O128: 2920900
A129: 114 | B129: 2016-08-30 | C129: 30.440001 | D129: 30.879999 | E129: 30.200001 | F129: 30.860001 | G129: 3200100 | H129: 30.860001 | I129: 1 | J129: 1 | K129: 30.44 | L129: 30.88 | M129: 30.2 | N129: 30.86 | O129: 3200100
A130: 115 | B130: 2016-08-29 | C130: 29.67 | D130: 30.469999 | E130: 29.51 | F130: 30.209999 | G130: 2706900 | H130: 30.209999 | I130: 1 | J130: 1 | K130: 29.67 | L130: 30.47 | M130: 29.51 | N130: 30.21 | O130: 2706900
A131: 116 | B131: 2016-08-26 | C131: 29.719999 | D131: 30.129999 | E131: 29 | F131: 29.48 | G131: 4742500 | H131: 29.48 | I131: 1 | J131: 1 | K131: 29.72 | L131: 30.13 | M131: 29 | N131: 29.48 | O131: 4742500
A132: 117 | B132: 2016-08-25 | C132: 29.190001 | D132: 29.6 | E132: 29.049999 | F132: 29.42 | G132: 1533700 | H132: 29.42 | I132: 1 | J132: 1 | K132: 29.19 | L132: 29.6 | M132: 29.05 | N132: 29.42 | O132: 1533700
A133: 118 | B133: 2016-08-24 | C133: 29.4 | D133: 29.58 | E133: 29.08 | F133: 29.200001 | G133: 1513000 | H133: 29.200001 | I133: 1 | J133: 1 | K133: 29.4 | L133: 29.58 | M133: 29.08 | N133: 29.2 | O133: 1513000
A134: 119 | B134: 2016-08-23 | C134: 29.549999 | D134: 29.799999 | E134: 29.4 | F134: 29.4 | G134: 2057100 | H134: 29.4 | I134: 1 | J134: 1 | K134: 29.55 | L134: 29.8 | M134: 29.4 | N134: 29.4 | O134: 2057100
A135: 120 | B135: 2016-08-22 | C135: 29.139999 | D135: 29.299999 | E135: 28.879999 | F135: 29.26 | G135: 1648200 | H135: 29.26 | I135: 1 | J135: 1 | K135: 29.14 | L135: 29.3 | M135: 28.88 | N135: 29.26 | O135: 1648200
A136: 121 | B136: 2016-08-19 | C136: 29.049999 | D136: 29.219999 | E136: 28.719999 | F136: 29.139999 | G136: 1954100 | H136: 29.139999 | I136: 1 | J136: 1 | K136: 29.05 | L136: 29.22 | M136: 28.72 | N136: 29.14 | O136: 1954100
A137: 122 | B137: 2016-08-18 | C137: 29.33 | D137: 29.42 | E137: 29.01 | F137: 29.290001 | G137: 1843900 | H137: 29.290001 | I137: 1 | J137: 1 | K137: 29.33 | L137: 29.42 | M137: 29.01 | N137: 29.29 | O137: 1843900
A138: 123 | B138: 2016-08-17 | C138: 29.129999 | D138: 29.370001 | E138: 28.85 | F138: 29.299999 | G138: 2155800 | H138: 29.299999 | I138: 1 | J138: 1 | K138: 29.13 | L138: 29.37 | M138: 28.85 | N138: 29.3 | O138: 2155800
A139: 124 | B139: 2016-08-16 | C139: 29.17 | D139: 29.309999 | E139: 29 | F139: 29.059999 | G139: 2167500 | H139: 29.059999 | I139: 1 | J139: 1 | K139: 29.17 | L139: 29.31 | M139: 29 | N139: 29.06 | O139: 2167500
A140: 125 | B140: 2016-08-15 | C140: 29.209999 | D140: 29.49 | E140: 29.1 | F140: 29.389999 | G140: 1996500 | H140: 29.389999 | I140: 1 | J140: 1 | K140: 29.21 | L140: 29.49 | M140: 29.1 | N140: 29.39 | O140: 1996500
A141: 126 | B141: 2016-08-12 | C141: 28.709999 | D141: 29.040001 | E141: 28.57 | F141: 28.940001 | G141: 2218500 | H141: 28.940001 | I141: 1 | J141: 1 | K141: 28.71 | L141: 29.04 | M141: 28.57 | N141: 28.94 | O141: 2218500
A142: 127 | B142: 2016-08-11 | C142: 29.27 | D142: 29.42 | E142: 28.879999 | F142: 29.07 | G142: 1784400 | H142: 29.07 | I142: 1 | J142: 1 | K142: 29.27 | L142: 29.42 | M142: 28.88 | N142: 29.07 | O142: 1784400
A143: 128 | B143: 2016-08-10 | C143: 29.59 | D143: 29.620001 | E143: 28.860001 | F143: 28.99 | G143: 2102700 | H143: 28.99 | I143: 1 | J143: 1 | K143: 29.59 | L143: 29.62 | M143: 28.86 | N143: 28.99 | O143: 2102700
A144: 129 | B144: 2016-08-09 | C144: 29.549999 | D144: 29.67 | E144: 29.360001 | F144: 29.559999 | G144: 2206800 | H144: 29.559999 | I144: 1 | J144: 1 | K144: 29.55 | L144: 29.67 | M144: 29.36 | N144: 29.56 | O144: 2206800
A145: 130 | B145: 2016-08-08 | C145: 29.620001 | D145: 29.75 | E145: 29.299999 | F145: 29.440001 | G145: 3190200 | H145: 29.440001 | I145: =H145/F145 -> 1 | J145: =INDEX(OFFSET($T$15,0,0,$S$13+1,1),MATCH(B145,OFFSET($Q$15,0,0,$S$13+1,1),-1)) -> 1 | K145: =ROUND($I145*C145,2) -> 29.62 | L145: =ROUND($I145*D145,2) -> 29.75 | M145: =ROUND($I145*E145,2) -> 29.3 | N145: =ROUND($I145*F145,2) -> 29.44 | O145: =G145*J145 -> 3190200
A146: 131 | B146: 2016-08-05 | C146: 28.65 | D146: 29.450001 | E146: 28.530001 | F146: 29.440001 | G146: 4360200 | H146: 29.440001 | I146: 1 | J146: 1 | K146: 28.65 | L146: 29.45 | M146: 28.53 | N146: 29.44 | O146: 4360200
A147: 132 | B147: 2016-08-04 | C147: 28.09 | D147: 28.26 | E147: 27.83 | F147: 28.049999 | G147: 1369900 | H147: 28.049999 | I147: 1 | J147: 1 | K147: 28.09 | L147: 28.26 | M147: 27.83 | N147: 28.05 | O147: 1369900
A148: 133 | B148: 2016-08-03 | C148: 27.280001 | D148: 28.139999 | E148: 27.280001 | F148: 28.129999 | G148: 1922900 | H148: 28.129999 | I148: 1 | J148: 1 | K148: 27.28 | L148: 28.14 | M148: 27.28 | N148: 28.13 | O148: 1922900
A149: 134 | B149: 2016-08-02 | C149: 27.969999 | D149: 28.219999 | E149: 27.26 | F149: 27.469999 | G149: 2649100 | H149: 27.469999 | I149: 1 | J149: 1 | K149: 27.97 | L149: 28.22 | M149: 27.26 | N149: 27.47 | O149: 2649100
A150: 135 | B150: 2016-08-01 | C150: 28.4 | D150: 28.73 | E150: 28.030001 | F150: 28.200001 | G150: 2496400 | H150: 28.200001 | I150: 1 | J150: 1 | K150: 28.4 | L150: 28.73 | M150: 28.03 | N150: 28.2 | O150: 2496400
A151: 136 | B151: 2016-07-29 | C151: 28.26 | D151: 28.73 | E151: 28.17 | F151: 28.370001 | G151: 2175500 | H151: 28.370001 | I151: 1 | J151: 1 | K151: 28.26 | L151: 28.73 | M151: 28.17 | N151: 28.37 | O151: 2175500
A152: 137 | B152: 2016-07-28 | C152: 28.049999 | D152: 28.68 | E152: 27.83 | F152: 28.52 | G152: 2591900 | H152: 28.52 | I152: 1 | J152: 1 | K152: 28.05 | L152: 28.68 | M152: 27.83 | N152: 28.52 | O152: 2591900
A153: 138 | B153: 2016-07-27 | C153: 28.32 | D153: 28.450001 | E153: 27.99 | F153: 28.23 | G153: 3305600 | H153: 28.23 | I153: 1 | J153: 1 | K153: 28.32 | L153: 28.45 | M153: 27.99 | N153: 28.23 | O153: 3305600
A154: 139 | B154: 2016-07-26 | C154: 28.16 | D154: 28.469999 | E154: 28 | F154: 28.370001 | G154: 2786800 | H154: 28.370001 | I154: 1 | J154: 1 | K154: 28.16 | L154: 28.47 | M154: 28 | N154: 28.37 | O154: 2786800
A155: 140 | B155: 2016-07-25 | C155: 28.27 | D155: 28.469999 | E155: 28.040001 | F155: 28.23 | G155: 1950500 | H155: 28.23 | I155: 1 | J155: 1 | K155: 28.27 | L155: 28.47 | M155: 28.04 | N155: 28.23 | O155: 1950500
A156: 141 | B156: 2016-07-22 | C156: 28.040001 | D156: 28.49 | E156: 27.91 | F156: 28.43 | G156: 2092700 | H156: 28.43 | I156: 1 | J156: 1 | K156: 28.04 | L156: 28.49 | M156: 27.91 | N156: 28.43 | O156: 2092700
A157: 142 | B157: 2016-07-21 | C157: 28.299999 | D157: 28.33 | E157: 27.809999 | F157: 27.940001 | G157: 2568900 | H157: 27.940001 | I157: 1 | J157: 1 | K157: 28.3 | L157: 28.33 | M157: 27.81 | N157: 27.94 | O157: 2568900
A158: 143 | B158: 2016-07-20 | C158: 28.299999 | D158: 28.389999 | E158: 27.9 | F158: 28.27 | G158: 2275000 | H158: 28.27 | I158: 1 | J158: 1 | K158: 28.3 | L158: 28.39 | M158: 27.9 | N158: 28.27 | O158: 2275000
A159: 144 | B159: 2016-07-19 | C159: 27.610001 | D159: 28.08 | E159: 27.58 | F159: 28.08 | G159: 1961200 | H159: 28.08 | I159: 1 | J159: 1 | K159: 27.61 | L159: 28.08 | M159: 27.58 | N159: 28.08 | O159: 1961200
A160: 145 | B160: 2016-07-18 | C160: 27.73 | D160: 28.040001 | E160: 27.65 | F160: 27.9 | G160: 2084600 | H160: 27.9 | I160: 1 | J160: 1 | K160: 27.73 | L160: 28.04 | M160: 27.65 | N160: 27.9 | O160: 2084600
A161: 146 | B161: 2016-07-15 | C161: 28.209999 | D161: 28.27 | E161: 27.290001 | F161: 27.67 | G161: 3290800 | H161: 27.67 | I161: 1 | J161: 1 | K161: 28.21 | L161: 28.27 | M161: 27.29 | N161: 27.67 | O161: 3290800
A162: 147 | B162: 2016-07-14 | C162: 28.440001 | D162: 28.57 | E162: 27.700001 | F162: 27.83 | G162: 4240200 | H162: 27.83 | I162: 1 | J162: 1 | K162: 28.44 | L162: 28.57 | M162: 27.7 | N162: 27.83 | O162: 4240200
A163: 148 | B163: 2016-07-13 | C163: 27.049999 | D163: 27.299999 | E163: 26.85 | F163: 27.190001 | G163: 2870600 | H163: 27.190001 | I163: 1 | J163: 1 | K163: 27.05 | L163: 27.3 | M163: 26.85 | N163: 27.19 | O163: 2870600
A164: 149 | B164: 2016-07-12 | C164: 26.780001 | D164: 27.23 | E164: 26.700001 | F164: 27.139999 | G164: 3813500 | H164: 27.139999 | I164: 1 | J164: 1 | K164: 26.78 | L164: 27.23 | M164: 26.7 | N164: 27.14 | O164: 3813500
A165: 150 | B165: 2016-07-11 | C165: 26.110001 | D165: 26.469999 | E165: 26.030001 | F165: 26.23 | G165: 3896600 | H165: 26.23 | I165: 1 | J165: 1 | K165: 26.11 | L165: 26.47 | M165: 26.03 | N165: 26.23 | O165: 3896600
A166: 151 | B166: 2016-07-08 | C166: 25.309999 | D166: 25.9 | E166: 25.280001 | F166: 25.780001 | G166: 5618000 | H166: 25.780001 | I166: 1 | J166: 1 | K166: 25.31 | L166: 25.9 | M166: 25.28 | N166: 25.78 | O166: 5618000
A167: 152 | B167: 2016-07-07 | C167: 24.59 | D167: 24.969999 | E167: 24.16 | F167: 24.5 | G167: 3746500 | H167: 24.5 | I167: 1 | J167: 1 | K167: 24.59 | L167: 24.97 | M167: 24.16 | N167: 24.5 | O167: 3746500
A168: 153 | B168: 2016-07-06 | C168: 23.85 | D168: 24.48 | E168: 23.549999 | F168: 24.42 | G168: 4496400 | H168: 24.42 | I168: 1 | J168: 1 | K168: 23.85 | L168: 24.48 | M168: 23.55 | N168: 24.42 | O168: 4496400
A169: 154 | B169: 2016-07-05 | C169: 24.57 | D169: 24.66 | E169: 23.93 | F169: 24.280001 | G169: 4401600 | H169: 24.280001 | I169: 1 | J169: 1 | K169: 24.57 | L169: 24.66 | M169: 23.93 | N169: 24.28 | O169: 4401600
A170: 155 | B170: 2016-07-01 | C170: 25.219999 | D170: 25.66 | E170: 25.059999 | F170: 25.18 | G170: 3726100 | H170: 25.18 | I170: 1 | J170: 1 | K170: 25.22 | L170: 25.66 | M170: 25.06 | N170: 25.18 | O170: 3726100
A171: 156 | B171: 2016-06-30 | C171: 24.74 | D171: 25.48 | E171: 24.389999 | F171: 25.459999 | G171: 6703700 | H171: 25.459999 | I171: 1 | J171: 1 | K171: 24.74 | L171: 25.48 | M171: 24.39 | N171: 25.46 | O171: 6703700
A172: 157 | B172: 2016-06-29 | C172: 23.459999 | D172: 24.549999 | E172: 23.459999 | F172: 24.52 | G172: 8606900 | H172: 24.52 | I172: 1 | J172: 1 | K172: 23.46 | L172: 24.55 | M172: 23.46 | N172: 24.52 | O172: 8606900
A173: 158 | B173: 2016-06-28 | C173: 22.6 | D173: 23.059999 | E173: 22.110001 | F173: 23.030001 | G173: 7689500 | H173: 23.030001 | I173: 1 | J173: 1 | K173: 22.6 | L173: 23.06 | M173: 22.11 | N173: 23.03 | O173: 7689500
A174: 159 | B174: 2016-06-27 | C174: 22.700001 | D174: 22.74 | E174: 21.139999 | F174: 21.49 | G174: 8123000 | H174: 21.49 | I174: 1 | J174: 1 | K174: 22.7 | L174: 22.74 | M174: 21.14 | N174: 21.49 | O174: 8123000
A175: 160 | B175: 2016-06-24 | C175: 23.35 | D175: 25.02 | E175: 23.34 | F175: 23.440001 | G175: 10562500 | H175: 23.440001 | I175: 1 | J175: 1 | K175: 23.35 | L175: 25.02 | M175: 23.34 | N175: 23.44 | O175: 10562500
A176: 161 | B176: 2016-06-23 | C176: 26.6 | D176: 27.35 | E176: 26.59 | F176: 27.34 | G176: 4480400 | H176: 27.34 | I176: 1 | J176: 1 | K176: 26.6 | L176: 27.35 | M176: 26.59 | N176: 27.34 | O176: 4480400
A177: 162 | B177: 2016-06-22 | C177: 25.92 | D177: 26.43 | E177: 25.780001 | F177: 25.809999 | G177: 3006800 | H177: 25.809999 | I177: 1 | J177: 1 | K177: 25.92 | L177: 26.43 | M177: 25.78 | N177: 25.81 | O177: 3006800
A178: 163 | B178: 2016-06-21 | C178: 25.82 | D178: 26.120001 | E178: 25.610001 | F178: 25.940001 | G178: 2633700 | H178: 25.940001 | I178: 1 | J178: 1 | K178: 25.82 | L178: 26.12 | M178: 25.61 | N178: 25.94 | O178: 2633700
A179: 164 | B179: 2016-06-20 | C179: 26.379999 | D179: 26.690001 | E179: 25.610001 | F179: 25.629999 | G179: 4201200 | H179: 25.629999 | I179: 1 | J179: 1 | K179: 26.38 | L179: 26.69 | M179: 25.61 | N179: 25.63 | O179: 4201200
A180: 165 | B180: 2016-06-17 | C180: 25.469999 | D180: 25.51 | E180: 24.870001 | F180: 25.15 | G180: 3413600 | H180: 25.15 | I180: 1 | J180: 1 | K180: 25.47 | L180: 25.51 | M180: 24.87 | N180: 25.15 | O180: 3413600
A181: 166 | B181: 2016-06-16 | C181: 24.709999 | D181: 25.370001 | E181: 24.17 | F181: 25.33 | G181: 4881200 | H181: 25.33 | I181: 1 | J181: 1 | K181: 24.71 | L181: 25.37 | M181: 24.17 | N181: 25.33 | O181: 4881200
A182: 167 | B182: 2016-06-15 | C182: 25.35 | D182: 25.9 | E182: 25.07 | F182: 25.15 | G182: 4521300 | H182: 25.15 | I182: 1 | J182: 1 | K182: 25.35 | L182: 25.9 | M182: 25.07 | N182: 25.15 | O182: 4521300
A183: 168 | B183: 2016-06-14 | C183: 25.85 | D183: 26.129999 | E183: 24.700001 | F183: 25.15 | G183: 5796200 | H183: 25.15 | I183: 1 | J183: 1 | K183: 25.85 | L183: 26.13 | M183: 24.7 | N183: 25.15 | O183: 5796200
A184: 169 | B184: 2016-06-13 | C184: 26.379999 | D184: 27.02 | E184: 26 | F184: 26 | G184: 4302800 | H184: 26 | I184: 1 | J184: 1 | K184: 26.38 | L184: 27.02 | M184: 26 | N184: 26 | O184: 4302800
A185: 170 | B185: 2016-06-10 | C185: 26.92 | D185: 27.040001 | E185: 26.450001 | F185: 26.719999 | G185: 4598800 | H185: 26.719999 | I185: 1 | J185: 1 | K185: 26.92 | L185: 27.04 | M185: 26.45 | N185: 26.72 | O185: 4598800
A186: 171 | B186: 2016-06-09 | C186: 27.780001 | D186: 27.860001 | E186: 27.370001 | F186: 27.719999 | G186: 3475400 | H186: 27.719999 | I186: 1 | J186: 1 | K186: 27.78 | L186: 27.86 | M186: 27.37 | N186: 27.72 | O186: 3475400
A187: 172 | B187: 2016-06-08 | C187: 28.16 | D187: 28.32 | E187: 27.99 | F187: 28.290001 | G187: 2654000 | H187: 28.290001 | I187: 1 | J187: 1 | K187: 28.16 | L187: 28.32 | M187: 27.99 | N187: 28.29 | O187: 2654000
A188: 173 | B188: 2016-06-07 | C188: 28.33 | D188: 28.5 | E188: 28.02 | F188: 28.059999 | G188: 2130500 | H188: 28.059999 | I188: 1 | J188: 1 | K188: 28.33 | L188: 28.5 | M188: 28.02 | N188: 28.06 | O188: 2130500
A189: 174 | B189: 2016-06-06 | C189: 27.92 | D189: 28.559999 | E189: 27.870001 | F189: 28.219999 | G189: 2911100 | H189: 28.219999 | I189: 1 | J189: 1 | K189: 27.92 | L189: 28.56 | M189: 27.87 | N189: 28.22 | O189: 2911100
A190: 175 | B190: 2016-06-03 | C190: 27.68 | D190: 27.99 | E190: 26.940001 | F190: 27.83 | G190: 5115500 | H190: 27.83 | I190: 1 | J190: 1 | K190: 27.68 | L190: 27.99 | M190: 26.94 | N190: 27.83 | O190: 5115500
A191: 176 | B191: 2016-06-02 | C191: 28.32 | D191: 28.82 | E191: 28.139999 | F191: 28.799999 | G191: 2550900 | H191: 28.799999 | I191: 1 | J191: 1 | K191: 28.32 | L191: 28.82 | M191: 28.14 | N191: 28.8 | O191: 2550900
A192: 177 | B192: 2016-06-01 | C192: 27.879999 | D192: 28.66 | E192: 27.549999 | F192: 28.59 | G192: 3271500 | H192: 28.59 | I192: 1 | J192: 1 | K192: 27.88 | L192: 28.66 | M192: 27.55 | N192: 28.59 | O192: 3271500
A193: 178 | B193: 2016-05-31 | C193: 28.93 | D193: 28.950001 | E193: 28.110001 | F193: 28.379999 | G193: 4536900 | H193: 28.379999 | I193: 1 | J193: 1 | K193: 28.93 | L193: 28.95 | M193: 28.11 | N193: 28.38 | O193: 4536900
A194: 179 | B194: 2016-05-27 | C194: 28.15 | D194: 28.58 | E194: 28.049999 | F194: 28.540001 | G194: 2785100 | H194: 28.540001 | I194: 1 | J194: 1 | K194: 28.15 | L194: 28.58 | M194: 28.05 | N194: 28.54 | O194: 2785100
A195: 180 | B195: 2016-05-26 | C195: 28.719999 | D195: 28.719999 | E195: 27.92 | F195: 28.01 | G195: 4442600 | H195: 28.01 | I195: 1 | J195: 1 | K195: 28.72 | L195: 28.72 | M195: 27.92 | N195: 28.01 | O195: 4442600
A196: 181 | B196: 2016-05-25 | C196: 28.16 | D196: 28.780001 | E196: 28.110001 | F196: 28.370001 | G196: 4648300 | H196: 28.370001 | I196: 1 | J196: 1 | K196: 28.16 | L196: 28.78 | M196: 28.11 | N196: 28.37 | O196: 4648300
A197: 182 | B197: 2016-05-24 | C197: 26.99 | D197: 27.879999 | E197: 26.9 | F197: 27.709999 | G197: 4553400 | H197: 27.709999 | I197: 1 | J197: 1 | K197: 26.99 | L197: 27.88 | M197: 26.9 | N197: 27.71 | O197: 4553400
A198: 183 | B198: 2016-05-23 | C198: 26.469999 | D198: 26.73 | E198: 26.219999 | F198: 26.5 | G198: 2010400 | H198: 26.5 | I198: 1 | J198: 1 | K198: 26.47 | L198: 26.73 | M198: 26.22 | N198: 26.5 | O198: 2010400
A199: 184 | B199: 2016-05-20 | C199: 26.5 | D199: 26.950001 | E199: 26.34 | F199: 26.540001 | G199: 3279000 | H199: 26.540001 | I199: 1 | J199: 1 | K199: 26.5 | L199: 26.95 | M199: 26.34 | N199: 26.54 | O199: 3279000
A200: 185 | B200: 2016-05-19 | C200: 26.41 | D200: 26.68 | E200: 25.530001 | F200: 26.07 | G200: 5103800 | H200: 26.07 | I200: 1 | J200: 1 | K200: 26.41 | L200: 26.68 | M200: 25.53 | N200: 26.07 | O200: 5103800
... 1886 more rows

Sheet CalculationsAndCharts
A1: Volume Weighted Moving Average Breakouts
A2: =InputPriceData!A1 -> Direxion Financial Bull 3X Shar (FAS) -PCX (Daily) | R2: Chart Clutter Controls
A4: User Charting Controls | E4: Click to Shift Chart One Bar: | R4: TRUE
A5: Data Control | R5: TRUE
A6: =InputPriceData!$B$10 -> 2071 | B6: Available Input Data Rows | E6: Earliest: | F6: =OFFSET(InputPriceData!B15,CalculationsAndCharts!A6,0,1,1) -> 2008-11-19 | R6: TRUE
B7: Use Close Adjusted: | C7: TRUE | E7: Latest: | F7: =OFFSET(InputPriceData!B15,1,0,1,1) -> 2017-02-10
A8: =MIN(A6-A11,LastUsedRowInColumn(A:A)-32) -> 2020 | B8: Logically Available for Calc / Plot | E8: $ Change: | F8: =InputPriceData!I4 -> 0.44
R9: System Logic Controls
A10: Price Chart Windowing Controls | F10: Y-axis Range
A11: 51 | B11: Input Data Offset (Pan) | E11: Max High+ | F11: =CEILING(MAX(MAX(OFFSET($E$33,0,0,$A$12,1)))+2*F14,0.1) -> 38.3 | R11: FALSE
A12: 21 | B12: Data Points to Plot (Zoom) | E12: Min Low- | F12: =FLOOR(MIN(MIN(OFFSET($F$33,0,0,$A$12,1)))-2*F14,0.1) -> 26.3 | R12: FALSE
B13: First: | C13: =OFFSET(B32,A12,0,1,1) -> 2016-10-28 | E13: White space %: | F13: 0.05 | R13: FALSE
B14: ="Last: " & OFFSET(InputPriceData!P15,1+A11,0,1,1) -> Last: | C14: =B33 -> 2016-11-28 | E14: Allowance: | F14: =FLOOR((CEILING(MAX(MAX(OFFSET($E$33,0,0,$A$12,1))),1)-FLOOR(MIN(MIN(OFFSET($F$33,0,0,$A$12,1))),1))*F13,0.01) -> 0.55
A15: User Controls
A16: Periods | C16: Factor | D16: SMA Estimate
A17: 2 | B17: VWMA | C17: =70/50 -> 1.4 | D17: =CEILING(A17*C17,1) -> 3
A18: 3 | B18: SMA
A19: 2 | B19: Point Trailing Stop
A20: 2 | B20: Aggregate Support Days
A23: Help! I would like to plot data
A24: From | B24: 2016-10-28 | C24: =OFFSET(InputPriceData!$A$15,MATCH(B24,OFFSET(InputPriceData!B15,1,0,InputPriceData!$B$10,1),0),0,1,1)-C25 -> 21 | E24: 1
A25: To | B25: 2016-11-28 | C25: =OFFSET(InputPriceData!$A$15,MATCH(B25,OFFSET(InputPriceData!$B$15,1,0,InputPriceData!$B$10,1),0),0,1,1)-1 -> 51 | E25: =$A$12-$E$24+1 -> 21
A26: Snapshot From Transaction Summary Tab | E26: Minimum Running
A27: ='Transaction Summary'!B5 -> 272 | B27: ="LONG trades opened in "& 'Transaction Summary'!C2 &" bar historical period" -> LONG trades opened in 2020 bar historical period | F27: Balance
A28: ='Transaction Summary'!B6 -> 134 | B28: ='Transaction Summary'!C6 -> Winners | C28: ='Transaction Summary'!H6 -> Sum of Gains | D28: ='Transaction Summary'!I6 -> 87.31 | F28: ='Transaction Summary'!I10 -> -8.54 | H28: @ Cursor => | I28: =OFFSET(A32,$E$25,0,1,1)&"(RR)" -> 21(RR) | J28: =OFFSET($B$32,E25,0,1,1) -> 2016-10-28 | K28: =TEXT(OFFSET(D32,$E$25,0,1,1),"#,##0.00")&"(o)" -> 29.43(o) | L28: =TEXT(OFFSET(E32,$E$25,0,1,1),"#,##0.00")&"(h)" -> 29.68(h) | M28: =TEXT(OFFSET(F32,$E$25,0,1,1),"#,##0.00")&"(l)" -> 28.63(l) | N28: =TEXT(OFFSET(G32,$E$25,0,1,1),"#,##0.00")&"(c)" -> 29.08(c)
A29: ='Transaction Summary'!B7 -> 138 | B29: ='Transaction Summary'!C7 -> Losers | C29: ='Transaction Summary'!H7 -> Sum of Losses | D29: ='Transaction Summary'!I7 -> -82.75 | E29: Cursor ==> | AE29: Work Area used to allow Chart Clutter Control boxes to influence what shows on the charts | AT29: Chart cursors
C30: ='Transaction Summary'!H8 -> NET change for Period | D30: ='Transaction Summary'!I8 -> 4.56 | AT30: Work area
A31: Rel Row | H31: ="VWMA("&A17&")" -> VWMA(2) | I31: ="SMA("&A18&")" -> SMA(3) | J31: MA Crossover | L31: VWMA Above MA | M31: Trailing High | N31: Hi above trailing hi | O31: Potential Re-Entry | P31: ="Min " & A20 & " Day Low" -> Min 2 Day Low | Q31: ="Low < prev " & A20 & " day low" -> Low < prev 2 day low | S31: =A19&" Pt Trail Stop" -> 2 Pt Trail Stop | T31: Trailing Stop Hit | W31: Long Active | X31: Buy the Open | Y31: Sell the Open | AA31: Buy Price | AB31: Sell Price | AE31: =H31 -> VWMA(2) | AF31: =I31 -> SMA(3) | AG31: X-Over Buy | AH31: X-Under Sell | AI31: =S31 -> 2 Pt Trail Stop | AJ31: Trail Stop Sell | AK31: Trailing High | AL31: Re-Entry Buy | AM31: Agg Supt Sell | AO31: Used To Color Vol Bars
B32: Date | C32: Volume | D32: Open | E32: High | F32: Low | G32: Close | J32: Buy Flag | K32: Sell Flag | AO32: Up Vol | AP32: Dn Vol | AT32: Volume Cursor | AV32: =MAX(OFFSET(C33,0,0,A12,1)) -> 11223000 | AY32: Price Chart Cursor
A33: 1 | B33: =OFFSET(InputPriceData!B$15,CalculationsAndCharts!$A33+$A$11,0,1,1) -> 2016-11-28 | C33: =OFFSET(InputPriceData!G$15,CalculationsAndCharts!$A33+$A$11,IF($C$7,8,0),1,1) -> 3049800 | D33: =OFFSET(InputPriceData!C$15,CalculationsAndCharts!$A33+$A$11,IF($C$7,8,0),1,1) -> 36.67 | E33: =OFFSET(InputPriceData!D$15,CalculationsAndCharts!$A33+$A$11,IF($C$7,8,0),1,1) -> 37.07 | F33: =OFFSET(InputPriceData!E$15,CalculationsAndCharts!$A33+$A$11,IF($C$7,8,0),1,1) -> 35.99 | G33: =OFFSET(InputPriceData!F$15,CalculationsAndCharts!$A33+$A$11,IF($C$7,8,0),1,1) -> 36.2 | H33: =IFERROR(IF($A33>($A$8-MAX($A$17:$A$18)+1),0,SUMPRODUCT(OFFSET(G33,0,0,$A$17,1),OFFSET(C33,0,0,$A$17,1))/SUM(OFFSET(C33,0,0,$A$17,1))),0) -> 36.46367271 | I33: =IF($A33>($A$8-MAX($A$17:$A$18)+1),0,IF($A33=($A$8-MAX($A$17:$A$18)+1),$G33,AVERAGE(OFFSET($G33,0,0,$A$18,1)))) -> 36.77 | J33: =AND(A33<$A$8-1,H33>I33,H34<I34) -> FALSE | K33: =AND(A33<$A$8-1,H33<I33,H34>I34) -> TRUE | L33: =H33>I33 -> FALSE | M33: =IF(J33,E34,IF(L34,IF(E34>M34,E34,M34),0)) -> 37.18 | N33: =AND(L33,E33>M33,NOT(J33)) -> FALSE | O33: =AND($R$13,NOT(J33),L33,N33,NOT(W33)) -> FALSE | P33: =MIN(OFFSET(F33,0,0,$A$20,1)) -> 35.99 | Q33: =AND($R$11,F33<P34) -> FALSE | S33: =IF($A33>$A$8-2,NA(),IF(AND(W34,NOT(W35)),(G34-$A$19),IF(AND(W34,NOT(T34)),IF((G34-$A$19)>S34,(G34-$A$19),S34),NA()))) -> 35.18 | T33: =IFERROR(AND($R$12,W33,F33<S33),FALSE) -> FALSE | W33: =IF($A33>$A$8-1,FALSE,IF(OR(O34,J34),TRUE,IF(AND(W34,Y33),FALSE,W34))) -> TRUE | X33: =IFERROR(AND(A33<$A$8-1,OR(O34,J34),NOT(W34)),FALSE) -> FALSE | Y33: =IFERROR(AND(A33<$A$8-1,W34,OR(K34,Q34,T34)),FALSE) -> FALSE | AA33: =IF(X33,D33,0) -> 0 | AB33: =IF(Y33,D33,0) -> 0 | AE33: =IF($R$4,H33,NA()) -> 36.46367271 | AF33: =IF($R$5,I33,NA()) -> 36.77 | AG33: =IF(AND($R$6,X33,J34),$E33+1,NA()) ->  | AH33: =IF(AND($R$6,Y33,K34),$E33+1,NA()) ->  | AI33: =IF(AND($R$6,$R$12),S33,NA()) ->  | AJ33: =IF(AND($R$6,$R$12,Y33,T34),$E33+1,NA()) ->  | AK33: =IF(AND($R$6,$R$13,L33),M33,NA()) ->  | AL33: =IF(AND($R$6,$R$13,X33,O34),$E33+1,NA()) ->  | AM33: =IF(AND($R$6,$R$11,Y33,Q34),$E33+1,NA()) ->  | AO33: =IF(G33>=D33,C33,NA()) ->  | AP33: =IF(G33<D33,C33,NA()) -> 3049800 | AT33: =$E$25 -> 21 | AV33: 0 | AY33: =$E$25 -> 21 | AZ33: 26.7345
A34: 2 | B34: =OFFSET(InputPriceData!B$15,CalculationsAndCharts!$A34+$A$11,0,1,1) -> 2016-11-25 | C34: =OFFSET(InputPriceData!G$15,CalculationsAndCharts!$A34+$A$11,IF($C$7,8,0),1,1) -> 1122600 | D34: =OFFSET(InputPriceData!C$15,CalculationsAndCharts!$A34+$A$11,IF($C$7,8,0),1,1) -> 37.04 | E34: =OFFSET(InputPriceData!D$15,CalculationsAndCharts!$A34+$A$11,IF($C$7,8,0),1,1) -> 37.18 | F34: =OFFSET(InputPriceData!E$15,CalculationsAndCharts!$A34+$A$11,IF($C$7,8,0),1,1) -> 36.88 | G34: =OFFSET(InputPriceData!F$15,CalculationsAndCharts!$A34+$A$11,IF($C$7,8,0),1,1) -> 37.18 | H34: =IFERROR(IF($A34>($A$8-MAX($A$17:$A$18)+1),0,SUMPRODUCT(OFFSET(G34,0,0,$A$17,1),OFFSET(C34,0,0,$A$17,1))/SUM(OFFSET(C34,0,0,$A$17,1))),0) -> 36.9904146 | I34: =IF($A34>($A$8-MAX($A$17:$A$18)+1),0,IF($A34=($A$8-MAX($A$17:$A$18)+1),$G34,AVERAGE(OFFSET($G34,0,0,$A$18,1)))) -> 36.90666667 | J34: FALSE | K34: FALSE | L34: =H34>I34 -> TRUE | M34: =IF(J34,E35,IF(L35,IF(E35>M35,E35,M35),0)) -> 36.95 | N34: TRUE | O34: =AND($R$13,NOT(J34),L34,N34,NOT(W34)) -> FALSE | P34: =MIN(OFFSET(F34,0,0,$A$20,1)) -> 36.07 | Q34: =AND($R$11,F34<P35) -> FALSE | S34: 34.93 | T34: FALSE | W34: TRUE | X34: FALSE | Y34: =IFERROR(AND(A34<$A$8-1,W35,OR(K35,Q35,T35)),FALSE) -> FALSE | AA34: 0 | AB34: 0 | AE34: 36.9904146 | AF34: 36.90666667 | AI34: =IF(AND($R$6,$R$12),S34,NA()) ->  | AJ34: =IF(AND($R$6,$R$12,Y34,T35),$E34+1,NA()) ->  | AK34: =IF(AND($R$6,$R$13,L34),M34,NA()) ->  | AL34: =IF(AND($R$6,$R$13,X34,O35),$E34+1,NA()) ->  | AM34: =IF(AND($R$6,$R$11,Y34,Q35),$E34+1,NA()) ->  | AO34: 1122600 | AT34: =$E$25 -> 21 | AV34: =1.2*AV32 -> 13467600 | AY34: =$E$25 -> 21 | AZ34: 38.1095
A35: 3 | B35: =OFFSET(InputPriceData!B$15,CalculationsAndCharts!$A35+$A$11,0,1,1) -> 2016-11-23 | C35: =OFFSET(InputPriceData!G$15,CalculationsAndCharts!$A35+$A$11,IF($C$7,8,0),1,1) -> 3522800 | D35: =OFFSET(InputPriceData!C$15,CalculationsAndCharts!$A35+$A$11,IF($C$7,8,0),1,1) -> 36.61 | E35: =OFFSET(InputPriceData!D$15,CalculationsAndCharts!$A35+$A$11,IF($C$7,8,0),1,1) -> 36.95 | F35: =OFFSET(InputPriceData!E$15,CalculationsAndCharts!$A35+$A$11,IF($C$7,8,0),1,1) -> 36.07 | G35: =OFFSET(InputPriceData!F$15,CalculationsAndCharts!$A35+$A$11,IF($C$7,8,0),1,1) -> 36.93 | H35: 36.78586521 | I35: 36.60666667 | J35: FALSE | K35: FALSE | L35: TRUE | M35: 36.79 | N35: TRUE | O35: FALSE | P35: 36 | Q35: FALSE | S35: 34.61 | T35: FALSE | W35: TRUE | X35: FALSE | Y35: FALSE | AA35: 0 | AB35: 0 | AE35: 36.78586521 | AF35: 36.60666667 | AO35: 3522800
A36: 4 | B36: =OFFSET(InputPriceData!B$15,CalculationsAndCharts!$A36+$A$11,0,1,1) -> 2016-11-22 | C36: =OFFSET(InputPriceData!G$15,CalculationsAndCharts!$A36+$A$11,IF($C$7,8,0),1,1) -> 2887200 | D36: =OFFSET(InputPriceData!C$15,CalculationsAndCharts!$A36+$A$11,IF($C$7,8,0),1,1) -> 36.79 | E36: =OFFSET(InputPriceData!D$15,CalculationsAndCharts!$A36+$A$11,IF($C$7,8,0),1,1) -> 36.79 | F36: =OFFSET(InputPriceData!E$15,CalculationsAndCharts!$A36+$A$11,IF($C$7,8,0),1,1) -> 36 | G36: =OFFSET(InputPriceData!F$15,CalculationsAndCharts!$A36+$A$11,IF($C$7,8,0),1,1) -> 36.61 | H36: 36.42618061 | I36: 36.29333333 | J36: FALSE | K36: FALSE | L36: TRUE | M36: 36.49 | N36: TRUE | O36: FALSE | P36: 35.8 | Q36: FALSE | S36: 34.28 | T36: FALSE | W36: TRUE | X36: FALSE | Y36: FALSE | AA36: 0 | AB36: 0 | AE36: 36.42618061 | AF36: 36.29333333 | AP36: 2887200
A37: 5 | B37: =OFFSET(InputPriceData!B$15,CalculationsAndCharts!$A37+$A$11,0,1,1) -> 2016-11-21 | C37: =OFFSET(InputPriceData!G$15,CalculationsAndCharts!$A37+$A$11,IF($C$7,8,0),1,1) -> 3630600 | D37: =OFFSET(InputPriceData!C$15,CalculationsAndCharts!$A37+$A$11,IF($C$7,8,0),1,1) -> 36.36 | E37: =OFFSET(InputPriceData!D$15,CalculationsAndCharts!$A37+$A$11,IF($C$7,8,0),1,1) -> 36.49 | F37: =OFFSET(InputPriceData!E$15,CalculationsAndCharts!$A37+$A$11,IF($C$7,8,0),1,1) -> 35.8 | G37: =OFFSET(InputPriceData!F$15,CalculationsAndCharts!$A37+$A$11,IF($C$7,8,0),1,1) -> 36.28 | H37: 36.14983878 | I37: 36.00666667 | J37: FALSE | K37: FALSE | L37: TRUE | M37: 36.12 | N37: TRUE | O37: FALSE | P37: 35.61 | Q37: FALSE | T37: FALSE | W37: TRUE | X37: TRUE | Y37: FALSE | AA37: 36.36 | AB37: 0 | AE37: 36.14983878 | AF37: 36.00666667 | AG37: 37.49 | AP37: 3630600
A38: 6 | B38: =OFFSET(InputPriceData!B$15,CalculationsAndCharts!$A38+$A$11,0,1,1) -> 2016-11-18 | C38: =OFFSET(InputPriceData!G$15,CalculationsAndCharts!$A38+$A$11,IF($C$7,8,0),1,1) -> 2956500 | D38: =OFFSET(InputPriceData!C$15,CalculationsAndCharts!$A38+$A$11,IF($C$7,8,0),1,1) -> 35.95 | E38: =OFFSET(InputPriceData!D$15,CalculationsAndCharts!$A38+$A$11,IF($C$7,8,0),1,1) -> 36.12 | F38: =OFFSET(InputPriceData!E$15,CalculationsAndCharts!$A38+$A$11,IF($C$7,8,0),1,1) -> 35.61 | G38: =OFFSET(InputPriceData!F$15,CalculationsAndCharts!$A38+$A$11,IF($C$7,8,0),1,1) -> 35.99 | H38: 35.8563298 | I38: 35.53333333 | J38: TRUE | K38: FALSE | L38: TRUE | M38: 36 | N38: FALSE | O38: FALSE | P38: 34.79 | Q38: FALSE | T38: FALSE | W38: FALSE | X38: FALSE | Y38: FALSE | AA38: 0 | AB38: 0 | AE38: 35.8563298 | AF38: 35.53333333 | AO38: 2956500
A39: 7 | B39: =OFFSET(InputPriceData!B$15,CalculationsAndCharts!$A39+$A$11,0,1,1) -> 2016-11-17 | C39: =OFFSET(InputPriceData!G$15,CalculationsAndCharts!$A39+$A$11,IF($C$7,8,0),1,1) -> 3716700 | D39: =OFFSET(InputPriceData!C$15,CalculationsAndCharts!$A39+$A$11,IF($C$7,8,0),1,1) -> 34.97 | E39: =OFFSET(InputPriceData!D$15,CalculationsAndCharts!$A39+$A$11,IF($C$7,8,0),1,1) -> 36 | F39: =OFFSET(InputPriceData!E$15,CalculationsAndCharts!$A39+$A$11,IF($C$7,8,0),1,1) -> 34.79 | G39: =OFFSET(InputPriceData!F$15,CalculationsAndCharts!$A39+$A$11,IF($C$7,8,0),1,1) -> 35.75 | H39: 35.30764368 | I39: 35.42333333 | J39: FALSE | K39: FALSE | L39: FALSE | M39: 0 | N39: FALSE | O39: FALSE | P39: 34.53 | Q39: FALSE | S39: 33.75 | T39: FALSE | W39: FALSE | X39: FALSE | Y39: TRUE | AA39: 0 | AB39: 34.97 | AE39: 35.30764368 | AF39: 35.42333333 | AH39: 37 | AO39: 3716700
A40: 8 | B40: =OFFSET(InputPriceData!B$15,CalculationsAndCharts!$A40+$A$11,0,1,1) -> 2016-11-16 | C40: =OFFSET(InputPriceData!G$15,CalculationsAndCharts!$A40+$A$11,IF($C$7,8,0),1,1) -> 3672800 | D40: =OFFSET(InputPriceData!C$15,CalculationsAndCharts!$A40+$A$11,IF($C$7,8,0),1,1) -> 34.84 | E40: =OFFSET(InputPriceData!D$15,CalculationsAndCharts!$A40+$A$11,IF($C$7,8,0),1,1) -> 35.16 | F40: =OFFSET(InputPriceData!E$15,CalculationsAndCharts!$A40+$A$11,IF($C$7,8,0),1,1) -> 34.53 | G40: =OFFSET(InputPriceData!F$15,CalculationsAndCharts!$A40+$A$11,IF($C$7,8,0),1,1) -> 34.86 | H40: 35.32550853 | I40: 35.42333333 | J40: FALSE | K40: TRUE | L40: FALSE | M40: 35.94 | N40: =AND(L40,E40>M40,NOT(J40)) -> FALSE | O40: FALSE | P40: 34.53 | Q40: FALSE | S40: 33.75 | T40: FALSE | W40: TRUE | X40: FALSE | Y40: FALSE | AA40: 0 | AB40: 0 | AE40: 35.32550853 | AF40: 35.42333333 | AO40: 3672800
A41: 9 | B41: =OFFSET(InputPriceData!B$15,CalculationsAndCharts!$A41+$A$11,0,1,1) -> 2016-11-15 | C41: =OFFSET(InputPriceData!G$15,CalculationsAndCharts!$A41+$A$11,IF($C$7,8,0),1,1) -> 5111400 | D41: =OFFSET(InputPriceData!C$15,CalculationsAndCharts!$A41+$A$11,IF($C$7,8,0),1,1) -> 35.22 | E41: =OFFSET(InputPriceData!D$15,CalculationsAndCharts!$A41+$A$11,IF($C$7,8,0),1,1) -> 35.74 | F41: =OFFSET(InputPriceData!E$15,CalculationsAndCharts!$A41+$A$11,IF($C$7,8,0),1,1) -> 34.63 | G41: =OFFSET(InputPriceData!F$15,CalculationsAndCharts!$A41+$A$11,IF($C$7,8,0),1,1) -> 35.66 | H41: 35.71507175 | I41: 35.15333333 | J41: FALSE | K41: FALSE | L41: TRUE | M41: 35.94 | N41: =AND(L41,E41>M41,NOT(J41)) -> FALSE | O41: FALSE | P41: 34.48 | Q41: FALSE | S41: 33.75 | T41: FALSE | W41: TRUE | X41: FALSE | Y41: FALSE | AA41: 0 | AB41: 0 | AE41: 35.71507175 | AF41: 35.15333333 | AO41: 5111400
A42: 10 | B42: =OFFSET(InputPriceData!B$15,CalculationsAndCharts!$A42+$A$11,0,1,1) -> 2016-11-14 | C42: =OFFSET(InputPriceData!G$15,CalculationsAndCharts!$A42+$A$11,IF($C$7,8,0),1,1) -> 8059200 | D42: =OFFSET(InputPriceData!C$15,CalculationsAndCharts!$A42+$A$11,IF($C$7,8,0),1,1) -> 34.57 | E42: =OFFSET(InputPriceData!D$15,CalculationsAndCharts!$A42+$A$11,IF($C$7,8,0),1,1) -> 35.94 | F42: =OFFSET(InputPriceData!E$15,CalculationsAndCharts!$A42+$A$11,IF($C$7,8,0),1,1) -> 34.48 | G42: =OFFSET(InputPriceData!F$15,CalculationsAndCharts!$A42+$A$11,IF($C$7,8,0),1,1) -> 35.75 | H42: 35.03601223 | I42: 34.50666667 | J42: FALSE | K42: FALSE | L42: TRUE | M42: 34.13 | N42: TRUE | O42: FALSE | P42: 33.12 | Q42: FALSE | S42: 32.05 | T42: FALSE | W42: TRUE | X42: FALSE | Y42: FALSE | AA42: 0 | AB42: 0 | AE42: 35.03601223 | AF42: 34.50666667 | AO42: 8059200
A43: 11 | B43: =OFFSET(InputPriceData!B$15,CalculationsAndCharts!$A43+$A$11,0,1,1) -> 2016-11-11 | C43: =OFFSET(InputPriceData!G$15,CalculationsAndCharts!$A43+$A$11,IF($C$7,8,0),1,1) -> 5835800 | D43: =OFFSET(InputPriceData!C$15,CalculationsAndCharts!$A43+$A$11,IF($C$7,8,0),1,1) -> 33.24 | E43: =OFFSET(InputPriceData!D$15,CalculationsAndCharts!$A43+$A$11,IF($C$7,8,0),1,1) -> 34.12 | F43: =OFFSET(InputPriceData!E$15,CalculationsAndCharts!$A43+$A$11,IF($C$7,8,0),1,1) -> 33.12 | G43: =OFFSET(InputPriceData!F$15,CalculationsAndCharts!$A43+$A$11,IF($C$7,8,0),1,1) -> 34.05 | H43: 33.8328927 | I43: 33.2 | J43: FALSE | K43: FALSE | L43: TRUE | M43: 34.13 | N43: FALSE | O43: FALSE | P43: 32.32 | Q43: FALSE | S43: 31.72 | T43: =IFERROR(AND($R$12,W43,F43<S43),FALSE) -> FALSE | W43: TRUE | X43: FALSE | Y43: FALSE | AA43: 0 | AB43: 0 | AE43: 33.8328927 | AF43: 33.2 | AO43: 5835800
A44: 12 | B44: =OFFSET(InputPriceData!B$15,CalculationsAndCharts!$A44+$A$11,0,1,1) -> 2016-11-10 | C44: =OFFSET(InputPriceData!G$15,CalculationsAndCharts!$A44+$A$11,IF($C$7,8,0),1,1) -> 11223000 | D44: =OFFSET(InputPriceData!C$15,CalculationsAndCharts!$A44+$A$11,IF($C$7,8,0),1,1) -> 32.78 | E44: =OFFSET(InputPriceData!D$15,CalculationsAndCharts!$A44+$A$11,IF($C$7,8,0),1,1) -> 34.13 | F44: =OFFSET(InputPriceData!E$15,CalculationsAndCharts!$A44+$A$11,IF($C$7,8,0),1,1) -> 32.32 | G44: =OFFSET(InputPriceData!F$15,CalculationsAndCharts!$A44+$A$11,IF($C$7,8,0),1,1) -> 33.72 | H44: 32.77978149 | I44: 31.77333333 | J44: FALSE | K44: FALSE | L44: TRUE | M44: 32.22 | N44: TRUE | O44: FALSE | P44: 29.7 | Q44: FALSE | S44: 29.83 | T44: =IFERROR(AND($R$12,W44,F44<S44),FALSE) -> FALSE | W44: TRUE | X44: FALSE | Y44: FALSE | AA44: 0 | AB44: 0 | AE44: 32.77978149 | AF44: 31.77333333 | AO44: 11223000
A45: 13 | B45: =OFFSET(InputPriceData!B$15,CalculationsAndCharts!$A45+$A$11,0,1,1) -> 2016-11-09 | C45: =OFFSET(InputPriceData!G$15,CalculationsAndCharts!$A45+$A$11,IF($C$7,8,0),1,1) -> 11110000 | D45: =OFFSET(InputPriceData!C$15,CalculationsAndCharts!$A45+$A$11,IF($C$7,8,0),1,1) -> 30.51 | E45: =OFFSET(InputPriceData!D$15,CalculationsAndCharts!$A45+$A$11,IF($C$7,8,0),1,1) -> 32.22 | F45: =OFFSET(InputPriceData!E$15,CalculationsAndCharts!$A45+$A$11,IF($C$7,8,0),1,1) -> 29.7 | G45: =OFFSET(InputPriceData!F$15,CalculationsAndCharts!$A45+$A$11,IF($C$7,8,0),1,1) -> 31.83 | H45: 31.33077634 | I45: 30.36666667 | J45: FALSE | K45: FALSE | L45: TRUE | M45: 30.05 | N45: TRUE | O45: FALSE | P45: 28.98 | Q45: FALSE | S45: 27.77 | T45: FALSE | W45: TRUE | X45: FALSE | Y45: FALSE | AA45: 0 | AB45: 0 | AE45: 31.33077634 | AF45: 30.36666667 | AO45: 11110000
A46: 14 | B46: =OFFSET(InputPriceData!B$15,CalculationsAndCharts!$A46+$A$11,0,1,1) -> 2016-11-08 | C46: =OFFSET(InputPriceData!G$15,CalculationsAndCharts!$A46+$A$11,IF($C$7,8,0),1,1) -> 3553600 | D46: =OFFSET(InputPriceData!C$15,CalculationsAndCharts!$A46+$A$11,IF($C$7,8,0),1,1) -> 29.29 | E46: =OFFSET(InputPriceData!D$15,CalculationsAndCharts!$A46+$A$11,IF($C$7,8,0),1,1) -> 30.05 | F46: =OFFSET(InputPriceData!E$15,CalculationsAndCharts!$A46+$A$11,IF($C$7,8,0),1,1) -> 28.98 | G46: =OFFSET(InputPriceData!F$15,CalculationsAndCharts!$A46+$A$11,IF($C$7,8,0),1,1) -> 29.77 | H46: 29.62778818 | I46: 28.97666667 | J46: FALSE | K46: FALSE | L46: TRUE | M46: 29.58 | N46: TRUE | O46: FALSE | P46: 28.83 | Q46: FALSE | T46: FALSE | W46: TRUE | X46: TRUE | Y46: FALSE | AA46: 29.29 | AB46: 0 | AE46: 29.62778818 | AF46: 28.97666667 | AG46: 31.05 | AO46: 3553600
A47: 15 | B47: =OFFSET(InputPriceData!B$15,CalculationsAndCharts!$A47+$A$11,0,1,1) -> 2016-11-07 | C47: =OFFSET(InputPriceData!G$15,CalculationsAndCharts!$A47+$A$11,IF($C$7,8,0),1,1) -> 3954700 | D47: =OFFSET(InputPriceData!C$15,CalculationsAndCharts!$A47+$A$11,IF($C$7,8,0),1,1) -> 28.97 | E47: =OFFSET(InputPriceData!D$15,CalculationsAndCharts!$A47+$A$11,IF($C$7,8,0),1,1) -> 29.58 | F47: =OFFSET(InputPriceData!E$15,CalculationsAndCharts!$A47+$A$11,IF($C$7,8,0),1,1) -> 28.83 | G47: =OFFSET(InputPriceData!F$15,CalculationsAndCharts!$A47+$A$11,IF($C$7,8,0),1,1) -> 29.5 | H47: 28.77857224 | I47: 28.32666667 | J47: TRUE | K47: FALSE | L47: TRUE | M47: 28.27 | N47: FALSE | O47: FALSE | P47: 27.42 | Q47: FALSE | T47: FALSE | W47: FALSE | X47: FALSE | Y47: FALSE | AA47: 0 | AB47: 0 | AE47: 28.77857224 | AF47: 28.32666667 | AO47: 3954700
A48: 16 | B48: =OFFSET(InputPriceData!B$15,CalculationsAndCharts!$A48+$A$11,0,1,1) -> 2016-11-04 | C48: =OFFSET(InputPriceData!G$15,CalculationsAndCharts!$A48+$A$11,IF($C$7,8,0),1,1) -> 2550600 | D48: =OFFSET(InputPriceData!C$15,CalculationsAndCharts!$A48+$A$11,IF($C$7,8,0),1,1) -> 27.84 | E48: =OFFSET(InputPriceData!D$15,CalculationsAndCharts!$A48+$A$11,IF($C$7,8,0),1,1) -> 28.27 | F48: =OFFSET(InputPriceData!E$15,CalculationsAndCharts!$A48+$A$11,IF($C$7,8,0),1,1) -> 27.42 | G48: =OFFSET(InputPriceData!F$15,CalculationsAndCharts!$A48+$A$11,IF($C$7,8,0),1,1) -> 27.66 | H48: 27.73520612 | I48: 27.78 | J48: FALSE | K48: FALSE | L48: FALSE | M48: 0 | N48: FALSE | O48: FALSE | P48: 27.42 | Q48: FALSE | T48: FALSE | W48: FALSE | X48: FALSE | Y48: FALSE | AA48: 0 | AB48: 0 | AE48: 27.73520612 | AF48: 27.78 | AP48: 2550600
A49: 17 | B49: =OFFSET(InputPriceData!B$15,CalculationsAndCharts!$A49+$A$11,0,1,1) -> 2016-11-03 | C49: =OFFSET(InputPriceData!G$15,CalculationsAndCharts!$A49+$A$11,IF($C$7,8,0),1,1) -> 2262200 | D49: =OFFSET(InputPriceData!C$15,CalculationsAndCharts!$A49+$A$11,IF($C$7,8,0),1,1) -> 28.01 | E49: =OFFSET(InputPriceData!D$15,CalculationsAndCharts!$A49+$A$11,IF($C$7,8,0),1,1) -> 28.42 | F49: =OFFSET(InputPriceData!E$15,CalculationsAndCharts!$A49+$A$11,IF($C$7,8,0),1,1) -> 27.68 | G49: =OFFSET(InputPriceData!F$15,CalculationsAndCharts!$A49+$A$11,IF($C$7,8,0),1,1) -> 27.82 | H49: 27.84338481 | I49: 28.10333333 | J49: FALSE | K49: FALSE | L49: FALSE | M49: 0 | N49: FALSE | O49: FALSE | P49: 27.65 | Q49: FALSE | T49: FALSE | W49: FALSE | X49: FALSE | Y49: FALSE | AA49: 0 | AB49: 0 | AE49: 27.84338481 | AF49: 28.10333333 | AP49: 2262200
A50: 18 | B50: =OFFSET(InputPriceData!B$15,CalculationsAndCharts!$A50+$A$11,0,1,1) -> 2016-11-02 | C50: =OFFSET(InputPriceData!G$15,CalculationsAndCharts!$A50+$A$11,IF($C$7,8,0),1,1) -> 3183900 | D50: =OFFSET(InputPriceData!C$15,CalculationsAndCharts!$A50+$A$11,IF($C$7,8,0),1,1) -> 28.33 | E50: =OFFSET(InputPriceData!D$15,CalculationsAndCharts!$A50+$A$11,IF($C$7,8,0),1,1) -> 28.49 | F50: =OFFSET(InputPriceData!E$15,CalculationsAndCharts!$A50+$A$11,IF($C$7,8,0),1,1) -> 27.65 | G50: =OFFSET(InputPriceData!F$15,CalculationsAndCharts!$A50+$A$11,IF($C$7,8,0),1,1) -> 27.86 | H50: 28.25822392 | I50: 28.61666667 | J50: FALSE | K50: FALSE | L50: FALSE | M50: 0 | N50: FALSE | O50: FALSE | P50: 27.65 | Q50: FALSE | T50: FALSE | W50: FALSE | X50: FALSE | Y50: FALSE | AA50: 0 | AB50: 0 | AE50: 28.25822392 | AF50: 28.61666667 | AP50: 3183900
A51: 19 | B51: =OFFSET(InputPriceData!B$15,CalculationsAndCharts!$A51+$A$11,0,1,1) -> 2016-11-01 | C51: =OFFSET(InputPriceData!G$15,CalculationsAndCharts!$A51+$A$11,IF($C$7,8,0),1,1) -> 3410400 | D51: =OFFSET(InputPriceData!C$15,CalculationsAndCharts!$A51+$A$11,IF($C$7,8,0),1,1) -> 29.54 | E51: =OFFSET(InputPriceData!D$15,CalculationsAndCharts!$A51+$A$11,IF($C$7,8,0),1,1) -> 29.59 | F51: =OFFSET(InputPriceData!E$15,CalculationsAndCharts!$A51+$A$11,IF($C$7,8,0),1,1) -> 28.11 | G51: =OFFSET(InputPriceData!F$15,CalculationsAndCharts!$A51+$A$11,IF($C$7,8,0),1,1) -> 28.63 | H51: 28.8886292 | I51: 29.02333333 | J51: FALSE | K51: FALSE | L51: FALSE | M51: 0 | N51: FALSE | O51: FALSE | P51: 28.11 | Q51: FALSE | T51: FALSE | W51: FALSE | X51: FALSE | Y51: FALSE | AA51: 0 | AB51: 0 | AE51: 28.8886292 | AF51: 29.02333333 | AP51: 3410400
A52: 20 | B52: =OFFSET(InputPriceData!B$15,CalculationsAndCharts!$A52+$A$11,0,1,1) -> 2016-10-31 | C52: =OFFSET(InputPriceData!G$15,CalculationsAndCharts!$A52+$A$11,IF($C$7,8,0),1,1) -> 1871200 | D52: =OFFSET(InputPriceData!C$15,CalculationsAndCharts!$A52+$A$11,IF($C$7,8,0),1,1) -> 29.35 | E52: =OFFSET(InputPriceData!D$15,CalculationsAndCharts!$A52+$A$11,IF($C$7,8,0),1,1) -> 29.55 | F52: =OFFSET(InputPriceData!E$15,CalculationsAndCharts!$A52+$A$11,IF($C$7,8,0),1,1) -> 29.22 | G52: =OFFSET(InputPriceData!F$15,CalculationsAndCharts!$A52+$A$11,IF($C$7,8,0),1,1) -> 29.36 | H52: 29.17773831 | I52: 29.21 | J52: FALSE | K52: FALSE | L52: FALSE | M52: 0 | N52: FALSE | O52: FALSE | P52: 28.63 | Q52: FALSE | T52: FALSE | W52: FALSE | X52: FALSE | Y52: FALSE | AA52: 0 | AB52: 0 | AE52: 29.17773831 | AF52: 29.21 | AO52: 1871200
A53: 21 | B53: =OFFSET(InputPriceData!B$15,CalculationsAndCharts!$A53+$A$11,0,1,1) -> 2016-10-28 | C53: =OFFSET(InputPriceData!G$15,CalculationsAndCharts!$A53+$A$11,IF($C$7,8,0),1,1) -> 3489400 | D53: =OFFSET(InputPriceData!C$15,CalculationsAndCharts!$A53+$A$11,IF($C$7,8,0),1,1) -> 29.43 | E53: =OFFSET(InputPriceData!D$15,CalculationsAndCharts!$A53+$A$11,IF($C$7,8,0),1,1) -> 29.68 | F53: =OFFSET(InputPriceData!E$15,CalculationsAndCharts!$A53+$A$11,IF($C$7,8,0),1,1) -> 28.63 | G53: =OFFSET(InputPriceData!F$15,CalculationsAndCharts!$A53+$A$11,IF($C$7,8,0),1,1) -> 29.08 | H53: 29.12307983 | I53: 29.27 | J53: FALSE | K53: FALSE | L53: FALSE | M53: 0 | N53: FALSE | O53: FALSE | P53: 28.63 | Q53: FALSE | T53: FALSE | W53: FALSE | X53: FALSE | Y53: FALSE | AA53: 0 | AB53: 0 | AE53: 29.12307983 | AF53: 29.27 | AP53: 3489400
A54: 22 | B54: =OFFSET(InputPriceData!B$15,CalculationsAndCharts!$A54+$A$11,0,1,1) -> 2016-10-27 | C54: =OFFSET(InputPriceData!G$15,CalculationsAndCharts!$A54+$A$11,IF($C$7,8,0),1,1) -> 2246300 | D54: =OFFSET(InputPriceData!C$15,CalculationsAndCharts!$A54+$A$11,IF($C$7,8,0),1,1) -> 29.81 | E54: =OFFSET(InputPriceData!D$15,CalculationsAndCharts!$A54+$A$11,IF($C$7,8,0),1,1) -> 29.82 | F54: =OFFSET(InputPriceData!E$15,CalculationsAndCharts!$A54+$A$11,IF($C$7,8,0),1,1) -> 29.1 | G54: =OFFSET(InputPriceData!F$15,CalculationsAndCharts!$A54+$A$11,IF($C$7,8,0),1,1) -> 29.19 | H54: 29.33924801 | I54: 29.40333333 | J54: FALSE | K54: FALSE | L54: FALSE | M54: 0 | N54: FALSE | O54: FALSE | P54: 29.07 | Q54: FALSE | S54: 27.54 | T54: FALSE | W54: FALSE | X54: FALSE | Y54: TRUE | AA54: 0 | AB54: 29.81 | AE54: 29.33924801 | AF54: 29.40333333 | AH54: 30.82 | AP54: 2246300
A55: 23 | B55: =OFFSET(InputPriceData!B$15,CalculationsAndCharts!$A55+$A$11,0,1,1) -> 2016-10-26 | C55: =OFFSET(InputPriceData!G$15,CalculationsAndCharts!$A55+$A$11,IF($C$7,8,0),1,1) -> 1670000 | D55: =OFFSET(InputPriceData!C$15,CalculationsAndCharts!$A55+$A$11,IF($C$7,8,0),1,1) -> 29.17 | E55: =OFFSET(InputPriceData!D$15,CalculationsAndCharts!$A55+$A$11,IF($C$7,8,0),1,1) -> 29.7 | F55: =OFFSET(InputPriceData!E$15,CalculationsAndCharts!$A55+$A$11,IF($C$7,8,0),1,1) -> 29.07 | G55: =OFFSET(InputPriceData!F$15,CalculationsAndCharts!$A55+$A$11,IF($C$7,8,0),1,1) -> 29.54 | H55: 29.50817139 | I55: 29.56666667 | J55: FALSE | K55: TRUE | L55: FALSE | M55: 30.15 | N55: FALSE | O55: FALSE | P55: 29.07 | Q55: FALSE | S55: 27.48 | T55: FALSE | W55: TRUE | X55: FALSE | Y55: FALSE | AA55: 0 | AB55: 0 | AE55: 29.50817139 | AF55: 29.56666667 | AO55: 1670000
A56: 24 | B56: =OFFSET(InputPriceData!B$15,CalculationsAndCharts!$A56+$A$11,0,1,1) -> 2016-10-25 | C56: =OFFSET(InputPriceData!G$15,CalculationsAndCharts!$A56+$A$11,IF($C$7,8,0),1,1) -> 1886800 | D56: =OFFSET(InputPriceData!C$15,CalculationsAndCharts!$A56+$A$11,IF($C$7,8,0),1,1) -> 29.65 | E56: =OFFSET(InputPriceData!D$15,CalculationsAndCharts!$A56+$A$11,IF($C$7,8,0),1,1) -> 29.76 | F56: =OFFSET(InputPriceData!E$15,CalculationsAndCharts!$A56+$A$11,IF($C$7,8,0),1,1) -> 29.29 | G56: =OFFSET(InputPriceData!F$15,CalculationsAndCharts!$A56+$A$11,IF($C$7,8,0),1,1) -> 29.48 | H56: 29.58003444 | I56: 29.53 | J56: FALSE | K56: FALSE | L56: TRUE | M56: 30.15 | N56: FALSE | O56: FALSE | P56: 29.29 | Q56: FALSE | T56: FALSE | W56: TRUE | X56: TRUE | Y56: FALSE | AA56: 29.65 | AB56: 0 | AE56: 29.58003444 | AF56: 29.53 | AG56: 30.76 | AP56: 1886800
A57: 25 | B57: =OFFSET(InputPriceData!B$15,CalculationsAndCharts!$A57+$A$11,0,1,1) -> 2016-10-24 | C57: =OFFSET(InputPriceData!G$15,CalculationsAndCharts!$A57+$A$11,IF($C$7,8,0),1,1) -> 1888100 | D57: =OFFSET(InputPriceData!C$15,CalculationsAndCharts!$A57+$A$11,IF($C$7,8,0),1,1) -> 29.85 | E57: =OFFSET(InputPriceData!D$15,CalculationsAndCharts!$A57+$A$11,IF($C$7,8,0),1,1) -> 30.15 | F57: =OFFSET(InputPriceData!E$15,CalculationsAndCharts!$A57+$A$11,IF($C$7,8,0),1,1) -> 29.65 | G57: =OFFSET(InputPriceData!F$15,CalculationsAndCharts!$A57+$A$11,IF($C$7,8,0),1,1) -> 29.68 | H57: 29.55518233 | I57: 29.47333333 | J57: TRUE | K57: FALSE | L57: TRUE | M57: 29.47 | N57: FALSE | O57: FALSE | P57: 28.76 | Q57: FALSE | S57: 27.46 | T57: FALSE | W57: FALSE | X57: FALSE | Y57: TRUE | AA57: 0 | AB57: 29.85 | AE57: 29.55518233 | AF57: 29.47333333 | AH57: 31.15 | AP57: 1888100
A58: 26 | B58: =OFFSET(InputPriceData!B$15,CalculationsAndCharts!$A58+$A$11,0,1,1) -> 2016-10-21 | C58: =OFFSET(InputPriceData!G$15,CalculationsAndCharts!$A58+$A$11,IF($C$7,8,0),1,1) -> 1882600 | D58: =OFFSET(InputPriceData!C$15,CalculationsAndCharts!$A58+$A$11,IF($C$7,8,0),1,1) -> 28.93 | E58: =OFFSET(InputPriceData!D$15,CalculationsAndCharts!$A58+$A$11,IF($C$7,8,0),1,1) -> 29.47 | F58: =OFFSET(InputPriceData!E$15,CalculationsAndCharts!$A58+$A$11,IF($C$7,8,0),1,1) -> 28.76 | G58: =OFFSET(InputPriceData!F$15,CalculationsAndCharts!$A58+$A$11,IF($C$7,8,0),1,1) -> 29.43 | H58: 29.36288574 | I58: 29.4 | J58: FALSE | K58: TRUE | L58: FALSE | M58: 29.9 | N58: FALSE | O58: FALSE | P58: 28.76 | Q58: FALSE | S58: 27.46 | T58: FALSE | W58: TRUE | X58: FALSE | Y58: FALSE | AA58: 0 | AB58: 0 | AE58: 29.36288574 | AF58: 29.4 | AO58: 1882600
A59: 27 | B59: =OFFSET(InputPriceData!B$15,CalculationsAndCharts!$A59+$A$11,0,1,1) -> 2016-10-20 | C59: =OFFSET(InputPriceData!G$15,CalculationsAndCharts!$A59+$A$11,IF($C$7,8,0),1,1) -> 2389100 | D59: =OFFSET(InputPriceData!C$15,CalculationsAndCharts!$A59+$A$11,IF($C$7,8,0),1,1) -> 29.39 | E59: =OFFSET(InputPriceData!D$15,CalculationsAndCharts!$A59+$A$11,IF($C$7,8,0),1,1) -> 29.9 | F59: =OFFSET(InputPriceData!E$15,CalculationsAndCharts!$A59+$A$11,IF($C$7,8,0),1,1) -> 29.08 | G59: =OFFSET(InputPriceData!F$15,CalculationsAndCharts!$A59+$A$11,IF($C$7,8,0),1,1) -> 29.31 | H59: 29.3894446 | I59: 29.21 | J59: FALSE | K59: FALSE | L59: TRUE | M59: 29.64 | N59: TRUE | O59: FALSE | P59: 28.99 | Q59: FALSE | S59: 27.46 | T59: FALSE | W59: TRUE | X59: FALSE | Y59: FALSE | AA59: 0 | AB59: 0 | AE59: 29.3894446 | AF59: 29.21 | AP59: 2389100
A60: 28 | B60: =OFFSET(InputPriceData!B$15,CalculationsAndCharts!$A60+$A$11,0,1,1) -> 2016-10-19 | C60: =OFFSET(InputPriceData!G$15,CalculationsAndCharts!$A60+$A$11,IF($C$7,8,0),1,1) -> 2690100 | D60: =OFFSET(InputPriceData!C$15,CalculationsAndCharts!$A60+$A$11,IF($C$7,8,0),1,1) -> 29.13 | E60: =OFFSET(InputPriceData!D$15,CalculationsAndCharts!$A60+$A$11,IF($C$7,8,0),1,1) -> 29.64 | F60: =OFFSET(InputPriceData!E$15,CalculationsAndCharts!$A60+$A$11,IF($C$7,8,0),1,1) -> 28.99 | G60: =OFFSET(InputPriceData!F$15,CalculationsAndCharts!$A60+$A$11,IF($C$7,8,0),1,1) -> 29.46 | H60: 29.18412145 | I60: 28.88 | J60: FALSE | K60: FALSE | L60: TRUE | M60: 29.31 | N60: TRUE | O60: FALSE | P60: 28.66 | Q60: FALSE | S60: 26.86 | T60: FALSE | W60: TRUE | X60: FALSE | Y60: FALSE | AA60: 0 | AB60: 0 | AE60: 29.18412145 | AF60: 28.88 | AO60: 2690100
A61: 29 | B61: =OFFSET(InputPriceData!B$15,CalculationsAndCharts!$A61+$A$11,0,1,1) -> 2016-10-18 | C61: =OFFSET(InputPriceData!G$15,CalculationsAndCharts!$A61+$A$11,IF($C$7,8,0),1,1) -> 2289700 | D61: =OFFSET(InputPriceData!C$15,CalculationsAndCharts!$A61+$A$11,IF($C$7,8,0),1,1) -> 29.05 | E61: =OFFSET(InputPriceData!D$15,CalculationsAndCharts!$A61+$A$11,IF($C$7,8,0),1,1) -> 29.1 | F61: =OFFSET(InputPriceData!E$15,CalculationsAndCharts!$A61+$A$11,IF($C$7,8,0),1,1) -> 28.66 | G61: =OFFSET(InputPriceData!F$15,CalculationsAndCharts!$A61+$A$11,IF($C$7,8,0),1,1) -> 28.86 | H61: 28.61737794 | I61: 28.58333333 | J61: FALSE | K61: FALSE | L61: TRUE | M61: 29.31 | N61: FALSE | O61: FALSE | P61: 28.21 | Q61: FALSE | T61: FALSE | W61: TRUE | X61: TRUE | Y61: FALSE | AA61: 29.05 | AB61: 0 | AE61: 28.61737794 | AF61: 28.58333333 | AG61: 30.1 | AP61: 2289700
A62: 30 | B62: =OFFSET(InputPriceData!B$15,CalculationsAndCharts!$A62+$A$11,0,1,1) -> 2016-10-17 | C62: =OFFSET(InputPriceData!G$15,CalculationsAndCharts!$A62+$A$11,IF($C$7,8,0),1,1) -> 1868100 | D62: =OFFSET(InputPriceData!C$15,CalculationsAndCharts!$A62+$A$11,IF($C$7,8,0),1,1) -> 28.65 | E62: =OFFSET(InputPriceData!D$15,CalculationsAndCharts!$A62+$A$11,IF($C$7,8,0),1,1) -> 28.84 | F62: =OFFSET(InputPriceData!E$15,CalculationsAndCharts!$A62+$A$11,IF($C$7,8,0),1,1) -> 28.21 | G62: =OFFSET(InputPriceData!F$15,CalculationsAndCharts!$A62+$A$11,IF($C$7,8,0),1,1) -> 28.32 | H62: 28.4865699 | I62: 28.40666667 | J62: TRUE | K62: FALSE | L62: TRUE | M62: 29.31 | N62: FALSE | O62: FALSE | P62: 28.21 | Q62: FALSE | T62: FALSE | W62: FALSE | X62: FALSE | Y62: FALSE | AA62: 0 | AB62: 0 | AE62: 28.4865699 | AF62: 28.40666667 | AP62: 1868100
A63: 31 | B63: =OFFSET(InputPriceData!B$15,CalculationsAndCharts!$A63+$A$11,0,1,1) -> 2016-10-14 | C63: =OFFSET(InputPriceData!G$15,CalculationsAndCharts!$A63+$A$11,IF($C$7,8,0),1,1) -> 3729700 | D63: =OFFSET(InputPriceData!C$15,CalculationsAndCharts!$A63+$A$11,IF($C$7,8,0),1,1) -> 29.18 | E63: =OFFSET(InputPriceData!D$15,CalculationsAndCharts!$A63+$A$11,IF($C$7,8,0),1,1) -> 29.31 | F63: =OFFSET(InputPriceData!E$15,CalculationsAndCharts!$A63+$A$11,IF($C$7,8,0),1,1) -> 28.43 | G63: =OFFSET(InputPriceData!F$15,CalculationsAndCharts!$A63+$A$11,IF($C$7,8,0),1,1) -> 28.57 | H63: 28.44853959 | I63: 28.6 | J63: FALSE | K63: FALSE | L63: FALSE | M63: 0 | N63: FALSE | O63: FALSE | P63: 27.58 | Q63: FALSE | T63: FALSE | W63: FALSE | X63: FALSE | Y63: FALSE | AA63: 0 | AB63: 0 | AE63: 28.44853959 | AF63: 28.6 | AP63: 3729700
A64: 32 | B64: =OFFSET(InputPriceData!B$15,CalculationsAndCharts!$A64+$A$11,0,1,1) -> 2016-10-13 | C64: =OFFSET(InputPriceData!G$15,CalculationsAndCharts!$A64+$A$11,IF($C$7,8,0),1,1) -> 3821600 | D64: =OFFSET(InputPriceData!C$15,CalculationsAndCharts!$A64+$A$11,IF($C$7,8,0),1,1) -> 28.25 | E64: =OFFSET(InputPriceData!D$15,CalculationsAndCharts!$A64+$A$11,IF($C$7,8,0),1,1) -> 28.44 | F64: =OFFSET(InputPriceData!E$15,CalculationsAndCharts!$A64+$A$11,IF($C$7,8,0),1,1) -> 27.58 | G64: =OFFSET(InputPriceData!F$15,CalculationsAndCharts!$A64+$A$11,IF($C$7,8,0),1,1) -> 28.33 | H64: 28.51536348 | I64: 28.59 | J64: FALSE | K64: FALSE | L64: FALSE | M64: 0 | N64: FALSE | O64: FALSE | P64: 27.58 | Q64: FALSE | T64: FALSE | W64: FALSE | X64: FALSE | Y64: FALSE | AA64: 0 | AB64: 0 | AE64: 28.51536348 | AF64: 28.59 | AO64: 3821600
A65: 33 | B65: =OFFSET(InputPriceData!B$15,CalculationsAndCharts!$A65+$A$11,0,1,1) -> 2016-10-12 | C65: =OFFSET(InputPriceData!G$15,CalculationsAndCharts!$A65+$A$11,IF($C$7,8,0),1,1) -> 1841700 | D65: =OFFSET(InputPriceData!C$15,CalculationsAndCharts!$A65+$A$11,IF($C$7,8,0),1,1) -> 28.73 | E65: =OFFSET(InputPriceData!D$15,CalculationsAndCharts!$A65+$A$11,IF($C$7,8,0),1,1) -> 29.12 | F65: =OFFSET(InputPriceData!E$15,CalculationsAndCharts!$A65+$A$11,IF($C$7,8,0),1,1) -> 28.53 | G65: =OFFSET(InputPriceData!F$15,CalculationsAndCharts!$A65+$A$11,IF($C$7,8,0),1,1) -> 28.9 | H65: 28.66616064 | I65: 28.96 | J65: FALSE | K65: FALSE | L65: FALSE | M65: 0 | N65: FALSE | O65: FALSE | P65: 28.18 | Q65: FALSE | T65: FALSE | W65: FALSE | X65: FALSE | Y65: FALSE | AA65: 0 | AB65: 0 | AE65: 28.66616064 | AF65: 28.96 | AO65: 1841700
A66: 34 | B66: =OFFSET(InputPriceData!B$15,CalculationsAndCharts!$A66+$A$11,0,1,1) -> 2016-10-11 | C66: =OFFSET(InputPriceData!G$15,CalculationsAndCharts!$A66+$A$11,IF($C$7,8,0),1,1) -> 3413600 | D66: =OFFSET(InputPriceData!C$15,CalculationsAndCharts!$A66+$A$11,IF($C$7,8,0),1,1) -> 29.29 | E66: =OFFSET(InputPriceData!D$15,CalculationsAndCharts!$A66+$A$11,IF($C$7,8,0),1,1) -> 29.36 | F66: =OFFSET(InputPriceData!E$15,CalculationsAndCharts!$A66+$A$11,IF($C$7,8,0),1,1) -> 28.18 | G66: =OFFSET(InputPriceData!F$15,CalculationsAndCharts!$A66+$A$11,IF($C$7,8,0),1,1) -> 28.54 | H66: 28.84616979 | I66: 29.00666667 | J66: FALSE | K66: FALSE | L66: FALSE | M66: 0 | N66: FALSE | O66: FALSE | P66: 28.18 | Q66: FALSE | T66: FALSE | W66: FALSE | X66: FALSE | Y66: FALSE | AA66: 0 | AB66: 0 | AE66: 28.84616979 | AF66: 29.00666667 | AP66: 3413600
A67: 35 | B67: =OFFSET(InputPriceData!B$15,CalculationsAndCharts!$A67+$A$11,0,1,1) -> 2016-10-10 | C67: =OFFSET(InputPriceData!G$15,CalculationsAndCharts!$A67+$A$11,IF($C$7,8,0),1,1) -> 1760000 | D67: =OFFSET(InputPriceData!C$15,CalculationsAndCharts!$A67+$A$11,IF($C$7,8,0),1,1) -> 29.52 | E67: =OFFSET(InputPriceData!D$15,CalculationsAndCharts!$A67+$A$11,IF($C$7,8,0),1,1) -> 29.72 | F67: =OFFSET(InputPriceData!E$15,CalculationsAndCharts!$A67+$A$11,IF($C$7,8,0),1,1) -> 29.4 | G67: =OFFSET(InputPriceData!F$15,CalculationsAndCharts!$A67+$A$11,IF($C$7,8,0),1,1) -> 29.44 | H67: 29.19152493 | I67: 29.20333333 | J67: FALSE | K67: FALSE | L67: FALSE | M67: 0 | N67: FALSE | O67: FALSE | P67: 28.59 | Q67: FALSE | S67: 27.13 | T67: FALSE | W67: FALSE | X67: FALSE | Y67: TRUE | AA67: 0 | AB67: 29.52 | AE67: 29.19152493 | AF67: 29.20333333 | AH67: 30.72 | AP67: 1760000
A68: 36 | B68: =OFFSET(InputPriceData!B$15,CalculationsAndCharts!$A68+$A$11,0,1,1) -> 2016-10-07 | C68: =OFFSET(InputPriceData!G$15,CalculationsAndCharts!$A68+$A$11,IF($C$7,8,0),1,1) -> 2886100 | D68: =OFFSET(InputPriceData!C$15,CalculationsAndCharts!$A68+$A$11,IF($C$7,8,0),1,1) -> 29.2 | E68: =OFFSET(InputPriceData!D$15,CalculationsAndCharts!$A68+$A$11,IF($C$7,8,0),1,1) -> 29.44 | F68: =OFFSET(InputPriceData!E$15,CalculationsAndCharts!$A68+$A$11,IF($C$7,8,0),1,1) -> 28.59 | G68: =OFFSET(InputPriceData!F$15,CalculationsAndCharts!$A68+$A$11,IF($C$7,8,0),1,1) -> 29.04 | H68: 29.07446485 | I68: 29.08 | J68: FALSE | K68: TRUE | L68: FALSE | M68: 29.27 | N68: FALSE | O68: FALSE | P68: 28.59 | Q68: FALSE | S68: 27.13 | T68: FALSE | W68: =IF($A68>$A$8-1,FALSE,IF(OR(O69,J69),TRUE,IF(AND(W69,Y68),FALSE,W69))) -> TRUE | X68: FALSE | Y68: FALSE | AA68: 0 | AB68: 0 | AE68: 29.07446485 | AF68: 29.08 | AP68: 2886100
A69: 37 | B69: =OFFSET(InputPriceData!B$15,CalculationsAndCharts!$A69+$A$11,0,1,1) -> 2016-10-06 | C69: =OFFSET(InputPriceData!G$15,CalculationsAndCharts!$A69+$A$11,IF($C$7,8,0),1,1) -> 1791100 | D69: =OFFSET(InputPriceData!C$15,CalculationsAndCharts!$A69+$A$11,IF($C$7,8,0),1,1) -> 29.11 | E69: =OFFSET(InputPriceData!D$15,CalculationsAndCharts!$A69+$A$11,IF($C$7,8,0),1,1) -> 29.21 | F69: =OFFSET(InputPriceData!E$15,CalculationsAndCharts!$A69+$A$11,IF($C$7,8,0),1,1) -> 28.62 | G69: =OFFSET(InputPriceData!F$15,CalculationsAndCharts!$A69+$A$11,IF($C$7,8,0),1,1) -> 29.13 | H69: 29.09360801 | I69: 28.92333333 | J69: FALSE | K69: FALSE | L69: TRUE | M69: 29.27 | N69: FALSE | O69: FALSE | P69: 28.62 | Q69: FALSE | T69: FALSE | W69: =IF($A69>$A$8-1,FALSE,IF(OR(O70,J70),TRUE,IF(AND(W70,Y69),FALSE,W70))) -> TRUE | X69: TRUE | Y69: FALSE | AA69: 29.11 | AB69: 0 | AE69: 29.09360801 | AF69: 28.92333333 | AG69: 30.21 | AO69: 1791100
A70: 38 | B70: =OFFSET(InputPriceData!B$15,CalculationsAndCharts!$A70+$A$11,0,1,1) -> 2016-10-05 | C70: =OFFSET(InputPriceData!G$15,CalculationsAndCharts!$A70+$A$11,IF($C$7,8,0),1,1) -> 2761000 | D70: =OFFSET(InputPriceData!C$15,CalculationsAndCharts!$A70+$A$11,IF($C$7,8,0),1,1) -> 28.83 | E70: =OFFSET(InputPriceData!D$15,CalculationsAndCharts!$A70+$A$11,IF($C$7,8,0),1,1) -> 29.27 | F70: =OFFSET(InputPriceData!E$15,CalculationsAndCharts!$A70+$A$11,IF($C$7,8,0),1,1) -> 28.83 | G70: =OFFSET(InputPriceData!F$15,CalculationsAndCharts!$A70+$A$11,IF($C$7,8,0),1,1) -> 29.07 | H70: 28.77242232 | I70: 28.73333333 | J70: TRUE | K70: FALSE | L70: TRUE | M70: 29.01 | N70: FALSE | O70: FALSE | P70: 28.31 | Q70: FALSE | S70: 26.57 | T70: FALSE | W70: FALSE | X70: FALSE | Y70: TRUE | AA70: 0 | AB70: 28.83 | AE70: 28.77242232 | AF70: 28.73333333 | AH70: 30.27 | AO70: 2761000
A71: 39 | B71: =OFFSET(InputPriceData!B$15,CalculationsAndCharts!$A71+$A$11,0,1,1) -> 2016-10-04 | C71: =OFFSET(InputPriceData!G$15,CalculationsAndCharts!$A71+$A$11,IF($C$7,8,0),1,1) -> 4058900 | D71: =OFFSET(InputPriceData!C$15,CalculationsAndCharts!$A71+$A$11,IF($C$7,8,0),1,1) -> 28.77 | E71: =OFFSET(InputPriceData!D$15,CalculationsAndCharts!$A71+$A$11,IF($C$7,8,0),1,1) -> 29.01 | F71: =OFFSET(InputPriceData!E$15,CalculationsAndCharts!$A71+$A$11,IF($C$7,8,0),1,1) -> 28.31 | G71: =OFFSET(InputPriceData!F$15,CalculationsAndCharts!$A71+$A$11,IF($C$7,8,0),1,1) -> 28.57 | H71: 28.56633847 | I71: 28.76 | J71: FALSE | K71: TRUE | L71: FALSE | M71: 29.53 | N71: FALSE | O71: FALSE | P71: 28.31 | Q71: FALSE | T71: FALSE | W71: TRUE | X71: TRUE | Y71: FALSE | AA71: 28.77 | AB71: 0 | AE71: 28.56633847 | AF71: 28.76 | AG71: 30.01 | AP71: 4058900
A72: 40 | B72: =OFFSET(InputPriceData!B$15,CalculationsAndCharts!$A72+$A$11,0,1,1) -> 2016-10-03 | C72: =OFFSET(InputPriceData!G$15,CalculationsAndCharts!$A72+$A$11,IF($C$7,8,0),1,1) -> 2344700 | D72: =OFFSET(InputPriceData!C$15,CalculationsAndCharts!$A72+$A$11,IF($C$7,8,0),1,1) -> 28.94 | E72: =OFFSET(InputPriceData!D$15,CalculationsAndCharts!$A72+$A$11,IF($C$7,8,0),1,1) -> 29.05 | F72: =OFFSET(InputPriceData!E$15,CalculationsAndCharts!$A72+$A$11,IF($C$7,8,0),1,1) -> 28.4 | G72: =OFFSET(InputPriceData!F$15,CalculationsAndCharts!$A72+$A$11,IF($C$7,8,0),1,1) -> 28.56 | H72: 28.91835295 | I72: 28.71 | J72: TRUE | K72: FALSE | L72: TRUE | M72: 29.53 | N72: FALSE | O72: FALSE | P72: 28.4 | Q72: FALSE | T72: FALSE | W72: FALSE | X72: FALSE | Y72: FALSE | AA72: 0 | AB72: 0 | AE72: 28.91835295 | AF72: 28.71 | AP72: 2344700
A73: 41 | B73: =OFFSET(InputPriceData!B$15,CalculationsAndCharts!$A73+$A$11,0,1,1) -> 2016-09-30 | C73: =OFFSET(InputPriceData!G$15,CalculationsAndCharts!$A73+$A$11,IF($C$7,8,0),1,1) -> 3627200 | D73: =OFFSET(InputPriceData!C$15,CalculationsAndCharts!$A73+$A$11,IF($C$7,8,0),1,1) -> 28.92 | E73: =OFFSET(InputPriceData!D$15,CalculationsAndCharts!$A73+$A$11,IF($C$7,8,0),1,1) -> 29.53 | F73: =OFFSET(InputPriceData!E$15,CalculationsAndCharts!$A73+$A$11,IF($C$7,8,0),1,1) -> 28.61 | G73: =OFFSET(InputPriceData!F$15,CalculationsAndCharts!$A73+$A$11,IF($C$7,8,0),1,1) -> 29.15 | H73: 28.73291137 | I73: 29.06666667 | J73: FALSE | K73: FALSE | L73: FALSE | M73: 0 | N73: FALSE | O73: FALSE | P73: 28.12 | Q73: FALSE | S73: 26.42 | T73: FALSE | W73: FALSE | X73: FALSE | Y73: TRUE | AA73: 0 | AB73: 28.92 | AE73: 28.73291137 | AF73: 29.06666667 | AH73: 30.53 | AO73: 3627200
A74: 42 | B74: =OFFSET(InputPriceData!B$15,CalculationsAndCharts!$A74+$A$11,0,1,1) -> 2016-09-29 | C74: =OFFSET(InputPriceData!G$15,CalculationsAndCharts!$A74+$A$11,IF($C$7,8,0),1,1) -> 4834800 | D74: =OFFSET(InputPriceData!C$15,CalculationsAndCharts!$A74+$A$11,IF($C$7,8,0),1,1) -> 29.54 | E74: =OFFSET(InputPriceData!D$15,CalculationsAndCharts!$A74+$A$11,IF($C$7,8,0),1,1) -> 29.77 | F74: =OFFSET(InputPriceData!E$15,CalculationsAndCharts!$A74+$A$11,IF($C$7,8,0),1,1) -> 28.12 | G74: =OFFSET(InputPriceData!F$15,CalculationsAndCharts!$A74+$A$11,IF($C$7,8,0),1,1) -> 28.42 | H74: 28.84894419 | I74: 29.05333333 | J74: FALSE | K74: TRUE | L74: FALSE | M74: 29.67 | N74: FALSE | O74: FALSE | P74: 28.12 | Q74: FALSE | T74: FALSE | W74: TRUE | X74: TRUE | Y74: FALSE | AA74: 29.54 | AB74: 0 | AE74: 28.84894419 | AF74: 29.05333333 | AG74: 30.77 | AP74: 4834800
A75: 43 | B75: =OFFSET(InputPriceData!B$15,CalculationsAndCharts!$A75+$A$11,0,1,1) -> 2016-09-28 | C75: =OFFSET(InputPriceData!G$15,CalculationsAndCharts!$A75+$A$11,IF($C$7,8,0),1,1) -> 2655200 | D75: =OFFSET(InputPriceData!C$15,CalculationsAndCharts!$A75+$A$11,IF($C$7,8,0),1,1) -> 29.41 | E75: =OFFSET(InputPriceData!D$15,CalculationsAndCharts!$A75+$A$11,IF($C$7,8,0),1,1) -> 29.67 | F75: =OFFSET(InputPriceData!E$15,CalculationsAndCharts!$A75+$A$11,IF($C$7,8,0),1,1) -> 28.78 | G75: =OFFSET(InputPriceData!F$15,CalculationsAndCharts!$A75+$A$11,IF($C$7,8,0),1,1) -> 29.63 | H75: 29.37429509 | I75: 29.17666667 | J75: TRUE | K75: FALSE | L75: TRUE | M75: 29.27 | N75: FALSE | O75: FALSE | P75: 28.39 | Q75: FALSE | T75: FALSE | W75: FALSE | X75: FALSE | Y75: FALSE | AA75: 0 | AB75: 0 | AE75: 29.37429509 | AF75: 29.17666667 | AO75: 2655200
A76: 44 | B76: =OFFSET(InputPriceData!B$15,CalculationsAndCharts!$A76+$A$11,0,1,1) -> 2016-09-27 | C76: =OFFSET(InputPriceData!G$15,CalculationsAndCharts!$A76+$A$11,IF($C$7,8,0),1,1) -> 2568900 | D76: =OFFSET(InputPriceData!C$15,CalculationsAndCharts!$A76+$A$11,IF($C$7,8,0),1,1) -> 28.62 | E76: =OFFSET(InputPriceData!D$15,CalculationsAndCharts!$A76+$A$11,IF($C$7,8,0),1,1) -> 29.27 | F76: =OFFSET(InputPriceData!E$15,CalculationsAndCharts!$A76+$A$11,IF($C$7,8,0),1,1) -> 28.39 | G76: =OFFSET(InputPriceData!F$15,CalculationsAndCharts!$A76+$A$11,IF($C$7,8,0),1,1) -> 29.11 | H76: 28.94859855 | I76: 29.2 | J76: FALSE | K76: FALSE | L76: FALSE | M76: 0 | N76: FALSE | O76: FALSE | P76: 28.39 | Q76: FALSE | S76: 28.11 | T76: FALSE | W76: FALSE | X76: FALSE | Y76: TRUE | AA76: 0 | AB76: 28.62 | AE76: 28.94859855 | AF76: 29.2 | AH76: 30.27 | AO76: 2568900
A77: 45 | B77: =OFFSET(InputPriceData!B$15,CalculationsAndCharts!$A77+$A$11,0,1,1) -> 2016-09-26 | C77: =OFFSET(InputPriceData!G$15,CalculationsAndCharts!$A77+$A$11,IF($C$7,8,0),1,1) -> 2614300 | D77: =OFFSET(InputPriceData!C$15,CalculationsAndCharts!$A77+$A$11,IF($C$7,8,0),1,1) -> 29.21 | E77: =OFFSET(InputPriceData!D$15,CalculationsAndCharts!$A77+$A$11,IF($C$7,8,0),1,1) -> 29.36 | F77: =OFFSET(InputPriceData!E$15,CalculationsAndCharts!$A77+$A$11,IF($C$7,8,0),1,1) -> 28.65 | G77: =OFFSET(InputPriceData!F$15,CalculationsAndCharts!$A77+$A$11,IF($C$7,8,0),1,1) -> 28.79 | H77: 29.18601888 | I77: 29.53333333 | J77: FALSE | K77: TRUE | L77: FALSE | M77: 30.31 | N77: FALSE | O77: FALSE | P77: 28.65 | Q77: FALSE | S77: 28.11 | T77: FALSE | W77: TRUE | X77: FALSE | Y77: FALSE | AA77: 0 | AB77: 0 | AE77: 29.18601888 | AF77: 29.53333333 | AP77: 2614300
A78: 46 | B78: =OFFSET(InputPriceData!B$15,CalculationsAndCharts!$A78+$A$11,0,1,1) -> 2016-09-23 | C78: =OFFSET(InputPriceData!G$15,CalculationsAndCharts!$A78+$A$11,IF($C$7,8,0),1,1) -> 2014300 | D78: =OFFSET(InputPriceData!C$15,CalculationsAndCharts!$A78+$A$11,IF($C$7,8,0),1,1) -> 29.86 | E78: =OFFSET(InputPriceData!D$15,CalculationsAndCharts!$A78+$A$11,IF($C$7,8,0),1,1) -> 30.08 | F78: =OFFSET(InputPriceData!E$15,CalculationsAndCharts!$A78+$A$11,IF($C$7,8,0),1,1) -> 29.67 | G78: =OFFSET(InputPriceData!F$15,CalculationsAndCharts!$A78+$A$11,IF($C$7,8,0),1,1) -> 29.7 | H78: 29.96118245 | I78: 29.79333333 | J78: FALSE | K78: FALSE | L78: TRUE | M78: 30.31 | N78: FALSE | O78: FALSE | P78: 29.67 | Q78: FALSE | S78: 28.11 | T78: FALSE | W78: TRUE | X78: FALSE | Y78: FALSE | AA78: 0 | AB78: 0 | AE78: 29.96118245 | AF78: 29.79333333 | AP78: 2014300
A79: 47 | B79: =OFFSET(InputPriceData!B$15,CalculationsAndCharts!$A79+$A$11,0,1,1) -> 2016-09-22 | C79: =OFFSET(InputPriceData!G$15,CalculationsAndCharts!$A79+$A$11,IF($C$7,8,0),1,1) -> 3535200 | D79: =OFFSET(InputPriceData!C$15,CalculationsAndCharts!$A79+$A$11,IF($C$7,8,0),1,1) -> 30 | E79: =OFFSET(InputPriceData!D$15,CalculationsAndCharts!$A79+$A$11,IF($C$7,8,0),1,1) -> 30.31 | F79: =OFFSET(InputPriceData!E$15,CalculationsAndCharts!$A79+$A$11,IF($C$7,8,0),1,1) -> 29.89 | G79: =OFFSET(InputPriceData!F$15,CalculationsAndCharts!$A79+$A$11,IF($C$7,8,0),1,1) -> 30.11 | H79: 29.78222047 | I79: 29.49666667 | J79: FALSE | K79: FALSE | L79: TRUE | M79: 29.65 | N79: TRUE | O79: FALSE | P79: 28.69 | Q79: FALSE | S79: 27.57 | T79: FALSE | W79: TRUE | X79: FALSE | Y79: FALSE | AA79: 0 | AB79: 0 | AE79: 29.78222047 | AF79: 29.49666667 | AO79: 3535200
A80: 48 | B80: =OFFSET(InputPriceData!B$15,CalculationsAndCharts!$A80+$A$11,0,1,1) -> 2016-09-21 | C80: =OFFSET(InputPriceData!G$15,CalculationsAndCharts!$A80+$A$11,IF($C$7,8,0),1,1) -> 5460200 | D80: =OFFSET(InputPriceData!C$15,CalculationsAndCharts!$A80+$A$11,IF($C$7,8,0),1,1) -> 29.21 | E80: =OFFSET(InputPriceData!D$15,CalculationsAndCharts!$A80+$A$11,IF($C$7,8,0),1,1) -> 29.65 | F80: =OFFSET(InputPriceData!E$15,CalculationsAndCharts!$A80+$A$11,IF($C$7,8,0),1,1) -> 28.69 | G80: =OFFSET(InputPriceData!F$15,CalculationsAndCharts!$A80+$A$11,IF($C$7,8,0),1,1) -> 29.57 | H80: 29.3816463 | I80: 29.05666667 | J80: FALSE | K80: FALSE | L80: TRUE | M80: 29.46 | N80: TRUE | O80: FALSE | P80: 28.69 | Q80: FALSE | T80: FALSE | W80: TRUE | X80: TRUE | Y80: FALSE | AA80: 29.21 | AB80: 0 | AE80: 29.3816463 | AF80: 29.05666667 | AG80: 30.65 | AO80: 5460200
A81: 49 | B81: =OFFSET(InputPriceData!B$15,CalculationsAndCharts!$A81+$A$11,0,1,1) -> 2016-09-20 | C81: =OFFSET(InputPriceData!G$15,CalculationsAndCharts!$A81+$A$11,IF($C$7,8,0),1,1) -> 1799100 | D81: =OFFSET(InputPriceData!C$15,CalculationsAndCharts!$A81+$A$11,IF($C$7,8,0),1,1) -> 29.18 | E81: =OFFSET(InputPriceData!D$15,CalculationsAndCharts!$A81+$A$11,IF($C$7,8,0),1,1) -> 29.46 | F81: =OFFSET(InputPriceData!E$15,CalculationsAndCharts!$A81+$A$11,IF($C$7,8,0),1,1) -> 28.76 | G81: =OFFSET(InputPriceData!F$15,CalculationsAndCharts!$A81+$A$11,IF($C$7,8,0),1,1) -> 28.81 | H81: 28.79844232 | I81: 28.63333333 | J81: TRUE | K81: FALSE | L81: TRUE | M81: 29.22 | N81: FALSE | O81: FALSE | P81: 28.49 | Q81: FALSE | S81: 26.79 | T81: FALSE | W81: FALSE | X81: FALSE | Y81: TRUE | AA81: 0 | AB81: 29.18 | AE81: 28.79844232 | AF81: 28.63333333 | AH81: 30.46 | AP81: 1799100
A82: 50 | B82: =OFFSET(InputPriceData!B$15,CalculationsAndCharts!$A82+$A$11,0,1,1) -> 2016-09-19 | C82: =OFFSET(InputPriceData!G$15,CalculationsAndCharts!$A82+$A$11,IF($C$7,8,0),1,1) -> 2463000 | D82: =OFFSET(InputPriceData!C$15,CalculationsAndCharts!$A82+$A$11,IF($C$7,8,0),1,1) -> 28.86 | E82: =OFFSET(InputPriceData!D$15,CalculationsAndCharts!$A82+$A$11,IF($C$7,8,0),1,1) -> 29.22 | F82: =OFFSET(InputPriceData!E$15,CalculationsAndCharts!$A82+$A$11,IF($C$7,8,0),1,1) -> 28.49 | G82: =OFFSET(InputPriceData!F$15,CalculationsAndCharts!$A82+$A$11,IF($C$7,8,0),1,1) -> 28.79 | H82: 28.54372842 | I82: 28.7 | J82: FALSE | K82: TRUE | L82: FALSE | M82: 29.2 | N82: FALSE | O82: FALSE | P82: 28.04 | Q82: FALSE | S82: 26.3 | T82: FALSE | W82: TRUE | X82: FALSE | Y82: FALSE | AA82: 0 | AB82: 0 | AE82: 28.54372842 | AF82: 28.7 | AP82: 2463000
A83: 51 | B83: =OFFSET(InputPriceData!B$15,CalculationsAndCharts!$A83+$A$11,0,1,1) -> 2016-09-16 | C83: =OFFSET(InputPriceData!G$15,CalculationsAndCharts!$A83+$A$11,IF($C$7,8,0),1,1) -> 2488700 | D83: =OFFSET(InputPriceData!C$15,CalculationsAndCharts!$A83+$A$11,IF($C$7,8,0),1,1) -> 28.66 | E83: =OFFSET(InputPriceData!D$15,CalculationsAndCharts!$A83+$A$11,IF($C$7,8,0),1,1) -> 28.77 | F83: =OFFSET(InputPriceData!E$15,CalculationsAndCharts!$A83+$A$11,IF($C$7,8,0),1,1) -> 28.04 | G83: =OFFSET(InputPriceData!F$15,CalculationsAndCharts!$A83+$A$11,IF($C$7,8,0),1,1) -> 28.3 | H83: 28.71259421 | I83: 28.58 | J83: FALSE | K83: FALSE | L83: TRUE | M83: 29.2 | N83: FALSE | O83: FALSE | P83: 28.04 | Q83: FALSE | T83: FALSE | W83: TRUE | X83: TRUE | Y83: FALSE | AA83: 28.66 | AB83: 0 | AE83: 28.71259421 | AF83: 28.58 | AG83: 29.77 | AP83: 2488700
A84: 52 | B84: =OFFSET(InputPriceData!B$15,CalculationsAndCharts!$A84+$A$11,0,1,1) -> 2016-09-15 | C84: =OFFSET(InputPriceData!G$15,CalculationsAndCharts!$A84+$A$11,IF($C$7,8,0),1,1) -> 3452600 | D84: =OFFSET(InputPriceData!C$15,CalculationsAndCharts!$A84+$A$11,IF($C$7,8,0),1,1) -> 28.48 | E84: =OFFSET(InputPriceData!D$15,CalculationsAndCharts!$A84+$A$11,IF($C$7,8,0),1,1) -> 29.2 | F84: =OFFSET(InputPriceData!E$15,CalculationsAndCharts!$A84+$A$11,IF($C$7,8,0),1,1) -> 28.15 | G84: =OFFSET(InputPriceData!F$15,CalculationsAndCharts!$A84+$A$11,IF($C$7,8,0),1,1) -> 29.01 | H84: 28.71712674 | I84: 28.71333333 | J84: TRUE | K84: FALSE | L84: TRUE | M84: 29.17 | N84: FALSE | O84: FALSE | P84: 28.15 | Q84: FALSE | S84: 26.43 | T84: FALSE | W84: FALSE | X84: FALSE | Y84: TRUE | AA84: 0 | AB84: 28.48 | AE84: 28.71712674 | AF84: 28.71333333 | AH84: 30.2 | AO84: 3452600
A85: 53 | B85: =OFFSET(InputPriceData!B$15,CalculationsAndCharts!$A85+$A$11,0,1,1) -> 2016-09-14 | C85: =OFFSET(InputPriceData!G$15,CalculationsAndCharts!$A85+$A$11,IF($C$7,8,0),1,1) -> 3521700 | D85: =OFFSET(InputPriceData!C$15,CalculationsAndCharts!$A85+$A$11,IF($C$7,8,0),1,1) -> 28.76 | E85: =OFFSET(InputPriceData!D$15,CalculationsAndCharts!$A85+$A$11,IF($C$7,8,0),1,1) -> 29.17 | F85: =OFFSET(InputPriceData!E$15,CalculationsAndCharts!$A85+$A$11,IF($C$7,8,0),1,1) -> 28.23 | G85: =OFFSET(InputPriceData!F$15,CalculationsAndCharts!$A85+$A$11,IF($C$7,8,0),1,1) -> 28.43 | H85: 28.5906669 | I85: 29.10333333 | J85: FALSE | K85: TRUE | L85: FALSE | M85: 30.45 | N85: FALSE | O85: FALSE | P85: 28.23 | Q85: FALSE | T85: FALSE | W85: TRUE | X85: TRUE | Y85: FALSE | AA85: 28.76 | AB85: 0 | AE85: 28.5906669 | AF85: 29.10333333 | AG85: 30.17 | AP85: 3521700
A86: 54 | B86: =OFFSET(InputPriceData!B$15,CalculationsAndCharts!$A86+$A$11,0,1,1) -> 2016-09-13 | C86: =OFFSET(InputPriceData!G$15,CalculationsAndCharts!$A86+$A$11,IF($C$7,8,0),1,1) -> 5175200 | D86: =OFFSET(InputPriceData!C$15,CalculationsAndCharts!$A86+$A$11,IF($C$7,8,0),1,1) -> 29.36 | E86: =OFFSET(InputPriceData!D$15,CalculationsAndCharts!$A86+$A$11,IF($C$7,8,0),1,1) -> 29.44 | F86: =OFFSET(InputPriceData!E$15,CalculationsAndCharts!$A86+$A$11,IF($C$7,8,0),1,1) -> 28.36 | G86: =OFFSET(InputPriceData!F$15,CalculationsAndCharts!$A86+$A$11,IF($C$7,8,0),1,1) -> 28.7 | H86: 29.38661943 | I86: 29.36333333 | J86: TRUE | K86: FALSE | L86: TRUE | M86: 30.45 | N86: FALSE | O86: FALSE | P86: 28.36 | Q86: FALSE | T86: FALSE | W86: FALSE | X86: FALSE | Y86: FALSE | AA86: 0 | AB86: 0 | AE86: 29.38661943 | AF86: 29.36333333 | AP86: 5175200
A87: 55 | B87: =OFFSET(InputPriceData!B$15,CalculationsAndCharts!$A87+$A$11,0,1,1) -> 2016-09-12 | C87: =OFFSET(InputPriceData!G$15,CalculationsAndCharts!$A87+$A$11,IF($C$7,8,0),1,1) -> 4478800 | D87: =OFFSET(InputPriceData!C$15,CalculationsAndCharts!$A87+$A$11,IF($C$7,8,0),1,1) -> 28.64 | E87: =OFFSET(InputPriceData!D$15,CalculationsAndCharts!$A87+$A$11,IF($C$7,8,0),1,1) -> 30.45 | F87: =OFFSET(InputPriceData!E$15,CalculationsAndCharts!$A87+$A$11,IF($C$7,8,0),1,1) -> 28.46 | G87: =OFFSET(InputPriceData!F$15,CalculationsAndCharts!$A87+$A$11,IF($C$7,8,0),1,1) -> 30.18 | H87: 29.64570278 | I87: 30.16333333 | J87: FALSE | K87: FALSE | L87: FALSE | M87: 0 | N87: FALSE | O87: FALSE | P87: 28.46 | Q87: FALSE | S87: 27.21 | T87: FALSE | W87: FALSE | X87: FALSE | Y87: TRUE | AA87: 0 | AB87: 28.64 | AE87: 29.64570278 | AF87: 30.16333333 | AH87: 31.45 | AO87: 4478800
A88: 56 | B88: =OFFSET(InputPriceData!B$15,CalculationsAndCharts!$A88+$A$11,0,1,1) -> 2016-09-09 | C88: =OFFSET(InputPriceData!G$15,CalculationsAndCharts!$A88+$A$11,IF($C$7,8,0),1,1) -> 5492300 | D88: =OFFSET(InputPriceData!C$15,CalculationsAndCharts!$A88+$A$11,IF($C$7,8,0),1,1) -> 30.83 | E88: =OFFSET(InputPriceData!D$15,CalculationsAndCharts!$A88+$A$11,IF($C$7,8,0),1,1) -> 30.83 | F88: =OFFSET(InputPriceData!E$15,CalculationsAndCharts!$A88+$A$11,IF($C$7,8,0),1,1) -> 29.2 | G88: =OFFSET(InputPriceData!F$15,CalculationsAndCharts!$A88+$A$11,IF($C$7,8,0),1,1) -> 29.21 | H88: 29.7807591 | I88: 30.52333333 | J88: FALSE | K88: TRUE | L88: FALSE | M88: 31.35 | N88: FALSE | O88: FALSE | P88: 29.2 | Q88: FALSE | T88: FALSE | W88: TRUE | X88: TRUE | Y88: FALSE | AA88: 30.83 | AB88: 0 | AE88: 29.7807591 | AF88: 30.52333333 | AG88: 31.83 | AP88: 5492300
A89: 57 | B89: =OFFSET(InputPriceData!B$15,CalculationsAndCharts!$A89+$A$11,0,1,1) -> 2016-09-08 | C89: =OFFSET(InputPriceData!G$15,CalculationsAndCharts!$A89+$A$11,IF($C$7,8,0),1,1) -> 2376200 | D89: =OFFSET(InputPriceData!C$15,CalculationsAndCharts!$A89+$A$11,IF($C$7,8,0),1,1) -> 31.15 | E89: =OFFSET(InputPriceData!D$15,CalculationsAndCharts!$A89+$A$11,IF($C$7,8,0),1,1) -> 31.35 | F89: =OFFSET(InputPriceData!E$15,CalculationsAndCharts!$A89+$A$11,IF($C$7,8,0),1,1) -> 30.96 | G89: =OFFSET(InputPriceData!F$15,CalculationsAndCharts!$A89+$A$11,IF($C$7,8,0),1,1) -> 31.1 | H89: 31.17378084 | I89: 31.14 | J89: TRUE | K89: FALSE | L89: TRUE | M89: 31.31 | N89: FALSE | O89: FALSE | P89: 30.67 | Q89: FALSE | S89: 29.26 | T89: FALSE | W89: FALSE | X89: FALSE | Y89: TRUE | AA89: 0 | AB89: 31.15 | AE89: 31.17378084 | AF89: 31.14 | AH89: 32.35 | AP89: 2376200
A90: 58 | B90: =OFFSET(InputPriceData!B$15,CalculationsAndCharts!$A90+$A$11,0,1,1) -> 2016-09-07 | C90: =OFFSET(InputPriceData!G$15,CalculationsAndCharts!$A90+$A$11,IF($C$7,8,0),1,1) -> 2033400 | D90: =OFFSET(InputPriceData!C$15,CalculationsAndCharts!$A90+$A$11,IF($C$7,8,0),1,1) -> 30.86 | E90: =OFFSET(InputPriceData!D$15,CalculationsAndCharts!$A90+$A$11,IF($C$7,8,0),1,1) -> 31.31 | F90: =OFFSET(InputPriceData!E$15,CalculationsAndCharts!$A90+$A$11,IF($C$7,8,0),1,1) -> 30.67 | G90: =OFFSET(InputPriceData!F$15,CalculationsAndCharts!$A90+$A$11,IF($C$7,8,0),1,1) -> 31.26 | H90: 31.14262831 | I90: 31.16666667 | J90: FALSE | K90: TRUE | L90: FALSE | M90: 31.4 | N90: FALSE | O90: FALSE | P90: 30.46 | Q90: FALSE | T90: FALSE | W90: TRUE | X90: TRUE | Y90: FALSE | AA90: 30.86 | AB90: 0 | AE90: 31.14262831 | AF90: 31.16666667 | AG90: 32.31 | AO90: 2033400
A91: 59 | B91: =OFFSET(InputPriceData!B$15,CalculationsAndCharts!$A91+$A$11,0,1,1) -> 2016-09-06 | C91: =OFFSET(InputPriceData!G$15,CalculationsAndCharts!$A91+$A$11,IF($C$7,8,0),1,1) -> 2888400 | D91: =OFFSET(InputPriceData!C$15,CalculationsAndCharts!$A91+$A$11,IF($C$7,8,0),1,1) -> 31.26 | E91: =OFFSET(InputPriceData!D$15,CalculationsAndCharts!$A91+$A$11,IF($C$7,8,0),1,1) -> 31.3 | F91: =OFFSET(InputPriceData!E$15,CalculationsAndCharts!$A91+$A$11,IF($C$7,8,0),1,1) -> 30.46 | G91: =OFFSET(InputPriceData!F$15,CalculationsAndCharts!$A91+$A$11,IF($C$7,8,0),1,1) -> 31.06 | H91: 31.12130163 | I91: 30.96 | J91: TRUE | K91: FALSE | L91: TRUE | M91: 31.4 | N91: FALSE | O91: FALSE | P91: 30.46 | Q91: FALSE | T91: FALSE | W91: FALSE | X91: FALSE | Y91: FALSE | AA91: 0 | AB91: 0 | AE91: 31.12130163 | AF91: 30.96 | AP91: 2888400
A92: 60 | B92: =OFFSET(InputPriceData!B$15,CalculationsAndCharts!$A92+$A$11,0,1,1) -> 2016-09-02 | C92: =OFFSET(InputPriceData!G$15,CalculationsAndCharts!$A92+$A$11,IF($C$7,8,0),1,1) -> 3016500 | D92: =OFFSET(InputPriceData!C$15,CalculationsAndCharts!$A92+$A$11,IF($C$7,8,0),1,1) -> 30.85 | E92: =OFFSET(InputPriceData!D$15,CalculationsAndCharts!$A92+$A$11,IF($C$7,8,0),1,1) -> 31.4 | F92: =OFFSET(InputPriceData!E$15,CalculationsAndCharts!$A92+$A$11,IF($C$7,8,0),1,1) -> 30.77 | G92: =OFFSET(InputPriceData!F$15,CalculationsAndCharts!$A92+$A$11,IF($C$7,8,0),1,1) -> 31.18 | H92: 30.88957253 | I92: 30.91333333 | J92: FALSE | K92: FALSE | L92: FALSE | M92: 0 | N92: FALSE | O92: FALSE | P92: 30.03 | Q92: FALSE | S92: 28.92 | T92: FALSE | W92: FALSE | X92: FALSE | Y92: TRUE | AA92: 0 | AB92: 30.85 | AE92: 30.88957253 | AF92: 30.91333333 | AH92: 32.4 | AO92: 3016500
A93: 61 | B93: =OFFSET(InputPriceData!B$15,CalculationsAndCharts!$A93+$A$11,0,1,1) -> 2016-09-01 | C93: =OFFSET(InputPriceData!G$15,CalculationsAndCharts!$A93+$A$11,IF($C$7,8,0),1,1) -> 3510300 | D93: =OFFSET(InputPriceData!C$15,CalculationsAndCharts!$A93+$A$11,IF($C$7,8,0),1,1) -> 31.02 | E93: =OFFSET(InputPriceData!D$15,CalculationsAndCharts!$A93+$A$11,IF($C$7,8,0),1,1) -> 31.2 | F93: =OFFSET(InputPriceData!E$15,CalculationsAndCharts!$A93+$A$11,IF($C$7,8,0),1,1) -> 30.03 | G93: =OFFSET(InputPriceData!F$15,CalculationsAndCharts!$A93+$A$11,IF($C$7,8,0),1,1) -> 30.64 | H93: 30.76716942 | I93: 30.80666667 | J93: FALSE | K93: TRUE | L93: FALSE | M93: 30.99 | N93: FALSE | O93: FALSE | P93: 30.03 | Q93: FALSE | S93: 28.92 | T93: FALSE | W93: TRUE | X93: FALSE | Y93: FALSE | AA93: 0 | AB93: 0 | AE93: 30.76716942 | AF93: 30.80666667 | AP93: 3510300
A94: 62 | B94: =OFFSET(InputPriceData!B$15,CalculationsAndCharts!$A94+$A$11,0,1,1) -> 2016-08-31 | C94: =OFFSET(InputPriceData!G$15,CalculationsAndCharts!$A94+$A$11,IF($C$7,8,0),1,1) -> 2920900 | D94: =OFFSET(InputPriceData!C$15,CalculationsAndCharts!$A94+$A$11,IF($C$7,8,0),1,1) -> 30.83 | E94: =OFFSET(InputPriceData!D$15,CalculationsAndCharts!$A94+$A$11,IF($C$7,8,0),1,1) -> 30.99 | F94: =OFFSET(InputPriceData!E$15,CalculationsAndCharts!$A94+$A$11,IF($C$7,8,0),1,1) -> 30.27 | G94: =OFFSET(InputPriceData!F$15,CalculationsAndCharts!$A94+$A$11,IF($C$7,8,0),1,1) -> 30.92 | H94: 30.8886316 | I94: 30.66333333 | J94: FALSE | K94: FALSE | L94: TRUE | M94: 30.88 | N94: TRUE | O94: FALSE | P94: 30.2 | Q94: FALSE | S94: 28.86 | T94: FALSE | W94: TRUE | X94: FALSE | Y94: FALSE | AA94: 0 | AB94: 0 | AE94: 30.8886316 | AF94: 30.66333333 | AO94: 2920900
A95: 63 | B95: =OFFSET(InputPriceData!B$15,CalculationsAndCharts!$A95+$A$11,0,1,1) -> 2016-08-30 | C95: =OFFSET(InputPriceData!G$15,CalculationsAndCharts!$A95+$A$11,IF($C$7,8,0),1,1) -> 3200100 | D95: =OFFSET(InputPriceData!C$15,CalculationsAndCharts!$A95+$A$11,IF($C$7,8,0),1,1) -> 30.44 | E95: =OFFSET(InputPriceData!D$15,CalculationsAndCharts!$A95+$A$11,IF($C$7,8,0),1,1) -> 30.88 | F95: =OFFSET(InputPriceData!E$15,CalculationsAndCharts!$A95+$A$11,IF($C$7,8,0),1,1) -> 30.2 | G95: =OFFSET(InputPriceData!F$15,CalculationsAndCharts!$A95+$A$11,IF($C$7,8,0),1,1) -> 30.86 | H95: 30.5621356 | I95: 30.18333333 | J95: FALSE | K95: FALSE | L95: TRUE | M95: 30.47 | N95: TRUE | O95: FALSE | P95: 29.51 | Q95: FALSE | S95: 28.21 | T95: FALSE | W95: TRUE | X95: FALSE | Y95: FALSE | AA95: 0 | AB95: 0 | AE95: 30.5621356 | AF95: 30.18333333 | AO95: 3200100
A96: 64 | B96: =OFFSET(InputPriceData!B$15,CalculationsAndCharts!$A96+$A$11,0,1,1) -> 2016-08-29 | C96: =OFFSET(InputPriceData!G$15,CalculationsAndCharts!$A96+$A$11,IF($C$7,8,0),1,1) -> 2706900 | D96: =OFFSET(InputPriceData!C$15,CalculationsAndCharts!$A96+$A$11,IF($C$7,8,0),1,1) -> 29.67 | E96: =OFFSET(InputPriceData!D$15,CalculationsAndCharts!$A96+$A$11,IF($C$7,8,0),1,1) -> 30.47 | F96: =OFFSET(InputPriceData!E$15,CalculationsAndCharts!$A96+$A$11,IF($C$7,8,0),1,1) -> 29.51 | G96: =OFFSET(InputPriceData!F$15,CalculationsAndCharts!$A96+$A$11,IF($C$7,8,0),1,1) -> 30.21 | H96: 29.74526123 | I96: 29.70333333 | J96: FALSE | K96: FALSE | L96: TRUE | M96: 30.13 | N96: TRUE | O96: FALSE | P96: 29 | Q96: FALSE | T96: FALSE | W96: TRUE | X96: TRUE | Y96: FALSE | AA96: 29.67 | AB96: 0 | AE96: 29.74526123 | AF96: 29.70333333 | AG96: 31.47 | AO96: 2706900
A97: 65 | B97: =OFFSET(InputPriceData!B$15,CalculationsAndCharts!$A97+$A$11,0,1,1) -> 2016-08-26 | C97: =OFFSET(InputPriceData!G$15,CalculationsAndCharts!$A97+$A$11,IF($C$7,8,0),1,1) -> 4742500 | D97: =OFFSET(InputPriceData!C$15,CalculationsAndCharts!$A97+$A$11,IF($C$7,8,0),1,1) -> 29.72 | E97: =OFFSET(InputPriceData!D$15,CalculationsAndCharts!$A97+$A$11,IF($C$7,8,0),1,1) -> 30.13 | F97: =OFFSET(InputPriceData!E$15,CalculationsAndCharts!$A97+$A$11,IF($C$7,8,0),1,1) -> 29 | G97: =OFFSET(InputPriceData!F$15,CalculationsAndCharts!$A97+$A$11,IF($C$7,8,0),1,1) -> 29.48 | H97: 29.46533794 | I97: 29.36666667 | J97: =AND(A97<$A$8-1,H97>I97,H98<I98) -> TRUE | K97: =AND(A97<$A$8-1,H97<I97,H98>I98) -> FALSE | L97: TRUE | M97: 29.6 | N97: FALSE | O97: FALSE | P97: 29 | Q97: FALSE | S97: =IF($A97>$A$8-2,NA(),IF(AND(W98,NOT(W99)),(G98-$A$19),IF(AND(W98,NOT(T98)),IF((G98-$A$19)>S98,(G98-$A$19),S98),NA()))) -> 27.42 | T97: FALSE | W97: FALSE | X97: =IFERROR(AND(A97<$A$8-1,OR(O98,J98),NOT(W98)),FALSE) -> FALSE | Y97: TRUE | AA97: =IF(X97,D97,0) -> 0 | AB97: =IF(Y97,D97,0) -> 29.72 | AE97: =IF($R$4,H97,NA()) -> 29.46533794 | AF97: =IF($R$5,I97,NA()) -> 29.36666667 | AG97: =IF(AND($R$6,X97,J98),$E97+1,NA()) ->  | AH97: =IF(AND($R$6,Y97,K98),$E97+1,NA()) -> 31.13 | AO97: =IF(G97>=D97,C97,NA()) ->  | AP97: =IF(G97<D97,C97,NA()) -> 4742500
A98: 66 | B98: =OFFSET(InputPriceData!B$15,CalculationsAndCharts!$A98+$A$11,0,1,1) -> 2016-08-25 | C98: =OFFSET(InputPriceData!G$15,CalculationsAndCharts!$A98+$A$11,IF($C$7,8,0),1,1) -> 1533700 | D98: =OFFSET(InputPriceData!C$15,CalculationsAndCharts!$A98+$A$11,IF($C$7,8,0),1,1) -> 29.19 | E98: =OFFSET(InputPriceData!D$15,CalculationsAndCharts!$A98+$A$11,IF($C$7,8,0),1,1) -> 29.6 | F98: =OFFSET(InputPriceData!E$15,CalculationsAndCharts!$A98+$A$11,IF($C$7,8,0),1,1) -> 29.05 | G98: =OFFSET(InputPriceData!F$15,CalculationsAndCharts!$A98+$A$11,IF($C$7,8,0),1,1) -> 29.42 | H98: =IFERROR(IF($A98>($A$8-MAX($A$17:$A$18)+1),0,SUMPRODUCT(OFFSET(G98,0,0,$A$17,1),OFFSET(C98,0,0,$A$17,1))/SUM(OFFSET(C98,0,0,$A$17,1))),0) -> 29.31074737 | I98: =IF($A98>($A$8-MAX($A$17:$A$18)+1),0,IF($A98=($A$8-MAX($A$17:$A$18)+1),$G98,AVERAGE(OFFSET($G98,0,0,$A$18,1)))) -> 29.34 | J98: FALSE | K98: TRUE | L98: =H98>I98 -> FALSE | M98: =IF(J98,E99,IF(L99,IF(E99>M99,E99,M99),0)) -> 29.8 | N98: FALSE | O98: =AND($R$13,NOT(J98),L98,N98,NOT(W98)) -> FALSE | P98: =MIN(OFFSET(F98,0,0,$A$20,1)) -> 29.05 | Q98: =AND($R$11,F98<P99) -> FALSE | S98: 27.2 | T98: FALSE | W98: TRUE | X98: FALSE | Y98: =IFERROR(AND(A98<$A$8-1,W99,OR(K99,Q99,T99)),FALSE) -> FALSE | AA98: 0 | AB98: 0 | AE98: 29.31074737 | AF98: 29.34 | AI98: =IF(AND($R$6,$R$12),S98,NA()) ->  | AJ98: =IF(AND($R$6,$R$12,Y98,T99),$E98+1,NA()) ->  | AK98: =IF(AND($R$6,$R$13,L98),M98,NA()) ->  | AL98: =IF(AND($R$6,$R$13,X98,O99),$E98+1,NA()) ->  | AM98: =IF(AND($R$6,$R$11,Y98,Q99),$E98+1,NA()) ->  | AO98: 1533700
A99: 67 | B99: =OFFSET(InputPriceData!B$15,CalculationsAndCharts!$A99+$A$11,0,1,1) -> 2016-08-24 | C99: =OFFSET(InputPriceData!G$15,CalculationsAndCharts!$A99+$A$11,IF($C$7,8,0),1,1) -> 1513000 | D99: =OFFSET(InputPriceData!C$15,CalculationsAndCharts!$A99+$A$11,IF($C$7,8,0),1,1) -> 29.4 | E99: =OFFSET(InputPriceData!D$15,CalculationsAndCharts!$A99+$A$11,IF($C$7,8,0),1,1) -> 29.58 | F99: =OFFSET(InputPriceData!E$15,CalculationsAndCharts!$A99+$A$11,IF($C$7,8,0),1,1) -> 29.08 | G99: =OFFSET(InputPriceData!F$15,CalculationsAndCharts!$A99+$A$11,IF($C$7,8,0),1,1) -> 29.2 | H99: 29.31524047 | I99: 29.28666667 | J99: FALSE | K99: FALSE | L99: TRUE | M99: 29.8 | N99: FALSE | O99: FALSE | P99: 29.08 | Q99: FALSE | T99: FALSE | W99: TRUE | X99: TRUE | Y99: FALSE | AA99: 29.4 | AB99: 0 | AE99: 29.31524047 | AF99: 29.28666667 | AG99: 30.58 | AP99: 1513000
A100: 68 | B100: =OFFSET(InputPriceData!B$15,CalculationsAndCharts!$A100+$A$11,0,1,1) -> 2016-08-23 | C100: =OFFSET(InputPriceData!G$15,CalculationsAndCharts!$A100+$A$11,IF($C$7,8,0),1,1) -> 2057100 | D100: =OFFSET(InputPriceData!C$15,CalculationsAndCharts!$A100+$A$11,IF($C$7,8,0),1,1) -> 29.55 | E100: =OFFSET(InputPriceData!D$15,CalculationsAndCharts!$A100+$A$11,IF($C$7,8,0),1,1) -> 29.8 | F100: =OFFSET(InputPriceData!E$15,CalculationsAndCharts!$A100+$A$11,IF($C$7,8,0),1,1) -> 29.4 | G100: =OFFSET(InputPriceData!F$15,CalculationsAndCharts!$A100+$A$11,IF($C$7,8,0),1,1) -> 29.4 | H100: 29.33772488 | I100: 29.26666667 | J100: TRUE | K100: FALSE | L100: TRUE | M100: 29.3 | N100: FALSE | O100: FALSE | P100: 28.88 | Q100: FALSE | T100: FALSE | W100: FALSE | X100: FALSE | Y100: FALSE | AA100: 0 | AB100: 0 | AE100: 29.33772488 | AF100: 29.26666667 | AP100: 2057100
A101: 69 | B101: =OFFSET(InputPriceData!B$15,CalculationsAndCharts!$A101+$A$11,0,1,1) -> 2016-08-22 | C101: =OFFSET(InputPriceData!G$15,CalculationsAndCharts!$A101+$A$11,IF($C$7,8,0),1,1) -> 1648200 | D101: =OFFSET(InputPriceData!C$15,CalculationsAndCharts!$A101+$A$11,IF($C$7,8,0),1,1) -> 29.14 | E101: =OFFSET(InputPriceData!D$15,CalculationsAndCharts!$A101+$A$11,IF($C$7,8,0),1,1) -> 29.3 | F101: =OFFSET(InputPriceData!E$15,CalculationsAndCharts!$A101+$A$11,IF($C$7,8,0),1,1) -> 28.88 | G101: =OFFSET(InputPriceData!F$15,CalculationsAndCharts!$A101+$A$11,IF($C$7,8,0),1,1) -> 29.26 | H101: 29.19490492 | I101: 29.23 | J101: FALSE | K101: FALSE | L101: FALSE | M101: 0 | N101: FALSE | O101: FALSE | P101: 28.72 | Q101: FALSE | S101: 27.14 | T101: FALSE | W101: FALSE | X101: FALSE | Y101: TRUE | AA101: 0 | AB101: 29.14 | AE101: 29.19490492 | AF101: 29.23 | AH101: 30.3 | AO101: 1648200
A102: 70 | B102: =OFFSET(InputPriceData!B$15,CalculationsAndCharts!$A102+$A$11,0,1,1) -> 2016-08-19 | C102: =OFFSET(InputPriceData!G$15,CalculationsAndCharts!$A102+$A$11,IF($C$7,8,0),1,1) -> 1954100 | D102: =OFFSET(InputPriceData!C$15,CalculationsAndCharts!$A102+$A$11,IF($C$7,8,0),1,1) -> 29.05 | E102: =OFFSET(InputPriceData!D$15,CalculationsAndCharts!$A102+$A$11,IF($C$7,8,0),1,1) -> 29.22 | F102: =OFFSET(InputPriceData!E$15,CalculationsAndCharts!$A102+$A$11,IF($C$7,8,0),1,1) -> 28.72 | G102: =OFFSET(InputPriceData!F$15,CalculationsAndCharts!$A102+$A$11,IF($C$7,8,0),1,1) -> 29.14 | H102: 29.21282385 | I102: 29.24333333 | J102: FALSE | K102: TRUE | L102: FALSE | M102: 29.42 | N102: FALSE | O102: FALSE | P102: 28.72 | Q102: FALSE | T102: FALSE | W102: TRUE | X102: TRUE | Y102: FALSE | AA102: 29.05 | AB102: 0 | AE102: 29.21282385 | AF102: 29.24333333 | AG102: 30.22 | AO102: 1954100
A103: 71 | B103: =OFFSET(InputPriceData!B$15,CalculationsAndCharts!$A103+$A$11,0,1,1) -> 2016-08-18 | C103: =OFFSET(InputPriceData!G$15,CalculationsAndCharts!$A103+$A$11,IF($C$7,8,0),1,1) -> 1843900 | D103: =OFFSET(InputPriceData!C$15,CalculationsAndCharts!$A103+$A$11,IF($C$7,8,0),1,1) -> 29.33 | E103: =OFFSET(InputPriceData!D$15,CalculationsAndCharts!$A103+$A$11,IF($C$7,8,0),1,1) -> 29.42 | F103: =OFFSET(InputPriceData!E$15,CalculationsAndCharts!$A103+$A$11,IF($C$7,8,0),1,1) -> 29.01 | G103: =OFFSET(InputPriceData!F$15,CalculationsAndCharts!$A103+$A$11,IF($C$7,8,0),1,1) -> 29.29 | H103: 29.2953899 | I103: 29.21666667 | J103: TRUE | K103: FALSE | L103: TRUE | M103: 29.37 | N103: FALSE | O103: FALSE | P103: 28.85 | Q103: FALSE | S103: 27.3 | T103: FALSE | W103: FALSE | X103: FALSE | Y103: TRUE | AA103: 0 | AB103: 29.33 | AE103: 29.2953899 | AF103: 29.21666667 | AH103: 30.42 | AP103: 1843900
A104: 72 | B104: =OFFSET(InputPriceData!B$15,CalculationsAndCharts!$A104+$A$11,0,1,1) -> 2016-08-17 | C104: =OFFSET(InputPriceData!G$15,CalculationsAndCharts!$A104+$A$11,IF($C$7,8,0),1,1) -> 2155800 | D104: =OFFSET(InputPriceData!C$15,CalculationsAndCharts!$A104+$A$11,IF($C$7,8,0),1,1) -> 29.13 | E104: =OFFSET(InputPriceData!D$15,CalculationsAndCharts!$A104+$A$11,IF($C$7,8,0),1,1) -> 29.37 | F104: =OFFSET(InputPriceData!E$15,CalculationsAndCharts!$A104+$A$11,IF($C$7,8,0),1,1) -> 28.85 | G104: =OFFSET(InputPriceData!F$15,CalculationsAndCharts!$A104+$A$11,IF($C$7,8,0),1,1) -> 29.3 | H104: 29.17967525 | I104: 29.25 | J104: FALSE | K104: TRUE | L104: FALSE | M104: 29.49 | N104: FALSE | O104: FALSE | P104: 28.85 | Q104: FALSE | S104: 27.06 | T104: FALSE | W104: TRUE | X104: FALSE | Y104: FALSE | AA104: 0 | AB104: 0 | AE104: 29.17967525 | AF104: 29.25 | AO104: 2155800
A105: 73 | B105: =OFFSET(InputPriceData!B$15,CalculationsAndCharts!$A105+$A$11,0,1,1) -> 2016-08-16 | C105: =OFFSET(InputPriceData!G$15,CalculationsAndCharts!$A105+$A$11,IF($C$7,8,0),1,1) -> 2167500 | D105: =OFFSET(InputPriceData!C$15,CalculationsAndCharts!$A105+$A$11,IF($C$7,8,0),1,1) -> 29.17 | E105: =OFFSET(InputPriceData!D$15,CalculationsAndCharts!$A105+$A$11,IF($C$7,8,0),1,1) -> 29.31 | F105: =OFFSET(InputPriceData!E$15,CalculationsAndCharts!$A105+$A$11,IF($C$7,8,0),1,1) -> 29 | G105: =OFFSET(InputPriceData!F$15,CalculationsAndCharts!$A105+$A$11,IF($C$7,8,0),1,1) -> 29.06 | H105: 29.21822406 | I105: 29.13 | J105: FALSE | K105: FALSE | L105: TRUE | M105: 29.49 | N105: =AND(L105,E105>M105,NOT(J105)) -> FALSE | O105: FALSE | P105: 29 | Q105: FALSE | T105: FALSE | W105: TRUE | X105: TRUE | Y105: FALSE | AA105: 29.17 | AB105: 0 | AE105: 29.21822406 | AF105: 29.13 | AG105: 30.31 | AP105: 2167500
A106: 74 | B106: =OFFSET(InputPriceData!B$15,CalculationsAndCharts!$A106+$A$11,0,1,1) -> 2016-08-15 | C106: =OFFSET(InputPriceData!G$15,CalculationsAndCharts!$A106+$A$11,IF($C$7,8,0),1,1) -> 1996500 | D106: =OFFSET(InputPriceData!C$15,CalculationsAndCharts!$A106+$A$11,IF($C$7,8,0),1,1) -> 29.21 | E106: =OFFSET(InputPriceData!D$15,CalculationsAndCharts!$A106+$A$11,IF($C$7,8,0),1,1) -> 29.49 | F106: =OFFSET(InputPriceData!E$15,CalculationsAndCharts!$A106+$A$11,IF($C$7,8,0),1,1) -> 29.1 | G106: =OFFSET(InputPriceData!F$15,CalculationsAndCharts!$A106+$A$11,IF($C$7,8,0),1,1) -> 29.39 | H106: 29.15314947 | I106: 29.13333333 | J106: TRUE | K106: FALSE | L106: TRUE | M106: 29.04 | N106: FALSE | O106: FALSE | P106: 28.57 | Q106: FALSE | T106: FALSE | W106: FALSE | X106: FALSE | Y106: FALSE | AA106: 0 | AB106: 0 | AE106: 29.15314947 | AF106: 29.13333333 | AO106: 1996500
A107: 75 | B107: =OFFSET(InputPriceData!B$15,CalculationsAndCharts!$A107+$A$11,0,1,1) -> 2016-08-12 | C107: =OFFSET(InputPriceData!G$15,CalculationsAndCharts!$A107+$A$11,IF($C$7,8,0),1,1) -> 2218500 | D107: =OFFSET(InputPriceData!C$15,CalculationsAndCharts!$A107+$A$11,IF($C$7,8,0),1,1) -> 28.71 | E107: =OFFSET(InputPriceData!D$15,CalculationsAndCharts!$A107+$A$11,IF($C$7,8,0),1,1) -> 29.04 | F107: =OFFSET(InputPriceData!E$15,CalculationsAndCharts!$A107+$A$11,IF($C$7,8,0),1,1) -> 28.57 | G107: =OFFSET(InputPriceData!F$15,CalculationsAndCharts!$A107+$A$11,IF($C$7,8,0),1,1) -> 28.94 | H107: 28.99795099 | I107: 29 | J107: FALSE | K107: FALSE | L107: FALSE | M107: 0 | N107: FALSE | O107: FALSE | P107: 28.57 | Q107: FALSE | T107: FALSE | W107: FALSE | X107: FALSE | Y107: FALSE | AA107: 0 | AB107: 0 | AE107: 28.99795099 | AF107: 29 | AO107: 2218500
A108: 76 | B108: =OFFSET(InputPriceData!B$15,CalculationsAndCharts!$A108+$A$11,0,1,1) -> 2016-08-11 | C108: =OFFSET(InputPriceData!G$15,CalculationsAndCharts!$A108+$A$11,IF($C$7,8,0),1,1) -> 1784400 | D108: =OFFSET(InputPriceData!C$15,CalculationsAndCharts!$A108+$A$11,IF($C$7,8,0),1,1) -> 29.27 | E108: =OFFSET(InputPriceData!D$15,CalculationsAndCharts!$A108+$A$11,IF($C$7,8,0),1,1) -> 29.42 | F108: =OFFSET(InputPriceData!E$15,CalculationsAndCharts!$A108+$A$11,IF($C$7,8,0),1,1) -> 28.88 | G108: =OFFSET(InputPriceData!F$15,CalculationsAndCharts!$A108+$A$11,IF($C$7,8,0),1,1) -> 29.07 | H108: 29.02672455 | I108: 29.20666667 | J108: FALSE | K108: FALSE | L108: FALSE | M108: 0 | N108: FALSE | O108: FALSE | P108: 28.86 | Q108: FALSE | S108: 27.56 | T108: =IFERROR(AND($R$12,W108,F108<S108),FALSE) -> FALSE | W108: FALSE | X108: FALSE | Y108: TRUE | AA108: 0 | AB108: 29.27 | AE108: 29.02672455 | AF108: 29.20666667 | AH108: 30.42 | AP108: 1784400
A109: 77 | B109: =OFFSET(InputPriceData!B$15,CalculationsAndCharts!$A109+$A$11,0,1,1) -> 2016-08-10 | C109: =OFFSET(InputPriceData!G$15,CalculationsAndCharts!$A109+$A$11,IF($C$7,8,0),1,1) -> 2102700 | D109: =OFFSET(InputPriceData!C$15,CalculationsAndCharts!$A109+$A$11,IF($C$7,8,0),1,1) -> 29.59 | E109: =OFFSET(InputPriceData!D$15,CalculationsAndCharts!$A109+$A$11,IF($C$7,8,0),1,1) -> 29.62 | F109: =OFFSET(InputPriceData!E$15,CalculationsAndCharts!$A109+$A$11,IF($C$7,8,0),1,1) -> 28.86 | G109: =OFFSET(InputPriceData!F$15,CalculationsAndCharts!$A109+$A$11,IF($C$7,8,0),1,1) -> 28.99 | H109: 29.28188444 | I109: 29.33 | J109: FALSE | K109: TRUE | L109: FALSE | M109: 29.75 | N109: FALSE | O109: FALSE | P109: 28.86 | Q109: FALSE | S109: 27.56 | T109: FALSE | W109: TRUE | X109: FALSE | Y109: FALSE | AA109: 0 | AB109: 0 | AE109: 29.28188444 | AF109: 29.33 | AP109: 2102700
A110: 78 | B110: =OFFSET(InputPriceData!B$15,CalculationsAndCharts!$A110+$A$11,0,1,1) -> 2016-08-09 | C110: =OFFSET(InputPriceData!G$15,CalculationsAndCharts!$A110+$A$11,IF($C$7,8,0),1,1) -> 2206800 | D110: =OFFSET(InputPriceData!C$15,CalculationsAndCharts!$A110+$A$11,IF($C$7,8,0),1,1) -> 29.55 | E110: =OFFSET(InputPriceData!D$15,CalculationsAndCharts!$A110+$A$11,IF($C$7,8,0),1,1) -> 29.67 | F110: =OFFSET(InputPriceData!E$15,CalculationsAndCharts!$A110+$A$11,IF($C$7,8,0),1,1) -> 29.36 | G110: =OFFSET(InputPriceData!F$15,CalculationsAndCharts!$A110+$A$11,IF($C$7,8,0),1,1) -> 29.56 | H110: 29.48906726 | I110: 29.48 | J110: FALSE | K110: FALSE | L110: TRUE | M110: 29.75 | N110: FALSE | O110: FALSE | P110: 29.3 | Q110: FALSE | S110: 27.44 | T110: FALSE | W110: TRUE | X110: FALSE | Y110: FALSE | AA110: 0 | AB110: 0 | AE110: 29.48906726 | AF110: 29.48 | AO110: 2206800
A111: 79 | B111: =OFFSET(InputPriceData!B$15,CalculationsAndCharts!$A111+$A$11,0,1,1) -> 2016-08-08 | C111: =OFFSET(InputPriceData!G$15,CalculationsAndCharts!$A111+$A$11,IF($C$7,8,0),1,1) -> 3190200 | D111: =OFFSET(InputPriceData!C$15,CalculationsAndCharts!$A111+$A$11,IF($C$7,8,0),1,1) -> 29.62 | E111: =OFFSET(InputPriceData!D$15,CalculationsAndCharts!$A111+$A$11,IF($C$7,8,0),1,1) -> 29.75 | F111: =OFFSET(InputPriceData!E$15,CalculationsAndCharts!$A111+$A$11,IF($C$7,8,0),1,1) -> 29.3 | G111: =OFFSET(InputPriceData!F$15,CalculationsAndCharts!$A111+$A$11,IF($C$7,8,0),1,1) -> 29.44 | H111: 29.44 | I111: 28.97666667 | J111: FALSE | K111: FALSE | L111: TRUE | M111: 29.45 | N111: TRUE | O111: FALSE | P111: 28.53 | Q111: FALSE | S111: 27.44 | T111: FALSE | W111: TRUE | X111: FALSE | Y111: FALSE | AA111: 0 | AB111: 0 | AE111: 29.44 | AF111: 28.97666667 | AP111: 3190200
A112: 80 | B112: =OFFSET(InputPriceData!B$15,CalculationsAndCharts!$A112+$A$11,0,1,1) -> 2016-08-05 | C112: =OFFSET(InputPriceData!G$15,CalculationsAndCharts!$A112+$A$11,IF($C$7,8,0),1,1) -> 4360200 | D112: =OFFSET(InputPriceData!C$15,CalculationsAndCharts!$A112+$A$11,IF($C$7,8,0),1,1) -> 28.65 | E112: =OFFSET(InputPriceData!D$15,CalculationsAndCharts!$A112+$A$11,IF($C$7,8,0),1,1) -> 29.45 | F112: =OFFSET(InputPriceData!E$15,CalculationsAndCharts!$A112+$A$11,IF($C$7,8,0),1,1) -> 28.53 | G112: =OFFSET(InputPriceData!F$15,CalculationsAndCharts!$A112+$A$11,IF($C$7,8,0),1,1) -> 29.44 | H112: 29.10769149 | I112: 28.54 | J112: FALSE | K112: FALSE | L112: TRUE | M112: 28.26 | N112: TRUE | O112: FALSE | P112: 27.83 | Q112: FALSE | T112: FALSE | W112: TRUE | X112: TRUE | Y112: FALSE | AA112: 28.65 | AB112: 0 | AE112: 29.10769149 | AF112: 28.54 | AG112: 30.45 | AO112: 4360200
A113: 81 | B113: =OFFSET(InputPriceData!B$15,CalculationsAndCharts!$A113+$A$11,0,1,1) -> 2016-08-04 | C113: =OFFSET(InputPriceData!G$15,CalculationsAndCharts!$A113+$A$11,IF($C$7,8,0),1,1) -> 1369900 | D113: =OFFSET(InputPriceData!C$15,CalculationsAndCharts!$A113+$A$11,IF($C$7,8,0),1,1) -> 28.09 | E113: =OFFSET(InputPriceData!D$15,CalculationsAndCharts!$A113+$A$11,IF($C$7,8,0),1,1) -> 28.26 | F113: =OFFSET(InputPriceData!E$15,CalculationsAndCharts!$A113+$A$11,IF($C$7,8,0),1,1) -> 27.83 | G113: =OFFSET(InputPriceData!F$15,CalculationsAndCharts!$A113+$A$11,IF($C$7,8,0),1,1) -> 28.05 | H113: 28.09671769 | I113: 27.88333333 | J113: TRUE | K113: FALSE | L113: TRUE | M113: 28.14 | N113: FALSE | O113: FALSE | P113: 27.28 | Q113: FALSE | T113: FALSE | W113: FALSE | X113: FALSE | Y113: FALSE | AA113: 0 | AB113: 0 | AE113: 28.09671769 | AF113: 27.88333333 | AP113: 1369900
A114: 82 | B114: =OFFSET(InputPriceData!B$15,CalculationsAndCharts!$A114+$A$11,0,1,1) -> 2016-08-03 | C114: =OFFSET(InputPriceData!G$15,CalculationsAndCharts!$A114+$A$11,IF($C$7,8,0),1,1) -> 1922900 | D114: =OFFSET(InputPriceData!C$15,CalculationsAndCharts!$A114+$A$11,IF($C$7,8,0),1,1) -> 27.28 | E114: =OFFSET(InputPriceData!D$15,CalculationsAndCharts!$A114+$A$11,IF($C$7,8,0),1,1) -> 28.14 | F114: =OFFSET(InputPriceData!E$15,CalculationsAndCharts!$A114+$A$11,IF($C$7,8,0),1,1) -> 27.28 | G114: =OFFSET(InputPriceData!F$15,CalculationsAndCharts!$A114+$A$11,IF($C$7,8,0),1,1) -> 28.13 | H114: 27.74758399 | I114: 27.93333333 | J114: FALSE | K114: FALSE | L114: FALSE | M114: 0 | N114: FALSE | O114: FALSE | P114: 27.26 | Q114: FALSE | T114: FALSE | W114: FALSE | X114: FALSE | Y114: FALSE | AA114: 0 | AB114: 0 | AE114: 27.74758399 | AF114: 27.93333333 | AO114: 1922900
A115: 83 | B115: =OFFSET(InputPriceData!B$15,CalculationsAndCharts!$A115+$A$11,0,1,1) -> 2016-08-02 | C115: =OFFSET(InputPriceData!G$15,CalculationsAndCharts!$A115+$A$11,IF($C$7,8,0),1,1) -> 2649100 | D115: =OFFSET(InputPriceData!C$15,CalculationsAndCharts!$A115+$A$11,IF($C$7,8,0),1,1) -> 27.97 | E115: =OFFSET(InputPriceData!D$15,CalculationsAndCharts!$A115+$A$11,IF($C$7,8,0),1,1) -> 28.22 | F115: =OFFSET(InputPriceData!E$15,CalculationsAndCharts!$A115+$A$11,IF($C$7,8,0),1,1) -> 27.26 | G115: =OFFSET(InputPriceData!F$15,CalculationsAndCharts!$A115+$A$11,IF($C$7,8,0),1,1) -> 27.47 | H115: 27.82416811 | I115: 28.01333333 | J115: FALSE | K115: FALSE | L115: FALSE | M115: 0 | N115: FALSE | O115: FALSE | P115: 27.26 | Q115: FALSE | S115: 26.2 | T115: FALSE | W115: FALSE | X115: FALSE | Y115: TRUE | AA115: 0 | AB115: 27.97 | AE115: 27.82416811 | AF115: 28.01333333 | AH115: 29.22 | AP115: 2649100
A116: 84 | B116: =OFFSET(InputPriceData!B$15,CalculationsAndCharts!$A116+$A$11,0,1,1) -> 2016-08-01 | C116: =OFFSET(InputPriceData!G$15,CalculationsAndCharts!$A116+$A$11,IF($C$7,8,0),1,1) -> 2496400 | D116: =OFFSET(InputPriceData!C$15,CalculationsAndCharts!$A116+$A$11,IF($C$7,8,0),1,1) -> 28.4 | E116: =OFFSET(InputPriceData!D$15,CalculationsAndCharts!$A116+$A$11,IF($C$7,8,0),1,1) -> 28.73 | F116: =OFFSET(InputPriceData!E$15,CalculationsAndCharts!$A116+$A$11,IF($C$7,8,0),1,1) -> 28.03 | G116: =OFFSET(InputPriceData!F$15,CalculationsAndCharts!$A116+$A$11,IF($C$7,8,0),1,1) -> 28.2 | H116: 28.27916158 | I116: 28.36333333 | J116: FALSE | K116: TRUE | L116: FALSE | M116: 28.73 | N116: FALSE | O116: FALSE | P116: 28.03 | Q116: FALSE | T116: FALSE | W116: TRUE | X116: TRUE | Y116: FALSE | AA116: 28.4 | AB116: 0 | AE116: 28.27916158 | AF116: 28.36333333 | AG116: 29.73 | AP116: 2496400
A117: 85 | B117: =OFFSET(InputPriceData!B$15,CalculationsAndCharts!$A117+$A$11,0,1,1) -> 2016-07-29 | C117: =OFFSET(InputPriceData!G$15,CalculationsAndCharts!$A117+$A$11,IF($C$7,8,0),1,1) -> 2175500 | D117: =OFFSET(InputPriceData!C$15,CalculationsAndCharts!$A117+$A$11,IF($C$7,8,0),1,1) -> 28.26 | E117: =OFFSET(InputPriceData!D$15,CalculationsAndCharts!$A117+$A$11,IF($C$7,8,0),1,1) -> 28.73 | F117: =OFFSET(InputPriceData!E$15,CalculationsAndCharts!$A117+$A$11,IF($C$7,8,0),1,1) -> 28.17 | G117: =OFFSET(InputPriceData!F$15,CalculationsAndCharts!$A117+$A$11,IF($C$7,8,0),1,1) -> 28.37 | H117: 28.45155074 | I117: 28.37333333 | J117: TRUE | K117: FALSE | L117: TRUE | M117: 28.68 | N117: FALSE | O117: FALSE | P117: 27.83 | Q117: FALSE | S117: 26.52 | T117: FALSE | W117: FALSE | X117: FALSE | Y117: TRUE | AA117: 0 | AB117: 28.26 | AE117: 28.45155074 | AF117: 28.37333333 | AH117: 29.73 | AO117: 2175500
A118: 86 | B118: =OFFSET(InputPriceData!B$15,CalculationsAndCharts!$A118+$A$11,0,1,1) -> 2016-07-28 | C118: =OFFSET(InputPriceData!G$15,CalculationsAndCharts!$A118+$A$11,IF($C$7,8,0),1,1) -> 2591900 | D118: =OFFSET(InputPriceData!C$15,CalculationsAndCharts!$A118+$A$11,IF($C$7,8,0),1,1) -> 28.05 | E118: =OFFSET(InputPriceData!D$15,CalculationsAndCharts!$A118+$A$11,IF($C$7,8,0),1,1) -> 28.68 | F118: =OFFSET(InputPriceData!E$15,CalculationsAndCharts!$A118+$A$11,IF($C$7,8,0),1,1) -> 27.83 | G118: =OFFSET(InputPriceData!F$15,CalculationsAndCharts!$A118+$A$11,IF($C$7,8,0),1,1) -> 28.52 | H118: 28.35745248 | I118: 28.37333333 | J118: FALSE | K118: TRUE | L118: FALSE | M118: 28.47 | N118: FALSE | O118: FALSE | P118: 27.83 | Q118: FALSE | T118: FALSE | W118: TRUE | X118: TRUE | Y118: FALSE | AA118: 28.05 | AB118: 0 | AE118: 28.35745248 | AF118: 28.37333333 | AG118: 29.68 | AO118: 2591900
A119: 87 | B119: =OFFSET(InputPriceData!B$15,CalculationsAndCharts!$A119+$A$11,0,1,1) -> 2016-07-27 | C119: =OFFSET(InputPriceData!G$15,CalculationsAndCharts!$A119+$A$11,IF($C$7,8,0),1,1) -> 3305600 | D119: =OFFSET(InputPriceData!C$15,CalculationsAndCharts!$A119+$A$11,IF($C$7,8,0),1,1) -> 28.32 | E119: =OFFSET(InputPriceData!D$15,CalculationsAndCharts!$A119+$A$11,IF($C$7,8,0),1,1) -> 28.45 | F119: =OFFSET(InputPriceData!E$15,CalculationsAndCharts!$A119+$A$11,IF($C$7,8,0),1,1) -> 27.99 | G119: =OFFSET(InputPriceData!F$15,CalculationsAndCharts!$A119+$A$11,IF($C$7,8,0),1,1) -> 28.23 | H119: 28.29403913 | I119: 28.27666667 | J119: TRUE | K119: FALSE | L119: TRUE | M119: 28.47 | N119: FALSE | O119: FALSE | P119: 27.99 | Q119: FALSE | S119: 26.37 | T119: FALSE | W119: FALSE | X119: FALSE | Y119: TRUE | AA119: 0 | AB119: 28.32 | AE119: 28.29403913 | AF119: 28.27666667 | AH119: 29.45 | AP119: 3305600
A120: 88 | B120: =OFFSET(InputPriceData!B$15,CalculationsAndCharts!$A120+$A$11,0,1,1) -> 2016-07-26 | C120: =OFFSET(InputPriceData!G$15,CalculationsAndCharts!$A120+$A$11,IF($C$7,8,0),1,1) -> 2786800 | D120: =OFFSET(InputPriceData!C$15,CalculationsAndCharts!$A120+$A$11,IF($C$7,8,0),1,1) -> 28.16 | E120: =OFFSET(InputPriceData!D$15,CalculationsAndCharts!$A120+$A$11,IF($C$7,8,0),1,1) -> 28.47 | F120: =OFFSET(InputPriceData!E$15,CalculationsAndCharts!$A120+$A$11,IF($C$7,8,0),1,1) -> 28 | G120: =OFFSET(InputPriceData!F$15,CalculationsAndCharts!$A120+$A$11,IF($C$7,8,0),1,1) -> 28.37 | H120: 28.31235746 | I120: 28.34333333 | J120: FALSE | K120: TRUE | L120: FALSE | M120: 28.49 | N120: FALSE | O120: FALSE | P120: 28 | Q120: FALSE | T120: FALSE | W120: TRUE | X120: TRUE | Y120: FALSE | AA120: 28.16 | AB120: 0 | AE120: 28.31235746 | AF120: 28.34333333 | AG120: 29.47 | AO120: 2786800
A121: 89 | B121: =OFFSET(InputPriceData!B$15,CalculationsAndCharts!$A121+$A$11,0,1,1) -> 2016-07-25 | C121: =OFFSET(InputPriceData!G$15,CalculationsAndCharts!$A121+$A$11,IF($C$7,8,0),1,1) -> 1950500 | D121: =OFFSET(InputPriceData!C$15,CalculationsAndCharts!$A121+$A$11,IF($C$7,8,0),1,1) -> 28.27 | E121: =OFFSET(InputPriceData!D$15,CalculationsAndCharts!$A121+$A$11,IF($C$7,8,0),1,1) -> 28.47 | F121: =OFFSET(InputPriceData!E$15,CalculationsAndCharts!$A121+$A$11,IF($C$7,8,0),1,1) -> 28.04 | G121: =OFFSET(InputPriceData!F$15,CalculationsAndCharts!$A121+$A$11,IF($C$7,8,0),1,1) -> 28.23 | H121: 28.33351702 | I121: 28.2 | J121: TRUE | K121: FALSE | L121: TRUE | M121: 28.49 | N121: FALSE | O121: FALSE | P121: 27.91 | Q121: FALSE | T121: FALSE | W121: FALSE | X121: FALSE | Y121: FALSE | AA121: 0 | AB121: 0 | AE121: 28.33351702 | AF121: 28.2 | AP121: 1950500
A122: 90 | B122: =OFFSET(InputPriceData!B$15,CalculationsAndCharts!$A122+$A$11,0,1,1) -> 2016-07-22 | C122: =OFFSET(InputPriceData!G$15,CalculationsAndCharts!$A122+$A$11,IF($C$7,8,0),1,1) -> 2092700 | D122: =OFFSET(InputPriceData!C$15,CalculationsAndCharts!$A122+$A$11,IF($C$7,8,0),1,1) -> 28.04 | E122: =OFFSET(InputPriceData!D$15,CalculationsAndCharts!$A122+$A$11,IF($C$7,8,0),1,1) -> 28.49 | F122: =OFFSET(InputPriceData!E$15,CalculationsAndCharts!$A122+$A$11,IF($C$7,8,0),1,1) -> 27.91 | G122: =OFFSET(InputPriceData!F$15,CalculationsAndCharts!$A122+$A$11,IF($C$7,8,0),1,1) -> 28.43 | H122: 28.15997233 | I122: 28.21333333 | J122: FALSE | K122: FALSE | L122: FALSE | M122: 0 | N122: FALSE | O122: FALSE | P122: 27.81 | Q122: FALSE | S122: 26.27 | T122: FALSE | W122: FALSE | X122: FALSE | Y122: TRUE | AA122: 0 | AB122: 28.04 | AE122: 28.15997233 | AF122: 28.21333333 | AH122: 29.49 | AO122: 2092700
A123: 91 | B123: =OFFSET(InputPriceData!B$15,CalculationsAndCharts!$A123+$A$11,0,1,1) -> 2016-07-21 | C123: =OFFSET(InputPriceData!G$15,CalculationsAndCharts!$A123+$A$11,IF($C$7,8,0),1,1) -> 2568900 | D123: =OFFSET(InputPriceData!C$15,CalculationsAndCharts!$A123+$A$11,IF($C$7,8,0),1,1) -> 28.3 | E123: =OFFSET(InputPriceData!D$15,CalculationsAndCharts!$A123+$A$11,IF($C$7,8,0),1,1) -> 28.33 | F123: =OFFSET(InputPriceData!E$15,CalculationsAndCharts!$A123+$A$11,IF($C$7,8,0),1,1) -> 27.81 | G123: =OFFSET(InputPriceData!F$15,CalculationsAndCharts!$A123+$A$11,IF($C$7,8,0),1,1) -> 27.94 | H123: 28.09498875 | I123: 28.09666667 | J123: FALSE | K123: TRUE | L123: FALSE | M123: 28.39 | N123: FALSE | O123: FALSE | P123: 27.81 | Q123: FALSE | S123: 26.27 | T123: FALSE | W123: TRUE | X123: FALSE | Y123: FALSE | AA123: 0 | AB123: 0 | AE123: 28.09498875 | AF123: 28.09666667 | AP123: 2568900
A124: 92 | B124: =OFFSET(InputPriceData!B$15,CalculationsAndCharts!$A124+$A$11,0,1,1) -> 2016-07-20 | C124: =OFFSET(InputPriceData!G$15,CalculationsAndCharts!$A124+$A$11,IF($C$7,8,0),1,1) -> 2275000 | D124: =OFFSET(InputPriceData!C$15,CalculationsAndCharts!$A124+$A$11,IF($C$7,8,0),1,1) -> 28.3 | E124: =OFFSET(InputPriceData!D$15,CalculationsAndCharts!$A124+$A$11,IF($C$7,8,0),1,1) -> 28.39 | F124: =OFFSET(InputPriceData!E$15,CalculationsAndCharts!$A124+$A$11,IF($C$7,8,0),1,1) -> 27.9 | G124: =OFFSET(InputPriceData!F$15,CalculationsAndCharts!$A124+$A$11,IF($C$7,8,0),1,1) -> 28.27 | H124: 28.1820372 | I124: 28.08333333 | J124: FALSE | K124: FALSE | L124: TRUE | M124: 28.08 | N124: TRUE | O124: FALSE | P124: 27.58 | Q124: FALSE | T124: FALSE | W124: TRUE | X124: TRUE | Y124: FALSE | AA124: 28.3 | AB124: 0 | AE124: 28.1820372 | AF124: 28.08333333 | AG124: 29.39 | AP124: 2275000
A125: 93 | B125: =OFFSET(InputPriceData!B$15,CalculationsAndCharts!$A125+$A$11,0,1,1) -> 2016-07-19 | C125: =OFFSET(InputPriceData!G$15,CalculationsAndCharts!$A125+$A$11,IF($C$7,8,0),1,1) -> 1961200 | D125: =OFFSET(InputPriceData!C$15,CalculationsAndCharts!$A125+$A$11,IF($C$7,8,0),1,1) -> 27.61 | E125: =OFFSET(InputPriceData!D$15,CalculationsAndCharts!$A125+$A$11,IF($C$7,8,0),1,1) -> 28.08 | F125: =OFFSET(InputPriceData!E$15,CalculationsAndCharts!$A125+$A$11,IF($C$7,8,0),1,1) -> 27.58 | G125: =OFFSET(InputPriceData!F$15,CalculationsAndCharts!$A125+$A$11,IF($C$7,8,0),1,1) -> 28.08 | H125: 27.98725493 | I125: 27.88333333 | J125: TRUE | K125: FALSE | L125: TRUE | M125: 28.04 | N125: FALSE | O125: FALSE | P125: 27.58 | Q125: FALSE | S125: 25.9 | T125: FALSE | W125: FALSE | X125: FALSE | Y125: TRUE | AA125: 0 | AB125: 27.61 | AE125: 27.98725493 | AF125: 27.88333333 | AH125: 29.08 | AO125: 1961200
A126: 94 | B126: =OFFSET(InputPriceData!B$15,CalculationsAndCharts!$A126+$A$11,0,1,1) -> 2016-07-18 | C126: =OFFSET(InputPriceData!G$15,CalculationsAndCharts!$A126+$A$11,IF($C$7,8,0),1,1) -> 2084600 | D126: =OFFSET(InputPriceData!C$15,CalculationsAndCharts!$A126+$A$11,IF($C$7,8,0),1,1) -> 27.73 | E126: =OFFSET(InputPriceData!D$15,CalculationsAndCharts!$A126+$A$11,IF($C$7,8,0),1,1) -> 28.04 | F126: =OFFSET(InputPriceData!E$15,CalculationsAndCharts!$A126+$A$11,IF($C$7,8,0),1,1) -> 27.65 | G126: =OFFSET(InputPriceData!F$15,CalculationsAndCharts!$A126+$A$11,IF($C$7,8,0),1,1) -> 27.9 | H126: 27.75919485 | I126: 27.8 | J126: FALSE | K126: TRUE | L126: FALSE | M126: 28.57 | N126: FALSE | O126: FALSE | P126: 27.29 | Q126: FALSE | S126: 25.83 | T126: FALSE | W126: TRUE | X126: FALSE | Y126: FALSE | AA126: 0 | AB126: 0 | AE126: 27.75919485 | AF126: 27.8 | AO126: 2084600
A127: 95 | B127: =OFFSET(InputPriceData!B$15,CalculationsAndCharts!$A127+$A$11,0,1,1) -> 2016-07-15 | C127: =OFFSET(InputPriceData!G$15,CalculationsAndCharts!$A127+$A$11,IF($C$7,8,0),1,1) -> 3290800 | D127: =OFFSET(InputPriceData!C$15,CalculationsAndCharts!$A127+$A$11,IF($C$7,8,0),1,1) -> 28.21 | E127: =OFFSET(InputPriceData!D$15,CalculationsAndCharts!$A127+$A$11,IF($C$7,8,0),1,1) -> 28.27 | F127: =OFFSET(InputPriceData!E$15,CalculationsAndCharts!$A127+$A$11,IF($C$7,8,0),1,1) -> 27.29 | G127: =OFFSET(InputPriceData!F$15,CalculationsAndCharts!$A127+$A$11,IF($C$7,8,0),1,1) -> 27.67 | H127: 27.76008525 | I127: 27.56333333 | J127: FALSE | K127: FALSE | L127: TRUE | M127: 28.57 | N127: FALSE | O127: FALSE | P127: 27.29 | Q127: FALSE | S127: 25.83 | T127: FALSE | W127: TRUE | X127: FALSE | Y127: FALSE | AA127: 0 | AB127: 0 | AE127: 27.76008525 | AF127: 27.56333333 | AP127: 3290800
A128: 96 | B128: =OFFSET(InputPriceData!B$15,CalculationsAndCharts!$A128+$A$11,0,1,1) -> 2016-07-14 | C128: =OFFSET(InputPriceData!G$15,CalculationsAndCharts!$A128+$A$11,IF($C$7,8,0),1,1) -> 4240200 | D128: =OFFSET(InputPriceData!C$15,CalculationsAndCharts!$A128+$A$11,IF($C$7,8,0),1,1) -> 28.44 | E128: =OFFSET(InputPriceData!D$15,CalculationsAndCharts!$A128+$A$11,IF($C$7,8,0),1,1) -> 28.57 | F128: =OFFSET(InputPriceData!E$15,CalculationsAndCharts!$A128+$A$11,IF($C$7,8,0),1,1) -> 27.7 | G128: =OFFSET(InputPriceData!F$15,CalculationsAndCharts!$A128+$A$11,IF($C$7,8,0),1,1) -> 27.83 | H128: 27.5716347 | I128: 27.38666667 | J128: FALSE | K128: FALSE | L128: TRUE | M128: 27.3 | N128: TRUE | O128: FALSE | P128: 26.85 | Q128: FALSE | S128: 25.19 | T128: FALSE | W128: TRUE | X128: FALSE | Y128: FALSE | AA128: 0 | AB128: 0 | AE128: 27.5716347 | AF128: 27.38666667 | AP128: 4240200
A129: 97 | B129: =OFFSET(InputPriceData!B$15,CalculationsAndCharts!$A129+$A$11,0,1,1) -> 2016-07-13 | C129: =OFFSET(InputPriceData!G$15,CalculationsAndCharts!$A129+$A$11,IF($C$7,8,0),1,1) -> 2870600 | D129: =OFFSET(InputPriceData!C$15,CalculationsAndCharts!$A129+$A$11,IF($C$7,8,0),1,1) -> 27.05 | E129: =OFFSET(InputPriceData!D$15,CalculationsAndCharts!$A129+$A$11,IF($C$7,8,0),1,1) -> 27.3 | F129: =OFFSET(InputPriceData!E$15,CalculationsAndCharts!$A129+$A$11,IF($C$7,8,0),1,1) -> 26.85 | G129: =OFFSET(InputPriceData!F$15,CalculationsAndCharts!$A129+$A$11,IF($C$7,8,0),1,1) -> 27.19 | H129: 27.16147335 | I129: 26.85333333 | J129: FALSE | K129: FALSE | L129: TRUE | M129: 27.23 | N129: TRUE | O129: FALSE | P129: 26.7 | Q129: FALSE | S129: 25.14 | T129: FALSE | W129: TRUE | X129: FALSE | Y129: FALSE | AA129: 0 | AB129: 0 | AE129: 27.16147335 | AF129: 26.85333333 | AO129: 2870600
A130: 98 | B130: =OFFSET(InputPriceData!B$15,CalculationsAndCharts!$A130+$A$11,0,1,1) -> 2016-07-12 | C130: =OFFSET(InputPriceData!G$15,CalculationsAndCharts!$A130+$A$11,IF($C$7,8,0),1,1) -> 3813500 | D130: =OFFSET(InputPriceData!C$15,CalculationsAndCharts!$A130+$A$11,IF($C$7,8,0),1,1) -> 26.78 | E130: =OFFSET(InputPriceData!D$15,CalculationsAndCharts!$A130+$A$11,IF($C$7,8,0),1,1) -> 27.23 | F130: =OFFSET(InputPriceData!E$15,CalculationsAndCharts!$A130+$A$11,IF($C$7,8,0),1,1) -> 26.7 | G130: =OFFSET(InputPriceData!F$15,CalculationsAndCharts!$A130+$A$11,IF($C$7,8,0),1,1) -> 27.14 | H130: 26.68009598 | I130: 26.38333333 | J130: FALSE | K130: FALSE | L130: TRUE | M130: 26.47 | N130: TRUE | O130: FALSE | P130: 26.03 | Q130: FALSE | S130: 24.23 | T130: FALSE | W130: TRUE | X130: FALSE | Y130: FALSE | AA130: 0 | AB130: 0 | AE130: 26.68009598 | AF130: 26.38333333 | AO130: 3813500
A131: 99 | B131: =OFFSET(InputPriceData!B$15,CalculationsAndCharts!$A131+$A$11,0,1,1) -> 2016-07-11 | C131: =OFFSET(InputPriceData!G$15,CalculationsAndCharts!$A131+$A$11,IF($C$7,8,0),1,1) -> 3896600 | D131: =OFFSET(InputPriceData!C$15,CalculationsAndCharts!$A131+$A$11,IF($C$7,8,0),1,1) -> 26.11 | E131: =OFFSET(InputPriceData!D$15,CalculationsAndCharts!$A131+$A$11,IF($C$7,8,0),1,1) -> 26.47 | F131: =OFFSET(InputPriceData!E$15,CalculationsAndCharts!$A131+$A$11,IF($C$7,8,0),1,1) -> 26.03 | G131: =OFFSET(InputPriceData!F$15,CalculationsAndCharts!$A131+$A$11,IF($C$7,8,0),1,1) -> 26.23 | H131: 25.96429256 | I131: 25.50333333 | J131: FALSE | K131: FALSE | L131: TRUE | M131: 25.9 | N131: TRUE | O131: FALSE | P131: 25.28 | Q131: FALSE | S131: 23.78 | T131: FALSE | W131: TRUE | X131: FALSE | Y131: FALSE | AA131: 0 | AB131: 0 | AE131: 25.96429256 | AF131: 25.50333333 | AO131: 3896600
A132: 100 | B132: =OFFSET(InputPriceData!B$15,CalculationsAndCharts!$A132+$A$11,0,1,1) -> 2016-07-08 | C132: =OFFSET(InputPriceData!G$15,CalculationsAndCharts!$A132+$A$11,IF($C$7,8,0),1,1) -> 5618000 | D132: =OFFSET(InputPriceData!C$15,CalculationsAndCharts!$A132+$A$11,IF($C$7,8,0),1,1) -> 25.31 | E132: =OFFSET(InputPriceData!D$15,CalculationsAndCharts!$A132+$A$11,IF($C$7,8,0),1,1) -> 25.9 | F132: =OFFSET(InputPriceData!E$15,CalculationsAndCharts!$A132+$A$11,IF($C$7,8,0),1,1) -> 25.28 | G132: =OFFSET(InputPriceData!F$15,CalculationsAndCharts!$A132+$A$11,IF($C$7,8,0),1,1) -> 25.78 | H132: 25.26790432 | I132: 24.9 | J132: FALSE | K132: FALSE | L132: TRUE | M132: 24.97 | N132: TRUE | O132: FALSE | P132: 24.16 | Q132: FALSE | T132: FALSE | W132: TRUE | X132: TRUE | Y132: FALSE | AA132: 25.31 | AB132: 0 | AE132: 25.26790432 | AF132: 24.9 | AG132: 26.9 | AO132: 5618000
A133: 101 | B133: =OFFSET(InputPriceData!B$15,CalculationsAndCharts!$A133+$A$11,0,1,1) -> 2016-07-07 | C133: =OFFSET(InputPriceData!G$15,CalculationsAndCharts!$A133+$A$11,IF($C$7,8,0),1,1) -> 3746500 | D133: =OFFSET(InputPriceData!C$15,CalculationsAndCharts!$A133+$A$11,IF($C$7,8,0),1,1) -> 24.59 | E133: =OFFSET(InputPriceData!D$15,CalculationsAndCharts!$A133+$A$11,IF($C$7,8,0),1,1) -> 24.97 | F133: =OFFSET(InputPriceData!E$15,CalculationsAndCharts!$A133+$A$11,IF($C$7,8,0),1,1) -> 24.16 | G133: =OFFSET(InputPriceData!F$15,CalculationsAndCharts!$A133+$A$11,IF($C$7,8,0),1,1) -> 24.5 | H133: 24.45636099 | I133: 24.4 | J133: TRUE | K133: FALSE | L133: TRUE | M133: 24.48 | N133: FALSE | O133: FALSE | P133: 23.55 | Q133: FALSE | T133: FALSE | W133: =IF($A133>$A$8-1,FALSE,IF(OR(O134,J134),TRUE,IF(AND(W134,Y133),FALSE,W134))) -> FALSE | X133: FALSE | Y133: FALSE | AA133: 0 | AB133: 0 | AE133: 24.45636099 | AF133: 24.4 | AP133: 3746500
A134: 102 | B134: =OFFSET(InputPriceData!B$15,CalculationsAndCharts!$A134+$A$11,0,1,1) -> 2016-07-06 | C134: =OFFSET(InputPriceData!G$15,CalculationsAndCharts!$A134+$A$11,IF($C$7,8,0),1,1) -> 4496400 | D134: =OFFSET(InputPriceData!C$15,CalculationsAndCharts!$A134+$A$11,IF($C$7,8,0),1,1) -> 23.85 | E134: =OFFSET(InputPriceData!D$15,CalculationsAndCharts!$A134+$A$11,IF($C$7,8,0),1,1) -> 24.48 | F134: =OFFSET(InputPriceData!E$15,CalculationsAndCharts!$A134+$A$11,IF($C$7,8,0),1,1) -> 23.55 | G134: =OFFSET(InputPriceData!F$15,CalculationsAndCharts!$A134+$A$11,IF($C$7,8,0),1,1) -> 24.42 | H134: 24.35074579 | I134: 24.62666667 | J134: FALSE | K134: FALSE | L134: FALSE | M134: 0 | N134: FALSE | O134: FALSE | P134: 23.55 | Q134: FALSE | S134: 23.46 | T134: FALSE | W134: FALSE | X134: FALSE | Y134: TRUE | AA134: 0 | AB134: 23.85 | AE134: 24.35074579 | AF134: 24.62666667 | AH134: 25.48 | AO134: 4496400
A135: 103 | B135: =OFFSET(InputPriceData!B$15,CalculationsAndCharts!$A135+$A$11,0,1,1) -> 2016-07-05 | C135: =OFFSET(InputPriceData!G$15,CalculationsAndCharts!$A135+$A$11,IF($C$7,8,0),1,1) -> 4401600 | D135: =OFFSET(InputPriceData!C$15,CalculationsAndCharts!$A135+$A$11,IF($C$7,8,0),1,1) -> 24.57 | E135: =OFFSET(InputPriceData!D$15,CalculationsAndCharts!$A135+$A$11,IF($C$7,8,0),1,1) -> 24.66 | F135: =OFFSET(InputPriceData!E$15,CalculationsAndCharts!$A135+$A$11,IF($C$7,8,0),1,1) -> 23.93 | G135: =OFFSET(InputPriceData!F$15,CalculationsAndCharts!$A135+$A$11,IF($C$7,8,0),1,1) -> 24.28 | H135: 24.69260012 | I135: 24.97333333 | J135: FALSE | K135: TRUE | L135: FALSE | M135: 25.66 | N135: FALSE | O135: FALSE | P135: 23.93 | Q135: FALSE | S135: 23.46 | T135: FALSE | W135: TRUE | X135: FALSE | Y135: FALSE | AA135: 0 | AB135: 0 | AE135: 24.69260012 | AF135: 24.97333333 | AP135: 4401600
A136: 104 | B136: =OFFSET(InputPriceData!B$15,CalculationsAndCharts!$A136+$A$11,0,1,1) -> 2016-07-01 | C136: =OFFSET(InputPriceData!G$15,CalculationsAndCharts!$A136+$A$11,IF($C$7,8,0),1,1) -> 3726100 | D136: =OFFSET(InputPriceData!C$15,CalculationsAndCharts!$A136+$A$11,IF($C$7,8,0),1,1) -> 25.22 | E136: =OFFSET(InputPriceData!D$15,CalculationsAndCharts!$A136+$A$11,IF($C$7,8,0),1,1) -> 25.66 | F136: =OFFSET(InputPriceData!E$15,CalculationsAndCharts!$A136+$A$11,IF($C$7,8,0),1,1) -> 25.06 | G136: =OFFSET(InputPriceData!F$15,CalculationsAndCharts!$A136+$A$11,IF($C$7,8,0),1,1) -> 25.18 | H136: 25.35996855 | I136: 25.05333333 | J136: FALSE | K136: FALSE | L136: TRUE | M136: 25.48 | N136: TRUE | O136: FALSE | P136: 24.39 | Q136: FALSE | S136: 23.46 | T136: FALSE | W136: TRUE | X136: FALSE | Y136: FALSE | AA136: 0 | AB136: 0 | AE136: 25.35996855 | AF136: 25.05333333 | AP136: 3726100
A137: 105 | B137: =OFFSET(InputPriceData!B$15,CalculationsAndCharts!$A137+$A$11,0,1,1) -> 2016-06-30 | C137: =OFFSET(InputPriceData!G$15,CalculationsAndCharts!$A137+$A$11,IF($C$7,8,0),1,1) -> 6703700 | D137: =OFFSET(InputPriceData!C$15,CalculationsAndCharts!$A137+$A$11,IF($C$7,8,0),1,1) -> 24.74 | E137: =OFFSET(InputPriceData!D$15,CalculationsAndCharts!$A137+$A$11,IF($C$7,8,0),1,1) -> 25.48 | F137: =OFFSET(InputPriceData!E$15,CalculationsAndCharts!$A137+$A$11,IF($C$7,8,0),1,1) -> 24.39 | G137: =OFFSET(InputPriceData!F$15,CalculationsAndCharts!$A137+$A$11,IF($C$7,8,0),1,1) -> 25.46 | H137: 24.93157616 | I137: 24.33666667 | J137: FALSE | K137: FALSE | L137: TRUE | M137: 24.55 | N137: TRUE | O137: FALSE | P137: 23.46 | Q137: FALSE | T137: FALSE | W137: TRUE | X137: TRUE | Y137: FALSE | AA137: 24.74 | AB137: 0 | AE137: 24.93157616 | AF137: 24.33666667 | AG137: 26.48 | AO137: 6703700
A138: 106 | B138: =OFFSET(InputPriceData!B$15,CalculationsAndCharts!$A138+$A$11,0,1,1) -> 2016-06-29 | C138: =OFFSET(InputPriceData!G$15,CalculationsAndCharts!$A138+$A$11,IF($C$7,8,0),1,1) -> 8606900 | D138: =OFFSET(InputPriceData!C$15,CalculationsAndCharts!$A138+$A$11,IF($C$7,8,0),1,1) -> 23.46 | E138: =OFFSET(InputPriceData!D$15,CalculationsAndCharts!$A138+$A$11,IF($C$7,8,0),1,1) -> 24.55 | F138: =OFFSET(InputPriceData!E$15,CalculationsAndCharts!$A138+$A$11,IF($C$7,8,0),1,1) -> 23.46 | G138: =OFFSET(InputPriceData!F$15,CalculationsAndCharts!$A138+$A$11,IF($C$7,8,0),1,1) -> 24.52 | H138: 23.81693951 | I138: 23.01333333 | J138: TRUE | K138: FALSE | L138: TRUE | M138: 23.06 | N138: FALSE | O138: FALSE | P138: 22.11 | Q138: FALSE | T138: FALSE | W138: FALSE | X138: FALSE | Y138: FALSE | AA138: 0 | AB138: 0 | AE138: 23.81693951 | AF138: 23.01333333 | AO138: 8606900
A139: 107 | B139: =OFFSET(InputPriceData!B$15,CalculationsAndCharts!$A139+$A$11,0,1,1) -> 2016-06-28 | C139: =OFFSET(InputPriceData!G$15,CalculationsAndCharts!$A139+$A$11,IF($C$7,8,0),1,1) -> 7689500 | D139: =OFFSET(InputPriceData!C$15,CalculationsAndCharts!$A139+$A$11,IF($C$7,8,0),1,1) -> 22.6 | E139: =OFFSET(InputPriceData!D$15,CalculationsAndCharts!$A139+$A$11,IF($C$7,8,0),1,1) -> 23.06 | F139: =OFFSET(InputPriceData!E$15,CalculationsAndCharts!$A139+$A$11,IF($C$7,8,0),1,1) -> 22.11 | G139: =OFFSET(InputPriceData!F$15,CalculationsAndCharts!$A139+$A$11,IF($C$7,8,0),1,1) -> 23.03 | H139: 22.23889043 | I139: 22.65333333 | J139: FALSE | K139: FALSE | L139: FALSE | M139: 0 | N139: FALSE | O139: FALSE | P139: 21.14 | Q139: FALSE | T139: FALSE | W139: FALSE | X139: FALSE | Y139: FALSE | AA139: 0 | AB139: 0 | AE139: 22.23889043 | AF139: 22.65333333 | AO139: 7689500
A140: 108 | B140: =OFFSET(InputPriceData!B$15,CalculationsAndCharts!$A140+$A$11,0,1,1) -> 2016-06-27 | C140: =OFFSET(InputPriceData!G$15,CalculationsAndCharts!$A140+$A$11,IF($C$7,8,0),1,1) -> 8123000 | D140: =OFFSET(InputPriceData!C$15,CalculationsAndCharts!$A140+$A$11,IF($C$7,8,0),1,1) -> 22.7 | E140: =OFFSET(InputPriceData!D$15,CalculationsAndCharts!$A140+$A$11,IF($C$7,8,0),1,1) -> 22.74 | F140: =OFFSET(InputPriceData!E$15,CalculationsAndCharts!$A140+$A$11,IF($C$7,8,0),1,1) -> 21.14 | G140: =OFFSET(InputPriceData!F$15,CalculationsAndCharts!$A140+$A$11,IF($C$7,8,0),1,1) -> 21.49 | H140: 22.59229188 | I140: 24.09 | J140: FALSE | K140: FALSE | L140: FALSE | M140: 0 | N140: FALSE | O140: FALSE | P140: 21.14 | Q140: FALSE | S140: 25.34 | T140: FALSE | W140: FALSE | X140: FALSE | Y140: TRUE | AA140: 0 | AB140: 22.7 | AE140: 22.59229188 | AF140: 24.09 | AH140: 23.74 | AP140: 8123000
A141: 109 | B141: =OFFSET(InputPriceData!B$15,CalculationsAndCharts!$A141+$A$11,0,1,1) -> 2016-06-24 | C141: =OFFSET(InputPriceData!G$15,CalculationsAndCharts!$A141+$A$11,IF($C$7,8,0),1,1) -> 10562500 | D141: =OFFSET(InputPriceData!C$15,CalculationsAndCharts!$A141+$A$11,IF($C$7,8,0),1,1) -> 23.35 | E141: =OFFSET(InputPriceData!D$15,CalculationsAndCharts!$A141+$A$11,IF($C$7,8,0),1,1) -> 25.02 | F141: =OFFSET(InputPriceData!E$15,CalculationsAndCharts!$A141+$A$11,IF($C$7,8,0),1,1) -> 23.34 | G141: =OFFSET(InputPriceData!F$15,CalculationsAndCharts!$A141+$A$11,IF($C$7,8,0),1,1) -> 23.44 | H141: 24.60158188 | I141: 25.53 | J141: FALSE | K141: TRUE | L141: FALSE | M141: 27.35 | N141: FALSE | O141: FALSE | P141: 23.34 | Q141: FALSE | S141: 25.34 | T141: FALSE | W141: TRUE | X141: FALSE | Y141: FALSE | AA141: 0 | AB141: 0 | AE141: 24.60158188 | AF141: 25.53 | AO141: 10562500
A142: 110 | B142: =OFFSET(InputPriceData!B$15,CalculationsAndCharts!$A142+$A$11,0,1,1) -> 2016-06-23 | C142: =OFFSET(InputPriceData!G$15,CalculationsAndCharts!$A142+$A$11,IF($C$7,8,0),1,1) -> 4480400 | D142: =OFFSET(InputPriceData!C$15,CalculationsAndCharts!$A142+$A$11,IF($C$7,8,0),1,1) -> 26.6 | E142: =OFFSET(InputPriceData!D$15,CalculationsAndCharts!$A142+$A$11,IF($C$7,8,0),1,1) -> 27.35 | F142: =OFFSET(InputPriceData!E$15,CalculationsAndCharts!$A142+$A$11,IF($C$7,8,0),1,1) -> 26.59 | G142: =OFFSET(InputPriceData!F$15,CalculationsAndCharts!$A142+$A$11,IF($C$7,8,0),1,1) -> 27.34 | H142: 26.72556416 | I142: 26.36333333 | J142: FALSE | K142: FALSE | L142: TRUE | M142: 26.69 | N142: TRUE | O142: FALSE | P142: 25.78 | Q142: FALSE | S142: 23.94 | T142: FALSE | W142: TRUE | X142: FALSE | Y142: FALSE | AA142: 0 | AB142: 0 | AE142: 26.72556416 | AF142: 26.36333333 | AO142: 4480400
A143: 111 | B143: =OFFSET(InputPriceData!B$15,CalculationsAndCharts!$A143+$A$11,0,1,1) -> 2016-06-22 | C143: =OFFSET(InputPriceData!G$15,CalculationsAndCharts!$A143+$A$11,IF($C$7,8,0),1,1) -> 3006800 | D143: =OFFSET(InputPriceData!C$15,CalculationsAndCharts!$A143+$A$11,IF($C$7,8,0),1,1) -> 25.92 | E143: =OFFSET(InputPriceData!D$15,CalculationsAndCharts!$A143+$A$11,IF($C$7,8,0),1,1) -> 26.43 | F143: =OFFSET(InputPriceData!E$15,CalculationsAndCharts!$A143+$A$11,IF($C$7,8,0),1,1) -> 25.78 | G143: =OFFSET(InputPriceData!F$15,CalculationsAndCharts!$A143+$A$11,IF($C$7,8,0),1,1) -> 25.81 | H143: 25.87070047 | I143: 25.79333333 | J143: FALSE | K143: FALSE | L143: TRUE | M143: 26.69 | N143: FALSE | O143: FALSE | P143: 25.61 | Q143: FALSE | S143: 23.94 | T143: FALSE | W143: TRUE | X143: FALSE | Y143: FALSE | AA143: 0 | AB143: 0 | AE143: 25.87070047 | AF143: 25.79333333 | AP143: 3006800
A144: 112 | B144: =OFFSET(InputPriceData!B$15,CalculationsAndCharts!$A144+$A$11,0,1,1) -> 2016-06-21 | C144: =OFFSET(InputPriceData!G$15,CalculationsAndCharts!$A144+$A$11,IF($C$7,8,0),1,1) -> 2633700 | D144: =OFFSET(InputPriceData!C$15,CalculationsAndCharts!$A144+$A$11,IF($C$7,8,0),1,1) -> 25.82 | E144: =OFFSET(InputPriceData!D$15,CalculationsAndCharts!$A144+$A$11,IF($C$7,8,0),1,1) -> 26.12 | F144: =OFFSET(InputPriceData!E$15,CalculationsAndCharts!$A144+$A$11,IF($C$7,8,0),1,1) -> 25.61 | G144: =OFFSET(InputPriceData!F$15,CalculationsAndCharts!$A144+$A$11,IF($C$7,8,0),1,1) -> 25.94 | H144: 25.74945266 | I144: 25.57333333 | J144: FALSE | K144: FALSE | L144: TRUE | M144: 26.69 | N144: FALSE | O144: FALSE | P144: 25.61 | Q144: FALSE | S144: 23.63 | T144: FALSE | W144: TRUE | X144: FALSE | Y144: FALSE | AA144: 0 | AB144: 0 | AE144: 25.74945266 | AF144: 25.57333333 | AO144: 2633700
A145: 113 | B145: =OFFSET(InputPriceData!B$15,CalculationsAndCharts!$A145+$A$11,0,1,1) -> 2016-06-20 | C145: =OFFSET(InputPriceData!G$15,CalculationsAndCharts!$A145+$A$11,IF($C$7,8,0),1,1) -> 4201200 | D145: =OFFSET(InputPriceData!C$15,CalculationsAndCharts!$A145+$A$11,IF($C$7,8,0),1,1) -> 26.38 | E145: =OFFSET(InputPriceData!D$15,CalculationsAndCharts!$A145+$A$11,IF($C$7,8,0),1,1) -> 26.69 | F145: =OFFSET(InputPriceData!E$15,CalculationsAndCharts!$A145+$A$11,IF($C$7,8,0),1,1) -> 25.61 | G145: =OFFSET(InputPriceData!F$15,CalculationsAndCharts!$A145+$A$11,IF($C$7,8,0),1,1) -> 25.63 | H145: 25.41482324 | I145: 25.37 | J145: FALSE | K145: FALSE | L145: TRUE | M145: 25.9 | N145: TRUE | O145: FALSE | P145: 24.87 | Q145: FALSE | S145: 23.15 | T145: FALSE | W145: TRUE | X145: FALSE | Y145: FALSE | AA145: 0 | AB145: 0 | AE145: 25.41482324 | AF145: 25.37 | AP145: 4201200
A146: 114 | B146: =OFFSET(InputPriceData!B$15,CalculationsAndCharts!$A146+$A$11,0,1,1) -> 2016-06-17 | C146: =OFFSET(InputPriceData!G$15,CalculationsAndCharts!$A146+$A$11,IF($C$7,8,0),1,1) -> 3413600 | D146: =OFFSET(InputPriceData!C$15,CalculationsAndCharts!$A146+$A$11,IF($C$7,8,0),1,1) -> 25.47 | E146: =OFFSET(InputPriceData!D$15,CalculationsAndCharts!$A146+$A$11,IF($C$7,8,0),1,1) -> 25.51 | F146: =OFFSET(InputPriceData!E$15,CalculationsAndCharts!$A146+$A$11,IF($C$7,8,0),1,1) -> 24.87 | G146: =OFFSET(InputPriceData!F$15,CalculationsAndCharts!$A146+$A$11,IF($C$7,8,0),1,1) -> 25.15 | H146: 25.25592371 | I146: 25.21 | J146: FALSE | K146: FALSE | L146: TRUE | M146: 25.9 | N146: FALSE | O146: FALSE | P146: 24.17 | Q146: FALSE | T146: FALSE | W146: TRUE | X146: TRUE | Y146: FALSE | AA146: 25.47 | AB146: 0 | AE146: 25.25592371 | AF146: 25.21 | AG146: 26.51 | AP146: 3413600
A147: 115 | B147: =OFFSET(InputPriceData!B$15,CalculationsAndCharts!$A147+$A$11,0,1,1) -> 2016-06-16 | C147: =OFFSET(InputPriceData!G$15,CalculationsAndCharts!$A147+$A$11,IF($C$7,8,0),1,1) -> 4881200 | D147: =OFFSET(InputPriceData!C$15,CalculationsAndCharts!$A147+$A$11,IF($C$7,8,0),1,1) -> 24.71 | E147: =OFFSET(InputPriceData!D$15,CalculationsAndCharts!$A147+$A$11,IF($C$7,8,0),1,1) -> 25.37 | F147: =OFFSET(InputPriceData!E$15,CalculationsAndCharts!$A147+$A$11,IF($C$7,8,0),1,1) -> 24.17 | G147: =OFFSET(InputPriceData!F$15,CalculationsAndCharts!$A147+$A$11,IF($C$7,8,0),1,1) -> 25.33 | H147: 25.24344493 | I147: 25.21 | J147: TRUE | K147: FALSE | L147: TRUE | M147: 25.9 | N147: FALSE | O147: FALSE | P147: 24.17 | Q147: FALSE | T147: FALSE | W147: FALSE | X147: FALSE | Y147: FALSE | AA147: 0 | AB147: 0 | AE147: 25.24344493 | AF147: 25.21 | AO147: 4881200
A148: 116 | B148: =OFFSET(InputPriceData!B$15,CalculationsAndCharts!$A148+$A$11,0,1,1) -> 2016-06-15 | C148: =OFFSET(InputPriceData!G$15,CalculationsAndCharts!$A148+$A$11,IF($C$7,8,0),1,1) -> 4521300 | D148: =OFFSET(InputPriceData!C$15,CalculationsAndCharts!$A148+$A$11,IF($C$7,8,0),1,1) -> 25.35 | E148: =OFFSET(InputPriceData!D$15,CalculationsAndCharts!$A148+$A$11,IF($C$7,8,0),1,1) -> 25.9 | F148: =OFFSET(InputPriceData!E$15,CalculationsAndCharts!$A148+$A$11,IF($C$7,8,0),1,1) -> 25.07 | G148: =OFFSET(InputPriceData!F$15,CalculationsAndCharts!$A148+$A$11,IF($C$7,8,0),1,1) -> 25.15 | H148: 25.15 | I148: 25.43333333 | J148: FALSE | K148: FALSE | L148: FALSE | M148: 0 | N148: FALSE | O148: FALSE | P148: 24.7 | Q148: FALSE | T148: FALSE | W148: FALSE | X148: FALSE | Y148: FALSE | AA148: 0 | AB148: 0 | AE148: 25.15 | AF148: 25.43333333 | AP148: 4521300
A149: 117 | B149: =OFFSET(InputPriceData!B$15,CalculationsAndCharts!$A149+$A$11,0,1,1) -> 2016-06-14 | C149: =OFFSET(InputPriceData!G$15,CalculationsAndCharts!$A149+$A$11,IF($C$7,8,0),1,1) -> 5796200 | D149: =OFFSET(InputPriceData!C$15,CalculationsAndCharts!$A149+$A$11,IF($C$7,8,0),1,1) -> 25.85 | E149: =OFFSET(InputPriceData!D$15,CalculationsAndCharts!$A149+$A$11,IF($C$7,8,0),1,1) -> 26.13 | F149: =OFFSET(InputPriceData!E$15,CalculationsAndCharts!$A149+$A$11,IF($C$7,8,0),1,1) -> 24.7 | G149: =OFFSET(InputPriceData!F$15,CalculationsAndCharts!$A149+$A$11,IF($C$7,8,0),1,1) -> 25.15 | H149: 25.51215269 | I149: 25.95666667 | J149: FALSE | K149: FALSE | L149: FALSE | M149: 0 | N149: FALSE | O149: FALSE | P149: 24.7 | Q149: FALSE | T149: FALSE | W149: FALSE | X149: FALSE | Y149: FALSE | AA149: 0 | AB149: 0 | AE149: 25.51215269 | AF149: 25.95666667 | AP149: 5796200
A150: 118 | B150: =OFFSET(InputPriceData!B$15,CalculationsAndCharts!$A150+$A$11,0,1,1) -> 2016-06-13 | C150: =OFFSET(InputPriceData!G$15,CalculationsAndCharts!$A150+$A$11,IF($C$7,8,0),1,1) -> 4302800 | D150: =OFFSET(InputPriceData!C$15,CalculationsAndCharts!$A150+$A$11,IF($C$7,8,0),1,1) -> 26.38 | E150: =OFFSET(InputPriceData!D$15,CalculationsAndCharts!$A150+$A$11,IF($C$7,8,0),1,1) -> 27.02 | F150: =OFFSET(InputPriceData!E$15,CalculationsAndCharts!$A150+$A$11,IF($C$7,8,0),1,1) -> 26 | G150: =OFFSET(InputPriceData!F$15,CalculationsAndCharts!$A150+$A$11,IF($C$7,8,0),1,1) -> 26 | H150: 26.37197088 | I150: 26.81333333 | J150: FALSE | K150: FALSE | L150: FALSE | M150: 0 | N150: FALSE | O150: FALSE | P150: 26 | Q150: FALSE | T150: FALSE | W150: FALSE | X150: FALSE | Y150: FALSE | AA150: 0 | AB150: 0 | AE150: 26.37197088 | AF150: 26.81333333 | AP150: 4302800
A151: 119 | B151: =OFFSET(InputPriceData!B$15,CalculationsAndCharts!$A151+$A$11,0,1,1) -> 2016-06-10 | C151: =OFFSET(InputPriceData!G$15,CalculationsAndCharts!$A151+$A$11,IF($C$7,8,0),1,1) -> 4598800 | D151: =OFFSET(InputPriceData!C$15,CalculationsAndCharts!$A151+$A$11,IF($C$7,8,0),1,1) -> 26.92 | E151: =OFFSET(InputPriceData!D$15,CalculationsAndCharts!$A151+$A$11,IF($C$7,8,0),1,1) -> 27.04 | F151: =OFFSET(InputPriceData!E$15,CalculationsAndCharts!$A151+$A$11,IF($C$7,8,0),1,1) -> 26.45 | G151: =OFFSET(InputPriceData!F$15,CalculationsAndCharts!$A151+$A$11,IF($C$7,8,0),1,1) -> 26.72 | H151: 27.15043274 | I151: 27.57666667 | J151: FALSE | K151: FALSE | L151: FALSE | M151: 0 | N151: FALSE | O151: FALSE | P151: 26.45 | Q151: FALSE | T151: FALSE | W151: FALSE | X151: FALSE | Y151: FALSE | AA151: 0 | AB151: 0 | AE151: 27.15043274 | AF151: 27.57666667 | AP151: 4598800
A152: 120 | B152: =OFFSET(InputPriceData!B$15,CalculationsAndCharts!$A152+$A$11,0,1,1) -> 2016-06-09 | C152: =OFFSET(InputPriceData!G$15,CalculationsAndCharts!$A152+$A$11,IF($C$7,8,0),1,1) -> 3475400 | D152: =OFFSET(InputPriceData!C$15,CalculationsAndCharts!$A152+$A$11,IF($C$7,8,0),1,1) -> 27.78 | E152: =OFFSET(InputPriceData!D$15,CalculationsAndCharts!$A152+$A$11,IF($C$7,8,0),1,1) -> 27.86 | F152: =OFFSET(InputPriceData!E$15,CalculationsAndCharts!$A152+$A$11,IF($C$7,8,0),1,1) -> 27.37 | G152: =OFFSET(InputPriceData!F$15,CalculationsAndCharts!$A152+$A$11,IF($C$7,8,0),1,1) -> 27.72 | H152: 27.96680719 | I152: 28.02333333 | J152: FALSE | K152: FALSE | L152: FALSE | M152: 0 | N152: FALSE | O152: FALSE | P152: 27.37 | Q152: FALSE | S152: 26.29 | T152: FALSE | W152: FALSE | X152: FALSE | Y152: TRUE | AA152: 0 | AB152: 27.78 | AE152: 27.96680719 | AF152: 28.02333333 | AH152: 28.86 | AP152: 3475400
A153: 121 | B153: =OFFSET(InputPriceData!B$15,CalculationsAndCharts!$A153+$A$11,0,1,1) -> 2016-06-08 | C153: =OFFSET(InputPriceData!G$15,CalculationsAndCharts!$A153+$A$11,IF($C$7,8,0),1,1) -> 2654000 | D153: =OFFSET(InputPriceData!C$15,CalculationsAndCharts!$A153+$A$11,IF($C$7,8,0),1,1) -> 28.16 | E153: =OFFSET(InputPriceData!D$15,CalculationsAndCharts!$A153+$A$11,IF($C$7,8,0),1,1) -> 28.32 | F153: =OFFSET(InputPriceData!E$15,CalculationsAndCharts!$A153+$A$11,IF($C$7,8,0),1,1) -> 27.99 | G153: =OFFSET(InputPriceData!F$15,CalculationsAndCharts!$A153+$A$11,IF($C$7,8,0),1,1) -> 28.29 | H153: 28.18758282 | I153: 28.19 | J153: FALSE | K153: TRUE | L153: FALSE | M153: 28.56 | N153: FALSE | O153: FALSE | P153: 27.99 | Q153: FALSE | T153: FALSE | W153: TRUE | X153: TRUE | Y153: FALSE | AA153: 28.16 | AB153: 0 | AE153: 28.18758282 | AF153: 28.19 | AG153: 29.32 | AO153: 2654000
A154: 122 | B154: =OFFSET(InputPriceData!B$15,CalculationsAndCharts!$A154+$A$11,0,1,1) -> 2016-06-07 | C154: =OFFSET(InputPriceData!G$15,CalculationsAndCharts!$A154+$A$11,IF($C$7,8,0),1,1) -> 2130500 | D154: =OFFSET(InputPriceData!C$15,CalculationsAndCharts!$A154+$A$11,IF($C$7,8,0),1,1) -> 28.33 | E154: =OFFSET(InputPriceData!D$15,CalculationsAndCharts!$A154+$A$11,IF($C$7,8,0),1,1) -> 28.5 | F154: =OFFSET(InputPriceData!E$15,CalculationsAndCharts!$A154+$A$11,IF($C$7,8,0),1,1) -> 28.02 | G154: =OFFSET(InputPriceData!F$15,CalculationsAndCharts!$A154+$A$11,IF($C$7,8,0),1,1) -> 28.06 | H154: 28.15238654 | I154: 28.03666667 | J154: TRUE | K154: FALSE | L154: TRUE | M154: 28.56 | N154: FALSE | O154: FALSE | P154: 27.87 | Q154: FALSE | T154: FALSE | W154: FALSE | X154: FALSE | Y154: FALSE | AA154: 0 | AB154: 0 | AE154: 28.15238654 | AF154: 28.03666667 | AP154: 2130500
A155: 123 | B155: =OFFSET(InputPriceData!B$15,CalculationsAndCharts!$A155+$A$11,0,1,1) -> 2016-06-06 | C155: =OFFSET(InputPriceData!G$15,CalculationsAndCharts!$A155+$A$11,IF($C$7,8,0),1,1) -> 2911100 | D155: =OFFSET(InputPriceData!C$15,CalculationsAndCharts!$A155+$A$11,IF($C$7,8,0),1,1) -> 27.92 | E155: =OFFSET(InputPriceData!D$15,CalculationsAndCharts!$A155+$A$11,IF($C$7,8,0),1,1) -> 28.56 | F155: =OFFSET(InputPriceData!E$15,CalculationsAndCharts!$A155+$A$11,IF($C$7,8,0),1,1) -> 27.87 | G155: =OFFSET(InputPriceData!F$15,CalculationsAndCharts!$A155+$A$11,IF($C$7,8,0),1,1) -> 28.22 | H155: 27.97144582 | I155: 28.28333333 | J155: FALSE | K155: FALSE | L155: FALSE | M155: 0 | N155: FALSE | O155: FALSE | P155: 26.94 | Q155: FALSE | S155: 25.83 | T155: FALSE | W155: FALSE | X155: FALSE | Y155: TRUE | AA155: 0 | AB155: 27.92 | AE155: 27.97144582 | AF155: 28.28333333 | AH155: 29.56 | AO155: 2911100
A156: 124 | B156: =OFFSET(InputPriceData!B$15,CalculationsAndCharts!$A156+$A$11,0,1,1) -> 2016-06-03 | C156: =OFFSET(InputPriceData!G$15,CalculationsAndCharts!$A156+$A$11,IF($C$7,8,0),1,1) -> 5115500 | D156: =OFFSET(InputPriceData!C$15,CalculationsAndCharts!$A156+$A$11,IF($C$7,8,0),1,1) -> 27.68 | E156: =OFFSET(InputPriceData!D$15,CalculationsAndCharts!$A156+$A$11,IF($C$7,8,0),1,1) -> 27.99 | F156: =OFFSET(InputPriceData!E$15,CalculationsAndCharts!$A156+$A$11,IF($C$7,8,0),1,1) -> 26.94 | G156: =OFFSET(InputPriceData!F$15,CalculationsAndCharts!$A156+$A$11,IF($C$7,8,0),1,1) -> 27.83 | H156: 28.15275553 | I156: 28.40666667 | J156: FALSE | K156: TRUE | L156: FALSE | M156: 28.82 | N156: FALSE | O156: FALSE | P156: 26.94 | Q156: FALSE | T156: FALSE | W156: TRUE | X156: TRUE | Y156: FALSE | AA156: 27.68 | AB156: 0 | AE156: 28.15275553 | AF156: 28.40666667 | AG156: 28.99 | AO156: 5115500
A157: 125 | B157: =OFFSET(InputPriceData!B$15,CalculationsAndCharts!$A157+$A$11,0,1,1) -> 2016-06-02 | C157: =OFFSET(InputPriceData!G$15,CalculationsAndCharts!$A157+$A$11,IF($C$7,8,0),1,1) -> 2550900 | D157: =OFFSET(InputPriceData!C$15,CalculationsAndCharts!$A157+$A$11,IF($C$7,8,0),1,1) -> 28.32 | E157: =OFFSET(InputPriceData!D$15,CalculationsAndCharts!$A157+$A$11,IF($C$7,8,0),1,1) -> 28.82 | F157: =OFFSET(InputPriceData!E$15,CalculationsAndCharts!$A157+$A$11,IF($C$7,8,0),1,1) -> 28.14 | G157: =OFFSET(InputPriceData!F$15,CalculationsAndCharts!$A157+$A$11,IF($C$7,8,0),1,1) -> 28.8 | H157: 28.68200484 | I157: 28.59 | J157: TRUE | K157: FALSE | L157: TRUE | M157: 28.66 | N157: FALSE | O157: FALSE | P157: 27.55 | Q157: FALSE | S157: 26.59 | T157: FALSE | W157: FALSE | X157: FALSE | Y157: TRUE | AA157: 0 | AB157: 28.32 | AE157: 28.68200484 | AF157: 28.59 | AH157: 29.82 | AO157: 2550900
A158: 126 | B158: =OFFSET(InputPriceData!B$15,CalculationsAndCharts!$A158+$A$11,0,1,1) -> 2016-06-01 | C158: =OFFSET(InputPriceData!G$15,CalculationsAndCharts!$A158+$A$11,IF($C$7,8,0),1,1) -> 3271500 | D158: =OFFSET(InputPriceData!C$15,CalculationsAndCharts!$A158+$A$11,IF($C$7,8,0),1,1) -> 27.88 | E158: =OFFSET(InputPriceData!D$15,CalculationsAndCharts!$A158+$A$11,IF($C$7,8,0),1,1) -> 28.66 | F158: =OFFSET(InputPriceData!E$15,CalculationsAndCharts!$A158+$A$11,IF($C$7,8,0),1,1) -> 27.55 | G158: =OFFSET(InputPriceData!F$15,CalculationsAndCharts!$A158+$A$11,IF($C$7,8,0),1,1) -> 28.59 | H158: 28.46798409 | I158: 28.50333333 | J158: FALSE | K158: TRUE | L158: FALSE | M158: 28.95 | N158: FALSE | O158: FALSE | P158: 27.55 | Q158: FALSE | T158: FALSE | W158: TRUE | X158: TRUE | Y158: FALSE | AA158: 27.88 | AB158: 0 | AE158: 28.46798409 | AF158: 28.50333333 | AG158: 29.66 | AO158: 3271500
A159: 127 | B159: =OFFSET(InputPriceData!B$15,CalculationsAndCharts!$A159+$A$11,0,1,1) -> 2016-05-31 | C159: =OFFSET(InputPriceData!G$15,CalculationsAndCharts!$A159+$A$11,IF($C$7,8,0),1,1) -> 4536900 | D159: =OFFSET(InputPriceData!C$15,CalculationsAndCharts!$A159+$A$11,IF($C$7,8,0),1,1) -> 28.93 | E159: =OFFSET(InputPriceData!D$15,CalculationsAndCharts!$A159+$A$11,IF($C$7,8,0),1,1) -> 28.95 | F159: =OFFSET(InputPriceData!E$15,CalculationsAndCharts!$A159+$A$11,IF($C$7,8,0),1,1) -> 28.11 | G159: =OFFSET(InputPriceData!F$15,CalculationsAndCharts!$A159+$A$11,IF($C$7,8,0),1,1) -> 28.38 | H159: 28.44085987 | I159: 28.31 | J159: TRUE | K159: FALSE | L159: TRUE | M159: 28.58 | N159: FALSE | O159: FALSE | P159: 28.05 | Q159: FALSE | S159: 26.54 | T159: FALSE | W159: FALSE | X159: FALSE | Y159: TRUE | AA159: 0 | AB159: 28.93 | AE159: 28.44085987 | AF159: 28.31 | AH159: 29.95 | AP159: 4536900
A160: 128 | B160: =OFFSET(InputPriceData!B$15,CalculationsAndCharts!$A160+$A$11,0,1,1) -> 2016-05-27 | C160: =OFFSET(InputPriceData!G$15,CalculationsAndCharts!$A160+$A$11,IF($C$7,8,0),1,1) -> 2785100 | D160: =OFFSET(InputPriceData!C$15,CalculationsAndCharts!$A160+$A$11,IF($C$7,8,0),1,1) -> 28.15 | E160: =OFFSET(InputPriceData!D$15,CalculationsAndCharts!$A160+$A$11,IF($C$7,8,0),1,1) -> 28.58 | F160: =OFFSET(InputPriceData!E$15,CalculationsAndCharts!$A160+$A$11,IF($C$7,8,0),1,1) -> 28.05 | G160: =OFFSET(InputPriceData!F$15,CalculationsAndCharts!$A160+$A$11,IF($C$7,8,0),1,1) -> 28.54 | H160: 28.21422859 | I160: 28.30666667 | J160: FALSE | K160: TRUE | L160: FALSE | M160: 28.78 | N160: FALSE | O160: FALSE | P160: 27.92 | Q160: FALSE | S160: 26.37 | T160: FALSE | W160: TRUE | X160: FALSE | Y160: FALSE | AA160: 0 | AB160: 0 | AE160: 28.21422859 | AF160: 28.30666667 | AO160: 2785100
A161: 129 | B161: =OFFSET(InputPriceData!B$15,CalculationsAndCharts!$A161+$A$11,0,1,1) -> 2016-05-26 | C161: =OFFSET(InputPriceData!G$15,CalculationsAndCharts!$A161+$A$11,IF($C$7,8,0),1,1) -> 4442600 | D161: =OFFSET(InputPriceData!C$15,CalculationsAndCharts!$A161+$A$11,IF($C$7,8,0),1,1) -> 28.72 | E161: =OFFSET(InputPriceData!D$15,CalculationsAndCharts!$A161+$A$11,IF($C$7,8,0),1,1) -> 28.72 | F161: =OFFSET(InputPriceData!E$15,CalculationsAndCharts!$A161+$A$11,IF($C$7,8,0),1,1) -> 27.92 | G161: =OFFSET(InputPriceData!F$15,CalculationsAndCharts!$A161+$A$11,IF($C$7,8,0),1,1) -> 28.01 | H161: 28.19407286 | I161: 28.03 | J161: =AND(A161<$A$8-1,H161>I161,H162<I162) -> FALSE | K161: =AND(A161<$A$8-1,H161<I161,H162>I162) -> FALSE | L161: TRUE | M161: 28.78 | N161: FALSE | O161: FALSE | P161: 27.92 | Q161: FALSE | S161: =IF($A161>$A$8-2,NA(),IF(AND(W162,NOT(W163)),(G162-$A$19),IF(AND(W162,NOT(T162)),IF((G162-$A$19)>S162,(G162-$A$19),S162),NA()))) -> 26.37 | T161: FALSE | W161: TRUE | X161: =IFERROR(AND(A161<$A$8-1,OR(O162,J162),NOT(W162)),FALSE) -> FALSE | Y161: FALSE | AA161: =IF(X161,D161,0) -> 0 | AB161: =IF(Y161,D161,0) -> 0 | AE161: =IF($R$4,H161,NA()) -> 28.19407286 | AF161: =IF($R$5,I161,NA()) -> 28.03 | AG161: =IF(AND($R$6,X161,J162),$E161+1,NA()) ->  | AH161: =IF(AND($R$6,Y161,K162),$E161+1,NA()) ->  | AO161: =IF(G161>=D161,C161,NA()) ->  | AP161: =IF(G161<D161,C161,NA()) -> 4442600
A162: 130 | B162: =OFFSET(InputPriceData!B$15,CalculationsAndCharts!$A162+$A$11,0,1,1) -> 2016-05-25 | C162: =OFFSET(InputPriceData!G$15,CalculationsAndCharts!$A162+$A$11,IF($C$7,8,0),1,1) -> 4648300 | D162: =OFFSET(InputPriceData!C$15,CalculationsAndCharts!$A162+$A$11,IF($C$7,8,0),1,1) -> 28.16 | E162: =OFFSET(InputPriceData!D$15,CalculationsAndCharts!$A162+$A$11,IF($C$7,8,0),1,1) -> 28.78 | F162: =OFFSET(InputPriceData!E$15,CalculationsAndCharts!$A162+$A$11,IF($C$7,8,0),1,1) -> 28.11 | G162: =OFFSET(InputPriceData!F$15,CalculationsAndCharts!$A162+$A$11,IF($C$7,8,0),1,1) -> 28.37 | H162: =IFERROR(IF($A162>($A$8-MAX($A$17:$A$18)+1),0,SUMPRODUCT(OFFSET(G162,0,0,$A$17,1),OFFSET(C162,0,0,$A$17,1))/SUM(OFFSET(C162,0,0,$A$17,1))),0) -> 28.04340339 | I162: =IF($A162>($A$8-MAX($A$17:$A$18)+1),0,IF($A162=($A$8-MAX($A$17:$A$18)+1),$G162,AVERAGE(OFFSET($G162,0,0,$A$18,1)))) -> 27.52666667 | J162: FALSE | K162: FALSE | L162: =H162>I162 -> TRUE | M162: =IF(J162,E163,IF(L163,IF(E163>M163,E163,M163),0)) -> 27.88 | N162: TRUE | O162: =AND($R$13,NOT(J162),L162,N162,NOT(W162)) -> FALSE | P162: =MIN(OFFSET(F162,0,0,$A$20,1)) -> 26.9 | Q162: =AND($R$11,F162<P163) -> FALSE | S162: 25.71 | T162: FALSE | W162: TRUE | X162: FALSE | Y162: =IFERROR(AND(A162<$A$8-1,W163,OR(K163,Q163,T163)),FALSE) -> FALSE | AA162: 0 | AB162: 0 | AE162: 28.04340339 | AF162: 27.52666667 | AI162: =IF(AND($R$6,$R$12),S162,NA()) ->  | AJ162: =IF(AND($R$6,$R$12,Y162,T163),$E162+1,NA()) ->  | AK162: =IF(AND($R$6,$R$13,L162),M162,NA()) ->  | AL162: =IF(AND($R$6,$R$13,X162,O163),$E162+1,NA()) ->  | AM162: =IF(AND($R$6,$R$11,Y162,Q163),$E162+1,NA()) ->  | AO162: 4648300
A163: 131 | B163: =OFFSET(InputPriceData!B$15,CalculationsAndCharts!$A163+$A$11,0,1,1) -> 2016-05-24 | C163: =OFFSET(InputPriceData!G$15,CalculationsAndCharts!$A163+$A$11,IF($C$7,8,0),1,1) -> 4553400 | D163: =OFFSET(InputPriceData!C$15,CalculationsAndCharts!$A163+$A$11,IF($C$7,8,0),1,1) -> 26.99 | E163: =OFFSET(InputPriceData!D$15,CalculationsAndCharts!$A163+$A$11,IF($C$7,8,0),1,1) -> 27.88 | F163: =OFFSET(InputPriceData!E$15,CalculationsAndCharts!$A163+$A$11,IF($C$7,8,0),1,1) -> 26.9 | G163: =OFFSET(InputPriceData!F$15,CalculationsAndCharts!$A163+$A$11,IF($C$7,8,0),1,1) -> 27.71 | H163: 27.33939395 | I163: 26.91666667 | J163: FALSE | K163: FALSE | L163: TRUE | M163: 26.95 | N163: TRUE | O163: FALSE | P163: 26.22 | Q163: FALSE | T163: FALSE | W163: TRUE | X163: TRUE | Y163: FALSE | AA163: 26.99 | AB163: 0 | AE163: 27.33939395 | AF163: 26.91666667 | AG163: 28.88 | AO163: 4553400
A164: 132 | B164: =OFFSET(InputPriceData!B$15,CalculationsAndCharts!$A164+$A$11,0,1,1) -> 2016-05-23 | C164: =OFFSET(InputPriceData!G$15,CalculationsAndCharts!$A164+$A$11,IF($C$7,8,0),1,1) -> 2010400 | D164: =OFFSET(InputPriceData!C$15,CalculationsAndCharts!$A164+$A$11,IF($C$7,8,0),1,1) -> 26.47 | E164: =OFFSET(InputPriceData!D$15,CalculationsAndCharts!$A164+$A$11,IF($C$7,8,0),1,1) -> 26.73 | F164: =OFFSET(InputPriceData!E$15,CalculationsAndCharts!$A164+$A$11,IF($C$7,8,0),1,1) -> 26.22 | G164: =OFFSET(InputPriceData!F$15,CalculationsAndCharts!$A164+$A$11,IF($C$7,8,0),1,1) -> 26.5 | H164: 26.52479676 | I164: 26.37 | J164: TRUE | K164: FALSE | L164: TRUE | M164: 26.95 | N164: FALSE | O164: FALSE | P164: 26.22 | Q164: FALSE | S164: 24.75 | T164: FALSE | W164: FALSE | X164: FALSE | Y164: TRUE | AA164: 0 | AB164: 26.47 | AE164: 26.52479676 | AF164: 26.37 | AH164: 27.73 | AO164: 2010400
A165: 133 | B165: =OFFSET(InputPriceData!B$15,CalculationsAndCharts!$A165+$A$11,0,1,1) -> 2016-05-20 | C165: =OFFSET(InputPriceData!G$15,CalculationsAndCharts!$A165+$A$11,IF($C$7,8,0),1,1) -> 3279000 | D165: =OFFSET(InputPriceData!C$15,CalculationsAndCharts!$A165+$A$11,IF($C$7,8,0),1,1) -> 26.5 | E165: =OFFSET(InputPriceData!D$15,CalculationsAndCharts!$A165+$A$11,IF($C$7,8,0),1,1) -> 26.95 | F165: =OFFSET(InputPriceData!E$15,CalculationsAndCharts!$A165+$A$11,IF($C$7,8,0),1,1) -> 26.34 | G165: =OFFSET(InputPriceData!F$15,CalculationsAndCharts!$A165+$A$11,IF($C$7,8,0),1,1) -> 26.54 | H165: 26.2538443 | I165: 26.45333333 | J165: FALSE | K165: TRUE | L165: FALSE | M165: 26.89 | N165: FALSE | O165: FALSE | P165: 25.53 | Q165: FALSE | S165: 24.75 | T165: FALSE | W165: TRUE | X165: FALSE | Y165: FALSE | AA165: 0 | AB165: 0 | AE165: 26.2538443 | AF165: 26.45333333 | AO165: 3279000
A166: 134 | B166: =OFFSET(InputPriceData!B$15,CalculationsAndCharts!$A166+$A$11,0,1,1) -> 2016-05-19 | C166: =OFFSET(InputPriceData!G$15,CalculationsAndCharts!$A166+$A$11,IF($C$7,8,0),1,1) -> 5103800 | D166: =OFFSET(InputPriceData!C$15,CalculationsAndCharts!$A166+$A$11,IF($C$7,8,0),1,1) -> 26.41 | E166: =OFFSET(InputPriceData!D$15,CalculationsAndCharts!$A166+$A$11,IF($C$7,8,0),1,1) -> 26.68 | F166: =OFFSET(InputPriceData!E$15,CalculationsAndCharts!$A166+$A$11,IF($C$7,8,0),1,1) -> 25.53 | G166: =OFFSET(InputPriceData!F$15,CalculationsAndCharts!$A166+$A$11,IF($C$7,8,0),1,1) -> 26.07 | H166: 26.45853553 | I166: 26.14333333 | J166: FALSE | K166: FALSE | L166: TRUE | M166: 26.89 | N166: FALSE | O166: FALSE | P166: 25.45 | Q166: FALSE | S166: 24.75 | T166: FALSE | W166: TRUE | X166: FALSE | Y166: FALSE | AA166: 0 | AB166: 0 | AE166: 26.45853553 | AF166: 26.14333333 | AP166: 5103800
A167: 135 | B167: =OFFSET(InputPriceData!B$15,CalculationsAndCharts!$A167+$A$11,0,1,1) -> 2016-05-18 | C167: =OFFSET(InputPriceData!G$15,CalculationsAndCharts!$A167+$A$11,IF($C$7,8,0),1,1) -> 6803600 | D167: =OFFSET(InputPriceData!C$15,CalculationsAndCharts!$A167+$A$11,IF($C$7,8,0),1,1) -> 25.47 | E167: =OFFSET(InputPriceData!D$15,CalculationsAndCharts!$A167+$A$11,IF($C$7,8,0),1,1) -> 26.89 | F167: =OFFSET(InputPriceData!E$15,CalculationsAndCharts!$A167+$A$11,IF($C$7,8,0),1,1) -> 25.45 | G167: =OFFSET(InputPriceData!F$15,CalculationsAndCharts!$A167+$A$11,IF($C$7,8,0),1,1) -> 26.75 | H167: 26.34690099 | I167: 26.18333333 | J167: FALSE | K167: FALSE | L167: TRUE | M167: 26.5 | N167: TRUE | O167: FALSE | P167: 25.37 | Q167: FALSE | T167: FALSE | W167: TRUE | X167: TRUE | Y167: FALSE | AA167: 25.47 | AB167: 0 | AE167: 26.34690099 | AF167: 26.18333333 | AG167: 27.89 | AO167: 6803600
A168: 136 | B168: =OFFSET(InputPriceData!B$15,CalculationsAndCharts!$A168+$A$11,0,1,1) -> 2016-05-17 | C168: =OFFSET(InputPriceData!G$15,CalculationsAndCharts!$A168+$A$11,IF($C$7,8,0),1,1) -> 3721700 | D168: =OFFSET(InputPriceData!C$15,CalculationsAndCharts!$A168+$A$11,IF($C$7,8,0),1,1) -> 26.2 | E168: =OFFSET(InputPriceData!D$15,CalculationsAndCharts!$A168+$A$11,IF($C$7,8,0),1,1) -> 26.24 | F168: =OFFSET(InputPriceData!E$15,CalculationsAndCharts!$A168+$A$11,IF($C$7,8,0),1,1) -> 25.37 | G168: =OFFSET(InputPriceData!F$15,CalculationsAndCharts!$A168+$A$11,IF($C$7,8,0),1,1) -> 25.61 | H168: 25.88608082 | I168: 25.86333333 | J168: TRUE | K168: FALSE | L168: TRUE | M168: 26.5 | N168: FALSE | O168: FALSE | P168: 25.37 | Q168: FALSE | T168: FALSE | W168: FALSE | X168: FALSE | Y168: FALSE | AA168: 0 | AB168: 0 | AE168: 25.88608082 | AF168: 25.86333333 | AP168: 3721700
A169: 137 | B169: =OFFSET(InputPriceData!B$15,CalculationsAndCharts!$A169+$A$11,0,1,1) -> 2016-05-16 | C169: =OFFSET(InputPriceData!G$15,CalculationsAndCharts!$A169+$A$11,IF($C$7,8,0),1,1) -> 3380800 | D169: =OFFSET(InputPriceData!C$15,CalculationsAndCharts!$A169+$A$11,IF($C$7,8,0),1,1) -> 25.85 | E169: =OFFSET(InputPriceData!D$15,CalculationsAndCharts!$A169+$A$11,IF($C$7,8,0),1,1) -> 26.5 | F169: =OFFSET(InputPriceData!E$15,CalculationsAndCharts!$A169+$A$11,IF($C$7,8,0),1,1) -> 25.79 | G169: =OFFSET(InputPriceData!F$15,CalculationsAndCharts!$A169+$A$11,IF($C$7,8,0),1,1) -> 26.19 | H169: 25.97567153 | I169: 26.21333333 | J169: FALSE | K169: FALSE | L169: FALSE | M169: 0 | N169: =AND(L169,E169>M169,NOT(J169)) -> FALSE | O169: FALSE | P169: 25.61 | Q169: FALSE | T169: FALSE | W169: FALSE | X169: FALSE | Y169: FALSE | AA169: 0 | AB169: 0 | AE169: 25.97567153 | AF169: 26.21333333 | AO169: 3380800
A170: 138 | B170: =OFFSET(InputPriceData!B$15,CalculationsAndCharts!$A170+$A$11,0,1,1) -> 2016-05-13 | C170: =OFFSET(InputPriceData!G$15,CalculationsAndCharts!$A170+$A$11,IF($C$7,8,0),1,1) -> 3902600 | D170: =OFFSET(InputPriceData!C$15,CalculationsAndCharts!$A170+$A$11,IF($C$7,8,0),1,1) -> 26.65 | E170: =OFFSET(InputPriceData!D$15,CalculationsAndCharts!$A170+$A$11,IF($C$7,8,0),1,1) -> 26.91 | F170: =OFFSET(InputPriceData!E$15,CalculationsAndCharts!$A170+$A$11,IF($C$7,8,0),1,1) -> 25.61 | G170: =OFFSET(InputPriceData!F$15,CalculationsAndCharts!$A170+$A$11,IF($C$7,8,0),1,1) -> 25.79 | H170: 26.20691176 | I170: 26.34333333 | J170: FALSE | K170: FALSE | L170: FALSE | M170: 0 | N170: FALSE | O170: FALSE | P170: 25.61 | Q170: FALSE | S170: 25.43 | T170: FALSE | W170: FALSE | X170: FALSE | Y170: TRUE | AA170: 0 | AB170: 26.65 | AE170: 26.20691176 | AF170: 26.34333333 | AH170: 27.91 | AP170: 3902600
A171: 139 | B171: =OFFSET(InputPriceData!B$15,CalculationsAndCharts!$A171+$A$11,0,1,1) -> 2016-05-12 | C171: =OFFSET(InputPriceData!G$15,CalculationsAndCharts!$A171+$A$11,IF($C$7,8,0),1,1) -> 3591000 | D171: =OFFSET(InputPriceData!C$15,CalculationsAndCharts!$A171+$A$11,IF($C$7,8,0),1,1) -> 26.93 | E171: =OFFSET(InputPriceData!D$15,CalculationsAndCharts!$A171+$A$11,IF($C$7,8,0),1,1) -> 27.11 | F171: =OFFSET(InputPriceData!E$15,CalculationsAndCharts!$A171+$A$11,IF($C$7,8,0),1,1) -> 26.15 | G171: =OFFSET(InputPriceData!F$15,CalculationsAndCharts!$A171+$A$11,IF($C$7,8,0),1,1) -> 26.66 | H171: 26.6263183 | I171: 26.89 | J171: FALSE | K171: TRUE | L171: FALSE | M171: 27.47 | N171: FALSE | O171: FALSE | P171: 26.15 | Q171: FALSE | S171: 25.43 | T171: FALSE | W171: TRUE | X171: FALSE | Y171: FALSE | AA171: 0 | AB171: 0 | AE171: 26.6263183 | AF171: 26.89 | AP171: 3591000
A172: 140 | B172: =OFFSET(InputPriceData!B$15,CalculationsAndCharts!$A172+$A$11,0,1,1) -> 2016-05-11 | C172: =OFFSET(InputPriceData!G$15,CalculationsAndCharts!$A172+$A$11,IF($C$7,8,0),1,1) -> 2611300 | D172: =OFFSET(InputPriceData!C$15,CalculationsAndCharts!$A172+$A$11,IF($C$7,8,0),1,1) -> 27.28 | E172: =OFFSET(InputPriceData!D$15,CalculationsAndCharts!$A172+$A$11,IF($C$7,8,0),1,1) -> 27.42 | F172: =OFFSET(InputPriceData!E$15,CalculationsAndCharts!$A172+$A$11,IF($C$7,8,0),1,1) -> 26.55 | G172: =OFFSET(InputPriceData!F$15,CalculationsAndCharts!$A172+$A$11,IF($C$7,8,0),1,1) -> 26.58 | H172: 27.06478322 | I172: 26.81333333 | J172: FALSE | K172: FALSE | L172: TRUE | M172: 27.47 | N172: FALSE | O172: FALSE | P172: 26.55 | Q172: FALSE | S172: 25.43 | T172: =IFERROR(AND($R$12,W172,F172<S172),FALSE) -> FALSE | W172: TRUE | X172: FALSE | Y172: FALSE | AA172: 0 | AB172: 0 | AE172: 27.06478322 | AF172: 26.81333333 | AP172: 2611300
A173: 141 | B173: =OFFSET(InputPriceData!B$15,CalculationsAndCharts!$A173+$A$11,0,1,1) -> 2016-05-10 | C173: =OFFSET(InputPriceData!G$15,CalculationsAndCharts!$A173+$A$11,IF($C$7,8,0),1,1) -> 3466200 | D173: =OFFSET(InputPriceData!C$15,CalculationsAndCharts!$A173+$A$11,IF($C$7,8,0),1,1) -> 26.81 | E173: =OFFSET(InputPriceData!D$15,CalculationsAndCharts!$A173+$A$11,IF($C$7,8,0),1,1) -> 27.47 | F173: =OFFSET(InputPriceData!E$15,CalculationsAndCharts!$A173+$A$11,IF($C$7,8,0),1,1) -> 26.75 | G173: =OFFSET(InputPriceData!F$15,CalculationsAndCharts!$A173+$A$11,IF($C$7,8,0),1,1) -> 27.43 | H173: 27.0118603 | I173: 26.77 | J173: FALSE | K173: FALSE | L173: TRUE | M173: 26.77 | N173: TRUE | O173: FALSE | P173: 26.11 | Q173: FALSE | S173: 24.43 | T173: FALSE | W173: TRUE | X173: FALSE | Y173: FALSE | AA173: 0 | AB173: 0 | AE173: 27.0118603 | AF173: 26.77 | AO173: 3466200
A174: 142 | B174: =OFFSET(InputPriceData!B$15,CalculationsAndCharts!$A174+$A$11,0,1,1) -> 2016-05-09 | C174: =OFFSET(InputPriceData!G$15,CalculationsAndCharts!$A174+$A$11,IF($C$7,8,0),1,1) -> 2490900 | D174: =OFFSET(InputPriceData!C$15,CalculationsAndCharts!$A174+$A$11,IF($C$7,8,0),1,1) -> 26.37 | E174: =OFFSET(InputPriceData!D$15,CalculationsAndCharts!$A174+$A$11,IF($C$7,8,0),1,1) -> 26.77 | F174: =OFFSET(InputPriceData!E$15,CalculationsAndCharts!$A174+$A$11,IF($C$7,8,0),1,1) -> 26.11 | G174: =OFFSET(InputPriceData!F$15,CalculationsAndCharts!$A174+$A$11,IF($C$7,8,0),1,1) -> 26.43 | H174: 26.44147419 | I174: 26.31666667 | J174: FALSE | K174: FALSE | L174: TRUE | M174: 26.51 | N174: TRUE | O174: FALSE | P174: 25.5 | Q174: FALSE | T174: FALSE | W174: TRUE | X174: TRUE | Y174: FALSE | AA174: 26.37 | AB174: 0 | AE174: 26.44147419 | AF174: 26.31666667 | AG174: 27.77 | AO174: 2490900
A175: 143 | B175: =OFFSET(InputPriceData!B$15,CalculationsAndCharts!$A175+$A$11,0,1,1) -> 2016-05-06 | C175: =OFFSET(InputPriceData!G$15,CalculationsAndCharts!$A175+$A$11,IF($C$7,8,0),1,1) -> 3352300 | D175: =OFFSET(InputPriceData!C$15,CalculationsAndCharts!$A175+$A$11,IF($C$7,8,0),1,1) -> 25.52 | E175: =OFFSET(InputPriceData!D$15,CalculationsAndCharts!$A175+$A$11,IF($C$7,8,0),1,1) -> 26.51 | F175: =OFFSET(InputPriceData!E$15,CalculationsAndCharts!$A175+$A$11,IF($C$7,8,0),1,1) -> 25.5 | G175: =OFFSET(InputPriceData!F$15,CalculationsAndCharts!$A175+$A$11,IF($C$7,8,0),1,1) -> 26.45 | H175: 26.26961358 | I175: 26.20666667 | J175: TRUE | K175: FALSE | L175: TRUE | M175: 26.48 | N175: FALSE | O175: FALSE | P175: 25.5 | Q175: FALSE | T175: FALSE | W175: FALSE | X175: FALSE | Y175: FALSE | AA175: 0 | AB175: 0 | AE175: 26.26961358 | AF175: 26.20666667 | AO175: 3352300
A176: 144 | B176: =OFFSET(InputPriceData!B$15,CalculationsAndCharts!$A176+$A$11,0,1,1) -> 2016-05-05 | C176: =OFFSET(InputPriceData!G$15,CalculationsAndCharts!$A176+$A$11,IF($C$7,8,0),1,1) -> 3029400 | D176: =OFFSET(InputPriceData!C$15,CalculationsAndCharts!$A176+$A$11,IF($C$7,8,0),1,1) -> 26.36 | E176: =OFFSET(InputPriceData!D$15,CalculationsAndCharts!$A176+$A$11,IF($C$7,8,0),1,1) -> 26.48 | F176: =OFFSET(InputPriceData!E$15,CalculationsAndCharts!$A176+$A$11,IF($C$7,8,0),1,1) -> 25.89 | G176: =OFFSET(InputPriceData!F$15,CalculationsAndCharts!$A176+$A$11,IF($C$7,8,0),1,1) -> 26.07 | H176: 26.08648374 | I176: 26.24 | J176: FALSE | K176: FALSE | L176: FALSE | M176: 0 | N176: FALSE | O176: FALSE | P176: 25.66 | Q176: FALSE | S176: 24.1 | T176: FALSE | W176: FALSE | X176: FALSE | Y176: TRUE | AA176: 0 | AB176: 26.36 | AE176: 26.08648374 | AF176: 26.24 | AH176: 27.48 | AP176: 3029400
A177: 145 | B177: =OFFSET(InputPriceData!B$15,CalculationsAndCharts!$A177+$A$11,0,1,1) -> 2016-05-04 | C177: =OFFSET(InputPriceData!G$15,CalculationsAndCharts!$A177+$A$11,IF($C$7,8,0),1,1) -> 3694500 | D177: =OFFSET(InputPriceData!C$15,CalculationsAndCharts!$A177+$A$11,IF($C$7,8,0),1,1) -> 26 | E177: =OFFSET(InputPriceData!D$15,CalculationsAndCharts!$A177+$A$11,IF($C$7,8,0),1,1) -> 26.37 | F177: =OFFSET(InputPriceData!E$15,CalculationsAndCharts!$A177+$A$11,IF($C$7,8,0),1,1) -> 25.66 | G177: =OFFSET(InputPriceData!F$15,CalculationsAndCharts!$A177+$A$11,IF($C$7,8,0),1,1) -> 26.1 | H177: 26.33300551 | I177: 26.73333333 | J177: FALSE | K177: TRUE | L177: FALSE | M177: 27.63 | N177: FALSE | O177: FALSE | P177: 25.66 | Q177: FALSE | T177: FALSE | W177: TRUE | X177: TRUE | Y177: FALSE | AA177: 26 | AB177: 0 | AE177: 26.33300551 | AF177: 26.73333333 | AG177: 27.37 | AO177: 3694500
A178: 146 | B178: =OFFSET(InputPriceData!B$15,CalculationsAndCharts!$A178+$A$11,0,1,1) -> 2016-05-03 | C178: =OFFSET(InputPriceData!G$15,CalculationsAndCharts!$A178+$A$11,IF($C$7,8,0),1,1) -> 3967100 | D178: =OFFSET(InputPriceData!C$15,CalculationsAndCharts!$A178+$A$11,IF($C$7,8,0),1,1) -> 26.95 | E178: =OFFSET(InputPriceData!D$15,CalculationsAndCharts!$A178+$A$11,IF($C$7,8,0),1,1) -> 26.95 | F178: =OFFSET(InputPriceData!E$15,CalculationsAndCharts!$A178+$A$11,IF($C$7,8,0),1,1) -> 25.91 | G178: =OFFSET(InputPriceData!F$15,CalculationsAndCharts!$A178+$A$11,IF($C$7,8,0),1,1) -> 26.55 | H178: 27.01022178 | I178: 26.94 | J178: TRUE | K178: FALSE | L178: TRUE | M178: 27.63 | N178: FALSE | O178: FALSE | P178: 25.91 | Q178: FALSE | T178: FALSE | W178: FALSE | X178: FALSE | Y178: FALSE | AA178: 0 | AB178: 0 | AE178: 27.01022178 | AF178: 26.94 | AP178: 3967100
A179: 147 | B179: =OFFSET(InputPriceData!B$15,CalculationsAndCharts!$A179+$A$11,0,1,1) -> 2016-05-02 | C179: =OFFSET(InputPriceData!G$15,CalculationsAndCharts!$A179+$A$11,IF($C$7,8,0),1,1) -> 3382400 | D179: =OFFSET(InputPriceData!C$15,CalculationsAndCharts!$A179+$A$11,IF($C$7,8,0),1,1) -> 26.94 | E179: =OFFSET(InputPriceData!D$15,CalculationsAndCharts!$A179+$A$11,IF($C$7,8,0),1,1) -> 27.63 | F179: =OFFSET(InputPriceData!E$15,CalculationsAndCharts!$A179+$A$11,IF($C$7,8,0),1,1) -> 26.74 | G179: =OFFSET(InputPriceData!F$15,CalculationsAndCharts!$A179+$A$11,IF($C$7,8,0),1,1) -> 27.55 | H179: 27.07024103 | I179: 27.17 | J179: FALSE | K179: FALSE | L179: FALSE | M179: 0 | N179: FALSE | O179: FALSE | P179: 26.15 | Q179: FALSE | T179: FALSE | W179: FALSE | X179: FALSE | Y179: FALSE | AA179: 0 | AB179: 0 | AE179: 27.07024103 | AF179: 27.17 | AO179: 3382400
A180: 148 | B180: =OFFSET(InputPriceData!B$15,CalculationsAndCharts!$A180+$A$11,0,1,1) -> 2016-04-29 | C180: =OFFSET(InputPriceData!G$15,CalculationsAndCharts!$A180+$A$11,IF($C$7,8,0),1,1) -> 4633200 | D180: =OFFSET(InputPriceData!C$15,CalculationsAndCharts!$A180+$A$11,IF($C$7,8,0),1,1) -> 26.89 | E180: =OFFSET(InputPriceData!D$15,CalculationsAndCharts!$A180+$A$11,IF($C$7,8,0),1,1) -> 27.12 | F180: =OFFSET(InputPriceData!E$15,CalculationsAndCharts!$A180+$A$11,IF($C$7,8,0),1,1) -> 26.15 | G180: =OFFSET(InputPriceData!F$15,CalculationsAndCharts!$A180+$A$11,IF($C$7,8,0),1,1) -> 26.72 | H180: 26.94339854 | I180: 27.34666667 | J180: FALSE | K180: FALSE | L180: FALSE | M180: 0 | N180: FALSE | O180: FALSE | P180: 26.15 | Q180: FALSE | S180: 26.08 | T180: FALSE | W180: FALSE | X180: FALSE | Y180: TRUE | AA180: 0 | AB180: 26.89 | AE180: 26.94339854 | AF180: 27.34666667 | AH180: 28.12 | AP180: 4633200
A181: 149 | B181: =OFFSET(InputPriceData!B$15,CalculationsAndCharts!$A181+$A$11,0,1,1) -> 2016-04-28 | C181: =OFFSET(InputPriceData!G$15,CalculationsAndCharts!$A181+$A$11,IF($C$7,8,0),1,1) -> 3489700 | D181: =OFFSET(InputPriceData!C$15,CalculationsAndCharts!$A181+$A$11,IF($C$7,8,0),1,1) -> 27.56 | E181: =OFFSET(InputPriceData!D$15,CalculationsAndCharts!$A181+$A$11,IF($C$7,8,0),1,1) -> 28.11 | F181: =OFFSET(InputPriceData!E$15,CalculationsAndCharts!$A181+$A$11,IF($C$7,8,0),1,1) -> 27 | G181: =OFFSET(InputPriceData!F$15,CalculationsAndCharts!$A181+$A$11,IF($C$7,8,0),1,1) -> 27.24 | H181: 27.68698415 | I181: 27.73 | J181: FALSE | K181: TRUE | L181: FALSE | M181: 28.28 | N181: FALSE | O181: FALSE | P181: 27 | Q181: FALSE | S181: 26.08 | T181: FALSE | W181: TRUE | X181: FALSE | Y181: FALSE | AA181: 0 | AB181: 0 | AE181: 27.68698415 | AF181: 27.73 | AP181: 3489700
A182: 150 | B182: =OFFSET(InputPriceData!B$15,CalculationsAndCharts!$A182+$A$11,0,1,1) -> 2016-04-27 | C182: =OFFSET(InputPriceData!G$15,CalculationsAndCharts!$A182+$A$11,IF($C$7,8,0),1,1) -> 3968900 | D182: =OFFSET(InputPriceData!C$15,CalculationsAndCharts!$A182+$A$11,IF($C$7,8,0),1,1) -> 27.98 | E182: =OFFSET(InputPriceData!D$15,CalculationsAndCharts!$A182+$A$11,IF($C$7,8,0),1,1) -> 28.28 | F182: =OFFSET(InputPriceData!E$15,CalculationsAndCharts!$A182+$A$11,IF($C$7,8,0),1,1) -> 27.61 | G182: =OFFSET(InputPriceData!F$15,CalculationsAndCharts!$A182+$A$11,IF($C$7,8,0),1,1) -> 28.08 | H182: 27.99122656 | I182: 27.80333333 | J182: FALSE | K182: FALSE | L182: TRUE | M182: 28 | N182: TRUE | O182: FALSE | P182: 27.45 | Q182: FALSE | S182: 25.87 | T182: FALSE | W182: TRUE | X182: FALSE | Y182: FALSE | AA182: 0 | AB182: 0 | AE182: 27.99122656 | AF182: 27.80333333 | AO182: 3968900
A183: 151 | B183: =OFFSET(InputPriceData!B$15,CalculationsAndCharts!$A183+$A$11,0,1,1) -> 2016-04-26 | C183: =OFFSET(InputPriceData!G$15,CalculationsAndCharts!$A183+$A$11,IF($C$7,8,0),1,1) -> 2906400 | D183: =OFFSET(InputPriceData!C$15,CalculationsAndCharts!$A183+$A$11,IF($C$7,8,0),1,1) -> 27.61 | E183: =OFFSET(InputPriceData!D$15,CalculationsAndCharts!$A183+$A$11,IF($C$7,8,0),1,1) -> 28 | F183: =OFFSET(InputPriceData!E$15,CalculationsAndCharts!$A183+$A$11,IF($C$7,8,0),1,1) -> 27.45 | G183: =OFFSET(InputPriceData!F$15,CalculationsAndCharts!$A183+$A$11,IF($C$7,8,0),1,1) -> 27.87 | H183: 27.67492389 | I183: 27.65666667 | J183: FALSE | K183: FALSE | L183: TRUE | M183: 27.76 | N183: TRUE | O183: FALSE | P183: 26.93 | Q183: FALSE | T183: FALSE | W183: TRUE | X183: TRUE | Y183: FALSE | AA183: 27.61 | AB183: 0 | AE183: 27.67492389 | AF183: 27.65666667 | AG183: 29 | AO183: 2906400
A184: 152 | B184: =OFFSET(InputPriceData!B$15,CalculationsAndCharts!$A184+$A$11,0,1,1) -> 2016-04-25 | C184: =OFFSET(InputPriceData!G$15,CalculationsAndCharts!$A184+$A$11,IF($C$7,8,0),1,1) -> 2638000 | D184: =OFFSET(InputPriceData!C$15,CalculationsAndCharts!$A184+$A$11,IF($C$7,8,0),1,1) -> 27.39 | E184: =OFFSET(InputPriceData!D$15,CalculationsAndCharts!$A184+$A$11,IF($C$7,8,0),1,1) -> 27.52 | F184: =OFFSET(InputPriceData!E$15,CalculationsAndCharts!$A184+$A$11,IF($C$7,8,0),1,1) -> 26.93 | G184: =OFFSET(InputPriceData!F$15,CalculationsAndCharts!$A184+$A$11,IF($C$7,8,0),1,1) -> 27.46 | H184: 27.56545917 | I184: 27.37666667 | J184: TRUE | K184: FALSE | L184: TRUE | M184: 27.76 | N184: FALSE | O184: FALSE | P184: 26.93 | Q184: FALSE | S184: 25.81 | T184: FALSE | W184: FALSE | X184: FALSE | Y184: TRUE | AA184: 0 | AB184: 27.39 | AE184: 27.56545917 | AF184: 27.37666667 | AH184: 28.52 | AO184: 2638000
A185: 153 | B185: =OFFSET(InputPriceData!B$15,CalculationsAndCharts!$A185+$A$11,0,1,1) -> 2016-04-22 | C185: =OFFSET(InputPriceData!G$15,CalculationsAndCharts!$A185+$A$11,IF($C$7,8,0),1,1) -> 3732200 | D185: =OFFSET(InputPriceData!C$15,CalculationsAndCharts!$A185+$A$11,IF($C$7,8,0),1,1) -> 27 | E185: =OFFSET(InputPriceData!D$15,CalculationsAndCharts!$A185+$A$11,IF($C$7,8,0),1,1) -> 27.76 | F185: =OFFSET(InputPriceData!E$15,CalculationsAndCharts!$A185+$A$11,IF($C$7,8,0),1,1) -> 26.99 | G185: =OFFSET(InputPriceData!F$15,CalculationsAndCharts!$A185+$A$11,IF($C$7,8,0),1,1) -> 27.64 | H185: 27.3132067 | I185: 27.49333333 | J185: FALSE | K185: TRUE | L185: FALSE | M185: 28.07 | N185: FALSE | O185: FALSE | P185: 26.88 | Q185: FALSE | S185: 25.81 | T185: FALSE | W185: TRUE | X185: FALSE | Y185: FALSE | AA185: 0 | AB185: 0 | AE185: 27.3132067 | AF185: 27.49333333 | AO185: 3732200
A186: 154 | B186: =OFFSET(InputPriceData!B$15,CalculationsAndCharts!$A186+$A$11,0,1,1) -> 2016-04-21 | C186: =OFFSET(InputPriceData!G$15,CalculationsAndCharts!$A186+$A$11,IF($C$7,8,0),1,1) -> 4306600 | D186: =OFFSET(InputPriceData!C$15,CalculationsAndCharts!$A186+$A$11,IF($C$7,8,0),1,1) -> 28 | E186: =OFFSET(InputPriceData!D$15,CalculationsAndCharts!$A186+$A$11,IF($C$7,8,0),1,1) -> 28.07 | F186: =OFFSET(InputPriceData!E$15,CalculationsAndCharts!$A186+$A$11,IF($C$7,8,0),1,1) -> 26.88 | G186: =OFFSET(InputPriceData!F$15,CalculationsAndCharts!$A186+$A$11,IF($C$7,8,0),1,1) -> 27.03 | H186: 27.42235829 | I186: 27.36 | J186: FALSE | K186: FALSE | L186: TRUE | M186: 27.98 | N186: TRUE | O186: FALSE | P186: 26.88 | Q186: FALSE | S186: 25.81 | T186: FALSE | W186: TRUE | X186: FALSE | Y186: FALSE | AA186: 0 | AB186: 0 | AE186: 27.42235829 | AF186: 27.36 | AP186: 4306600
A187: 155 | B187: =OFFSET(InputPriceData!B$15,CalculationsAndCharts!$A187+$A$11,0,1,1) -> 2016-04-20 | C187: =OFFSET(InputPriceData!G$15,CalculationsAndCharts!$A187+$A$11,IF($C$7,8,0),1,1) -> 4359000 | D187: =OFFSET(InputPriceData!C$15,CalculationsAndCharts!$A187+$A$11,IF($C$7,8,0),1,1) -> 27.35 | E187: =OFFSET(InputPriceData!D$15,CalculationsAndCharts!$A187+$A$11,IF($C$7,8,0),1,1) -> 27.98 | F187: =OFFSET(InputPriceData!E$15,CalculationsAndCharts!$A187+$A$11,IF($C$7,8,0),1,1) -> 27.27 | G187: =OFFSET(InputPriceData!F$15,CalculationsAndCharts!$A187+$A$11,IF($C$7,8,0),1,1) -> 27.81 | H187: 27.53063739 | I187: 27.18666667 | J187: FALSE | K187: FALSE | L187: TRUE | M187: 27.3 | N187: TRUE | O187: FALSE | P187: 26.7 | Q187: FALSE | S187: 25.24 | T187: FALSE | W187: TRUE | X187: FALSE | Y187: FALSE | AA187: 0 | AB187: 0 | AE187: 27.53063739 | AF187: 27.18666667 | AO187: 4359000
A188: 156 | B188: =OFFSET(InputPriceData!B$15,CalculationsAndCharts!$A188+$A$11,0,1,1) -> 2016-04-19 | C188: =OFFSET(InputPriceData!G$15,CalculationsAndCharts!$A188+$A$11,IF($C$7,8,0),1,1) -> 4189900 | D188: =OFFSET(InputPriceData!C$15,CalculationsAndCharts!$A188+$A$11,IF($C$7,8,0),1,1) -> 26.75 | E188: =OFFSET(InputPriceData!D$15,CalculationsAndCharts!$A188+$A$11,IF($C$7,8,0),1,1) -> 27.3 | F188: =OFFSET(InputPriceData!E$15,CalculationsAndCharts!$A188+$A$11,IF($C$7,8,0),1,1) -> 26.7 | G188: =OFFSET(InputPriceData!F$15,CalculationsAndCharts!$A188+$A$11,IF($C$7,8,0),1,1) -> 27.24 | H188: 26.88462973 | I188: 26.57 | J188: FALSE | K188: FALSE | L188: TRUE | M188: 26.55 | N188: TRUE | O188: FALSE | P188: 25.65 | Q188: FALSE | S188: 24.51 | T188: FALSE | W188: TRUE | X188: FALSE | Y188: FALSE | AA188: 0 | AB188: 0 | AE188: 26.88462973 | AF188: 26.57 | AO188: 4189900
A189: 157 | B189: =OFFSET(InputPriceData!B$15,CalculationsAndCharts!$A189+$A$11,0,1,1) -> 2016-04-18 | C189: =OFFSET(InputPriceData!G$15,CalculationsAndCharts!$A189+$A$11,IF($C$7,8,0),1,1) -> 3974500 | D189: =OFFSET(InputPriceData!C$15,CalculationsAndCharts!$A189+$A$11,IF($C$7,8,0),1,1) -> 25.65 | E189: =OFFSET(InputPriceData!D$15,CalculationsAndCharts!$A189+$A$11,IF($C$7,8,0),1,1) -> 26.55 | F189: =OFFSET(InputPriceData!E$15,CalculationsAndCharts!$A189+$A$11,IF($C$7,8,0),1,1) -> 25.65 | G189: =OFFSET(InputPriceData!F$15,CalculationsAndCharts!$A189+$A$11,IF($C$7,8,0),1,1) -> 26.51 | H189: 26.24023883 | I189: 26.2 | J189: FALSE | K189: FALSE | L189: TRUE | M189: 26.48 | N189: TRUE | O189: FALSE | P189: 25.65 | Q189: FALSE | S189: 24.13 | T189: FALSE | W189: TRUE | X189: FALSE | Y189: FALSE | AA189: 0 | AB189: 0 | AE189: 26.24023883 | AF189: 26.2 | AO189: 3974500
A190: 158 | B190: =OFFSET(InputPriceData!B$15,CalculationsAndCharts!$A190+$A$11,0,1,1) -> 2016-04-15 | C190: =OFFSET(InputPriceData!G$15,CalculationsAndCharts!$A190+$A$11,IF($C$7,8,0),1,1) -> 3825900 | D190: =OFFSET(InputPriceData!C$15,CalculationsAndCharts!$A190+$A$11,IF($C$7,8,0),1,1) -> 26.22 | E190: =OFFSET(InputPriceData!D$15,CalculationsAndCharts!$A190+$A$11,IF($C$7,8,0),1,1) -> 26.35 | F190: =OFFSET(InputPriceData!E$15,CalculationsAndCharts!$A190+$A$11,IF($C$7,8,0),1,1) -> 25.8 | G190: =OFFSET(InputPriceData!F$15,CalculationsAndCharts!$A190+$A$11,IF($C$7,8,0),1,1) -> 25.96 | H190: 26.05606284 | I190: 26.02333333 | J190: FALSE | K190: FALSE | L190: TRUE | M190: 26.48 | N190: FALSE | O190: FALSE | P190: 25.66 | Q190: FALSE | S190: 24.13 | T190: FALSE | W190: TRUE | X190: FALSE | Y190: FALSE | AA190: 0 | AB190: 0 | AE190: 26.05606284 | AF190: 26.02333333 | AP190: 3825900
A191: 159 | B191: =OFFSET(InputPriceData!B$15,CalculationsAndCharts!$A191+$A$11,0,1,1) -> 2016-04-14 | C191: =OFFSET(InputPriceData!G$15,CalculationsAndCharts!$A191+$A$11,IF($C$7,8,0),1,1) -> 4970800 | D191: =OFFSET(InputPriceData!C$15,CalculationsAndCharts!$A191+$A$11,IF($C$7,8,0),1,1) -> 25.77 | E191: =OFFSET(InputPriceData!D$15,CalculationsAndCharts!$A191+$A$11,IF($C$7,8,0),1,1) -> 26.48 | F191: =OFFSET(InputPriceData!E$15,CalculationsAndCharts!$A191+$A$11,IF($C$7,8,0),1,1) -> 25.66 | G191: =OFFSET(InputPriceData!F$15,CalculationsAndCharts!$A191+$A$11,IF($C$7,8,0),1,1) -> 26.13 | H191: 26.0431186 | I191: 25.53 | J191: FALSE | K191: FALSE | L191: TRUE | M191: 25.99 | N191: TRUE | O191: FALSE | P191: 25.05 | Q191: FALSE | S191: 23.98 | T191: FALSE | W191: TRUE | X191: FALSE | Y191: FALSE | AA191: 0 | AB191: 0 | AE191: 26.0431186 | AF191: 25.53 | AO191: 4970800
A192: 160 | B192: =OFFSET(InputPriceData!B$15,CalculationsAndCharts!$A192+$A$11,0,1,1) -> 2016-04-13 | C192: =OFFSET(InputPriceData!G$15,CalculationsAndCharts!$A192+$A$11,IF($C$7,8,0),1,1) -> 6842200 | D192: =OFFSET(InputPriceData!C$15,CalculationsAndCharts!$A192+$A$11,IF($C$7,8,0),1,1) -> 25.2 | E192: =OFFSET(InputPriceData!D$15,CalculationsAndCharts!$A192+$A$11,IF($C$7,8,0),1,1) -> 25.99 | F192: =OFFSET(InputPriceData!E$15,CalculationsAndCharts!$A192+$A$11,IF($C$7,8,0),1,1) -> 25.05 | G192: =OFFSET(InputPriceData!F$15,CalculationsAndCharts!$A192+$A$11,IF($C$7,8,0),1,1) -> 25.98 | H192: 25.35280381 | I192: 24.68666667 | J192: FALSE | K192: FALSE | L192: TRUE | M192: 24.55 | N192: TRUE | O192: FALSE | P192: 23.54 | Q192: FALSE | S192: 22.48 | T192: FALSE | W192: TRUE | X192: FALSE | Y192: FALSE | AA192: 0 | AB192: 0 | AE192: 25.35280381 | AF192: 24.68666667 | AO192: 6842200
A193: 161 | B193: =OFFSET(InputPriceData!B$15,CalculationsAndCharts!$A193+$A$11,0,1,1) -> 2016-04-12 | C193: =OFFSET(InputPriceData!G$15,CalculationsAndCharts!$A193+$A$11,IF($C$7,8,0),1,1) -> 4916800 | D193: =OFFSET(InputPriceData!C$15,CalculationsAndCharts!$A193+$A$11,IF($C$7,8,0),1,1) -> 23.78 | E193: =OFFSET(InputPriceData!D$15,CalculationsAndCharts!$A193+$A$11,IF($C$7,8,0),1,1) -> 24.55 | F193: =OFFSET(InputPriceData!E$15,CalculationsAndCharts!$A193+$A$11,IF($C$7,8,0),1,1) -> 23.54 | G193: =OFFSET(InputPriceData!F$15,CalculationsAndCharts!$A193+$A$11,IF($C$7,8,0),1,1) -> 24.48 | H193: 24.05974838 | I193: 23.84333333 | J193: FALSE | K193: FALSE | L193: TRUE | M193: 24.27 | N193: TRUE | O193: FALSE | P193: 23.54 | Q193: FALSE | T193: FALSE | W193: TRUE | X193: TRUE | Y193: FALSE | AA193: 23.78 | AB193: 0 | AE193: 24.05974838 | AF193: 23.84333333 | AG193: 25.55 | AO193: 4916800
A194: 162 | B194: =OFFSET(InputPriceData!B$15,CalculationsAndCharts!$A194+$A$11,0,1,1) -> 2016-04-11 | C194: =OFFSET(InputPriceData!G$15,CalculationsAndCharts!$A194+$A$11,IF($C$7,8,0),1,1) -> 4494400 | D194: =OFFSET(InputPriceData!C$15,CalculationsAndCharts!$A194+$A$11,IF($C$7,8,0),1,1) -> 23.76 | E194: =OFFSET(InputPriceData!D$15,CalculationsAndCharts!$A194+$A$11,IF($C$7,8,0),1,1) -> 24.27 | F194: =OFFSET(InputPriceData!E$15,CalculationsAndCharts!$A194+$A$11,IF($C$7,8,0),1,1) -> 23.6 | G194: =OFFSET(InputPriceData!F$15,CalculationsAndCharts!$A194+$A$11,IF($C$7,8,0),1,1) -> 23.6 | H194: 23.52376091 | I194: 23.4 | J194: TRUE | K194: FALSE | L194: TRUE | M194: 24.06 | N194: FALSE | O194: FALSE | P194: 23.3 | Q194: FALSE | T194: FALSE | W194: FALSE | X194: FALSE | Y194: FALSE | AA194: 0 | AB194: 0 | AE194: 23.52376091 | AF194: 23.4 | AP194: 4494400
A195: 163 | B195: =OFFSET(InputPriceData!B$15,CalculationsAndCharts!$A195+$A$11,0,1,1) -> 2016-04-08 | C195: =OFFSET(InputPriceData!G$15,CalculationsAndCharts!$A195+$A$11,IF($C$7,8,0),1,1) -> 4645400 | D195: =OFFSET(InputPriceData!C$15,CalculationsAndCharts!$A195+$A$11,IF($C$7,8,0),1,1) -> 23.61 | E195: =OFFSET(InputPriceData!D$15,CalculationsAndCharts!$A195+$A$11,IF($C$7,8,0),1,1) -> 24.06 | F195: =OFFSET(InputPriceData!E$15,CalculationsAndCharts!$A195+$A$11,IF($C$7,8,0),1,1) -> 23.3 | G195: =OFFSET(InputPriceData!F$15,CalculationsAndCharts!$A195+$A$11,IF($C$7,8,0),1,1) -> 23.45 | H195: 23.30085896 | I195: 23.69333333 | J195: FALSE | K195: FALSE | L195: FALSE | M195: 0 | N195: FALSE | O195: FALSE | P195: 22.83 | Q195: FALSE | T195: FALSE | W195: FALSE | X195: FALSE | Y195: FALSE | AA195: 0 | AB195: 0 | AE195: 23.30085896 | AF195: 23.69333333 | AP195: 4645400
A196: 164 | B196: =OFFSET(InputPriceData!B$15,CalculationsAndCharts!$A196+$A$11,0,1,1) -> 2016-04-07 | C196: =OFFSET(InputPriceData!G$15,CalculationsAndCharts!$A196+$A$11,IF($C$7,8,0),1,1) -> 4592500 | D196: =OFFSET(InputPriceData!C$15,CalculationsAndCharts!$A196+$A$11,IF($C$7,8,0),1,1) -> 24.05 | E196: =OFFSET(InputPriceData!D$15,CalculationsAndCharts!$A196+$A$11,IF($C$7,8,0),1,1) -> 24.05 | F196: =OFFSET(InputPriceData!E$15,CalculationsAndCharts!$A196+$A$11,IF($C$7,8,0),1,1) -> 22.83 | G196: =OFFSET(InputPriceData!F$15,CalculationsAndCharts!$A196+$A$11,IF($C$7,8,0),1,1) -> 23.15 | H196: 23.7108242 | I196: 23.87666667 | J196: FALSE | K196: FALSE | L196: FALSE | M196: 0 | N196: FALSE | O196: FALSE | P196: 22.83 | Q196: FALSE | T196: FALSE | W196: FALSE | X196: FALSE | Y196: FALSE | AA196: 0 | AB196: 0 | AE196: 23.7108242 | AF196: 23.87666667 | AP196: 4592500
A197: 165 | B197: =OFFSET(InputPriceData!B$15,CalculationsAndCharts!$A197+$A$11,0,1,1) -> 2016-04-06 | C197: =OFFSET(InputPriceData!G$15,CalculationsAndCharts!$A197+$A$11,IF($C$7,8,0),1,1) -> 3348500 | D197: =OFFSET(InputPriceData!C$15,CalculationsAndCharts!$A197+$A$11,IF($C$7,8,0),1,1) -> 23.98 | E197: =OFFSET(InputPriceData!D$15,CalculationsAndCharts!$A197+$A$11,IF($C$7,8,0),1,1) -> 24.5 | F197: =OFFSET(InputPriceData!E$15,CalculationsAndCharts!$A197+$A$11,IF($C$7,8,0),1,1) -> 23.74 | G197: =OFFSET(InputPriceData!F$15,CalculationsAndCharts!$A197+$A$11,IF($C$7,8,0),1,1) -> 24.48 | H197: 24.21266788 | I197: 24.48666667 | J197: FALSE | K197: FALSE | L197: FALSE | M197: 0 | N197: FALSE | O197: FALSE | P197: 23.74 | Q197: FALSE | S197: 23.38 | T197: FALSE | W197: =IF($A197>$A$8-1,FALSE,IF(OR(O198,J198),TRUE,IF(AND(W198,Y197),FALSE,W198))) -> FALSE | X197: FALSE | Y197: TRUE | AA197: 0 | AB197: 23.98 | AE197: 24.21266788 | AF197: 24.48666667 | AH197: 25.5 | AO197: 3348500
A198: 166 | B198: =OFFSET(InputPriceData!B$15,CalculationsAndCharts!$A198+$A$11,0,1,1) -> 2016-04-05 | C198: =OFFSET(InputPriceData!G$15,CalculationsAndCharts!$A198+$A$11,IF($C$7,8,0),1,1) -> 4209200 | D198: =OFFSET(InputPriceData!C$15,CalculationsAndCharts!$A198+$A$11,IF($C$7,8,0),1,1) -> 24.38 | E198: =OFFSET(InputPriceData!D$15,CalculationsAndCharts!$A198+$A$11,IF($C$7,8,0),1,1) -> 24.48 | F198: =OFFSET(InputPriceData!E$15,CalculationsAndCharts!$A198+$A$11,IF($C$7,8,0),1,1) -> 23.9 | G198: =OFFSET(InputPriceData!F$15,CalculationsAndCharts!$A198+$A$11,IF($C$7,8,0),1,1) -> 24 | H198: 24.40072518 | I198: 24.78666667 | J198: FALSE | K198: TRUE | L198: FALSE | M198: 25.44 | N198: FALSE | O198: FALSE | P198: 23.9 | Q198: FALSE | S198: 23.38 | T198: FALSE | W198: TRUE | X198: FALSE | Y198: FALSE | AA198: 0 | AB198: 0 | AE198: 24.40072518 | AF198: 24.78666667 | AP198: 4209200
A199: 167 | B199: =OFFSET(InputPriceData!B$15,CalculationsAndCharts!$A199+$A$11,0,1,1) -> 2016-04-04 | C199: =OFFSET(InputPriceData!G$15,CalculationsAndCharts!$A199+$A$11,IF($C$7,8,0),1,1) -> 2911800 | D199: =OFFSET(InputPriceData!C$15,CalculationsAndCharts!$A199+$A$11,IF($C$7,8,0),1,1) -> 25.33 | E199: =OFFSET(InputPriceData!D$15,CalculationsAndCharts!$A199+$A$11,IF($C$7,8,0),1,1) -> 25.42 | F199: =OFFSET(InputPriceData!E$15,CalculationsAndCharts!$A199+$A$11,IF($C$7,8,0),1,1) -> 24.83 | G199: =OFFSET(InputPriceData!F$15,CalculationsAndCharts!$A199+$A$11,IF($C$7,8,0),1,1) -> 24.98 | H199: 25.22282418 | I199: 25.04333333 | J199: FALSE | K199: FALSE | L199: TRUE | M199: 25.44 | N199: FALSE | O199: FALSE | P199: 24.1 | Q199: FALSE | S199: 23.38 | T199: FALSE | W199: TRUE | X199: FALSE | Y199: FALSE | AA199: 0 | AB199: 0 | AE199: 25.22282418 | AF199: 25.04333333 | AP199: 2911800
A200: 168 | B200: =OFFSET(InputPriceData!B$15,CalculationsAndCharts!$A200+$A$11,0,1,1) -> 2016-04-01 | C200: =OFFSET(InputPriceData!G$15,CalculationsAndCharts!$A200+$A$11,IF($C$7,8,0),1,1) -> 4498500 | D200: =OFFSET(InputPriceData!C$15,CalculationsAndCharts!$A200+$A$11,IF($C$7,8,0),1,1) -> 24.35 | E200: =OFFSET(InputPriceData!D$15,CalculationsAndCharts!$A200+$A$11,IF($C$7,8,0),1,1) -> 25.44 | F200: =OFFSET(InputPriceData!E$15,CalculationsAndCharts!$A200+$A$11,IF($C$7,8,0),1,1) -> 24.1 | G200: =OFFSET(InputPriceData!F$15,CalculationsAndCharts!$A200+$A$11,IF($C$7,8,0),1,1) -> 25.38 | H200: 25.12700059 | I200: 25.00333333 | J200: FALSE | K200: FALSE | L200: TRUE | M200: 25.3 | N200: TRUE | O200: FALSE | P200: 24.1 | Q200: FALSE | S200: 22.86 | T200: FALSE | W200: TRUE | X200: FALSE | Y200: FALSE | AA200: 0 | AB200: 0 | AE200: 25.12700059 | AF200: 25.00333333 | AO200: 4498500
A201: 169 | B201: =OFFSET(InputPriceData!B$15,CalculationsAndCharts!$A201+$A$11,0,1,1) -> 2016-03-31 | C201: =OFFSET(InputPriceData!G$15,CalculationsAndCharts!$A201+$A$11,IF($C$7,8,0),1,1) -> 3188000 | D201: =OFFSET(InputPriceData!C$15,CalculationsAndCharts!$A201+$A$11,IF($C$7,8,0),1,1) -> 24.7 | E201: =OFFSET(InputPriceData!D$15,CalculationsAndCharts!$A201+$A$11,IF($C$7,8,0),1,1) -> 25.08 | F201: =OFFSET(InputPriceData!E$15,CalculationsAndCharts!$A201+$A$11,IF($C$7,8,0),1,1) -> 24.6 | G201: =OFFSET(InputPriceData!F$15,CalculationsAndCharts!$A201+$A$11,IF($C$7,8,0),1,1) -> 24.77 | H201: 24.81754302 | I201: 24.69 | J201: FALSE | K201: FALSE | L201: TRUE | M201: 25.3 | N201: FALSE | O201: FALSE | P201: 24.6 | Q201: FALSE | S201: 22.86 | T201: FALSE | W201: TRUE | X201: FALSE | Y201: FALSE | AA201: 0 | AB201: 0 | AE201: 24.81754302 | AF201: 24.69 | AO201: 3188000
A202: 170 | B202: =OFFSET(InputPriceData!B$15,CalculationsAndCharts!$A202+$A$11,0,1,1) -> 2016-03-30 | C202: =OFFSET(InputPriceData!G$15,CalculationsAndCharts!$A202+$A$11,IF($C$7,8,0),1,1) -> 3569900 | D202: =OFFSET(InputPriceData!C$15,CalculationsAndCharts!$A202+$A$11,IF($C$7,8,0),1,1) -> 24.8 | E202: =OFFSET(InputPriceData!D$15,CalculationsAndCharts!$A202+$A$11,IF($C$7,8,0),1,1) -> 25.3 | F202: =OFFSET(InputPriceData!E$15,CalculationsAndCharts!$A202+$A$11,IF($C$7,8,0),1,1) -> 24.72 | G202: =OFFSET(InputPriceData!F$15,CalculationsAndCharts!$A202+$A$11,IF($C$7,8,0),1,1) -> 24.86 | H202: 24.64331656 | I202: 24.44 | J202: FALSE | K202: FALSE | L202: TRUE | M202: 24.44 | N202: TRUE | O202: FALSE | P202: 23.48 | Q202: FALSE | T202: FALSE | W202: TRUE | X202: TRUE | Y202: FALSE | AA202: 24.8 | AB202: 0 | AE202: 24.64331656 | AF202: 24.44 | AG202: 26.3 | AO202: 3569900
A203: 171 | B203: =OFFSET(InputPriceData!B$15,CalculationsAndCharts!$A203+$A$11,0,1,1) -> 2016-03-29 | C203: =OFFSET(InputPriceData!G$15,CalculationsAndCharts!$A203+$A$11,IF($C$7,8,0),1,1) -> 3804600 | D203: =OFFSET(InputPriceData!C$15,CalculationsAndCharts!$A203+$A$11,IF($C$7,8,0),1,1) -> 23.73 | E203: =OFFSET(InputPriceData!D$15,CalculationsAndCharts!$A203+$A$11,IF($C$7,8,0),1,1) -> 24.44 | F203: =OFFSET(InputPriceData!E$15,CalculationsAndCharts!$A203+$A$11,IF($C$7,8,0),1,1) -> 23.48 | G203: =OFFSET(InputPriceData!F$15,CalculationsAndCharts!$A203+$A$11,IF($C$7,8,0),1,1) -> 24.44 | H203: 24.25217319 | I203: 24.08666667 | J203: TRUE | K203: FALSE | L203: TRUE | M203: 24.24 | N203: FALSE | O203: FALSE | P203: 23.48 | Q203: FALSE | T203: FALSE | W203: FALSE | X203: FALSE | Y203: FALSE | AA203: 0 | AB203: 0 | AE203: 24.25217319 | AF203: 24.08666667 | AO203: 3804600
... 2047 more rows

Sheet Transaction Summary
B1: Transaction Summary (using trade size of 1 share, no commissions, no slippage))
C2: =LogicallyAvailableRows -> 2020 | D2: Logically Available Data Bars on the "CalculationsAndCharts" tab constitute a
D3: ="Back Test Transaction reporting period extending from " & TEXT(OFFSET(CalculationsAndCharts!B32,C2,0,1,1),"mm/dd/yyyy") & " to "& TEXT(CalculationsAndCharts!B33,"mm/dd/yyyy") -> Back Test Transaction reporting period extending from 11/19/2008 to 11/28/2016
B4: Summary for LONG trades
B5: =COUNT(OFFSET(B15,0,0,C2,1)) -> 272 | C5: LONG trades opened in this time period
B6: =COUNTIF(OFFSET(H15,0,0,B5,1),">0") -> 134 | C6: Winners | D6: Biggest Win | E6: =MAX(OFFSET(H15,0,0,B5,1)) -> 5.68 | H6: Sum of Gains | I6: =SUMIF(OFFSET(H15,0,0,B5,1),">0") -> 87.31
B7: =COUNTIF(OFFSET(H15,0,0,B5,1),"<0") -> 138 | C7: Losers | D7: Biggest Loss | E7: =MIN(OFFSET(H15,0,0,B5,1)) -> -3.28 | H7: Sum of Losses | I7: =SUMIF(OFFSET(H15,0,0,B5,1),"<0") -> -82.75
H8: NET change for Period | I8: =SUM(OFFSET(H15,0,0,B5,1)) -> 4.56
H10: Smallest Long Account Balance | I10: =MIN(OFFSET(I15,0,0,B5,1)) -> -8.54
E12: =MATCH(TRUE,OFFSET(CalculationsAndCharts!Y31,2,0,C2,1),0) -> 7 | F12: =IF($E$12>$B$15,"Open Trade; Marked to Current Bar Open $","") -> Open Trade; Marked to Current Bar Open $
C13: Enter Long | F13: Exit Long | H13: Trade Result | I13: Running Balance | J13: Duration in Bars
B14: Rel Row | C14: Date | D14: $ | E14: Rel Row | F14: Date | G14: $
B15: =MATCH(TRUE,OFFSET(CalculationsAndCharts!$X$33,0,0, $C$2,1),0) -> 5 | C15: =OFFSET(CalculationsAndCharts!$B$32, B15,0,1,1) -> 2016-11-21 | D15: =OFFSET(OpenColHeader, B15,0,1,1) -> 36.36 | E15: =IF($E$12>$B$15,"OPEN",$E$12) -> OPEN | F15: =IF($E$12>$B$15,CalculationsAndCharts!$B$33,OFFSET(CalculationsAndCharts!$B$32, E15,0,1,1)) -> 2016-11-28 | G15: =IF($E$12>$B$15,CalculationsAndCharts!D33,OFFSET(OpenColHeader, E15,0,1,1)) -> 36.67 | H15: =G15-D15 -> 0.31 | I15: =H15+IF(ISNA(I16),0,I16) -> 4.56 | J15: =IFERROR(B15-E15+1,"") -> 
B16: =IFERROR(MATCH(TRUE,OFFSET(CalculationsAndCharts!$X$33,B15,0, $C$2-B15,1),0)+B15,"") -> 14 | C16: =IFERROR(OFFSET(CalculationsAndCharts!$B$32, B16,0,1,1),"") -> 2016-11-08 | D16: =IFERROR(OFFSET(OpenColHeader, B16,0,1,1),"") -> 29.29 | E16: =IFERROR(IF($E$12>$B$15,$E$12,(MATCH(TRUE,OFFSET(CalculationsAndCharts!$Y$33,E15,0, $C$2-E15,1),0)+E15)),"") -> 7 | F16: =IFERROR(OFFSET(CalculationsAndCharts!$B$32, E16,0,1,1),"") -> 2016-11-17 | G16: =IFERROR(OFFSET(OpenColHeader, E16,0,1,1),"") -> 34.97 | H16: =IFERROR(G16-D16,"") -> 5.68 | I16: =IFERROR(H16+IF(""=I17,0,I17),"") -> 4.25 | J16: =IFERROR(B16-E16+1,"") -> 8
B17: =IFERROR(MATCH(TRUE,OFFSET(CalculationsAndCharts!$X$33,B16,0, $C$2-B16,1),0)+B16,"") -> 24 | C17: =IFERROR(OFFSET(CalculationsAndCharts!$B$32, B17,0,1,1),"") -> 2016-10-25 | D17: 29.65 | E17: =IF(B17="","",IFERROR((MATCH(TRUE,OFFSET(CalculationsAndCharts!$Y$33,E16,0, $C$2-E16,1),0)+E16),"")) -> 22 | F17: =IFERROR(OFFSET(CalculationsAndCharts!$B$32, E17,0,1,1),"") -> 2016-10-27 | G17: 29.81 | H17: =IFERROR(G17-D17,"") -> 0.16 | I17: =IFERROR(H17+IF(""=I18,0,I18),"") -> -1.43 | J17: 3
B18: =IFERROR(MATCH(TRUE,OFFSET(CalculationsAndCharts!$X$33,B17,0, $C$2-B17,1),0)+B17,"") -> 29 | C18: =IFERROR(OFFSET(CalculationsAndCharts!$B$32, B18,0,1,1),"") -> 2016-10-18 | D18: 29.05 | E18: =IF(B18="","",IFERROR((MATCH(TRUE,OFFSET(CalculationsAndCharts!$Y$33,E17,0, $C$2-E17,1),0)+E17),"")) -> 25 | F18: =IFERROR(OFFSET(CalculationsAndCharts!$B$32, E18,0,1,1),"") -> 2016-10-24 | G18: 29.85 | H18: 0.8 | I18: -1.59 | J18: 5
B19: =IFERROR(MATCH(TRUE,OFFSET(CalculationsAndCharts!$X$33,B18,0, $C$2-B18,1),0)+B18,"") -> 37 | C19: =IFERROR(OFFSET(CalculationsAndCharts!$B$32, B19,0,1,1),"") -> 2016-10-06 | D19: 29.11 | E19: =IF(B19="","",IFERROR((MATCH(TRUE,OFFSET(CalculationsAndCharts!$Y$33,E18,0, $C$2-E18,1),0)+E18),"")) -> 35 | F19: =IFERROR(OFFSET(CalculationsAndCharts!$B$32, E19,0,1,1),"") -> 2016-10-10 | G19: 29.52 | H19: 0.41 | I19: -2.39 | J19: 3
B20: =IFERROR(MATCH(TRUE,OFFSET(CalculationsAndCharts!$X$33,B19,0, $C$2-B19,1),0)+B19,"") -> 39 | C20: =IFERROR(OFFSET(CalculationsAndCharts!$B$32, B20,0,1,1),"") -> 2016-10-04 | D20: 28.77 | E20: =IF(B20="","",IFERROR((MATCH(TRUE,OFFSET(CalculationsAndCharts!$Y$33,E19,0, $C$2-E19,1),0)+E19),"")) -> 38 | F20: =IFERROR(OFFSET(CalculationsAndCharts!$B$32, E20,0,1,1),"") -> 2016-10-05 | G20: 28.83 | H20: 0.06 | I20: -2.8 | J20: 2
B21: =IFERROR(MATCH(TRUE,OFFSET(CalculationsAndCharts!$X$33,B20,0, $C$2-B20,1),0)+B20,"") -> 42 | C21: =IFERROR(OFFSET(CalculationsAndCharts!$B$32, B21,0,1,1),"") -> 2016-09-29 | D21: 29.54 | E21: =IF(B21="","",IFERROR((MATCH(TRUE,OFFSET(CalculationsAndCharts!$Y$33,E20,0, $C$2-E20,1),0)+E20),"")) -> 41 | F21: =IFERROR(OFFSET(CalculationsAndCharts!$B$32, E21,0,1,1),"") -> 2016-09-30 | G21: 28.92 | H21: -0.62 | I21: -2.86 | J21: 2
B22: =IFERROR(MATCH(TRUE,OFFSET(CalculationsAndCharts!$X$33,B21,0, $C$2-B21,1),0)+B21,"") -> 48 | C22: =IFERROR(OFFSET(CalculationsAndCharts!$B$32, B22,0,1,1),"") -> 2016-09-21 | D22: 29.21 | E22: =IF(B22="","",IFERROR((MATCH(TRUE,OFFSET(CalculationsAndCharts!$Y$33,E21,0, $C$2-E21,1),0)+E21),"")) -> 44 | F22: =IFERROR(OFFSET(CalculationsAndCharts!$B$32, E22,0,1,1),"") -> 2016-09-27 | G22: 28.62 | H22: -0.59 | I22: -2.24 | J22: 5
B23: =IFERROR(MATCH(TRUE,OFFSET(CalculationsAndCharts!$X$33,B22,0, $C$2-B22,1),0)+B22,"") -> 51 | C23: =IFERROR(OFFSET(CalculationsAndCharts!$B$32, B23,0,1,1),"") -> 2016-09-16 | D23: 28.66 | E23: =IF(B23="","",IFERROR((MATCH(TRUE,OFFSET(CalculationsAndCharts!$Y$33,E22,0, $C$2-E22,1),0)+E22),"")) -> 49 | F23: =IFERROR(OFFSET(CalculationsAndCharts!$B$32, E23,0,1,1),"") -> 2016-09-20 | G23: 29.18 | H23: 0.52 | I23: -1.65 | J23: 3
B24: =IFERROR(MATCH(TRUE,OFFSET(CalculationsAndCharts!$X$33,B23,0, $C$2-B23,1),0)+B23,"") -> 53 | C24: =IFERROR(OFFSET(CalculationsAndCharts!$B$32, B24,0,1,1),"") -> 2016-09-14 | D24: 28.76 | E24: =IF(B24="","",IFERROR((MATCH(TRUE,OFFSET(CalculationsAndCharts!$Y$33,E23,0, $C$2-E23,1),0)+E23),"")) -> 52 | F24: =IFERROR(OFFSET(CalculationsAndCharts!$B$32, E24,0,1,1),"") -> 2016-09-15 | G24: 28.48 | H24: -0.28 | I24: -2.17 | J24: 2
B25: =IFERROR(MATCH(TRUE,OFFSET(CalculationsAndCharts!$X$33,B24,0, $C$2-B24,1),0)+B24,"") -> 56 | C25: =IFERROR(OFFSET(CalculationsAndCharts!$B$32, B25,0,1,1),"") -> 2016-09-09 | D25: 30.83 | E25: =IF(B25="","",IFERROR((MATCH(TRUE,OFFSET(CalculationsAndCharts!$Y$33,E24,0, $C$2-E24,1),0)+E24),"")) -> 55 | F25: =IFERROR(OFFSET(CalculationsAndCharts!$B$32, E25,0,1,1),"") -> 2016-09-12 | G25: 28.64 | H25: -2.19 | I25: -1.89 | J25: 2
B26: =IFERROR(MATCH(TRUE,OFFSET(CalculationsAndCharts!$X$33,B25,0, $C$2-B25,1),0)+B25,"") -> 58 | C26: =IFERROR(OFFSET(CalculationsAndCharts!$B$32, B26,0,1,1),"") -> 2016-09-07 | D26: 30.86 | E26: =IF(B26="","",IFERROR((MATCH(TRUE,OFFSET(CalculationsAndCharts!$Y$33,E25,0, $C$2-E25,1),0)+E25),"")) -> 57 | F26: =IFERROR(OFFSET(CalculationsAndCharts!$B$32, E26,0,1,1),"") -> 2016-09-08 | G26: 31.15 | H26: 0.29 | I26: 0.3 | J26: 2
B27: =IFERROR(MATCH(TRUE,OFFSET(CalculationsAndCharts!$X$33,B26,0, $C$2-B26,1),0)+B26,"") -> 64 | C27: =IFERROR(OFFSET(CalculationsAndCharts!$B$32, B27,0,1,1),"") -> 2016-08-29 | D27: 29.67 | E27: =IF(B27="","",IFERROR((MATCH(TRUE,OFFSET(CalculationsAndCharts!$Y$33,E26,0, $C$2-E26,1),0)+E26),"")) -> 60 | F27: =IFERROR(OFFSET(CalculationsAndCharts!$B$32, E27,0,1,1),"") -> 2016-09-02 | G27: 30.85 | H27: 1.18 | I27: 0.01 | J27: 5
B28: =IFERROR(MATCH(TRUE,OFFSET(CalculationsAndCharts!$X$33,B27,0, $C$2-B27,1),0)+B27,"") -> 67 | C28: =IFERROR(OFFSET(CalculationsAndCharts!$B$32, B28,0,1,1),"") -> 2016-08-24 | D28: 29.4 | E28: =IF(B28="","",IFERROR((MATCH(TRUE,OFFSET(CalculationsAndCharts!$Y$33,E27,0, $C$2-E27,1),0)+E27),"")) -> 65 | F28: =IFERROR(OFFSET(CalculationsAndCharts!$B$32, E28,0,1,1),"") -> 2016-08-26 | G28: 29.72 | H28: 0.32 | I28: -1.17 | J28: 3
B29: =IFERROR(MATCH(TRUE,OFFSET(CalculationsAndCharts!$X$33,B28,0, $C$2-B28,1),0)+B28,"") -> 70 | C29: =IFERROR(OFFSET(CalculationsAndCharts!$B$32, B29,0,1,1),"") -> 2016-08-19 | D29: 29.05 | E29: =IF(B29="","",IFERROR((MATCH(TRUE,OFFSET(CalculationsAndCharts!$Y$33,E28,0, $C$2-E28,1),0)+E28),"")) -> 69 | F29: =IFERROR(OFFSET(CalculationsAndCharts!$B$32, E29,0,1,1),"") -> 2016-08-22 | G29: 29.14 | H29: 0.09 | I29: -1.49 | J29: 2
B30: =IFERROR(MATCH(TRUE,OFFSET(CalculationsAndCharts!$X$33,B29,0, $C$2-B29,1),0)+B29,"") -> 73 | C30: =IFERROR(OFFSET(CalculationsAndCharts!$B$32, B30,0,1,1),"") -> 2016-08-16 | D30: 29.17 | E30: =IF(B30="","",IFERROR((MATCH(TRUE,OFFSET(CalculationsAndCharts!$Y$33,E29,0, $C$2-E29,1),0)+E29),"")) -> 71 | F30: =IFERROR(OFFSET(CalculationsAndCharts!$B$32, E30,0,1,1),"") -> 2016-08-18 | G30: 29.33 | H30: 0.16 | I30: -1.58 | J30: 3
B31: =IFERROR(MATCH(TRUE,OFFSET(CalculationsAndCharts!$X$33,B30,0, $C$2-B30,1),0)+B30,"") -> 80 | C31: =IFERROR(OFFSET(CalculationsAndCharts!$B$32, B31,0,1,1),"") -> 2016-08-05 | D31: 28.65 | E31: =IF(B31="","",IFERROR((MATCH(TRUE,OFFSET(CalculationsAndCharts!$Y$33,E30,0, $C$2-E30,1),0)+E30),"")) -> 76 | F31: =IFERROR(OFFSET(CalculationsAndCharts!$B$32, E31,0,1,1),"") -> 2016-08-11 | G31: 29.27 | H31: 0.62 | I31: -1.74 | J31: 5
B32: =IFERROR(MATCH(TRUE,OFFSET(CalculationsAndCharts!$X$33,B31,0, $C$2-B31,1),0)+B31,"") -> 84 | C32: =IFERROR(OFFSET(CalculationsAndCharts!$B$32, B32,0,1,1),"") -> 2016-08-01 | D32: 28.4 | E32: =IF(B32="","",IFERROR((MATCH(TRUE,OFFSET(CalculationsAndCharts!$Y$33,E31,0, $C$2-E31,1),0)+E31),"")) -> 83 | F32: =IFERROR(OFFSET(CalculationsAndCharts!$B$32, E32,0,1,1),"") -> 2016-08-02 | G32: 27.97 | H32: -0.43 | I32: -2.36 | J32: 2
B33: =IFERROR(MATCH(TRUE,OFFSET(CalculationsAndCharts!$X$33,B32,0, $C$2-B32,1),0)+B32,"") -> 86 | C33: =IFERROR(OFFSET(CalculationsAndCharts!$B$32, B33,0,1,1),"") -> 2016-07-28 | D33: 28.05 | E33: =IF(B33="","",IFERROR((MATCH(TRUE,OFFSET(CalculationsAndCharts!$Y$33,E32,0, $C$2-E32,1),0)+E32),"")) -> 85 | F33: =IFERROR(OFFSET(CalculationsAndCharts!$B$32, E33,0,1,1),"") -> 2016-07-29 | G33: 28.26 | H33: 0.21 | I33: -1.93 | J33: 2
B34: =IFERROR(MATCH(TRUE,OFFSET(CalculationsAndCharts!$X$33,B33,0, $C$2-B33,1),0)+B33,"") -> 88 | C34: =IFERROR(OFFSET(CalculationsAndCharts!$B$32, B34,0,1,1),"") -> 2016-07-26 | D34: 28.16 | E34: =IF(B34="","",IFERROR((MATCH(TRUE,OFFSET(CalculationsAndCharts!$Y$33,E33,0, $C$2-E33,1),0)+E33),"")) -> 87 | F34: =IFERROR(OFFSET(CalculationsAndCharts!$B$32, E34,0,1,1),"") -> 2016-07-27 | G34: 28.32 | H34: 0.16 | I34: -2.14 | J34: 2
B35: =IFERROR(MATCH(TRUE,OFFSET(CalculationsAndCharts!$X$33,B34,0, $C$2-B34,1),0)+B34,"") -> 92 | C35: =IFERROR(OFFSET(CalculationsAndCharts!$B$32, B35,0,1,1),"") -> 2016-07-20 | D35: 28.3 | E35: =IF(B35="","",IFERROR((MATCH(TRUE,OFFSET(CalculationsAndCharts!$Y$33,E34,0, $C$2-E34,1),0)+E34),"")) -> 90 | F35: =IFERROR(OFFSET(CalculationsAndCharts!$B$32, E35,0,1,1),"") -> 2016-07-22 | G35: 28.04 | H35: -0.26 | I35: -2.3 | J35: 3
B36: =IFERROR(MATCH(TRUE,OFFSET(CalculationsAndCharts!$X$33,B35,0, $C$2-B35,1),0)+B35,"") -> 100 | C36: =IFERROR(OFFSET(CalculationsAndCharts!$B$32, B36,0,1,1),"") -> 2016-07-08 | D36: 25.31 | E36: =IF(B36="","",IFERROR((MATCH(TRUE,OFFSET(CalculationsAndCharts!$Y$33,E35,0, $C$2-E35,1),0)+E35),"")) -> 93 | F36: =IFERROR(OFFSET(CalculationsAndCharts!$B$32, E36,0,1,1),"") -> 2016-07-19 | G36: 27.61 | H36: 2.3 | I36: -2.04 | J36: 8
B37: =IFERROR(MATCH(TRUE,OFFSET(CalculationsAndCharts!$X$33,B36,0, $C$2-B36,1),0)+B36,"") -> 105 | C37: =IFERROR(OFFSET(CalculationsAndCharts!$B$32, B37,0,1,1),"") -> 2016-06-30 | D37: 24.74 | E37: =IF(B37="","",IFERROR((MATCH(TRUE,OFFSET(CalculationsAndCharts!$Y$33,E36,0, $C$2-E36,1),0)+E36),"")) -> 102 | F37: =IFERROR(OFFSET(CalculationsAndCharts!$B$32, E37,0,1,1),"") -> 2016-07-06 | G37: 23.85 | H37: -0.89 | I37: -4.34 | J37: 4
B38: =IFERROR(MATCH(TRUE,OFFSET(CalculationsAndCharts!$X$33,B37,0, $C$2-B37,1),0)+B37,"") -> 114 | C38: =IFERROR(OFFSET(CalculationsAndCharts!$B$32, B38,0,1,1),"") -> 2016-06-17 | D38: 25.47 | E38: =IF(B38="","",IFERROR((MATCH(TRUE,OFFSET(CalculationsAndCharts!$Y$33,E37,0, $C$2-E37,1),0)+E37),"")) -> 108 | F38: =IFERROR(OFFSET(CalculationsAndCharts!$B$32, E38,0,1,1),"") -> 2016-06-27 | G38: 22.7 | H38: -2.77 | I38: -3.45 | J38: 7
B39: =IFERROR(MATCH(TRUE,OFFSET(CalculationsAndCharts!$X$33,B38,0, $C$2-B38,1),0)+B38,"") -> 121 | C39: =IFERROR(OFFSET(CalculationsAndCharts!$B$32, B39,0,1,1),"") -> 2016-06-08 | D39: 28.16 | E39: =IF(B39="","",IFERROR((MATCH(TRUE,OFFSET(CalculationsAndCharts!$Y$33,E38,0, $C$2-E38,1),0)+E38),"")) -> 120 | F39: =IFERROR(OFFSET(CalculationsAndCharts!$B$32, E39,0,1,1),"") -> 2016-06-09 | G39: 27.78 | H39: -0.38 | I39: -0.68 | J39: 2
B40: =IFERROR(MATCH(TRUE,OFFSET(CalculationsAndCharts!$X$33,B39,0, $C$2-B39,1),0)+B39,"") -> 124 | C40: =IFERROR(OFFSET(CalculationsAndCharts!$B$32, B40,0,1,1),"") -> 2016-06-03 | D40: 27.68 | E40: =IF(B40="","",IFERROR((MATCH(TRUE,OFFSET(CalculationsAndCharts!$Y$33,E39,0, $C$2-E39,1),0)+E39),"")) -> 123 | F40: =IFERROR(OFFSET(CalculationsAndCharts!$B$32, E40,0,1,1),"") -> 2016-06-06 | G40: 27.92 | H40: 0.24 | I40: -0.3 | J40: 2
B41: =IFERROR(MATCH(TRUE,OFFSET(CalculationsAndCharts!$X$33,B40,0, $C$2-B40,1),0)+B40,"") -> 126 | C41: =IFERROR(OFFSET(CalculationsAndCharts!$B$32, B41,0,1,1),"") -> 2016-06-01 | D41: 27.88 | E41: =IF(B41="","",IFERROR((MATCH(TRUE,OFFSET(CalculationsAndCharts!$Y$33,E40,0, $C$2-E40,1),0)+E40),"")) -> 125 | F41: =IFERROR(OFFSET(CalculationsAndCharts!$B$32, E41,0,1,1),"") -> 2016-06-02 | G41: 28.32 | H41: 0.44 | I41: -0.54 | J41: 2
B42: =IFERROR(MATCH(TRUE,OFFSET(CalculationsAndCharts!$X$33,B41,0, $C$2-B41,1),0)+B41,"") -> 131 | C42: =IFERROR(OFFSET(CalculationsAndCharts!$B$32, B42,0,1,1),"") -> 2016-05-24 | D42: 26.99 | E42: =IF(B42="","",IFERROR((MATCH(TRUE,OFFSET(CalculationsAndCharts!$Y$33,E41,0, $C$2-E41,1),0)+E41),"")) -> 127 | F42: =IFERROR(OFFSET(CalculationsAndCharts!$B$32, E42,0,1,1),"") -> 2016-05-31 | G42: 28.93 | H42: 1.94 | I42: -0.98 | J42: 5
B43: =IFERROR(MATCH(TRUE,OFFSET(CalculationsAndCharts!$X$33,B42,0, $C$2-B42,1),0)+B42,"") -> 135 | C43: =IFERROR(OFFSET(CalculationsAndCharts!$B$32, B43,0,1,1),"") -> 2016-05-18 | D43: 25.47 | E43: =IF(B43="","",IFERROR((MATCH(TRUE,OFFSET(CalculationsAndCharts!$Y$33,E42,0, $C$2-E42,1),0)+E42),"")) -> 132 | F43: =IFERROR(OFFSET(CalculationsAndCharts!$B$32, E43,0,1,1),"") -> 2016-05-23 | G43: 26.47 | H43: 1 | I43: -2.92 | J43: 4
B44: =IFERROR(MATCH(TRUE,OFFSET(CalculationsAndCharts!$X$33,B43,0, $C$2-B43,1),0)+B43,"") -> 142 | C44: =IFERROR(OFFSET(CalculationsAndCharts!$B$32, B44,0,1,1),"") -> 2016-05-09 | D44: 26.37 | E44: =IF(B44="","",IFERROR((MATCH(TRUE,OFFSET(CalculationsAndCharts!$Y$33,E43,0, $C$2-E43,1),0)+E43),"")) -> 138 | F44: =IFERROR(OFFSET(CalculationsAndCharts!$B$32, E44,0,1,1),"") -> 2016-05-13 | G44: 26.65 | H44: 0.28 | I44: -3.92 | J44: 5
B45: =IFERROR(MATCH(TRUE,OFFSET(CalculationsAndCharts!$X$33,B44,0, $C$2-B44,1),0)+B44,"") -> 145 | C45: =IFERROR(OFFSET(CalculationsAndCharts!$B$32, B45,0,1,1),"") -> 2016-05-04 | D45: 26 | E45: =IF(B45="","",IFERROR((MATCH(TRUE,OFFSET(CalculationsAndCharts!$Y$33,E44,0, $C$2-E44,1),0)+E44),"")) -> 144 | F45: =IFERROR(OFFSET(CalculationsAndCharts!$B$32, E45,0,1,1),"") -> 2016-05-05 | G45: 26.36 | H45: 0.36 | I45: -4.2 | J45: 2
B46: =IFERROR(MATCH(TRUE,OFFSET(CalculationsAndCharts!$X$33,B45,0, $C$2-B45,1),0)+B45,"") -> 151 | C46: =IFERROR(OFFSET(CalculationsAndCharts!$B$32, B46,0,1,1),"") -> 2016-04-26 | D46: 27.61 | E46: =IF(B46="","",IFERROR((MATCH(TRUE,OFFSET(CalculationsAndCharts!$Y$33,E45,0, $C$2-E45,1),0)+E45),"")) -> 148 | F46: =IFERROR(OFFSET(CalculationsAndCharts!$B$32, E46,0,1,1),"") -> 2016-04-29 | G46: 26.89 | H46: -0.72 | I46: -4.56 | J46: 4
B47: =IFERROR(MATCH(TRUE,OFFSET(CalculationsAndCharts!$X$33,B46,0, $C$2-B46,1),0)+B46,"") -> 161 | C47: =IFERROR(OFFSET(CalculationsAndCharts!$B$32, B47,0,1,1),"") -> 2016-04-12 | D47: 23.78 | E47: =IF(B47="","",IFERROR((MATCH(TRUE,OFFSET(CalculationsAndCharts!$Y$33,E46,0, $C$2-E46,1),0)+E46),"")) -> 152 | F47: =IFERROR(OFFSET(CalculationsAndCharts!$B$32, E47,0,1,1),"") -> 2016-04-25 | G47: 27.39 | H47: 3.61 | I47: -3.84 | J47: 10
B48: =IFERROR(MATCH(TRUE,OFFSET(CalculationsAndCharts!$X$33,B47,0, $C$2-B47,1),0)+B47,"") -> 170 | C48: =IFERROR(OFFSET(CalculationsAndCharts!$B$32, B48,0,1,1),"") -> 2016-03-30 | D48: 24.8 | E48: =IF(B48="","",IFERROR((MATCH(TRUE,OFFSET(CalculationsAndCharts!$Y$33,E47,0, $C$2-E47,1),0)+E47),"")) -> 165 | F48: =IFERROR(OFFSET(CalculationsAndCharts!$B$32, E48,0,1,1),"") -> 2016-04-06 | G48: 23.98 | H48: -0.82 | I48: -7.45 | J48: 6
B49: =IFERROR(MATCH(TRUE,OFFSET(CalculationsAndCharts!$X$33,B48,0, $C$2-B48,1),0)+B48,"") -> 177 | C49: =IFERROR(OFFSET(CalculationsAndCharts!$B$32, B49,0,1,1),"") -> 2016-03-18 | D49: 24.83 | E49: =IF(B49="","",IFERROR((MATCH(TRUE,OFFSET(CalculationsAndCharts!$Y$33,E48,0, $C$2-E48,1),0)+E48),"")) -> 174 | F49: =IFERROR(OFFSET(CalculationsAndCharts!$B$32, E49,0,1,1),"") -> 2016-03-23 | G49: 24.67 | H49: -0.16 | I49: -6.63 | J49: 4
B50: =IFERROR(MATCH(TRUE,OFFSET(CalculationsAndCharts!$X$33,B49,0, $C$2-B49,1),0)+B49,"") -> 182 | C50: =IFERROR(OFFSET(CalculationsAndCharts!$B$32, B50,0,1,1),"") -> 2016-03-11 | D50: 22.8 | E50: =IF(B50="","",IFERROR((MATCH(TRUE,OFFSET(CalculationsAndCharts!$Y$33,E49,0, $C$2-E49,1),0)+E49),"")) -> 179 | F50: =IFERROR(OFFSET(CalculationsAndCharts!$B$32, E50,0,1,1),"") -> 2016-03-16 | G50: 23.21 | H50: 0.41 | I50: -6.47 | J50: 4
B51: =IFERROR(MATCH(TRUE,OFFSET(CalculationsAndCharts!$X$33,B50,0, $C$2-B50,1),0)+B50,"") -> 192 | C51: =IFERROR(OFFSET(CalculationsAndCharts!$B$32, B51,0,1,1),"") -> 2016-02-26 | D51: 20.95 | E51: =IF(B51="","",IFERROR((MATCH(TRUE,OFFSET(CalculationsAndCharts!$Y$33,E50,0, $C$2-E50,1),0)+E50),"")) -> 184 | F51: =IFERROR(OFFSET(CalculationsAndCharts!$B$32, E51,0,1,1),"") -> 2016-03-09 | G51: 22.53 | H51: 1.58 | I51: -6.88 | J51: 9
B52: =IFERROR(MATCH(TRUE,OFFSET(CalculationsAndCharts!$X$33,B51,0, $C$2-B51,1),0)+B51,"") -> 195 | C52: =IFERROR(OFFSET(CalculationsAndCharts!$B$32, B52,0,1,1),"") -> 2016-02-23 | D52: 20.41 | E52: =IF(B52="","",IFERROR((MATCH(TRUE,OFFSET(CalculationsAndCharts!$Y$33,E51,0, $C$2-E51,1),0)+E51),"")) -> 193 | F52: =IFERROR(OFFSET(CalculationsAndCharts!$B$32, E52,0,1,1),"") -> 2016-02-25 | G52: 19.74 | H52: -0.67 | I52: -8.46 | J52: 3
B53: =IFERROR(MATCH(TRUE,OFFSET(CalculationsAndCharts!$X$33,B52,0, $C$2-B52,1),0)+B52,"") -> 199 | C53: =IFERROR(OFFSET(CalculationsAndCharts!$B$32, B53,0,1,1),"") -> 2016-02-17 | D53: 19.8 | E53: =IF(B53="","",IFERROR((MATCH(TRUE,OFFSET(CalculationsAndCharts!$Y$33,E52,0, $C$2-E52,1),0)+E52),"")) -> 196 | F53: =IFERROR(OFFSET(CalculationsAndCharts!$B$32, E53,0,1,1),"") -> 2016-02-22 | G53: 20.55 | H53: 0.75 | I53: -7.79 | J53: 4
B54: =IFERROR(MATCH(TRUE,OFFSET(CalculationsAndCharts!$X$33,B53,0, $C$2-B53,1),0)+B53,"") -> 206 | C54: =IFERROR(OFFSET(CalculationsAndCharts!$B$32, B54,0,1,1),"") -> 2016-02-05 | D54: 20.73 | E54: =IF(B54="","",IFERROR((MATCH(TRUE,OFFSET(CalculationsAndCharts!$Y$33,E53,0, $C$2-E53,1),0)+E53),"")) -> 204 | F54: =IFERROR(OFFSET(CalculationsAndCharts!$B$32, E54,0,1,1),"") -> 2016-02-09 | G54: 17.45 | H54: -3.28 | I54: -8.54 | J54: 3
B55: =IFERROR(MATCH(TRUE,OFFSET(CalculationsAndCharts!$X$33,B54,0, $C$2-B54,1),0)+B54,"") -> 210 | C55: =IFERROR(OFFSET(CalculationsAndCharts!$B$32, B55,0,1,1),"") -> 2016-02-01 | D55: 21.64 | E55: =IF(B55="","",IFERROR((MATCH(TRUE,OFFSET(CalculationsAndCharts!$Y$33,E54,0, $C$2-E54,1),0)+E54),"")) -> 208 | F55: =IFERROR(OFFSET(CalculationsAndCharts!$B$32, E55,0,1,1),"") -> 2016-02-03 | G55: 20.56 | H55: -1.08 | I55: -5.26 | J55: 3
B56: =IFERROR(MATCH(TRUE,OFFSET(CalculationsAndCharts!$X$33,B55,0, $C$2-B55,1),0)+B55,"") -> 212 | C56: =IFERROR(OFFSET(CalculationsAndCharts!$B$32, B56,0,1,1),"") -> 2016-01-28 | D56: 20.81 | E56: =IF(B56="","",IFERROR((MATCH(TRUE,OFFSET(CalculationsAndCharts!$Y$33,E55,0, $C$2-E55,1),0)+E55),"")) -> 211 | F56: =IFERROR(OFFSET(CalculationsAndCharts!$B$32, E56,0,1,1),"") -> 2016-01-29 | G56: 20.5 | H56: -0.31 | I56: -4.18 | J56: 2
B57: =IFERROR(MATCH(TRUE,OFFSET(CalculationsAndCharts!$X$33,B56,0, $C$2-B56,1),0)+B56,"") -> 215 | C57: =IFERROR(OFFSET(CalculationsAndCharts!$B$32, B57,0,1,1),"") -> 2016-01-25 | D57: 20.72 | E57: =IF(B57="","",IFERROR((MATCH(TRUE,OFFSET(CalculationsAndCharts!$Y$33,E56,0, $C$2-E56,1),0)+E56),"")) -> 213 | F57: =IFERROR(OFFSET(CalculationsAndCharts!$B$32, E57,0,1,1),"") -> 2016-01-27 | G57: 20.5 | H57: -0.22 | I57: -3.87 | J57: 3
B58: =IFERROR(MATCH(TRUE,OFFSET(CalculationsAndCharts!$X$33,B57,0, $C$2-B57,1),0)+B57,"") -> 222 | C58: =IFERROR(OFFSET(CalculationsAndCharts!$B$32, B58,0,1,1),"") -> 2016-01-13 | D58: 24.25 | E58: =IF(B58="","",IFERROR((MATCH(TRUE,OFFSET(CalculationsAndCharts!$Y$33,E57,0, $C$2-E57,1),0)+E57),"")) -> 221 | F58: =IFERROR(OFFSET(CalculationsAndCharts!$B$32, E58,0,1,1),"") -> 2016-01-14 | G58: 22.33 | H58: -1.92 | I58: -3.65 | J58: 2
B59: =IFERROR(MATCH(TRUE,OFFSET(CalculationsAndCharts!$X$33,B58,0, $C$2-B58,1),0)+B58,"") -> 231 | C59: =IFERROR(OFFSET(CalculationsAndCharts!$B$32, B59,0,1,1),"") -> 2015-12-30 | D59: 30.44 | E59: =IF(B59="","",IFERROR((MATCH(TRUE,OFFSET(CalculationsAndCharts!$Y$33,E58,0, $C$2-E58,1),0)+E58),"")) -> 229 | F59: =IFERROR(OFFSET(CalculationsAndCharts!$B$32, E59,0,1,1),"") -> 2016-01-04 | G59: 27.34 | H59: -3.1 | I59: -1.73 | J59: 3
B60: =IFERROR(MATCH(TRUE,OFFSET(CalculationsAndCharts!$X$33,B59,0, $C$2-B59,1),0)+B59,"") -> 235 | C60: =IFERROR(OFFSET(CalculationsAndCharts!$B$32, B60,0,1,1),"") -> 2015-12-23 | D60: 29.23 | E60: =IF(B60="","",IFERROR((MATCH(TRUE,OFFSET(CalculationsAndCharts!$Y$33,E59,0, $C$2-E59,1),0)+E59),"")) -> 232 | F60: =IFERROR(OFFSET(CalculationsAndCharts!$B$32, E60,0,1,1),"") -> 2015-12-29 | G60: 30.14 | H60: 0.91 | I60: 1.37 | J60: 4
B61: =IFERROR(MATCH(TRUE,OFFSET(CalculationsAndCharts!$X$33,B60,0, $C$2-B60,1),0)+B60,"") -> 240 | C61: =IFERROR(OFFSET(CalculationsAndCharts!$B$32, B61,0,1,1),"") -> 2015-12-16 | D61: 30.15 | E61: =IF(B61="","",IFERROR((MATCH(TRUE,OFFSET(CalculationsAndCharts!$Y$33,E60,0, $C$2-E60,1),0)+E60),"")) -> 237 | F61: =IFERROR(OFFSET(CalculationsAndCharts!$B$32, E61,0,1,1),"") -> 2015-12-21 | G61: 28.15 | H61: -2 | I61: 0.46 | J61: 4
B62: =IFERROR(MATCH(TRUE,OFFSET(CalculationsAndCharts!$X$33,B61,0, $C$2-B61,1),0)+B61,"") -> 246 | C62: =IFERROR(OFFSET(CalculationsAndCharts!$B$32, B62,0,1,1),"") -> 2015-12-08 | D62: 30.5 | E62: =IF(B62="","",IFERROR((MATCH(TRUE,OFFSET(CalculationsAndCharts!$Y$33,E61,0, $C$2-E61,1),0)+E61),"")) -> 245 | F62: =IFERROR(OFFSET(CalculationsAndCharts!$B$32, E62,0,1,1),"") -> 2015-12-09 | G62: 30.03 | H62: -0.47 | I62: 2.46 | J62: 2
B63: =IFERROR(MATCH(TRUE,OFFSET(CalculationsAndCharts!$X$33,B62,0, $C$2-B62,1),0)+B62,"") -> 252 | C63: =IFERROR(OFFSET(CalculationsAndCharts!$B$32, B63,0,1,1),"") -> 2015-11-30 | D63: 31.99 | E63: =IF(B63="","",IFERROR((MATCH(TRUE,OFFSET(CalculationsAndCharts!$Y$33,E62,0, $C$2-E62,1),0)+E62),"")) -> 248 | F63: =IFERROR(OFFSET(CalculationsAndCharts!$B$32, E63,0,1,1),"") -> 2015-12-04 | G63: 30.3 | H63: -1.69 | I63: 2.93 | J63: 5
B64: =IFERROR(MATCH(TRUE,OFFSET(CalculationsAndCharts!$X$33,B63,0, $C$2-B63,1),0)+B63,"") -> 259 | C64: =IFERROR(OFFSET(CalculationsAndCharts!$B$32, B64,0,1,1),"") -> 2015-11-18 | D64: 30.53 | E64: =IF(B64="","",IFERROR((MATCH(TRUE,OFFSET(CalculationsAndCharts!$Y$33,E63,0, $C$2-E63,1),0)+E63),"")) -> 254 | F64: =IFERROR(OFFSET(CalculationsAndCharts!$B$32, E64,0,1,1),"") -> 2015-11-25 | G64: 31.68 | H64: 1.15 | I64: 4.62 | J64: 6
B65: =IFERROR(MATCH(TRUE,OFFSET(CalculationsAndCharts!$X$33,B64,0, $C$2-B64,1),0)+B64,"") -> 263 | C65: =IFERROR(OFFSET(CalculationsAndCharts!$B$32, B65,0,1,1),"") -> 2015-11-12 | D65: 31.09 | E65: =IF(B65="","",IFERROR((MATCH(TRUE,OFFSET(CalculationsAndCharts!$Y$33,E64,0, $C$2-E64,1),0)+E64),"")) -> 262 | F65: =IFERROR(OFFSET(CalculationsAndCharts!$B$32, E65,0,1,1),"") -> 2015-11-13 | G65: 29.69 | H65: -1.4 | I65: 3.47 | J65: 2
B66: =IFERROR(MATCH(TRUE,OFFSET(CalculationsAndCharts!$X$33,B65,0, $C$2-B65,1),0)+B65,"") -> 266 | C66: =IFERROR(OFFSET(CalculationsAndCharts!$B$32, B66,0,1,1),"") -> 2015-11-09 | D66: 32.45 | E66: =IF(B66="","",IFERROR((MATCH(TRUE,OFFSET(CalculationsAndCharts!$Y$33,E65,0, $C$2-E65,1),0)+E65),"")) -> 264 | F66: =IFERROR(OFFSET(CalculationsAndCharts!$B$32, E66,0,1,1),"") -> 2015-11-11 | G66: 32.06 | H66: -0.39 | I66: 4.87 | J66: 3
B67: =IFERROR(MATCH(TRUE,OFFSET(CalculationsAndCharts!$X$33,B66,0, $C$2-B66,1),0)+B66,"") -> 269 | C67: =IFERROR(OFFSET(CalculationsAndCharts!$B$32, B67,0,1,1),"") -> 2015-11-04 | D67: 31.67 | E67: =IF(B67="","",IFERROR((MATCH(TRUE,OFFSET(CalculationsAndCharts!$Y$33,E66,0, $C$2-E66,1),0)+E66),"")) -> 268 | F67: =IFERROR(OFFSET(CalculationsAndCharts!$B$32, E67,0,1,1),"") -> 2015-11-05 | G67: 31.27 | H67: -0.4 | I67: 5.26 | J67: 2
B68: =IFERROR(MATCH(TRUE,OFFSET(CalculationsAndCharts!$X$33,B67,0, $C$2-B67,1),0)+B67,"") -> 273 | C68: =IFERROR(OFFSET(CalculationsAndCharts!$B$32, B68,0,1,1),"") -> 2015-10-29 | D68: 31.45 | E68: =IF(B68="","",IFERROR((MATCH(TRUE,OFFSET(CalculationsAndCharts!$Y$33,E67,0, $C$2-E67,1),0)+E67),"")) -> 271 | F68: =IFERROR(OFFSET(CalculationsAndCharts!$B$32, E68,0,1,1),"") -> 2015-11-02 | G68: 30.42 | H68: -1.03 | I68: 5.66 | J68: 3
B69: =IFERROR(MATCH(TRUE,OFFSET(CalculationsAndCharts!$X$33,B68,0, $C$2-B68,1),0)+B68,"") -> 277 | C69: =IFERROR(OFFSET(CalculationsAndCharts!$B$32, B69,0,1,1),"") -> 2015-10-23 | D69: 30.36 | E69: =IF(B69="","",IFERROR((MATCH(TRUE,OFFSET(CalculationsAndCharts!$Y$33,E68,0, $C$2-E68,1),0)+E68),"")) -> 274 | F69: =IFERROR(OFFSET(CalculationsAndCharts!$B$32, E69,0,1,1),"") -> 2015-10-28 | G69: 29.99 | H69: -0.37 | I69: 6.69 | J69: 4
B70: =IFERROR(MATCH(TRUE,OFFSET(CalculationsAndCharts!$X$33,B69,0, $C$2-B69,1),0)+B69,"") -> 282 | C70: =IFERROR(OFFSET(CalculationsAndCharts!$B$32, B70,0,1,1),"") -> 2015-10-16 | D70: 28.28 | E70: =IF(B70="","",IFERROR((MATCH(TRUE,OFFSET(CalculationsAndCharts!$Y$33,E69,0, $C$2-E69,1),0)+E69),"")) -> 278 | F70: =IFERROR(OFFSET(CalculationsAndCharts!$B$32, E70,0,1,1),"") -> 2015-10-22 | G70: 28.83 | H70: 0.55 | I70: 7.06 | J70: 5
B71: =IFERROR(MATCH(TRUE,OFFSET(CalculationsAndCharts!$X$33,B70,0, $C$2-B70,1),0)+B70,"") -> 293 | C71: =IFERROR(OFFSET(CalculationsAndCharts!$B$32, B71,0,1,1),"") -> 2015-10-01 | D71: 25.17 | E71: =IF(B71="","",IFERROR((MATCH(TRUE,OFFSET(CalculationsAndCharts!$Y$33,E70,0, $C$2-E70,1),0)+E70),"")) -> 285 | F71: =IFERROR(OFFSET(CalculationsAndCharts!$B$32, E71,0,1,1),"") -> 2015-10-13 | G71: 27.37 | H71: 2.2 | I71: 6.51 | J71: 9
B72: =IFERROR(MATCH(TRUE,OFFSET(CalculationsAndCharts!$X$33,B71,0, $C$2-B71,1),0)+B71,"") -> 299 | C72: =IFERROR(OFFSET(CalculationsAndCharts!$B$32, B72,0,1,1),"") -> 2015-09-23 | D72: 25.53 | E72: =IF(B72="","",IFERROR((MATCH(TRUE,OFFSET(CalculationsAndCharts!$Y$33,E71,0, $C$2-E71,1),0)+E71),"")) -> 298 | F72: =IFERROR(OFFSET(CalculationsAndCharts!$B$32, E72,0,1,1),"") -> 2015-09-24 | G72: 25.01 | H72: -0.52 | I72: 4.31 | J72: 2
B73: =IFERROR(MATCH(TRUE,OFFSET(CalculationsAndCharts!$X$33,B72,0, $C$2-B72,1),0)+B72,"") -> 306 | C73: =IFERROR(OFFSET(CalculationsAndCharts!$B$32, B73,0,1,1),"") -> 2015-09-14 | D73: 26.23 | E73: =IF(B73="","",IFERROR((MATCH(TRUE,OFFSET(CalculationsAndCharts!$Y$33,E72,0, $C$2-E72,1),0)+E72),"")) -> 302 | F73: =IFERROR(OFFSET(CalculationsAndCharts!$B$32, E73,0,1,1),"") -> 2015-09-18 | G73: 25.93 | H73: -0.3 | I73: 4.83 | J73: 5
B74: =IFERROR(MATCH(TRUE,OFFSET(CalculationsAndCharts!$X$33,B73,0, $C$2-B73,1),0)+B73,"") -> 308 | C74: =IFERROR(OFFSET(CalculationsAndCharts!$B$32, B74,0,1,1),"") -> 2015-09-10 | D74: 25.4 | E74: =IF(B74="","",IFERROR((MATCH(TRUE,OFFSET(CalculationsAndCharts!$Y$33,E73,0, $C$2-E73,1),0)+E73),"")) -> 307 | F74: =IFERROR(OFFSET(CalculationsAndCharts!$B$32, E74,0,1,1),"") -> 2015-09-11 | G74: 25.8 | H74: 0.4 | I74: 5.13 | J74: 2
B75: =IFERROR(MATCH(TRUE,OFFSET(CalculationsAndCharts!$X$33,B74,0, $C$2-B74,1),0)+B74,"") -> 311 | C75: =IFERROR(OFFSET(CalculationsAndCharts!$B$32, B75,0,1,1),"") -> 2015-09-04 | D75: 25.5 | E75: =IF(B75="","",IFERROR((MATCH(TRUE,OFFSET(CalculationsAndCharts!$Y$33,E74,0, $C$2-E74,1),0)+E74),"")) -> 310 | F75: =IFERROR(OFFSET(CalculationsAndCharts!$B$32, E75,0,1,1),"") -> 2015-09-08 | G75: 26.24 | H75: 0.74 | I75: 4.73 | J75: 2
B76: =IFERROR(MATCH(TRUE,OFFSET(CalculationsAndCharts!$X$33,B75,0, $C$2-B75,1),0)+B75,"") -> 317 | C76: =IFERROR(OFFSET(CalculationsAndCharts!$B$32, B76,0,1,1),"") -> 2015-08-27 | D76: 27.95 | E76: =IF(B76="","",IFERROR((MATCH(TRUE,OFFSET(CalculationsAndCharts!$Y$33,E75,0, $C$2-E75,1),0)+E75),"")) -> 314 | F76: =IFERROR(OFFSET(CalculationsAndCharts!$B$32, E76,0,1,1),"") -> 2015-09-01 | G76: 25.75 | H76: -2.2 | I76: 3.99 | J76: 4
B77: =IFERROR(MATCH(TRUE,OFFSET(CalculationsAndCharts!$X$33,B76,0, $C$2-B76,1),0)+B76,"") -> 325 | C77: =IFERROR(OFFSET(CalculationsAndCharts!$B$32, B77,0,1,1),"") -> 2015-08-17 | D77: 34.44 | E77: =IF(B77="","",IFERROR((MATCH(TRUE,OFFSET(CalculationsAndCharts!$Y$33,E76,0, $C$2-E76,1),0)+E76),"")) -> 322 | F77: =IFERROR(OFFSET(CalculationsAndCharts!$B$32, E77,0,1,1),"") -> 2015-08-20 | G77: 33.25 | H77: -1.19 | I77: 6.19 | J77: 4
B78: =IFERROR(MATCH(TRUE,OFFSET(CalculationsAndCharts!$X$33,B77,0, $C$2-B77,1),0)+B77,"") -> 329 | C78: =IFERROR(OFFSET(CalculationsAndCharts!$B$32, B78,0,1,1),"") -> 2015-08-11 | D78: 34.46 | E78: =IF(B78="","",IFERROR((MATCH(TRUE,OFFSET(CalculationsAndCharts!$Y$33,E77,0, $C$2-E77,1),0)+E77),"")) -> 327 | F78: =IFERROR(OFFSET(CalculationsAndCharts!$B$32, E78,0,1,1),"") -> 2015-08-13 | G78: 33.93 | H78: -0.53 | I78: 7.38 | J78: 3
B79: =IFERROR(MATCH(TRUE,OFFSET(CalculationsAndCharts!$X$33,B78,0, $C$2-B78,1),0)+B78,"") -> 333 | C79: =IFERROR(OFFSET(CalculationsAndCharts!$B$32, B79,0,1,1),"") -> 2015-08-05 | D79: 34.85 | E79: =IF(B79="","",IFERROR((MATCH(TRUE,OFFSET(CalculationsAndCharts!$Y$33,E78,0, $C$2-E78,1),0)+E78),"")) -> 330 | F79: =IFERROR(OFFSET(CalculationsAndCharts!$B$32, E79,0,1,1),"") -> 2015-08-10 | G79: 34.97 | H79: 0.12 | I79: 7.91 | J79: 4
B80: =IFERROR(MATCH(TRUE,OFFSET(CalculationsAndCharts!$X$33,B79,0, $C$2-B79,1),0)+B79,"") -> 337 | C80: =IFERROR(OFFSET(CalculationsAndCharts!$B$32, B80,0,1,1),"") -> 2015-07-30 | D80: =IFERROR(OFFSET(OpenColHeader, B80,0,1,1),"") -> 34.4 | E80: =IF(B80="","",IFERROR((MATCH(TRUE,OFFSET(CalculationsAndCharts!$Y$33,E79,0, $C$2-E79,1),0)+E79),"")) -> 334 | F80: =IFERROR(OFFSET(CalculationsAndCharts!$B$32, E80,0,1,1),"") -> 2015-08-04 | G80: =IFERROR(OFFSET(OpenColHeader, E80,0,1,1),"") -> 34.56 | H80: 0.16 | I80: 7.79 | J80: =IFERROR(B80-E80+1,"") -> 4
B81: =IFERROR(MATCH(TRUE,OFFSET(CalculationsAndCharts!$X$33,B80,0, $C$2-B80,1),0)+B80,"") -> 343 | C81: =IFERROR(OFFSET(CalculationsAndCharts!$B$32, B81,0,1,1),"") -> 2015-07-22 | D81: 34.78 | E81: =IF(B81="","",IFERROR((MATCH(TRUE,OFFSET(CalculationsAndCharts!$Y$33,E80,0, $C$2-E80,1),0)+E80),"")) -> 340 | F81: =IFERROR(OFFSET(CalculationsAndCharts!$B$32, E81,0,1,1),"") -> 2015-07-27 | G81: 33.45 | H81: =IFERROR(G81-D81,"") -> -1.33 | I81: =IFERROR(H81+IF(""=I82,0,I82),"") -> 7.63 | J81: 4
B82: =IFERROR(MATCH(TRUE,OFFSET(CalculationsAndCharts!$X$33,B81,0, $C$2-B81,1),0)+B81,"") -> 350 | C82: =IFERROR(OFFSET(CalculationsAndCharts!$B$32, B82,0,1,1),"") -> 2015-07-13 | D82: 33.01 | E82: =IF(B82="","",IFERROR((MATCH(TRUE,OFFSET(CalculationsAndCharts!$Y$33,E81,0, $C$2-E81,1),0)+E81),"")) -> 344 | F82: =IFERROR(OFFSET(CalculationsAndCharts!$B$32, E82,0,1,1),"") -> 2015-07-21 | G82: 35.03 | H82: 2.02 | I82: 8.96 | J82: 7
B83: =IFERROR(MATCH(TRUE,OFFSET(CalculationsAndCharts!$X$33,B82,0, $C$2-B82,1),0)+B82,"") -> 356 | C83: =IFERROR(OFFSET(CalculationsAndCharts!$B$32, B83,0,1,1),"") -> 2015-07-02 | D83: 32.58 | E83: =IF(B83="","",IFERROR((MATCH(TRUE,OFFSET(CalculationsAndCharts!$Y$33,E82,0, $C$2-E82,1),0)+E82),"")) -> 354 | F83: =IFERROR(OFFSET(CalculationsAndCharts!$B$32, E83,0,1,1),"") -> 2015-07-07 | G83: 32.1 | H83: -0.48 | I83: 6.94 | J83: 3
B84: =IFERROR(MATCH(TRUE,OFFSET(CalculationsAndCharts!$X$33,B83,0, $C$2-B83,1),0)+B83,"") -> 362 | C84: =IFERROR(OFFSET(CalculationsAndCharts!$B$32, B84,0,1,1),"") -> 2015-06-24 | D84: 34.22 | E84: =IF(B84="","",IFERROR((MATCH(TRUE,OFFSET(CalculationsAndCharts!$Y$33,E83,0, $C$2-E83,1),0)+E83),"")) -> 361 | F84: =IFERROR(OFFSET(CalculationsAndCharts!$B$32, E84,0,1,1),"") -> 2015-06-25 | G84: 34.03 | H84: -0.19 | I84: 7.42 | J84: 2
B85: =IFERROR(MATCH(TRUE,OFFSET(CalculationsAndCharts!$X$33,B84,0, $C$2-B84,1),0)+B84,"") -> 366 | C85: =IFERROR(OFFSET(CalculationsAndCharts!$B$32, B85,0,1,1),"") -> 2015-06-18 | D85: 33.72 | E85: =IF(B85="","",IFERROR((MATCH(TRUE,OFFSET(CalculationsAndCharts!$Y$33,E84,0, $C$2-E84,1),0)+E84),"")) -> 363 | F85: =IFERROR(OFFSET(CalculationsAndCharts!$B$32, E85,0,1,1),"") -> 2015-06-23 | G85: 34.39 | H85: 0.67 | I85: 7.61 | J85: 4
B86: =IFERROR(MATCH(TRUE,OFFSET(CalculationsAndCharts!$X$33,B85,0, $C$2-B85,1),0)+B85,"") -> 371 | C86: =IFERROR(OFFSET(CalculationsAndCharts!$B$32, B86,0,1,1),"") -> 2015-06-11 | D86: 33.75 | E86: =IF(B86="","",IFERROR((MATCH(TRUE,OFFSET(CalculationsAndCharts!$Y$33,E85,0, $C$2-E85,1),0)+E85),"")) -> 368 | F86: =IFERROR(OFFSET(CalculationsAndCharts!$B$32, E86,0,1,1),"") -> 2015-06-16 | G86: 33.06 | H86: -0.69 | I86: 6.94 | J86: 4
B87: =IFERROR(MATCH(TRUE,OFFSET(CalculationsAndCharts!$X$33,B86,0, $C$2-B86,1),0)+B86,"") -> 373 | C87: =IFERROR(OFFSET(CalculationsAndCharts!$B$32, B87,0,1,1),"") -> 2015-06-09 | D87: 32 | E87: =IF(B87="","",IFERROR((MATCH(TRUE,OFFSET(CalculationsAndCharts!$Y$33,E86,0, $C$2-E86,1),0)+E86),"")) -> 372 | F87: =IFERROR(OFFSET(CalculationsAndCharts!$B$32, E87,0,1,1),"") -> 2015-06-10 | G87: 32.5 | H87: 0.5 | I87: 7.63 | J87: 2
B88: =IFERROR(MATCH(TRUE,OFFSET(CalculationsAndCharts!$X$33,B87,0, $C$2-B87,1),0)+B87,"") -> 377 | C88: =IFERROR(OFFSET(CalculationsAndCharts!$B$32, B88,0,1,1),"") -> 2015-06-03 | D88: 32.66 | E88: =IF(B88="","",IFERROR((MATCH(TRUE,OFFSET(CalculationsAndCharts!$Y$33,E87,0, $C$2-E87,1),0)+E87),"")) -> 374 | F88: =IFERROR(OFFSET(CalculationsAndCharts!$B$32, E88,0,1,1),"") -> 2015-06-08 | G88: 32.5 | H88: -0.16 | I88: 7.13 | J88: 4
B89: =IFERROR(MATCH(TRUE,OFFSET(CalculationsAndCharts!$X$33,B88,0, $C$2-B88,1),0)+B88,"") -> 380 | C89: =IFERROR(OFFSET(CalculationsAndCharts!$B$32, B89,0,1,1),"") -> 2015-05-29 | D89: 32.67 | E89: =IF(B89="","",IFERROR((MATCH(TRUE,OFFSET(CalculationsAndCharts!$Y$33,E88,0, $C$2-E88,1),0)+E88),"")) -> 379 | F89: =IFERROR(OFFSET(CalculationsAndCharts!$B$32, E89,0,1,1),"") -> 2015-06-01 | G89: 32.51 | H89: -0.16 | I89: 7.29 | J89: 2
B90: =IFERROR(MATCH(TRUE,OFFSET(CalculationsAndCharts!$X$33,B89,0, $C$2-B89,1),0)+B89,"") -> 389 | C90: =IFERROR(OFFSET(CalculationsAndCharts!$B$32, B90,0,1,1),"") -> 2015-05-15 | D90: 32.83 | E90: =IF(B90="","",IFERROR((MATCH(TRUE,OFFSET(CalculationsAndCharts!$Y$33,E89,0, $C$2-E89,1),0)+E89),"")) -> 384 | F90: =IFERROR(OFFSET(CalculationsAndCharts!$B$32, E90,0,1,1),"") -> 2015-05-22 | G90: 32.88 | H90: 0.05 | I90: 7.45 | J90: 6
B91: =IFERROR(MATCH(TRUE,OFFSET(CalculationsAndCharts!$X$33,B90,0, $C$2-B90,1),0)+B90,"") -> 393 | C91: =IFERROR(OFFSET(CalculationsAndCharts!$B$32, B91,0,1,1),"") -> 2015-05-11 | D91: 32.52 | E91: =IF(B91="","",IFERROR((MATCH(TRUE,OFFSET(CalculationsAndCharts!$Y$33,E90,0, $C$2-E90,1),0)+E90),"")) -> 391 | F91: =IFERROR(OFFSET(CalculationsAndCharts!$B$32, E91,0,1,1),"") -> 2015-05-13 | G91: 32.03 | H91: -0.49 | I91: 7.4 | J91: 3
B92: =IFERROR(MATCH(TRUE,OFFSET(CalculationsAndCharts!$X$33,B91,0, $C$2-B91,1),0)+B91,"") -> 397 | C92: =IFERROR(OFFSET(CalculationsAndCharts!$B$32, B92,0,1,1),"") -> 2015-05-05 | D92: 31.62 | E92: =IF(B92="","",IFERROR((MATCH(TRUE,OFFSET(CalculationsAndCharts!$Y$33,E91,0, $C$2-E91,1),0)+E91),"")) -> 395 | F92: =IFERROR(OFFSET(CalculationsAndCharts!$B$32, E92,0,1,1),"") -> 2015-05-07 | G92: 30.43 | H92: -1.19 | I92: 7.89 | J92: 3
B93: =IFERROR(MATCH(TRUE,OFFSET(CalculationsAndCharts!$X$33,B92,0, $C$2-B92,1),0)+B92,"") -> 401 | C93: =IFERROR(OFFSET(CalculationsAndCharts!$B$32, B93,0,1,1),"") -> 2015-04-29 | D93: 30.8 | E93: =IF(B93="","",IFERROR((MATCH(TRUE,OFFSET(CalculationsAndCharts!$Y$33,E92,0, $C$2-E92,1),0)+E92),"")) -> 399 | F93: =IFERROR(OFFSET(CalculationsAndCharts!$B$32, E93,0,1,1),"") -> 2015-05-01 | G93: 30.66 | H93: -0.14 | I93: 9.08 | J93: 3
B94: =IFERROR(MATCH(TRUE,OFFSET(CalculationsAndCharts!$X$33,B93,0, $C$2-B93,1),0)+B93,"") -> 406 | C94: =IFERROR(OFFSET(CalculationsAndCharts!$B$32, B94,0,1,1),"") -> 2015-04-22 | D94: 30.53 | E94: =IF(B94="","",IFERROR((MATCH(TRUE,OFFSET(CalculationsAndCharts!$Y$33,E93,0, $C$2-E93,1),0)+E93),"")) -> 402 | F94: =IFERROR(OFFSET(CalculationsAndCharts!$B$32, E94,0,1,1),"") -> 2015-04-28 | G94: 30.8 | H94: 0.27 | I94: 9.22 | J94: 5
B95: =IFERROR(MATCH(TRUE,OFFSET(CalculationsAndCharts!$X$33,B94,0, $C$2-B94,1),0)+B94,"") -> 414 | C95: =IFERROR(OFFSET(CalculationsAndCharts!$B$32, B95,0,1,1),"") -> 2015-04-10 | D95: 31.02 | E95: =IF(B95="","",IFERROR((MATCH(TRUE,OFFSET(CalculationsAndCharts!$Y$33,E94,0, $C$2-E94,1),0)+E94),"")) -> 408 | F95: =IFERROR(OFFSET(CalculationsAndCharts!$B$32, E95,0,1,1),"") -> 2015-04-20 | G95: 30.85 | H95: -0.17 | I95: 8.95 | J95: 7
B96: =IFERROR(MATCH(TRUE,OFFSET(CalculationsAndCharts!$X$33,B95,0, $C$2-B95,1),0)+B95,"") -> 418 | C96: =IFERROR(OFFSET(CalculationsAndCharts!$B$32, B96,0,1,1),"") -> 2015-04-06 | D96: 30.41 | E96: =IF(B96="","",IFERROR((MATCH(TRUE,OFFSET(CalculationsAndCharts!$Y$33,E95,0, $C$2-E95,1),0)+E95),"")) -> 415 | F96: =IFERROR(OFFSET(CalculationsAndCharts!$B$32, E96,0,1,1),"") -> 2015-04-09 | G96: 30.88 | H96: 0.47 | I96: 9.12 | J96: 4
B97: =IFERROR(MATCH(TRUE,OFFSET(CalculationsAndCharts!$X$33,B96,0, $C$2-B96,1),0)+B96,"") -> 421 | C97: =IFERROR(OFFSET(CalculationsAndCharts!$B$32, B97,0,1,1),"") -> 2015-03-31 | D97: 30.62 | E97: =IF(B97="","",IFERROR((MATCH(TRUE,OFFSET(CalculationsAndCharts!$Y$33,E96,0, $C$2-E96,1),0)+E96),"")) -> 419 | F97: =IFERROR(OFFSET(CalculationsAndCharts!$B$32, E97,0,1,1),"") -> 2015-04-02 | G97: 30.37 | H97: -0.25 | I97: 8.65 | J97: 3
B98: =IFERROR(MATCH(TRUE,OFFSET(CalculationsAndCharts!$X$33,B97,0, $C$2-B97,1),0)+B97,"") -> 430 | C98: =IFERROR(OFFSET(CalculationsAndCharts!$B$32, B98,0,1,1),"") -> 2015-03-18 | D98: 31.4 | E98: =IF(B98="","",IFERROR((MATCH(TRUE,OFFSET(CalculationsAndCharts!$Y$33,E97,0, $C$2-E97,1),0)+E97),"")) -> 425 | F98: =IFERROR(OFFSET(CalculationsAndCharts!$B$32, E98,0,1,1),"") -> 2015-03-25 | G98: 31.68 | H98: 0.28 | I98: 8.9 | J98: 6
B99: =IFERROR(MATCH(TRUE,OFFSET(CalculationsAndCharts!$X$33,B98,0, $C$2-B98,1),0)+B98,"") -> 433 | C99: =IFERROR(OFFSET(CalculationsAndCharts!$B$32, B99,0,1,1),"") -> 2015-03-13 | D99: 31.3 | E99: =IF(B99="","",IFERROR((MATCH(TRUE,OFFSET(CalculationsAndCharts!$Y$33,E98,0, $C$2-E98,1),0)+E98),"")) -> 431 | F99: =IFERROR(OFFSET(CalculationsAndCharts!$B$32, E99,0,1,1),"") -> 2015-03-17 | G99: 31.39 | H99: 0.09 | I99: 8.62 | J99: 3
B100: =IFERROR(MATCH(TRUE,OFFSET(CalculationsAndCharts!$X$33,B99,0, $C$2-B99,1),0)+B99,"") -> 441 | C100: =IFERROR(OFFSET(CalculationsAndCharts!$B$32, B100,0,1,1),"") -> 2015-03-03 | D100: 31.65 | E100: =IF(B100="","",IFERROR((MATCH(TRUE,OFFSET(CalculationsAndCharts!$Y$33,E99,0, $C$2-E99,1),0)+E99),"")) -> 439 | F100: =IFERROR(OFFSET(CalculationsAndCharts!$B$32, E100,0,1,1),"") -> 2015-03-05 | G100: 31.12 | H100: -0.53 | I100: 8.53 | J100: 3
B101: =IFERROR(MATCH(TRUE,OFFSET(CalculationsAndCharts!$X$33,B100,0, $C$2-B100,1),0)+B100,"") -> 444 | C101: =IFERROR(OFFSET(CalculationsAndCharts!$B$32, B101,0,1,1),"") -> 2015-02-26 | D101: 31.61 | E101: =IF(B101="","",IFERROR((MATCH(TRUE,OFFSET(CalculationsAndCharts!$Y$33,E100,0, $C$2-E100,1),0)+E100),"")) -> 443 | F101: =IFERROR(OFFSET(CalculationsAndCharts!$B$32, E101,0,1,1),"") -> 2015-02-27 | G101: 31.27 | H101: -0.34 | I101: 9.06 | J101: 2
B102: =IFERROR(MATCH(TRUE,OFFSET(CalculationsAndCharts!$X$33,B101,0, $C$2-B101,1),0)+B101,"") -> 447 | C102: =IFERROR(OFFSET(CalculationsAndCharts!$B$32, B102,0,1,1),"") -> 2015-02-23 | D102: 31.52 | E102: =IF(B102="","",IFERROR((MATCH(TRUE,OFFSET(CalculationsAndCharts!$Y$33,E101,0, $C$2-E101,1),0)+E101),"")) -> 445 | F102: =IFERROR(OFFSET(CalculationsAndCharts!$B$32, E102,0,1,1),"") -> 2015-02-25 | G102: 31.66 | H102: 0.14 | I102: 9.4 | J102: 3
B103: =IFERROR(MATCH(TRUE,OFFSET(CalculationsAndCharts!$X$33,B102,0, $C$2-B102,1),0)+B102,"") -> 453 | C103: =IFERROR(OFFSET(CalculationsAndCharts!$B$32, B103,0,1,1),"") -> 2015-02-12 | D103: 30.73 | E103: =IF(B103="","",IFERROR((MATCH(TRUE,OFFSET(CalculationsAndCharts!$Y$33,E102,0, $C$2-E102,1),0)+E102),"")) -> 450 | F103: =IFERROR(OFFSET(CalculationsAndCharts!$B$32, E103,0,1,1),"") -> 2015-02-18 | G103: 31.43 | H103: 0.7 | I103: 9.26 | J103: 4
B104: =IFERROR(MATCH(TRUE,OFFSET(CalculationsAndCharts!$X$33,B103,0, $C$2-B103,1),0)+B103,"") -> 459 | C104: =IFERROR(OFFSET(CalculationsAndCharts!$B$32, B104,0,1,1),"") -> 2015-02-04 | D104: 28.75 | E104: =IF(B104="","",IFERROR((MATCH(TRUE,OFFSET(CalculationsAndCharts!$Y$33,E103,0, $C$2-E103,1),0)+E103),"")) -> 454 | F104: =IFERROR(OFFSET(CalculationsAndCharts!$B$32, E104,0,1,1),"") -> 2015-02-11 | G104: 30.27 | H104: 1.52 | I104: 8.56 | J104: 6
B105: =IFERROR(MATCH(TRUE,OFFSET(CalculationsAndCharts!$X$33,B104,0, $C$2-B104,1),0)+B104,"") -> 467 | C105: =IFERROR(OFFSET(CalculationsAndCharts!$B$32, B105,0,1,1),"") -> 2015-01-23 | D105: 29.67 | E105: =IF(B105="","",IFERROR((MATCH(TRUE,OFFSET(CalculationsAndCharts!$Y$33,E104,0, $C$2-E104,1),0)+E104),"")) -> 465 | F105: =IFERROR(OFFSET(CalculationsAndCharts!$B$32, E105,0,1,1),"") -> 2015-01-27 | G105: 28.55 | H105: -1.12 | I105: 7.04 | J105: 3
B106: =IFERROR(MATCH(TRUE,OFFSET(CalculationsAndCharts!$X$33,B105,0, $C$2-B105,1),0)+B105,"") -> 470 | C106: =IFERROR(OFFSET(CalculationsAndCharts!$B$32, B106,0,1,1),"") -> 2015-01-20 | D106: 28.41 | E106: =IF(B106="","",IFERROR((MATCH(TRUE,OFFSET(CalculationsAndCharts!$Y$33,E105,0, $C$2-E105,1),0)+E105),"")) -> 468 | F106: =IFERROR(OFFSET(CalculationsAndCharts!$B$32, E106,0,1,1),"") -> 2015-01-22 | G106: 28.39 | H106: -0.02 | I106: 8.16 | J106: 3
B107: =IFERROR(MATCH(TRUE,OFFSET(CalculationsAndCharts!$X$33,B106,0, $C$2-B106,1),0)+B106,"") -> 477 | C107: =IFERROR(OFFSET(CalculationsAndCharts!$B$32, B107,0,1,1),"") -> 2015-01-08 | D107: 30.58 | E107: =IF(B107="","",IFERROR((MATCH(TRUE,OFFSET(CalculationsAndCharts!$Y$33,E106,0, $C$2-E106,1),0)+E106),"")) -> 475 | F107: =IFERROR(OFFSET(CalculationsAndCharts!$B$32, E107,0,1,1),"") -> 2015-01-12 | G107: 30.01 | H107: -0.57 | I107: 8.18 | J107: 3
B108: =IFERROR(MATCH(TRUE,OFFSET(CalculationsAndCharts!$X$33,B107,0, $C$2-B107,1),0)+B107,"") -> 479 | C108: =IFERROR(OFFSET(CalculationsAndCharts!$B$32, B108,0,1,1),"") -> 2015-01-06 | D108: 30.29 | E108: =IF(B108="","",IFERROR((MATCH(TRUE,OFFSET(CalculationsAndCharts!$Y$33,E107,0, $C$2-E107,1),0)+E107),"")) -> 478 | F108: =IFERROR(OFFSET(CalculationsAndCharts!$B$32, E108,0,1,1),"") -> 2015-01-07 | G108: 29.67 | H108: -0.62 | I108: 8.75 | J108: 2
B109: =IFERROR(MATCH(TRUE,OFFSET(CalculationsAndCharts!$X$33,B108,0, $C$2-B108,1),0)+B108,"") -> 482 | C109: =IFERROR(OFFSET(CalculationsAndCharts!$B$32, B109,0,1,1),"") -> 2014-12-31 | D109: 33.08 | E109: =IF(B109="","",IFERROR((MATCH(TRUE,OFFSET(CalculationsAndCharts!$Y$33,E108,0, $C$2-E108,1),0)+E108),"")) -> 480 | F109: =IFERROR(OFFSET(CalculationsAndCharts!$B$32, E109,0,1,1),"") -> 2015-01-05 | G109: 31.38 | H109: -1.7 | I109: 9.37 | J109: 3
B110: =IFERROR(MATCH(TRUE,OFFSET(CalculationsAndCharts!$X$33,B109,0, $C$2-B109,1),0)+B109,"") -> 489 | C110: =IFERROR(OFFSET(CalculationsAndCharts!$B$32, B110,0,1,1),"") -> 2014-12-19 | D110: 31.79 | E110: =IF(B110="","",IFERROR((MATCH(TRUE,OFFSET(CalculationsAndCharts!$Y$33,E109,0, $C$2-E109,1),0)+E109),"")) -> 484 | F110: =IFERROR(OFFSET(CalculationsAndCharts!$B$32, E110,0,1,1),"") -> 2014-12-29 | G110: 32.62 | H110: 0.83 | I110: 11.07 | J110: 6
B111: =IFERROR(MATCH(TRUE,OFFSET(CalculationsAndCharts!$X$33,B110,0, $C$2-B110,1),0)+B110,"") -> 493 | C111: =IFERROR(OFFSET(CalculationsAndCharts!$B$32, B111,0,1,1),"") -> 2014-12-15 | D111: 29.91 | E111: =IF(B111="","",IFERROR((MATCH(TRUE,OFFSET(CalculationsAndCharts!$Y$33,E110,0, $C$2-E110,1),0)+E110),"")) -> 492 | F111: =IFERROR(OFFSET(CalculationsAndCharts!$B$32, E111,0,1,1),"") -> 2014-12-16 | G111: 28.25 | H111: -1.66 | I111: 10.24 | J111: 2
B112: =IFERROR(MATCH(TRUE,OFFSET(CalculationsAndCharts!$X$33,B111,0, $C$2-B111,1),0)+B111,"") -> 500 | C112: =IFERROR(OFFSET(CalculationsAndCharts!$B$32, B112,0,1,1),"") -> 2014-12-04 | D112: 31.08 | E112: =IF(B112="","",IFERROR((MATCH(TRUE,OFFSET(CalculationsAndCharts!$Y$33,E111,0, $C$2-E111,1),0)+E111),"")) -> 495 | F112: =IFERROR(OFFSET(CalculationsAndCharts!$B$32, E112,0,1,1),"") -> 2014-12-11 | G112: 31.48 | H112: 0.4 | I112: 11.9 | J112: 6
B113: =IFERROR(MATCH(TRUE,OFFSET(CalculationsAndCharts!$X$33,B112,0, $C$2-B112,1),0)+B112,"") -> 503 | C113: =IFERROR(OFFSET(CalculationsAndCharts!$B$32, B113,0,1,1),"") -> 2014-12-01 | D113: 30.26 | E113: =IF(B113="","",IFERROR((MATCH(TRUE,OFFSET(CalculationsAndCharts!$Y$33,E112,0, $C$2-E112,1),0)+E112),"")) -> 502 | F113: =IFERROR(OFFSET(CalculationsAndCharts!$B$32, E113,0,1,1),"") -> 2014-12-02 | G113: 30.01 | H113: -0.25 | I113: 11.5 | J113: 2
B114: =IFERROR(MATCH(TRUE,OFFSET(CalculationsAndCharts!$X$33,B113,0, $C$2-B113,1),0)+B113,"") -> 507 | C114: =IFERROR(OFFSET(CalculationsAndCharts!$B$32, B114,0,1,1),"") -> 2014-11-24 | D114: 30.11 | E114: =IF(B114="","",IFERROR((MATCH(TRUE,OFFSET(CalculationsAndCharts!$Y$33,E113,0, $C$2-E113,1),0)+E113),"")) -> 504 | F114: =IFERROR(OFFSET(CalculationsAndCharts!$B$32, E114,0,1,1),"") -> 2014-11-28 | G114: 30.62 | H114: 0.51 | I114: 11.75 | J114: 4
B115: =IFERROR(MATCH(TRUE,OFFSET(CalculationsAndCharts!$X$33,B114,0, $C$2-B114,1),0)+B114,"") -> 510 | C115: =IFERROR(OFFSET(CalculationsAndCharts!$B$32, B115,0,1,1),"") -> 2014-11-19 | D115: 29.49 | E115: =IF(B115="","",IFERROR((MATCH(TRUE,OFFSET(CalculationsAndCharts!$Y$33,E114,0, $C$2-E114,1),0)+E114),"")) -> 508 | F115: =IFERROR(OFFSET(CalculationsAndCharts!$B$32, E115,0,1,1),"") -> 2014-11-21 | G115: 30.19 | H115: 0.7 | I115: 11.24 | J115: 3
B116: =IFERROR(MATCH(TRUE,OFFSET(CalculationsAndCharts!$X$33,B115,0, $C$2-B115,1),0)+B115,"") -> 527 | C116: =IFERROR(OFFSET(CalculationsAndCharts!$B$32, B116,0,1,1),"") -> 2014-10-27 | D116: 25.39 | E116: =IF(B116="","",IFERROR((MATCH(TRUE,OFFSET(CalculationsAndCharts!$Y$33,E115,0, $C$2-E115,1),0)+E115),"")) -> 514 | F116: =IFERROR(OFFSET(CalculationsAndCharts!$B$32, E116,0,1,1),"") -> 2014-11-13 | G116: 29.75 | H116: 4.36 | I116: 10.54 | J116: 14
B117: =IFERROR(MATCH(TRUE,OFFSET(CalculationsAndCharts!$X$33,B116,0, $C$2-B116,1),0)+B116,"") -> 532 | C117: =IFERROR(OFFSET(CalculationsAndCharts!$B$32, B117,0,1,1),"") -> 2014-10-20 | D117: 23.06 | E117: =IF(B117="","",IFERROR((MATCH(TRUE,OFFSET(CalculationsAndCharts!$Y$33,E116,0, $C$2-E116,1),0)+E116),"")) -> 528 | F117: =IFERROR(OFFSET(CalculationsAndCharts!$B$32, E117,0,1,1),"") -> 2014-10-24 | G117: 25.13 | H117: 2.07 | I117: 6.18 | J117: 5
B118: =IFERROR(MATCH(TRUE,OFFSET(CalculationsAndCharts!$X$33,B117,0, $C$2-B117,1),0)+B117,"") -> 538 | C118: =IFERROR(OFFSET(CalculationsAndCharts!$B$32, B118,0,1,1),"") -> 2014-10-10 | D118: 24.4 | E118: =IF(B118="","",IFERROR((MATCH(TRUE,OFFSET(CalculationsAndCharts!$Y$33,E117,0, $C$2-E117,1),0)+E117),"")) -> 537 | F118: =IFERROR(OFFSET(CalculationsAndCharts!$B$32, E118,0,1,1),"") -> 2014-10-13 | G118: 23.83 | H118: -0.57 | I118: 4.11 | J118: 2
B119: =IFERROR(MATCH(TRUE,OFFSET(CalculationsAndCharts!$X$33,B118,0, $C$2-B118,1),0)+B118,"") -> 542 | C119: =IFERROR(OFFSET(CalculationsAndCharts!$B$32, B119,0,1,1),"") -> 2014-10-06 | D119: 26.25 | E119: =IF(B119="","",IFERROR((MATCH(TRUE,OFFSET(CalculationsAndCharts!$Y$33,E118,0, $C$2-E118,1),0)+E118),"")) -> 540 | F119: =IFERROR(OFFSET(CalculationsAndCharts!$B$32, E119,0,1,1),"") -> 2014-10-08 | G119: 24.68 | H119: -1.57 | I119: 4.68 | J119: 3
B120: =IFERROR(MATCH(TRUE,OFFSET(CalculationsAndCharts!$X$33,B119,0, $C$2-B119,1),0)+B119,"") -> 546 | C120: =IFERROR(OFFSET(CalculationsAndCharts!$B$32, B120,0,1,1),"") -> 2014-09-30 | D120: 26.05 | E120: =IF(B120="","",IFERROR((MATCH(TRUE,OFFSET(CalculationsAndCharts!$Y$33,E119,0, $C$2-E119,1),0)+E119),"")) -> 545 | F120: =IFERROR(OFFSET(CalculationsAndCharts!$B$32, E120,0,1,1),"") -> 2014-10-01 | G120: 25.59 | H120: -0.46 | I120: 6.25 | J120: 2
B121: =IFERROR(MATCH(TRUE,OFFSET(CalculationsAndCharts!$X$33,B120,0, $C$2-B120,1),0)+B120,"") -> 555 | C121: =IFERROR(OFFSET(CalculationsAndCharts!$B$32, B121,0,1,1),"") -> 2014-09-17 | D121: 26.84 | E121: =IF(B121="","",IFERROR((MATCH(TRUE,OFFSET(CalculationsAndCharts!$Y$33,E120,0, $C$2-E120,1),0)+E120),"")) -> 551 | F121: =IFERROR(OFFSET(CalculationsAndCharts!$B$32, E121,0,1,1),"") -> 2014-09-23 | G121: 26.64 | H121: -0.2 | I121: 6.71 | J121: 5
B122: =IFERROR(MATCH(TRUE,OFFSET(CalculationsAndCharts!$X$33,B121,0, $C$2-B121,1),0)+B121,"") -> 558 | C122: =IFERROR(OFFSET(CalculationsAndCharts!$B$32, B122,0,1,1),"") -> 2014-09-12 | D122: 26.69 | E122: =IF(B122="","",IFERROR((MATCH(TRUE,OFFSET(CalculationsAndCharts!$Y$33,E121,0, $C$2-E121,1),0)+E121),"")) -> 557 | F122: =IFERROR(OFFSET(CalculationsAndCharts!$B$32, E122,0,1,1),"") -> 2014-09-15 | G122: 26.47 | H122: -0.22 | I122: 6.91 | J122: 2
B123: =IFERROR(MATCH(TRUE,OFFSET(CalculationsAndCharts!$X$33,B122,0, $C$2-B122,1),0)+B122,"") -> 562 | C123: =IFERROR(OFFSET(CalculationsAndCharts!$B$32, B123,0,1,1),"") -> 2014-09-08 | D123: 26.97 | E123: =IF(B123="","",IFERROR((MATCH(TRUE,OFFSET(CalculationsAndCharts!$Y$33,E122,0, $C$2-E122,1),0)+E122),"")) -> 560 | F123: =IFERROR(OFFSET(CalculationsAndCharts!$B$32, E123,0,1,1),"") -> 2014-09-10 | G123: 26.38 | H123: -0.59 | I123: 7.13 | J123: 3
B124: =IFERROR(MATCH(TRUE,OFFSET(CalculationsAndCharts!$X$33,B123,0, $C$2-B123,1),0)+B123,"") -> 565 | C124: =IFERROR(OFFSET(CalculationsAndCharts!$B$32, B124,0,1,1),"") -> 2014-09-03 | D124: 27.26 | E124: =IF(B124="","",IFERROR((MATCH(TRUE,OFFSET(CalculationsAndCharts!$Y$33,E123,0, $C$2-E123,1),0)+E123),"")) -> 563 | F124: =IFERROR(OFFSET(CalculationsAndCharts!$B$32, E124,0,1,1),"") -> 2014-09-05 | G124: 26.78 | H124: -0.48 | I124: 7.72 | J124: 3
B125: =IFERROR(MATCH(TRUE,OFFSET(CalculationsAndCharts!$X$33,B124,0, $C$2-B124,1),0)+B124,"") -> 574 | C125: =IFERROR(OFFSET(CalculationsAndCharts!$B$32, B125,0,1,1),"") -> 2014-08-20 | D125: 25.23 | E125: =IF(B125="","",IFERROR((MATCH(TRUE,OFFSET(CalculationsAndCharts!$Y$33,E124,0, $C$2-E124,1),0)+E124),"")) -> 567 | F125: =IFERROR(OFFSET(CalculationsAndCharts!$B$32, E125,0,1,1),"") -> 2014-08-29 | G125: 26.5 | H125: 1.27 | I125: 8.2 | J125: 8
B126: =IFERROR(MATCH(TRUE,OFFSET(CalculationsAndCharts!$X$33,B125,0, $C$2-B125,1),0)+B125,"") -> 580 | C126: =IFERROR(OFFSET(CalculationsAndCharts!$B$32, B126,0,1,1),"") -> 2014-08-12 | D126: 23.88 | E126: =IF(B126="","",IFERROR((MATCH(TRUE,OFFSET(CalculationsAndCharts!$Y$33,E125,0, $C$2-E125,1),0)+E125),"")) -> 575 | F126: =IFERROR(OFFSET(CalculationsAndCharts!$B$32, E126,0,1,1),"") -> 2014-08-19 | G126: 25.38 | H126: 1.5 | I126: 6.93 | J126: 6
B127: =IFERROR(MATCH(TRUE,OFFSET(CalculationsAndCharts!$X$33,B126,0, $C$2-B126,1),0)+B126,"") -> 582 | C127: =IFERROR(OFFSET(CalculationsAndCharts!$B$32, B127,0,1,1),"") -> 2014-08-08 | D127: 23.26 | E127: =IF(B127="","",IFERROR((MATCH(TRUE,OFFSET(CalculationsAndCharts!$Y$33,E126,0, $C$2-E126,1),0)+E126),"")) -> 581 | F127: =IFERROR(OFFSET(CalculationsAndCharts!$B$32, E127,0,1,1),"") -> 2014-08-11 | G127: 24.03 | H127: 0.77 | I127: 5.43 | J127: 2
B128: =IFERROR(MATCH(TRUE,OFFSET(CalculationsAndCharts!$X$33,B127,0, $C$2-B127,1),0)+B127,"") -> 584 | C128: =IFERROR(OFFSET(CalculationsAndCharts!$B$32, B128,0,1,1),"") -> 2014-08-06 | D128: 22.88 | E128: =IF(B128="","",IFERROR((MATCH(TRUE,OFFSET(CalculationsAndCharts!$Y$33,E127,0, $C$2-E127,1),0)+E127),"")) -> 583 | F128: =IFERROR(OFFSET(CalculationsAndCharts!$B$32, E128,0,1,1),"") -> 2014-08-07 | G128: 23.79 | H128: 0.91 | I128: 4.66 | J128: 2
B129: =IFERROR(MATCH(TRUE,OFFSET(CalculationsAndCharts!$X$33,B128,0, $C$2-B128,1),0)+B128,"") -> 593 | C129: =IFERROR(OFFSET(CalculationsAndCharts!$B$32, B129,0,1,1),"") -> 2014-07-24 | D129: 25.85 | E129: =IF(B129="","",IFERROR((MATCH(TRUE,OFFSET(CalculationsAndCharts!$Y$33,E128,0, $C$2-E128,1),0)+E128),"")) -> 591 | F129: =IFERROR(OFFSET(CalculationsAndCharts!$B$32, E129,0,1,1),"") -> 2014-07-28 | G129: 25.46 | H129: -0.39 | I129: 3.75 | J129: 3
B130: =IFERROR(MATCH(TRUE,OFFSET(CalculationsAndCharts!$X$33,B129,0, $C$2-B129,1),0)+B129,"") -> 595 | C130: =IFERROR(OFFSET(CalculationsAndCharts!$B$32, B130,0,1,1),"") -> 2014-07-22 | D130: 25.58 | E130: =IF(B130="","",IFERROR((MATCH(TRUE,OFFSET(CalculationsAndCharts!$Y$33,E129,0, $C$2-E129,1),0)+E129),"")) -> 594 | F130: =IFERROR(OFFSET(CalculationsAndCharts!$B$32, E130,0,1,1),"") -> 2014-07-23 | G130: 25.7 | H130: 0.12 | I130: 4.14 | J130: 2
B131: =IFERROR(MATCH(TRUE,OFFSET(CalculationsAndCharts!$X$33,B130,0, $C$2-B130,1),0)+B130,"") -> 600 | C131: =IFERROR(OFFSET(CalculationsAndCharts!$B$32, B131,0,1,1),"") -> 2014-07-15 | D131: 25.79 | E131: =IF(B131="","",IFERROR((MATCH(TRUE,OFFSET(CalculationsAndCharts!$Y$33,E130,0, $C$2-E130,1),0)+E130),"")) -> 597 | F131: =IFERROR(OFFSET(CalculationsAndCharts!$B$32, E131,0,1,1),"") -> 2014-07-18 | G131: 25.1 | H131: -0.69 | I131: 4.02 | J131: 4
B132: =IFERROR(MATCH(TRUE,OFFSET(CalculationsAndCharts!$X$33,B131,0, $C$2-B131,1),0)+B131,"") -> 602 | C132: =IFERROR(OFFSET(CalculationsAndCharts!$B$32, B132,0,1,1),"") -> 2014-07-11 | D132: 24.7 | E132: =IF(B132="","",IFERROR((MATCH(TRUE,OFFSET(CalculationsAndCharts!$Y$33,E131,0, $C$2-E131,1),0)+E131),"")) -> 601 | F132: =IFERROR(OFFSET(CalculationsAndCharts!$B$32, E132,0,1,1),"") -> 2014-07-14 | G132: 25.49 | H132: 0.79 | I132: 4.71 | J132: 2
B133: =IFERROR(MATCH(TRUE,OFFSET(CalculationsAndCharts!$X$33,B132,0, $C$2-B132,1),0)+B132,"") -> 609 | C133: =IFERROR(OFFSET(CalculationsAndCharts!$B$32, B133,0,1,1),"") -> 2014-07-01 | D133: 25.13 | E133: =IF(B133="","",IFERROR((MATCH(TRUE,OFFSET(CalculationsAndCharts!$Y$33,E132,0, $C$2-E132,1),0)+E132),"")) -> 604 | F133: =IFERROR(OFFSET(CalculationsAndCharts!$B$32, E133,0,1,1),"") -> 2014-07-09 | G133: 25.23 | H133: 0.1 | I133: 3.92 | J133: 6
B134: =IFERROR(MATCH(TRUE,OFFSET(CalculationsAndCharts!$X$33,B133,0, $C$2-B133,1),0)+B133,"") -> 614 | C134: =IFERROR(OFFSET(CalculationsAndCharts!$B$32, B134,0,1,1),"") -> 2014-06-24 | D134: 25.08 | E134: =IF(B134="","",IFERROR((MATCH(TRUE,OFFSET(CalculationsAndCharts!$Y$33,E133,0, $C$2-E133,1),0)+E133),"")) -> 613 | F134: =IFERROR(OFFSET(CalculationsAndCharts!$B$32, E134,0,1,1),"") -> 2014-06-25 | G134: 24.65 | H134: -0.43 | I134: 3.82 | J134: 2
B135: =IFERROR(MATCH(TRUE,OFFSET(CalculationsAndCharts!$X$33,B134,0, $C$2-B134,1),0)+B134,"") -> 618 | C135: =IFERROR(OFFSET(CalculationsAndCharts!$B$32, B135,0,1,1),"") -> 2014-06-18 | D135: 24.64 | E135: =IF(B135="","",IFERROR((MATCH(TRUE,OFFSET(CalculationsAndCharts!$Y$33,E134,0, $C$2-E134,1),0)+E134),"")) -> 615 | F135: =IFERROR(OFFSET(CalculationsAndCharts!$B$32, E135,0,1,1),"") -> 2014-06-23 | G135: 25.12 | H135: 0.48 | I135: 4.25 | J135: 4
B136: =IFERROR(MATCH(TRUE,OFFSET(CalculationsAndCharts!$X$33,B135,0, $C$2-B135,1),0)+B135,"") -> 630 | C136: =IFERROR(OFFSET(CalculationsAndCharts!$B$32, B136,0,1,1),"") -> 2014-06-02 | D136: 23.5 | E136: =IF(B136="","",IFERROR((MATCH(TRUE,OFFSET(CalculationsAndCharts!$Y$33,E135,0, $C$2-E135,1),0)+E135),"")) -> 622 | F136: =IFERROR(OFFSET(CalculationsAndCharts!$B$32, E136,0,1,1),"") -> 2014-06-12 | G136: 24.63 | H136: 1.13 | I136: 3.77 | J136: 9
B137: =IFERROR(MATCH(TRUE,OFFSET(CalculationsAndCharts!$X$33,B136,0, $C$2-B136,1),0)+B136,"") -> 635 | C137: =IFERROR(OFFSET(CalculationsAndCharts!$B$32, B137,0,1,1),"") -> 2014-05-23 | D137: 22.44 | E137: =IF(B137="","",IFERROR((MATCH(TRUE,OFFSET(CalculationsAndCharts!$Y$33,E136,0, $C$2-E136,1),0)+E136),"")) -> 631 | F137: =IFERROR(OFFSET(CalculationsAndCharts!$B$32, E137,0,1,1),"") -> 2014-05-30 | G137: 23.19 | H137: 0.75 | I137: 2.64 | J137: 5
B138: =IFERROR(MATCH(TRUE,OFFSET(CalculationsAndCharts!$X$33,B137,0, $C$2-B137,1),0)+B137,"") -> 638 | C138: =IFERROR(OFFSET(CalculationsAndCharts!$B$32, B138,0,1,1),"") -> 2014-05-20 | D138: 22.2 | E138: =IF(B138="","",IFERROR((MATCH(TRUE,OFFSET(CalculationsAndCharts!$Y$33,E137,0, $C$2-E137,1),0)+E137),"")) -> 636 | F138: =IFERROR(OFFSET(CalculationsAndCharts!$B$32, E138,0,1,1),"") -> 2014-05-22 | G138: 22.25 | H138: 0.05 | I138: 1.89 | J138: 3
B139: =IFERROR(MATCH(TRUE,OFFSET(CalculationsAndCharts!$X$33,B138,0, $C$2-B138,1),0)+B138,"") -> 645 | C139: =IFERROR(OFFSET(CalculationsAndCharts!$B$32, B139,0,1,1),"") -> 2014-05-09 | D139: 22.48 | E139: =IF(B139="","",IFERROR((MATCH(TRUE,OFFSET(CalculationsAndCharts!$Y$33,E138,0, $C$2-E138,1),0)+E138),"")) -> 641 | F139: =IFERROR(OFFSET(CalculationsAndCharts!$B$32, E139,0,1,1),"") -> 2014-05-15 | G139: 22.32 | H139: -0.16 | I139: 1.84 | J139: 5
B140: =IFERROR(MATCH(TRUE,OFFSET(CalculationsAndCharts!$X$33,B139,0, $C$2-B139,1),0)+B139,"") -> 651 | C140: =IFERROR(OFFSET(CalculationsAndCharts!$B$32, B140,0,1,1),"") -> 2014-05-01 | D140: 22.4 | E140: =IF(B140="","",IFERROR((MATCH(TRUE,OFFSET(CalculationsAndCharts!$Y$33,E139,0, $C$2-E139,1),0)+E139),"")) -> 648 | F140: =IFERROR(OFFSET(CalculationsAndCharts!$B$32, E140,0,1,1),"") -> 2014-05-06 | G140: 22.21 | H140: -0.19 | I140: 2 | J140: 4
B141: =IFERROR(MATCH(TRUE,OFFSET(CalculationsAndCharts!$X$33,B140,0, $C$2-B140,1),0)+B140,"") -> 661 | C141: =IFERROR(OFFSET(CalculationsAndCharts!$B$32, B141,0,1,1),"") -> 2014-04-16 | D141: 21.81 | E141: =IF(B141="","",IFERROR((MATCH(TRUE,OFFSET(CalculationsAndCharts!$Y$33,E140,0, $C$2-E140,1),0)+E140),"")) -> 654 | F141: =IFERROR(OFFSET(CalculationsAndCharts!$B$32, E141,0,1,1),"") -> 2014-04-28 | G141: 21.91 | H141: 0.1 | I141: 2.19 | J141: 8
B142: =IFERROR(MATCH(TRUE,OFFSET(CalculationsAndCharts!$X$33,B141,0, $C$2-B141,1),0)+B141,"") -> 665 | C142: =IFERROR(OFFSET(CalculationsAndCharts!$B$32, B142,0,1,1),"") -> 2014-04-10 | D142: 22.74 | E142: =IF(B142="","",IFERROR((MATCH(TRUE,OFFSET(CalculationsAndCharts!$Y$33,E141,0, $C$2-E141,1),0)+E141),"")) -> 664 | F142: =IFERROR(OFFSET(CalculationsAndCharts!$B$32, E142,0,1,1),"") -> 2014-04-11 | G142: 20.7 | H142: -2.04 | I142: 2.09 | J142: 2
B143: =IFERROR(MATCH(TRUE,OFFSET(CalculationsAndCharts!$X$33,B142,0, $C$2-B142,1),0)+B142,"") -> 672 | C143: =IFERROR(OFFSET(CalculationsAndCharts!$B$32, B143,0,1,1),"") -> 2014-04-01 | D143: 23.87 | E143: =IF(B143="","",IFERROR((MATCH(TRUE,OFFSET(CalculationsAndCharts!$Y$33,E142,0, $C$2-E142,1),0)+E142),"")) -> 668 | F143: =IFERROR(OFFSET(CalculationsAndCharts!$B$32, E143,0,1,1),"") -> 2014-04-07 | G143: 22.89 | H143: -0.98 | I143: 4.13 | J143: 5
B144: =IFERROR(MATCH(TRUE,OFFSET(CalculationsAndCharts!$X$33,B143,0, $C$2-B143,1),0)+B143,"") -> 681 | C144: =IFERROR(OFFSET(CalculationsAndCharts!$B$32, B144,0,1,1),"") -> 2014-03-19 | D144: =IFERROR(OFFSET(OpenColHeader, B144,0,1,1),"") -> 23.25 | E144: =IF(B144="","",IFERROR((MATCH(TRUE,OFFSET(CalculationsAndCharts!$Y$33,E143,0, $C$2-E143,1),0)+E143),"")) -> 677 | F144: =IFERROR(OFFSET(CalculationsAndCharts!$B$32, E144,0,1,1),"") -> 2014-03-25 | G144: =IFERROR(OFFSET(OpenColHeader, E144,0,1,1),"") -> 24.13 | H144: 0.88 | I144: 5.11 | J144: =IFERROR(B144-E144+1,"") -> 5
B145: =IFERROR(MATCH(TRUE,OFFSET(CalculationsAndCharts!$X$33,B144,0, $C$2-B144,1),0)+B144,"") -> 694 | C145: =IFERROR(OFFSET(CalculationsAndCharts!$B$32, B145,0,1,1),"") -> 2014-02-28 | D145: 21.79 | E145: =IF(B145="","",IFERROR((MATCH(TRUE,OFFSET(CalculationsAndCharts!$Y$33,E144,0, $C$2-E144,1),0)+E144),"")) -> 686 | F145: =IFERROR(OFFSET(CalculationsAndCharts!$B$32, E145,0,1,1),"") -> 2014-03-12 | G145: 23.08 | H145: =IFERROR(G145-D145,"") -> 1.29 | I145: =IFERROR(H145+IF(""=I146,0,I146),"") -> 4.23 | J145: 9
B146: =IFERROR(MATCH(TRUE,OFFSET(CalculationsAndCharts!$X$33,B145,0, $C$2-B145,1),0)+B145,"") -> 698 | C146: =IFERROR(OFFSET(CalculationsAndCharts!$B$32, B146,0,1,1),"") -> 2014-02-24 | D146: 21.49 | E146: =IF(B146="","",IFERROR((MATCH(TRUE,OFFSET(CalculationsAndCharts!$Y$33,E145,0, $C$2-E145,1),0)+E145),"")) -> 695 | F146: =IFERROR(OFFSET(CalculationsAndCharts!$B$32, E146,0,1,1),"") -> 2014-02-27 | G146: 21.48 | H146: -0.01 | I146: 2.94 | J146: 4
B147: =IFERROR(MATCH(TRUE,OFFSET(CalculationsAndCharts!$X$33,B146,0, $C$2-B146,1),0)+B146,"") -> 709 | C147: =IFERROR(OFFSET(CalculationsAndCharts!$B$32, B147,0,1,1),"") -> 2014-02-06 | D147: 19.32 | E147: =IF(B147="","",IFERROR((MATCH(TRUE,OFFSET(CalculationsAndCharts!$Y$33,E146,0, $C$2-E146,1),0)+E146),"")) -> 700 | F147: =IFERROR(OFFSET(CalculationsAndCharts!$B$32, E147,0,1,1),"") -> 2014-02-20 | G147: 21.25 | H147: 1.93 | I147: 2.95 | J147: 10
B148: =IFERROR(MATCH(TRUE,OFFSET(CalculationsAndCharts!$X$33,B147,0, $C$2-B147,1),0)+B147,"") -> 712 | C148: =IFERROR(OFFSET(CalculationsAndCharts!$B$32, B148,0,1,1),"") -> 2014-02-03 | D148: 20.14 | E148: =IF(B148="","",IFERROR((MATCH(TRUE,OFFSET(CalculationsAndCharts!$Y$33,E147,0, $C$2-E147,1),0)+E147),"")) -> 711 | F148: =IFERROR(OFFSET(CalculationsAndCharts!$B$32, E148,0,1,1),"") -> 2014-02-04 | G148: 18.99 | H148: -1.15 | I148: 1.02 | J148: 2
B149: =IFERROR(MATCH(TRUE,OFFSET(CalculationsAndCharts!$X$33,B148,0, $C$2-B148,1),0)+B148,"") -> 714 | C149: =IFERROR(OFFSET(CalculationsAndCharts!$B$32, B149,0,1,1),"") -> 2014-01-30 | D149: 20.68 | E149: =IF(B149="","",IFERROR((MATCH(TRUE,OFFSET(CalculationsAndCharts!$Y$33,E148,0, $C$2-E148,1),0)+E148),"")) -> 713 | F149: =IFERROR(OFFSET(CalculationsAndCharts!$B$32, E149,0,1,1),"") -> 2014-01-31 | G149: 20.02 | H149: -0.66 | I149: 2.17 | J149: 2
B150: =IFERROR(MATCH(TRUE,OFFSET(CalculationsAndCharts!$X$33,B149,0, $C$2-B149,1),0)+B149,"") -> 719 | C150: =IFERROR(OFFSET(CalculationsAndCharts!$B$32, B150,0,1,1),"") -> 2014-01-23 | D150: 22.75 | E150: =IF(B150="","",IFERROR((MATCH(TRUE,OFFSET(CalculationsAndCharts!$Y$33,E149,0, $C$2-E149,1),0)+E149),"")) -> 718 | F150: =IFERROR(OFFSET(CalculationsAndCharts!$B$32, E150,0,1,1),"") -> 2014-01-24 | G150: 21.61 | H150: -1.14 | I150: 2.83 | J150: 2
B151: =IFERROR(MATCH(TRUE,OFFSET(CalculationsAndCharts!$X$33,B150,0, $C$2-B150,1),0)+B150,"") -> 723 | C151: =IFERROR(OFFSET(CalculationsAndCharts!$B$32, B151,0,1,1),"") -> 2014-01-16 | D151: 23.05 | E151: =IF(B151="","",IFERROR((MATCH(TRUE,OFFSET(CalculationsAndCharts!$Y$33,E150,0, $C$2-E150,1),0)+E150),"")) -> 721 | F151: =IFERROR(OFFSET(CalculationsAndCharts!$B$32, E151,0,1,1),"") -> 2014-01-21 | G151: 23.09 | H151: 0.04 | I151: 3.97 | J151: 3
B152: =IFERROR(MATCH(TRUE,OFFSET(CalculationsAndCharts!$X$33,B151,0, $C$2-B151,1),0)+B151,"") -> 730 | C152: =IFERROR(OFFSET(CalculationsAndCharts!$B$32, B152,0,1,1),"") -> 2014-01-07 | D152: 22.94 | E152: =IF(B152="","",IFERROR((MATCH(TRUE,OFFSET(CalculationsAndCharts!$Y$33,E151,0, $C$2-E151,1),0)+E151),"")) -> 725 | F152: =IFERROR(OFFSET(CalculationsAndCharts!$B$32, E152,0,1,1),"") -> 2014-01-14 | G152: 22.37 | H152: -0.57 | I152: 3.93 | J152: 6
B153: =IFERROR(MATCH(TRUE,OFFSET(CalculationsAndCharts!$X$33,B152,0, $C$2-B152,1),0)+B152,"") -> 733 | C153: =IFERROR(OFFSET(CalculationsAndCharts!$B$32, B153,0,1,1),"") -> 2014-01-02 | D153: 22.48 | E153: =IF(B153="","",IFERROR((MATCH(TRUE,OFFSET(CalculationsAndCharts!$Y$33,E152,0, $C$2-E152,1),0)+E152),"")) -> 732 | F153: =IFERROR(OFFSET(CalculationsAndCharts!$B$32, E153,0,1,1),"") -> 2014-01-03 | G153: 22.35 | H153: -0.13 | I153: 4.5 | J153: 2
B154: =IFERROR(MATCH(TRUE,OFFSET(CalculationsAndCharts!$X$33,B153,0, $C$2-B153,1),0)+B153,"") -> 744 | C154: =IFERROR(OFFSET(CalculationsAndCharts!$B$32, B154,0,1,1),"") -> 2013-12-16 | D154: 20.49 | E154: =IF(B154="","",IFERROR((MATCH(TRUE,OFFSET(CalculationsAndCharts!$Y$33,E153,0, $C$2-E153,1),0)+E153),"")) -> 734 | F154: =IFERROR(OFFSET(CalculationsAndCharts!$B$32, E154,0,1,1),"") -> 2013-12-31 | G154: 22.45 | H154: 1.96 | I154: 4.63 | J154: 11
B155: =IFERROR(MATCH(TRUE,OFFSET(CalculationsAndCharts!$X$33,B154,0, $C$2-B154,1),0)+B154,"") -> 749 | C155: =IFERROR(OFFSET(CalculationsAndCharts!$B$32, B155,0,1,1),"") -> 2013-12-09 | D155: 21 | E155: =IF(B155="","",IFERROR((MATCH(TRUE,OFFSET(CalculationsAndCharts!$Y$33,E154,0, $C$2-E154,1),0)+E154),"")) -> 746 | F155: =IFERROR(OFFSET(CalculationsAndCharts!$B$32, E155,0,1,1),"") -> 2013-12-12 | G155: 20.13 | H155: -0.87 | I155: 2.67 | J155: 4
B156: =IFERROR(MATCH(TRUE,OFFSET(CalculationsAndCharts!$X$33,B155,0, $C$2-B155,1),0)+B155,"") -> 759 | C156: =IFERROR(OFFSET(CalculationsAndCharts!$B$32, B156,0,1,1),"") -> 2013-11-22 | D156: 20.85 | E156: =IF(B156="","",IFERROR((MATCH(TRUE,OFFSET(CalculationsAndCharts!$Y$33,E155,0, $C$2-E155,1),0)+E155),"")) -> 753 | F156: =IFERROR(OFFSET(CalculationsAndCharts!$B$32, E156,0,1,1),"") -> 2013-12-03 | G156: 20.69 | H156: -0.16 | I156: 3.54 | J156: 7
B157: =IFERROR(MATCH(TRUE,OFFSET(CalculationsAndCharts!$X$33,B156,0, $C$2-B156,1),0)+B156,"") -> 764 | C157: =IFERROR(OFFSET(CalculationsAndCharts!$B$32, B157,0,1,1),"") -> 2013-11-15 | D157: 20.08 | E157: =IF(B157="","",IFERROR((MATCH(TRUE,OFFSET(CalculationsAndCharts!$Y$33,E156,0, $C$2-E156,1),0)+E156),"")) -> 761 | F157: =IFERROR(OFFSET(CalculationsAndCharts!$B$32, E157,0,1,1),"") -> 2013-11-20 | G157: 20.31 | H157: 0.23 | I157: 3.7 | J157: 4
B158: =IFERROR(MATCH(TRUE,OFFSET(CalculationsAndCharts!$X$33,B157,0, $C$2-B157,1),0)+B157,"") -> 768 | C158: =IFERROR(OFFSET(CalculationsAndCharts!$B$32, B158,0,1,1),"") -> 2013-11-11 | D158: 19.46 | E158: =IF(B158="","",IFERROR((MATCH(TRUE,OFFSET(CalculationsAndCharts!$Y$33,E157,0, $C$2-E157,1),0)+E157),"")) -> 766 | F158: =IFERROR(OFFSET(CalculationsAndCharts!$B$32, E158,0,1,1),"") -> 2013-11-13 | G158: 18.87 | H158: -0.59 | I158: 3.47 | J158: 3
B159: =IFERROR(MATCH(TRUE,OFFSET(CalculationsAndCharts!$X$33,B158,0, $C$2-B158,1),0)+B158,"") -> 772 | C159: =IFERROR(OFFSET(CalculationsAndCharts!$B$32, B159,0,1,1),"") -> 2013-11-05 | D159: 18.95 | E159: =IF(B159="","",IFERROR((MATCH(TRUE,OFFSET(CalculationsAndCharts!$Y$33,E158,0, $C$2-E158,1),0)+E158),"")) -> 771 | F159: =IFERROR(OFFSET(CalculationsAndCharts!$B$32, E159,0,1,1),"") -> 2013-11-06 | G159: 19.11 | H159: 0.16 | I159: 4.06 | J159: 2
B160: =IFERROR(MATCH(TRUE,OFFSET(CalculationsAndCharts!$X$33,B159,0, $C$2-B159,1),0)+B159,"") -> 778 | C160: =IFERROR(OFFSET(CalculationsAndCharts!$B$32, B160,0,1,1),"") -> 2013-10-28 | D160: 19.8 | E160: =IF(B160="","",IFERROR((MATCH(TRUE,OFFSET(CalculationsAndCharts!$Y$33,E159,0, $C$2-E159,1),0)+E159),"")) -> 775 | F160: =IFERROR(OFFSET(CalculationsAndCharts!$B$32, E160,0,1,1),"") -> 2013-10-31 | G160: 19.5 | H160: -0.3 | I160: 3.9 | J160: 4
B161: =IFERROR(MATCH(TRUE,OFFSET(CalculationsAndCharts!$X$33,B160,0, $C$2-B160,1),0)+B160,"") -> 789 | C161: =IFERROR(OFFSET(CalculationsAndCharts!$B$32, B161,0,1,1),"") -> 2013-10-11 | D161: 17.62 | E161: =IF(B161="","",IFERROR((MATCH(TRUE,OFFSET(CalculationsAndCharts!$Y$33,E160,0, $C$2-E160,1),0)+E160),"")) -> 779 | F161: =IFERROR(OFFSET(CalculationsAndCharts!$B$32, E161,0,1,1),"") -> 2013-10-25 | G161: 19.58 | H161: 1.96 | I161: 4.2 | J161: 11
B162: =IFERROR(MATCH(TRUE,OFFSET(CalculationsAndCharts!$X$33,B161,0, $C$2-B161,1),0)+B161,"") -> 792 | C162: =IFERROR(OFFSET(CalculationsAndCharts!$B$32, B162,0,1,1),"") -> 2013-10-08 | D162: 17 | E162: =IF(B162="","",IFERROR((MATCH(TRUE,OFFSET(CalculationsAndCharts!$Y$33,E161,0, $C$2-E161,1),0)+E161),"")) -> 791 | F162: =IFERROR(OFFSET(CalculationsAndCharts!$B$32, E162,0,1,1),"") -> 2013-10-09 | G162: 16.43 | H162: -0.57 | I162: 2.24 | J162: 2
B163: =IFERROR(MATCH(TRUE,OFFSET(CalculationsAndCharts!$X$33,B162,0, $C$2-B162,1),0)+B162,"") -> 795 | C163: =IFERROR(OFFSET(CalculationsAndCharts!$B$32, B163,0,1,1),"") -> 2013-10-03 | D163: 17.46 | E163: =IF(B163="","",IFERROR((MATCH(TRUE,OFFSET(CalculationsAndCharts!$Y$33,E162,0, $C$2-E162,1),0)+E162),"")) -> 794 | F163: =IFERROR(OFFSET(CalculationsAndCharts!$B$32, E163,0,1,1),"") -> 2013-10-04 | G163: 17.21 | H163: -0.25 | I163: 2.81 | J163: 2
B164: =IFERROR(MATCH(TRUE,OFFSET(CalculationsAndCharts!$X$33,B163,0, $C$2-B163,1),0)+B163,"") -> 799 | C164: =IFERROR(OFFSET(CalculationsAndCharts!$B$32, B164,0,1,1),"") -> 2013-09-27 | D164: 17.42 | E164: =IF(B164="","",IFERROR((MATCH(TRUE,OFFSET(CalculationsAndCharts!$Y$33,E163,0, $C$2-E163,1),0)+E163),"")) -> 798 | F164: =IFERROR(OFFSET(CalculationsAndCharts!$B$32, E164,0,1,1),"") -> 2013-09-30 | G164: 17 | H164: -0.42 | I164: 3.06 | J164: 2
B165: =IFERROR(MATCH(TRUE,OFFSET(CalculationsAndCharts!$X$33,B164,0, $C$2-B164,1),0)+B164,"") -> 807 | C165: =IFERROR(OFFSET(CalculationsAndCharts!$B$32, B165,0,1,1),"") -> 2013-09-17 | D165: 18.18 | E165: =IF(B165="","",IFERROR((MATCH(TRUE,OFFSET(CalculationsAndCharts!$Y$33,E164,0, $C$2-E164,1),0)+E164),"")) -> 803 | F165: =IFERROR(OFFSET(CalculationsAndCharts!$B$32, E165,0,1,1),"") -> 2013-09-23 | G165: 18.17 | H165: -0.01 | I165: 3.48 | J165: 5
B166: =IFERROR(MATCH(TRUE,OFFSET(CalculationsAndCharts!$X$33,B165,0, $C$2-B165,1),0)+B165,"") -> 815 | C166: =IFERROR(OFFSET(CalculationsAndCharts!$B$32, B166,0,1,1),"") -> 2013-09-05 | D166: 16.43 | E166: =IF(B166="","",IFERROR((MATCH(TRUE,OFFSET(CalculationsAndCharts!$Y$33,E165,0, $C$2-E165,1),0)+E165),"")) -> 809 | F166: =IFERROR(OFFSET(CalculationsAndCharts!$B$32, E166,0,1,1),"") -> 2013-09-13 | G166: 17.52 | H166: 1.09 | I166: 3.49 | J166: 7
B167: =IFERROR(MATCH(TRUE,OFFSET(CalculationsAndCharts!$X$33,B166,0, $C$2-B166,1),0)+B166,"") -> 818 | C167: =IFERROR(OFFSET(CalculationsAndCharts!$B$32, B167,0,1,1),"") -> 2013-08-30 | D167: 16.03 | E167: =IF(B167="","",IFERROR((MATCH(TRUE,OFFSET(CalculationsAndCharts!$Y$33,E166,0, $C$2-E166,1),0)+E166),"")) -> 817 | F167: =IFERROR(OFFSET(CalculationsAndCharts!$B$32, E167,0,1,1),"") -> 2013-09-03 | G167: 16.21 | H167: 0.18 | I167: 2.4 | J167: 2
B168: =IFERROR(MATCH(TRUE,OFFSET(CalculationsAndCharts!$X$33,B167,0, $C$2-B167,1),0)+B167,"") -> 822 | C168: =IFERROR(OFFSET(CalculationsAndCharts!$B$32, B168,0,1,1),"") -> 2013-08-26 | D168: 17.25 | E168: =IF(B168="","",IFERROR((MATCH(TRUE,OFFSET(CalculationsAndCharts!$Y$33,E167,0, $C$2-E167,1),0)+E167),"")) -> 821 | F168: =IFERROR(OFFSET(CalculationsAndCharts!$B$32, E168,0,1,1),"") -> 2013-08-27 | G168: 16.3 | H168: -0.95 | I168: 2.22 | J168: 2
B169: =IFERROR(MATCH(TRUE,OFFSET(CalculationsAndCharts!$X$33,B168,0, $C$2-B168,1),0)+B168,"") -> 824 | C169: =IFERROR(OFFSET(CalculationsAndCharts!$B$32, B169,0,1,1),"") -> 2013-08-22 | D169: 16.79 | E169: =IF(B169="","",IFERROR((MATCH(TRUE,OFFSET(CalculationsAndCharts!$Y$33,E168,0, $C$2-E168,1),0)+E168),"")) -> 823 | F169: =IFERROR(OFFSET(CalculationsAndCharts!$B$32, E169,0,1,1),"") -> 2013-08-23 | G169: 17.25 | H169: 0.46 | I169: 3.17 | J169: 2
B170: =IFERROR(MATCH(TRUE,OFFSET(CalculationsAndCharts!$X$33,B169,0, $C$2-B169,1),0)+B169,"") -> 829 | C170: =IFERROR(OFFSET(CalculationsAndCharts!$B$32, B170,0,1,1),"") -> 2013-08-15 | D170: 17.59 | E170: =IF(B170="","",IFERROR((MATCH(TRUE,OFFSET(CalculationsAndCharts!$Y$33,E169,0, $C$2-E169,1),0)+E169),"")) -> 828 | F170: =IFERROR(OFFSET(CalculationsAndCharts!$B$32, E170,0,1,1),"") -> 2013-08-16 | G170: 17.11 | H170: -0.48 | I170: 2.71 | J170: 2
B171: =IFERROR(MATCH(TRUE,OFFSET(CalculationsAndCharts!$X$33,B170,0, $C$2-B170,1),0)+B170,"") -> 832 | C171: =IFERROR(OFFSET(CalculationsAndCharts!$B$32, B171,0,1,1),"") -> 2013-08-12 | D171: 18.01 | E171: =IF(B171="","",IFERROR((MATCH(TRUE,OFFSET(CalculationsAndCharts!$Y$33,E170,0, $C$2-E170,1),0)+E170),"")) -> 831 | F171: =IFERROR(OFFSET(CalculationsAndCharts!$B$32, E171,0,1,1),"") -> 2013-08-13 | G171: 18.15 | H171: 0.14 | I171: 3.19 | J171: 2
B172: =IFERROR(MATCH(TRUE,OFFSET(CalculationsAndCharts!$X$33,B171,0, $C$2-B171,1),0)+B171,"") -> 838 | C172: =IFERROR(OFFSET(CalculationsAndCharts!$B$32, B172,0,1,1),"") -> 2013-08-02 | D172: 19.05 | E172: =IF(B172="","",IFERROR((MATCH(TRUE,OFFSET(CalculationsAndCharts!$Y$33,E171,0, $C$2-E171,1),0)+E171),"")) -> 836 | F172: =IFERROR(OFFSET(CalculationsAndCharts!$B$32, E172,0,1,1),"") -> 2013-08-06 | G172: 18.98 | H172: -0.07 | I172: 3.05 | J172: 3
B173: =IFERROR(MATCH(TRUE,OFFSET(CalculationsAndCharts!$X$33,B172,0, $C$2-B172,1),0)+B172,"") -> 842 | C173: =IFERROR(OFFSET(CalculationsAndCharts!$B$32, B173,0,1,1),"") -> 2013-07-29 | D173: 18.63 | E173: =IF(B173="","",IFERROR((MATCH(TRUE,OFFSET(CalculationsAndCharts!$Y$33,E172,0, $C$2-E172,1),0)+E172),"")) -> 841 | F173: =IFERROR(OFFSET(CalculationsAndCharts!$B$32, E173,0,1,1),"") -> 2013-07-30 | G173: 18.61 | H173: -0.02 | I173: 3.12 | J173: 2
B174: =IFERROR(MATCH(TRUE,OFFSET(CalculationsAndCharts!$X$33,B173,0, $C$2-B173,1),0)+B173,"") -> 848 | C174: =IFERROR(OFFSET(CalculationsAndCharts!$B$32, B174,0,1,1),"") -> 2013-07-19 | D174: 18.93 | E174: =IF(B174="","",IFERROR((MATCH(TRUE,OFFSET(CalculationsAndCharts!$Y$33,E173,0, $C$2-E173,1),0)+E173),"")) -> 844 | F174: =IFERROR(OFFSET(CalculationsAndCharts!$B$32, E174,0,1,1),"") -> 2013-07-25 | G174: 18.6 | H174: -0.33 | I174: 3.14 | J174: 5
B175: =IFERROR(MATCH(TRUE,OFFSET(CalculationsAndCharts!$X$33,B174,0, $C$2-B174,1),0)+B174,"") -> 852 | C175: =IFERROR(OFFSET(CalculationsAndCharts!$B$32, B175,0,1,1),"") -> 2013-07-15 | D175: 18.37 | E175: =IF(B175="","",IFERROR((MATCH(TRUE,OFFSET(CalculationsAndCharts!$Y$33,E174,0, $C$2-E174,1),0)+E174),"")) -> 849 | F175: =IFERROR(OFFSET(CalculationsAndCharts!$B$32, E175,0,1,1),"") -> 2013-07-18 | G175: 18.5 | H175: 0.13 | I175: 3.47 | J175: 4
B176: =IFERROR(MATCH(TRUE,OFFSET(CalculationsAndCharts!$X$33,B175,0, $C$2-B175,1),0)+B175,"") -> 859 | C176: =IFERROR(OFFSET(CalculationsAndCharts!$B$32, B176,0,1,1),"") -> 2013-07-03 | D176: 15.86 | E176: =IF(B176="","",IFERROR((MATCH(TRUE,OFFSET(CalculationsAndCharts!$Y$33,E175,0, $C$2-E175,1),0)+E175),"")) -> 853 | F176: =IFERROR(OFFSET(CalculationsAndCharts!$B$32, E176,0,1,1),"") -> 2013-07-12 | G176: 17.94 | H176: 2.08 | I176: 3.34 | J176: 7
B177: =IFERROR(MATCH(TRUE,OFFSET(CalculationsAndCharts!$X$33,B176,0, $C$2-B176,1),0)+B176,"") -> 863 | C177: =IFERROR(OFFSET(CalculationsAndCharts!$B$32, B177,0,1,1),"") -> 2013-06-27 | D177: 15.87 | E177: =IF(B177="","",IFERROR((MATCH(TRUE,OFFSET(CalculationsAndCharts!$Y$33,E176,0, $C$2-E176,1),0)+E176),"")) -> 860 | F177: =IFERROR(OFFSET(CalculationsAndCharts!$B$32, E177,0,1,1),"") -> 2013-07-02 | G177: 16.15 | H177: 0.28 | I177: 1.26 | J177: 4
B178: =IFERROR(MATCH(TRUE,OFFSET(CalculationsAndCharts!$X$33,B177,0, $C$2-B177,1),0)+B177,"") -> 869 | C178: =IFERROR(OFFSET(CalculationsAndCharts!$B$32, B178,0,1,1),"") -> 2013-06-19 | D178: 16.8 | E178: =IF(B178="","",IFERROR((MATCH(TRUE,OFFSET(CalculationsAndCharts!$Y$33,E177,0, $C$2-E177,1),0)+E177),"")) -> 868 | F178: =IFERROR(OFFSET(CalculationsAndCharts!$B$32, E178,0,1,1),"") -> 2013-06-20 | G178: 15.72 | H178: -1.08 | I178: 0.98 | J178: 2
B179: =IFERROR(MATCH(TRUE,OFFSET(CalculationsAndCharts!$X$33,B178,0, $C$2-B178,1),0)+B178,"") -> 871 | C179: =IFERROR(OFFSET(CalculationsAndCharts!$B$32, B179,0,1,1),"") -> 2013-06-17 | D179: 16.45 | E179: =IF(B179="","",IFERROR((MATCH(TRUE,OFFSET(CalculationsAndCharts!$Y$33,E178,0, $C$2-E178,1),0)+E178),"")) -> 870 | F179: =IFERROR(OFFSET(CalculationsAndCharts!$B$32, E179,0,1,1),"") -> 2013-06-18 | G179: 16.51 | H179: 0.06 | I179: 2.06 | J179: 2
B180: =IFERROR(MATCH(TRUE,OFFSET(CalculationsAndCharts!$X$33,B179,0, $C$2-B179,1),0)+B179,"") -> 876 | C180: =IFERROR(OFFSET(CalculationsAndCharts!$B$32, B180,0,1,1),"") -> 2013-06-10 | D180: 17.18 | E180: =IF(B180="","",IFERROR((MATCH(TRUE,OFFSET(CalculationsAndCharts!$Y$33,E179,0, $C$2-E179,1),0)+E179),"")) -> 874 | F180: =IFERROR(OFFSET(CalculationsAndCharts!$B$32, E180,0,1,1),"") -> 2013-06-12 | G180: 16.52 | H180: -0.66 | I180: 2 | J180: 3
B181: =IFERROR(MATCH(TRUE,OFFSET(CalculationsAndCharts!$X$33,B180,0, $C$2-B180,1),0)+B180,"") -> 884 | C181: =IFERROR(OFFSET(CalculationsAndCharts!$B$32, B181,0,1,1),"") -> 2013-05-29 | D181: 16.9 | E181: =IF(B181="","",IFERROR((MATCH(TRUE,OFFSET(CalculationsAndCharts!$Y$33,E180,0, $C$2-E180,1),0)+E180),"")) -> 880 | F181: =IFERROR(OFFSET(CalculationsAndCharts!$B$32, E181,0,1,1),"") -> 2013-06-04 | G181: 16.84 | H181: -0.06 | I181: 2.66 | J181: 5
B182: =IFERROR(MATCH(TRUE,OFFSET(CalculationsAndCharts!$X$33,B181,0, $C$2-B181,1),0)+B181,"") -> 889 | C182: =IFERROR(OFFSET(CalculationsAndCharts!$B$32, B182,0,1,1),"") -> 2013-05-21 | D182: 17.68 | E182: =IF(B182="","",IFERROR((MATCH(TRUE,OFFSET(CalculationsAndCharts!$Y$33,E181,0, $C$2-E181,1),0)+E181),"")) -> 887 | F182: =IFERROR(OFFSET(CalculationsAndCharts!$B$32, E182,0,1,1),"") -> 2013-05-23 | G182: 16.38 | H182: -1.3 | I182: 2.72 | J182: 3
B183: =IFERROR(MATCH(TRUE,OFFSET(CalculationsAndCharts!$X$33,B182,0, $C$2-B182,1),0)+B182,"") -> 894 | C183: =IFERROR(OFFSET(CalculationsAndCharts!$B$32, B183,0,1,1),"") -> 2013-05-14 | D183: 16.07 | E183: =IF(B183="","",IFERROR((MATCH(TRUE,OFFSET(CalculationsAndCharts!$Y$33,E182,0, $C$2-E182,1),0)+E182),"")) -> 890 | F183: =IFERROR(OFFSET(CalculationsAndCharts!$B$32, E183,0,1,1),"") -> 2013-05-20 | G183: 17.44 | H183: 1.37 | I183: 4.02 | J183: 5
B184: =IFERROR(MATCH(TRUE,OFFSET(CalculationsAndCharts!$X$33,B183,0, $C$2-B183,1),0)+B183,"") -> 900 | C184: =IFERROR(OFFSET(CalculationsAndCharts!$B$32, B184,0,1,1),"") -> 2013-05-06 | D184: 15.13 | E184: =IF(B184="","",IFERROR((MATCH(TRUE,OFFSET(CalculationsAndCharts!$Y$33,E183,0, $C$2-E183,1),0)+E183),"")) -> 895 | F184: =IFERROR(OFFSET(CalculationsAndCharts!$B$32, E184,0,1,1),"") -> 2013-05-13 | G184: 15.75 | H184: 0.62 | I184: 2.65 | J184: 6
B185: =IFERROR(MATCH(TRUE,OFFSET(CalculationsAndCharts!$X$33,B184,0, $C$2-B184,1),0)+B184,"") -> 903 | C185: =IFERROR(OFFSET(CalculationsAndCharts!$B$32, B185,0,1,1),"") -> 2013-05-01 | D185: 14.56 | E185: =IF(B185="","",IFERROR((MATCH(TRUE,OFFSET(CalculationsAndCharts!$Y$33,E184,0, $C$2-E184,1),0)+E184),"")) -> 902 | F185: =IFERROR(OFFSET(CalculationsAndCharts!$B$32, E185,0,1,1),"") -> 2013-05-02 | G185: 14.44 | H185: -0.12 | I185: 2.03 | J185: 2
B186: =IFERROR(MATCH(TRUE,OFFSET(CalculationsAndCharts!$X$33,B185,0, $C$2-B185,1),0)+B185,"") -> 909 | C186: =IFERROR(OFFSET(CalculationsAndCharts!$B$32, B186,0,1,1),"") -> 2013-04-23 | D186: 13.63 | E186: =IF(B186="","",IFERROR((MATCH(TRUE,OFFSET(CalculationsAndCharts!$Y$33,E185,0, $C$2-E185,1),0)+E185),"")) -> 904 | F186: =IFERROR(OFFSET(CalculationsAndCharts!$B$32, E186,0,1,1),"") -> 2013-04-30 | G186: 14.53 | H186: 0.9 | I186: 2.15 | J186: 6
B187: =IFERROR(MATCH(TRUE,OFFSET(CalculationsAndCharts!$X$33,B186,0, $C$2-B186,1),0)+B186,"") -> 912 | C187: =IFERROR(OFFSET(CalculationsAndCharts!$B$32, B187,0,1,1),"") -> 2013-04-18 | D187: 13.22 | E187: =IF(B187="","",IFERROR((MATCH(TRUE,OFFSET(CalculationsAndCharts!$Y$33,E186,0, $C$2-E186,1),0)+E186),"")) -> 911 | F187: =IFERROR(OFFSET(CalculationsAndCharts!$B$32, E187,0,1,1),"") -> 2013-04-19 | G187: 13.04 | H187: -0.18 | I187: 1.25 | J187: 2
B188: =IFERROR(MATCH(TRUE,OFFSET(CalculationsAndCharts!$X$33,B187,0, $C$2-B187,1),0)+B187,"") -> 918 | C188: =IFERROR(OFFSET(CalculationsAndCharts!$B$32, B188,0,1,1),"") -> 2013-04-10 | D188: 14 | E188: =IF(B188="","",IFERROR((MATCH(TRUE,OFFSET(CalculationsAndCharts!$Y$33,E187,0, $C$2-E187,1),0)+E187),"")) -> 914 | F188: =IFERROR(OFFSET(CalculationsAndCharts!$B$32, E188,0,1,1),"") -> 2013-04-16 | G188: 13.76 | H188: -0.24 | I188: 1.43 | J188: 5
B189: =IFERROR(MATCH(TRUE,OFFSET(CalculationsAndCharts!$X$33,B188,0, $C$2-B188,1),0)+B188,"") -> 920 | C189: =IFERROR(OFFSET(CalculationsAndCharts!$B$32, B189,0,1,1),"") -> 2013-04-08 | D189: 13.38 | E189: =IF(B189="","",IFERROR((MATCH(TRUE,OFFSET(CalculationsAndCharts!$Y$33,E188,0, $C$2-E188,1),0)+E188),"")) -> 919 | F189: =IFERROR(OFFSET(CalculationsAndCharts!$B$32, E189,0,1,1),"") -> 2013-04-09 | G189: 13.8 | H189: 0.42 | I189: 1.67 | J189: 2
B190: =IFERROR(MATCH(TRUE,OFFSET(CalculationsAndCharts!$X$33,B189,0, $C$2-B189,1),0)+B189,"") -> 922 | C190: =IFERROR(OFFSET(CalculationsAndCharts!$B$32, B190,0,1,1),"") -> 2013-04-04 | D190: 13.21 | E190: =IF(B190="","",IFERROR((MATCH(TRUE,OFFSET(CalculationsAndCharts!$Y$33,E189,0, $C$2-E189,1),0)+E189),"")) -> 921 | F190: =IFERROR(OFFSET(CalculationsAndCharts!$B$32, E190,0,1,1),"") -> 2013-04-05 | G190: 12.97 | H190: -0.24 | I190: 1.25 | J190: 2
B191: =IFERROR(MATCH(TRUE,OFFSET(CalculationsAndCharts!$X$33,B190,0, $C$2-B190,1),0)+B190,"") -> 928 | C191: =IFERROR(OFFSET(CalculationsAndCharts!$B$32, B191,0,1,1),"") -> 2013-03-26 | D191: 13.7 | E191: =IF(B191="","",IFERROR((MATCH(TRUE,OFFSET(CalculationsAndCharts!$Y$33,E190,0, $C$2-E190,1),0)+E190),"")) -> 925 | F191: =IFERROR(OFFSET(CalculationsAndCharts!$B$32, E191,0,1,1),"") -> 2013-04-01 | G191: 13.78 | H191: 0.08 | I191: 1.49 | J191: 4
B192: =IFERROR(MATCH(TRUE,OFFSET(CalculationsAndCharts!$X$33,B191,0, $C$2-B191,1),0)+B191,"") -> 930 | C192: =IFERROR(OFFSET(CalculationsAndCharts!$B$32, B192,0,1,1),"") -> 2013-03-22 | D192: 13.53 | E192: =IF(B192="","",IFERROR((MATCH(TRUE,OFFSET(CalculationsAndCharts!$Y$33,E191,0, $C$2-E191,1),0)+E191),"")) -> 929 | F192: =IFERROR(OFFSET(CalculationsAndCharts!$B$32, E192,0,1,1),"") -> 2013-03-25 | G192: 13.76 | H192: 0.23 | I192: 1.41 | J192: 2
B193: =IFERROR(MATCH(TRUE,OFFSET(CalculationsAndCharts!$X$33,B192,0, $C$2-B192,1),0)+B192,"") -> 935 | C193: =IFERROR(OFFSET(CalculationsAndCharts!$B$32, B193,0,1,1),"") -> 2013-03-15 | D193: 13.95 | E193: =IF(B193="","",IFERROR((MATCH(TRUE,OFFSET(CalculationsAndCharts!$Y$33,E192,0, $C$2-E192,1),0)+E192),"")) -> 933 | F193: =IFERROR(OFFSET(CalculationsAndCharts!$B$32, E193,0,1,1),"") -> 2013-03-19 | G193: 13.87 | H193: -0.08 | I193: 1.18 | J193: 3
B194: =IFERROR(MATCH(TRUE,OFFSET(CalculationsAndCharts!$X$33,B193,0, $C$2-B193,1),0)+B193,"") -> 943 | C194: =IFERROR(OFFSET(CalculationsAndCharts!$B$32, B194,0,1,1),"") -> 2013-03-05 | D194: 12.91 | E194: =IF(B194="","",IFERROR((MATCH(TRUE,OFFSET(CalculationsAndCharts!$Y$33,E193,0, $C$2-E193,1),0)+E193),"")) -> 936 | F194: =IFERROR(OFFSET(CalculationsAndCharts!$B$32, E194,0,1,1),"") -> 2013-03-14 | G194: 13.83 | H194: 0.92 | I194: 1.26 | J194: 8
B195: =IFERROR(MATCH(TRUE,OFFSET(CalculationsAndCharts!$X$33,B194,0, $C$2-B194,1),0)+B194,"") -> 946 | C195: =IFERROR(OFFSET(CalculationsAndCharts!$B$32, B195,0,1,1),"") -> 2013-02-28 | D195: 12.33 | E195: =IF(B195="","",IFERROR((MATCH(TRUE,OFFSET(CalculationsAndCharts!$Y$33,E194,0, $C$2-E194,1),0)+E194),"")) -> 944 | F195: =IFERROR(OFFSET(CalculationsAndCharts!$B$32, E195,0,1,1),"") -> 2013-03-04 | G195: 12.28 | H195: -0.05 | I195: 0.34 | J195: 3
B196: =IFERROR(MATCH(TRUE,OFFSET(CalculationsAndCharts!$X$33,B195,0, $C$2-B195,1),0)+B195,"") -> 953 | C196: =IFERROR(OFFSET(CalculationsAndCharts!$B$32, B196,0,1,1),"") -> 2013-02-19 | D196: 12.75 | E196: =IF(B196="","",IFERROR((MATCH(TRUE,OFFSET(CalculationsAndCharts!$Y$33,E195,0, $C$2-E195,1),0)+E195),"")) -> 952 | F196: =IFERROR(OFFSET(CalculationsAndCharts!$B$32, E196,0,1,1),"") -> 2013-02-20 | G196: 12.96 | H196: 0.21 | I196: 0.39 | J196: 2
B197: =IFERROR(MATCH(TRUE,OFFSET(CalculationsAndCharts!$X$33,B196,0, $C$2-B196,1),0)+B196,"") -> 957 | C197: =IFERROR(OFFSET(CalculationsAndCharts!$B$32, B197,0,1,1),"") -> 2013-02-12 | D197: 12.5 | E197: =IF(B197="","",IFERROR((MATCH(TRUE,OFFSET(CalculationsAndCharts!$Y$33,E196,0, $C$2-E196,1),0)+E196),"")) -> 954 | F197: =IFERROR(OFFSET(CalculationsAndCharts!$B$32, E197,0,1,1),"") -> 2013-02-15 | G197: 12.81 | H197: 0.31 | I197: 0.18 | J197: 4
B198: =IFERROR(MATCH(TRUE,OFFSET(CalculationsAndCharts!$X$33,B197,0, $C$2-B197,1),0)+B197,"") -> 960 | C198: =IFERROR(OFFSET(CalculationsAndCharts!$B$32, B198,0,1,1),"") -> 2013-02-07 | D198: 12.39 | E198: =IF(B198="","",IFERROR((MATCH(TRUE,OFFSET(CalculationsAndCharts!$Y$33,E197,0, $C$2-E197,1),0)+E197),"")) -> 959 | F198: =IFERROR(OFFSET(CalculationsAndCharts!$B$32, E198,0,1,1),"") -> 2013-02-08 | G198: 12.26 | H198: -0.13 | I198: -0.13 | J198: 2
B199: =IFERROR(MATCH(TRUE,OFFSET(CalculationsAndCharts!$X$33,B198,0, $C$2-B198,1),0)+B198,"") -> 963 | C199: =IFERROR(OFFSET(CalculationsAndCharts!$B$32, B199,0,1,1),"") -> 2013-02-04 | D199: 12.07 | E199: =IF(B199="","",IFERROR((MATCH(TRUE,OFFSET(CalculationsAndCharts!$Y$33,E198,0, $C$2-E198,1),0)+E198),"")) -> 961 | F199: =IFERROR(OFFSET(CalculationsAndCharts!$B$32, E199,0,1,1),"") -> 2013-02-06 | G199: 12.11 | H199: 0.04 | I199: 8.881784197e-16 | J199: 3
B200: =IFERROR(MATCH(TRUE,OFFSET(CalculationsAndCharts!$X$33,B199,0, $C$2-B199,1),0)+B199,"") -> 965 | C200: =IFERROR(OFFSET(CalculationsAndCharts!$B$32, B200,0,1,1),"") -> 2013-01-31 | D200: 11.82 | E200: =IF(B200="","",IFERROR((MATCH(TRUE,OFFSET(CalculationsAndCharts!$Y$33,E199,0, $C$2-E199,1),0)+E199),"")) -> 964 | F200: =IFERROR(OFFSET(CalculationsAndCharts!$B$32, E200,0,1,1),"") -> 2013-02-01 | G200: 12.03 | H200: 0.21 | I200: -0.04 | J200: 2
B201: =IFERROR(MATCH(TRUE,OFFSET(CalculationsAndCharts!$X$33,B200,0, $C$2-B200,1),0)+B200,"") -> 975 | C201: =IFERROR(OFFSET(CalculationsAndCharts!$B$32, B201,0,1,1),"") -> 2013-01-16 | D201: 11.35 | E201: =IF(B201="","",IFERROR((MATCH(TRUE,OFFSET(CalculationsAndCharts!$Y$33,E200,0, $C$2-E200,1),0)+E200),"")) -> 966 | F201: =IFERROR(OFFSET(CalculationsAndCharts!$B$32, E201,0,1,1),"") -> 2013-01-30 | G201: 11.95 | H201: 0.6 | I201: -0.25 | J201: 10
B202: =IFERROR(MATCH(TRUE,OFFSET(CalculationsAndCharts!$X$33,B201,0, $C$2-B201,1),0)+B201,"") -> 978 | C202: =IFERROR(OFFSET(CalculationsAndCharts!$B$32, B202,0,1,1),"") -> 2013-01-11 | D202: 11.3 | E202: =IF(B202="","",IFERROR((MATCH(TRUE,OFFSET(CalculationsAndCharts!$Y$33,E201,0, $C$2-E201,1),0)+E201),"")) -> 976 | F202: =IFERROR(OFFSET(CalculationsAndCharts!$B$32, E202,0,1,1),"") -> 2013-01-15 | G202: 11.1 | H202: -0.2 | I202: -0.85 | J202: 3
... 84 more rows

Sheet Follow
A1: Stocks and Indexes I wish to follow
A3: To ease following a stock, enter a Yahoo Finance acceptable symbol in column "A" anywhere below cell "A9".
A4: Thereafter you may doubleclick the cell containing a symbol of interest to initiate data retrieval and charting for that symbol.
A7: Symbol
A8: To | B8: Description | C8: Last Trade as of most recent check
A9: Follow | C9: Date | D9: Time | E9: Open | F9: High | G9: Low | H9: Close | I9: Volume | J9: Change
A10: A | B10: Agilent Technolog (A) -NYSE (Daily) | C10: 2015-02-02 | D10: 16:03:00 | E10: 37.9 | F10: 38.76 | G10: 37.71 | H10: 38.69 | I10: 2508493 | J10: 0.92
A11: AAL | B11: American Airlines (AAL) -NasdaqNM (Daily) | C11: 2015-02-19 | D11: 16:00:00 | E11: 50.73 | F11: 50.8 | G11: 49.59 | H11: 49.78 | I11: 11462722 | J11: 0.47
A12: ADM | B12: Archer-Daniels-Midland Company (ADM) -NYQ (Daily) | C12: 2016-03-07 | D12: 13:18:00 | E12: 37.17 | F12: 37.29 | G12: 36.85 | H12: 37.09 | I12: 2069198 | J12: -0.56
A13: AMC | B13: AMC Entertainment Holdings, Inc (AMC) -NYQ (Daily) | C13: 2015-09-04 | D13: 16:00:00 | E13: 27.14 | F13: 27.95 | G13: 26.99 | H13: 27.71 | I13: 167990 | J13: 0.28
A14: BSX | B14: Boston Scientific Corporation C (BSX) -NYQ (Daily) | C14: 2015-03-13 | D14: 16:01:00 | E14: 16.84 | F14: 16.91 | G14: 16.44 | H14: 16.61 | I14: 7262460 | J14: -0.28
A15: CASY | B15: Caseys General Stores, Inc. (CASY) -NMS (Daily) | C15: 2017-02-08 | D15: 16:00:00 | E15: 117.96 | F15: 119.3 | G15: 117.34 | H15: 119.11 | I15: 447457 | J15: 1.35
A16: CSCO | B16: Cisco Systems, In (CSCO) -NasdaqNM (Daily) | C16: 2015-02-19 | D16: 16:00:00 | E16: 29.32 | F16: 29.39 | G16: 29.13 | H16: 29.31 | I16: 21469012 | J16: -0.18
A17: CVS | B17: CVS Health Corpor (CVS) -NYSE (Daily) | C17: 2015-02-02 | D17: 16:01:00 | E17: 98.34 | F17: 99.22 | G17: 97.06 | H17: 99.11 | I17: 4416094 | J17: 0.95
A18: DIS | B18: Walt Disney Compa (DIS) -NYSE (Daily) | C18: 2015-02-26 | D18: 16:00:00 | E18: 105.5 | F18: 105.71 | G18: 104.14 | H18: 104.56 | I18: 5044969 | J18: -1.01
A19: EMC | B19: EMC Corporation C (EMC) -NYSE (Daily) | C19: 2015-02-19 | D19: 16:00:00 | E19: 28.26 | F19: 28.83 | G19: 28.19 | H19: 28.72 | I19: 11049079 | J19: 0.52
A20: F | B20: Ford Motor Company Common Stock (F) -NYQ (Daily) | C20: 2016-01-08 | D20: 11:42:00 | E20: 13.05 | F20: 13.1 | G20: 12.68 | H20: 12.7353 | I20: 19823416 | J20: 0.0353
A21: FAS | B21: Direxion Financial Bull 3X Shar (FAS) -PCX (Daily) | C21: 2017-02-10 | D21: 20:00:00 | E21: 43.95 | F21: 44.26 | G21: 43.55 | H21: 44 | I21: 3352880 | J21: 0.44
A22: GSK | B22: GlaxoSmithKline P (GSK) -NYSE (Daily) | C22: 2015-02-02 | D22: 16:01:00 | E22: 44.11 | F22: 44.12 | G22: 43.71 | H22: 43.96 | I22: 3654466 | J22: -0.04
A23: GDX | B23: VanEck Vectors Gold Miners ETF (GDX) -PCX (Daily) | C23: 2017-02-10 | D23: 20:00:00 | E23: 24.67 | F23: 25.36 | G23: 24.6 | H23: 25.29 | I23: 65396107 | J23: 0.38
A24: HSY | B24: The Hershey Compa (HSY) -NYSE (Daily) | C24: 2015-02-19 | D24: 16:02:00 | E24: 106.97 | F24: 107.31 | G24: 105.42 | H24: 105.95 | I24: 1448321 | J24: -1
A25: HTLD | B25: Heartland Express (HTLD) -NasdaqNM (Daily) | C25: 2015-02-02 | D25: 16:00:00 | E25: 25.68 | F25: 25.81 | G25: 25.36 | H25: 25.62 | I25: 542510 | J25: -0.07
A26: IBM | B26: International Bus (IBM) -NYSE (Daily) | C26: 2015-02-02 | D26: 16:01:00 | E26: 154 | F26: 154.66 | G26: 151.51 | H26: 154.66 | I26: 4712247 | J26: 1.35
A27: INTC | B27: Intel Corporation (INTC) -NasdaqNM (Daily) | C27: 2015-02-19 | D27: 16:00:00 | E27: 34.25 | F27: 34.42 | G27: 34.05 | H27: 34.21 | I27: 11017541 | J27: -0.055
A28: JAH | B28: Jarden Corporation Common Stock (JAH) -NYQ (Daily) | C28: 2016-01-08 | D28: 16:02:00 | E28: 53.82 | F28: 53.88 | G28: 52.65 | H28: 52.73 | I28: 4519480 | J28: -0.81
A29: JNJ | B29: Johnson & Johnson Common Stock (JNJ) -NYQ (Daily) | C29: 2016-01-08 | D29: 11:37:00 | E29: 99.88 | F29: 99.94 | G29: 98.87 | H29: 98.88 | I29: 2448879 | J29: -0.34
A30: KO | B30: Coca-Cola Company (The) Common (KO) -NYQ (Daily) | C30: 2015-08-10 | D30: 16:00:00 | E30: 41.89 | F30: 41.99 | G30: 41.58 | H30: 41.68 | I30: 9501875 | J30: -0.09
A31: LHO | B31: LaSalle Hotel Pro (LHO) -NYSE (Daily) | C31: 2015-02-02 | D31: 16:06:00 | E31: 40.51 | F31: 40.74 | G31: 39.46 | H31: 40.26 | I31: 1034675 | J31: -0.2
A32: LINE | B32: Linn Energy, LLC (LINE) -NasdaqNM (Daily) | C32: 2015-02-02 | D32: 16:00:00 | E32: 10.4 | F32: 10.78 | G32: 10.25 | H32: 10.77 | I32: 3766537 | J32: 0.51
A33: LO | B33: Lorillard, Inc Co (LO) -NYSE (Daily) | C33: 2015-02-02 | D33: 16:03:00 | E33: 65.71 | F33: 66.29 | G33: 65.43 | H33: 66.29 | I33: 1563618 | J33: 0.68
A34: MCD | B34: McDonald's Corporation Common S (MCD) -NYQ (Daily) | C34: 2016-04-07 | D34: 16:10:00 | E34: 127.37 | F34: 128.52 | G34: 127.02 | H34: 128.14 | I34: 4720711 | J34: 0.62
A35: MDT | B35: Medtronic plc. Or (MDT) -NYSE (Daily) | C35: 2015-02-19 | D35: 16:01:00 | E35: 78.59 | F35: 78.59 | G35: 77.85 | H35: 78.13 | I35: 6900528 | J35: -0.37
A36: MGM | B36: MGM Resorts Inter (MGM) -NYSE (Daily) | C36: 2015-02-02 | D36: 16:00:00 | E36: 19.44 | F36: 19.75 | G36: 19.12 | H36: 19.74 | I36: 7570281 | J36: 0.26
A37: MO | B37: Altria Group, Inc (MO) -NYSE (Daily) | C37: 2015-02-02 | D37: 16:01:00 | E37: 53.25 | F37: 53.84 | G37: 52.98 | H37: 53.8 | I37: 9183582 | J37: 0.7
